{"text_format":"1","workbook":"xlsx","n_sheets":9,"sheets":["Avantages perçus","Conventions signées","AVANTAGES","CONVENTIONS","FIRMES","Conception","Rémunérations","Déplacements","Tableaux de synthèse"],"not_rendered":{"charts":0,"images":72,"macros":1,"external_links":5,"defined_names":21,"comments":2,"pivot_tables":0},"unopened":[],"bounds":{"document_bytes":16777216,"sheet_cells":100000,"rows_first":2000,"rows_last":500,"rows_between":2000,"halvings":0,"cell_chars":16384,"cell_head_chars":4096},"cells_cut":0,"cells_raw":0,"read":"whole","date_system":"1900"}

{"sheet":"Avantages perçus","index":0,"n_rows":1257,"n_cols":6,"rows_kept":1257,"cut":false,"hidden":false,"merged":[]}
["Bénéficiaire","Type de bénéficiaire","Entreprise","Date","Nature","Montant"]
["Pr Gilles Vassal, IGR","Médecin ","ROCHE SAS","30/05/2013","Frais remboursés (transport) ",170]
["Pr Gilles Vassal, IGR","Médecin ","ROCHE SAS","31/05/2013","Inscription ",671]
["Pr Gilles Vassal, IGR","Médecin ","ROCHE SAS","31/05/2013","Transport ",23]
["Pr Gilles Vassal, IGR","Médecin ","ROCHE SAS","31/05/2013","Restauration ",40]
["Pr Gilles Vassal, IGR","Médecin ","ROCHE SAS","2013-06-01","Restauration ",65]
["Pr Gilles Vassal, IGR","Médecin ","Lilly France SAS","28/05/2015","REPAS ",55]
["Pr Gilles Vassal, IGR","Médecin ","Lilly France SAS","28/05/2015","HÉBERGEMENT ",318]
["Pr Gilles Vassal, IGR","Médecin ","ROCHE SAS","28/05/2015","Hebergement ",330]
["Pr Gilles Vassal, IGR","Médecin ","ROCHE SAS","29/05/2015","Hebergement ",660]
["Pr Gilles Vassal, IGR","Médecin ","ROCHE SAS","31/05/2015","Hebergement ",330]
["Pr Gilles Vassal, IGR","Médecin ","ROCHE SAS","2015-06-01","Hebergement ",330]
["Pr Gilles Vassal, IGR","Médecin ","ROCHE ROYAUME-UNI","18/05/2016","Transport ",71]
["Pr Gilles Vassal, IGR","Médecin ","ROCHE ROYAUME-UNI","18/05/2016","Repas ",28]
["Pr Gilles Vassal, IGR","Médecin ","ROCHE ROYAUME-UNI","18/05/2016","Transport ",53]
["Pr Gilles Vassal, IGR","Médecin ","ROCHE ROYAUME-UNI","18/05/2016","Hospitalité ",241]
["Pr Gilles Vassal, IGR","Médecin ","ROCHE ROYAUME-UNI","18/05/2016","Transport ",597]
["Pr Gilles Vassal, IGR","Médecin ","ROCHE SAS","2016-06-03","Inscription ",801]
["Pr Gilles Vassal, IGR","Médecin ","ROCHE SAS","2016-06-03","Hebergement ",250]
["Pr Gilles Vassal, IGR","Médecin ","ROCHE ETATS-UNIS","2016-06-05","Repas ",14]
["Pr Gilles Vassal, IGR","Médecin ","ROCHE SAS","2016-06-06","Repas ",58]
["Pr Gilles Vassal, IGR","Médecin ","Lilly France SAS","23/09/2016","TRANSPORT ",4861]
["Pr Gilles Vassal, IGR","Médecin ","BRISTOL-MYERS SQUIBB","29/11/2016","Repas ",59]
["Pr Gilles Vassal, IGR","Médecin ","BRISTOL-MYERS SQUIBB","29/11/2016","Repas ",12]
["Pr Gilles Vassal, IGR","Médecin ","BRISTOL-MYERS SQUIBB","29/11/2016","Repas ",11]
["Pr Gilles Vassal, IGR","Médecin ","BRISTOL-MYERS SQUIBB","2017-01-10","Transport ",98]
["Pr Gilles Vassal, IGR","Médecin ","ASTRAZENECA","19/04/2017","Repas ",25]
["Pr Gilles Vassal, IGR","Médecin ","BRISTOL-MYERS SQUIBB COMPANY","28/09/2017","Transport ",228]
["Pr Gilles Vassal, IGR","Médecin ","BRISTOL-MYERS SQUIBB COMPANY","28/09/2017","Transport ",600]
["Pr Gilles Vassal, IGR","Médecin ","BRISTOL-MYERS SQUIBB COMPANY","29/09/2017","Repas ",15]
["Pr Gilles Vassal, IGR","Médecin ","BRISTOL-MYERS SQUIBB COMPANY","29/09/2017","Repas ",24]
["Pr Gilles Vassal, IGR","Médecin ","BRISTOL-MYERS SQUIBB COMPANY","29/09/2017","Repas ",41]
["Pr Gilles Vassal, IGR","Médecin ","BRISTOL-MYERS SQUIBB COMPANY","2017-11-08","Diner ",57]
["Dr Christophe Massard, IGR","Médecin ","JANSSEN-CILAG","28/03/2013","REPAS ",53]
["Dr Christophe Massard, IGR","Médecin ","JANSSEN-CILAG","28/03/2013","TRANSPORT ",84]
["Dr Christophe Massard, IGR","Médecin ","JANSSEN-CILAG","20/04/2013","REPAS ",70]
["Dr Christophe Massard, IGR","Médecin ","ASTELLAS PHARMA","31/05/2013","TRANSPORT ",3167]
["Dr Christophe Massard, IGR","Médecin ","ASTELLAS PHARMA","31/05/2013","TRANSPORT ",61]
["Dr Christophe Massard, IGR","Médecin ","ASTELLAS PHARMA","31/05/2013","HEBERGEMENT ",229]
["Dr Christophe Massard, IGR","Médecin ","ASTELLAS PHARMA","31/05/2013","TRANSPORT ",270]
["Dr Christophe Massard, IGR","Médecin ","ASTELLAS PHARMA","31/05/2013","REPAS ",59]
["Dr Christophe Massard, IGR","Médecin ","ASTELLAS PHARMA","31/05/2013","TRANSPORT ",92]
["Dr Christophe Massard, IGR","Médecin ","ASTELLAS PHARMA","31/05/2013","REPAS ",60]
["Dr Christophe Massard, IGR","Médecin ","ASTELLAS PHARMA","2013-06-01","REPAS ",59]
["Dr Christophe Massard, IGR","Médecin ","ASTELLAS PHARMA","2013-06-01","HEBERGEMENT ",229]
["Dr Christophe Massard, IGR","Médecin ","ASTELLAS PHARMA","2013-06-02","REPAS ",71]
["Dr Christophe Massard, IGR","Médecin ","Lilly France SAS","2013-06-02","REPAS ",51]
["Dr Christophe Massard, IGR","Médecin ","ASTELLAS PHARMA","2013-06-02","HEBERGEMENT ",229]
["Dr Christophe Massard, IGR","Médecin ","ASTELLAS PHARMA","2013-06-03","HEBERGEMENT ",229]
["Dr Christophe Massard, IGR","Médecin ","ASTELLAS PHARMA","2013-06-04","HEBERGEMENT ",229]
["Dr Christophe Massard, IGR","Médecin ","JANSSEN-CILAG","2013-09-07","HEBERGEMENT ",147]
["Dr Christophe Massard, IGR","Médecin ","JANSSEN-CILAG","2013-09-07","REPAS ",42]
["Dr Christophe Massard, IGR","Médecin ","JANSSEN-CILAG","2013-09-07","TRANSPORT ",138]
["Dr Christophe Massard, IGR","Médecin ","JANSSEN-CILAG","2013-10-12","AUTRE : REMBOURSEMENT DE FRAIS ",120]
["Dr Christophe Massard, IGR","Médecin ","JANSSEN-CILAG","2013-10-12","TRANSPORT ",552]
["Dr Christophe Massard, IGR","Médecin ","JANSSEN-CILAG","2013-10-12","REPAS ",193]
["Dr Christophe Massard, IGR","Médecin ","JANSSEN-CILAG","2013-10-12","INSCRIPTION ",598]
["Dr Christophe Massard, IGR","Médecin ","JANSSEN-CILAG","15/10/2013","REPAS ",23]
["Dr Christophe Massard, IGR","Médecin ","JANSSEN-CILAG","16/10/2013","REPAS ",54]
["Dr Christophe Massard, IGR","Médecin ","SANOFI AVENTIS FRANCE","30/10/2013","Restauration ",20]
["Dr Christophe Massard, IGR","Médecin ","ASTRAZENECA","20/11/2013","Repas ",20]
["Dr Christophe Massard, IGR","Médecin ","JANSSEN-CILAG","28/11/2013","AUTRE : REMBOURSEMENT DE FRAIS ",50]
["Dr Christophe Massard, IGR","Médecin ","JANSSEN-CILAG","28/11/2013","REPAS ",19]
["Dr Christophe Massard, IGR","Médecin ","TEVA SANTE SAS","13/12/2013","REPAS ",18]
["Dr Christophe Massard, IGR","Médecin ","CHUGAI PHARMA FRANCE","13/12/2013","REPAS ",19]
["Dr Christophe Massard, IGR","Médecin ","JANSSEN-CILAG","25/01/2014","AUTRE : REMBOURSEMENT DE FRAIS ",28]
["Dr Christophe Massard, IGR","Médecin ","JANSSEN-CILAG","25/01/2014","REPAS ",120]
["Dr Christophe Massard, IGR","Médecin ","AMGEN SAS","29/01/2014","REPAS IMPROMPTU ",15]
["Dr Christophe Massard, IGR","Médecin ","Laboratoires Grünenthal SAS","30/01/2014","REPAS ",16]
["Dr Christophe Massard, IGR","Médecin ","SANOFI AVENTIS FRANCE","2014-02-05","Repas ",54]
["Dr Christophe Massard, IGR","Médecin ","Transgene SA","18/02/2014","REPAS ",26]
["Dr Christophe Massard, IGR","Médecin ","JANSSEN-CILAG","27/02/2014","REPAS ",23]
["Dr Christophe Massard, IGR","Médecin ","JANSSEN-CILAG","2014-03-07","TRANSPORT ",901]
["Dr Christophe Massard, IGR","Médecin ","JANSSEN-CILAG","2014-03-07","TRANSPORT ",901]
["Dr Christophe Massard, IGR","Médecin ","JANSSEN-CILAG","2014-03-07","HEBERGEMENT ",125]
["Dr Christophe Massard, IGR","Médecin ","JANSSEN-CILAG","15/03/2014","REPAS ",67]
["Dr Christophe Massard, IGR","Médecin ","SANOFI AVENTIS FRANCE","19/03/2014","Repas ",18]
["Dr Christophe Massard, IGR","Médecin ","ASTELLAS PHARMA","21/03/2014","REPAS ",50]
["Dr Christophe Massard, IGR","Médecin ","SANOFI AVENTIS FRANCE","22/03/2014","Autre : [Restauration] ",28]
["Dr Christophe Massard, IGR","Médecin ","JANSSEN-CILAG","28/03/2014","TRANSPORT ",1067]
["Dr Christophe Massard, IGR","Médecin ","JANSSEN-CILAG","28/03/2014","REPAS ",70]
["Dr Christophe Massard, IGR","Médecin ","SANOFI AVENTIS FRANCE","29/03/2014","Hébergement ",174]
["Dr Christophe Massard, IGR","Médecin ","SANOFI AVENTIS FRANCE","29/03/2014","Autre : [Restauration] ",122]
["Dr Christophe Massard, IGR","Médecin ","SANOFI AVENTIS FRANCE","29/03/2014","Autre : [Restauration] ",77]
["Dr Christophe Massard, IGR","Médecin ","SANDOZ","28/04/2014","REPAS ",10]
["Dr Christophe Massard, IGR","Médecin ","CHUGAI PHARMA FRANCE","22/05/2014","REPAS ",33]
["Dr Christophe Massard, IGR","Médecin ","Orion Corporation Orion Pharma","30/05/2014","INSCRIPTION ",596]
["Dr Christophe Massard, IGR","Médecin ","Orion Corporation Orion Pharma","30/05/2014","HOSPITALITÉ ",3137]
["Dr Christophe Massard, IGR","Médecin ","Bayer HealthCare SAS","2014-06-04","Hospitalité ",21]
["Dr Christophe Massard, IGR","Médecin ","MERCK SERONO","2014-06-11","REPAS ",15]
["Dr Christophe Massard, IGR","Médecin ","Bayer HealthCare SAS","20/06/2014","Hospitalité ",67]
["Dr Christophe Massard, IGR","Médecin ","LEO Pharma","20/08/2014","REPAS ",17]
["Dr Christophe Massard, IGR","Médecin ","MUNDIPHARMA","27/08/2014","HOSPITALITE STAFF ",16]
["Dr Christophe Massard, IGR","Médecin ","MSD France","29/08/2014","AUTRE : REMUNERATION ",1800]
["Dr Christophe Massard, IGR","Médecin ","PSI CRO AG","2014-09-03","Repas ",113]
["Dr Christophe Massard, IGR","Médecin ","Laboratoires Grünenthal SAS","24/09/2014","REPAS ",14]
["Dr Christophe Massard, IGR","Médecin ","Lilly France SAS","26/09/2014","REPAS ",32]
["Dr Christophe Massard, IGR","Médecin ","Lilly France SAS","27/09/2014","TRANSPORT ",5814]
["Dr Christophe Massard, IGR","Médecin ","Lilly France SAS","27/09/2014","REPAS ",84]
["Dr Christophe Massard, IGR","Médecin ","Lilly France SAS","27/09/2014","HÉBERGEMENT ",248]
["Dr Christophe Massard, IGR","Médecin ","JANSSEN-CILAG","29/09/2014","REPAS ",55]
["Dr Christophe Massard, IGR","Médecin ","LEO Pharma","2014-10-08","REPAS ",19]
["Dr Christophe Massard, IGR","Médecin ","LABORATOIRE GLAXOSMITHKLINE","17/10/2014","REPAS ",20]
["Dr Christophe Massard, IGR","Médecin ","CHUGAI PHARMA FRANCE","17/12/2014","REPAS ",19]
["Dr Christophe Massard, IGR","Médecin ","MSD France","28/01/2015","AUTRE : REMUNERATION ",1250]
["Dr Christophe Massard, IGR","Médecin ","AMGEN SAS","2015-02-07","REPAS REUNION ",28]
["Dr Christophe Massard, IGR","Médecin ","SANOFI AVENTIS FRANCE","26/02/2015","Hébergement ",1181]
["Dr Christophe Massard, IGR","Médecin ","SANOFI AVENTIS FRANCE","26/02/2015","Repas ",31]
["Dr Christophe Massard, IGR","Médecin ","SANOFI AVENTIS FRANCE","26/02/2015","Inscription ",752]
["Dr Christophe Massard, IGR","Médecin ","SANOFI AVENTIS FRANCE","26/02/2015","Transport ",4764]
["Dr Christophe Massard, IGR","Médecin ","JANSSEN-CILAG","18/03/2015","REPAS ",23]
["Dr Christophe Massard, IGR","Médecin ","MSD France","2015-04-10","AUTRE : REMUNERATION ",875]
["Dr Christophe Massard, IGR","Médecin ","Orion Corporation Orion Pharma","2015-06-10","Transport ",605]
["Dr Christophe Massard, IGR","Médecin ","Orion Corporation Orion Pharma","2015-06-10","Repas ",205]
["Dr Christophe Massard, IGR","Médecin ","Orion Corporation Orion Pharma","2015-06-10","Hebergement ",467]
["Dr Christophe Massard, IGR","Médecin ","ASTRAZENECA","30/06/2015","Repas ",57]
["Dr Christophe Massard, IGR","Médecin ","Bayer HealthCare SAS","19/08/2015","Hospitalité ",26]
["Dr Christophe Massard, IGR","Médecin ","Health Advances","28/08/2015","Autre: Phone consult ",309]
["Dr Christophe Massard, IGR","Médecin ","JANSSEN-CILAG","22/09/2015","REPAS ",50]
["Dr Christophe Massard, IGR","Médecin ","JANSSEN-CILAG","22/09/2015","AUTRE : REMBOURSEMENT DE FRAIS ",72]
["Dr Christophe Massard, IGR","Médecin ","JANSSEN-CILAG","25/09/2015","INSCRIPTION ",699]
["Dr Christophe Massard, IGR","Médecin ","JANSSEN-CILAG","25/09/2015","RESTAURATION ",10]
["Dr Christophe Massard, IGR","Médecin ","JANSSEN-CILAG","25/09/2015","HEBERGEMENT ",374]
["Dr Christophe Massard, IGR","Médecin ","SANOFI AVENTIS FRANCE","27/09/2015","Repas ",40]
["Dr Christophe Massard, IGR","Médecin ","JANSSEN-CILAG","2015-10-06","REPAS ",25]
["Dr Christophe Massard, IGR","Médecin ","SANOFI AVENTIS FRANCE","2015-10-07","Repas ",60]
["Dr Christophe Massard, IGR","Médecin ","Lilly France SAS","2015-11-06","REPAS ",128]
["Dr Christophe Massard, IGR","Médecin ","Lilly France SAS","2016-01-11","REPAS ",36]
["Dr Christophe Massard, IGR","Médecin ","JANSSEN-CILAG","19/01/2016","REPAS ",25]
["Dr Christophe Massard, IGR","Médecin ","AMGEN SAS","17/02/2016","REPAS IMPROMPTU ",24]
["Dr Christophe Massard, IGR","Médecin ","Incyte Corporation","21/03/2016","REPAS ",50]
["Dr Christophe Massard, IGR","Médecin ","Lilly France SAS","2016-04-07","TRANSPORT ",4865]
["Dr Christophe Massard, IGR","Médecin ","Lilly France SAS","23/05/2016","AUTRE : [REMBOURSEMENT FRAIS LOGISTIQUE] ",142]
["Dr Christophe Massard, IGR","Médecin ","SANOFI AVENTIS FRANCE","23/05/2016","Repas ",60]
["Dr Christophe Massard, IGR","Médecin ","NOVARTIS PHARMA SAS","2016-06-09","AUTRE : [PARTICIPATION EVENEMENT SCIENTIFIQUE] ",17]
["Dr Christophe Massard, IGR","Médecin ","JANSSEN-CILAG","28/06/2016","TRANSPORT ",60]
["Dr Christophe Massard, IGR","Médecin ","JANSSEN-CILAG","28/06/2016","HEBERGEMENT ",130]
["Dr Christophe Massard, IGR","Médecin ","Bayer HealthCare SAS","24/08/2016","Repas ",21]
["Dr Christophe Massard, IGR","Médecin ","JANSSEN-CILAG","2016-09-06","REPAS ",22]
["Dr Christophe Massard, IGR","Médecin ","JANSSEN-CILAG","15/09/2016","REPAS ",48]
["Dr Christophe Massard, IGR","Médecin ","JANSSEN-CILAG","15/09/2016","HEBERGEMENT ",117]
["Dr Christophe Massard, IGR","Médecin ","JANSSEN-CILAG","15/09/2016","TRANSPORT ",289]
["Dr Christophe Massard, IGR","Médecin ","JANSSEN-CILAG","14/10/2016","REPAS ",33]
["Dr Christophe Massard, IGR","Médecin ","JANSSEN-CILAG","14/10/2016","AUTRE : REMBOURSEMENT DE FRAIS ",75]
["Dr Christophe Massard, IGR","Médecin ","JANSSEN-CILAG","14/10/2016","TRANSPORT ",192]
["Dr Christophe Massard, IGR","Médecin ","JANSSEN-CILAG","14/10/2016","HEBERGEMENT ",122]
["Dr Christophe Massard, IGR","Médecin ","JANSSEN-CILAG","14/10/2016","REPAS ",43]
["Dr Christophe Massard, IGR","Médecin ","SANOFI AVENTIS FRANCE","16/11/2016","Transport ",150]
["Dr Christophe Massard, IGR","Médecin ","SANOFI AVENTIS FRANCE","16/11/2016","Inscription ",560]
["Dr Christophe Massard, IGR","Médecin ","JANSSEN-CILAG","2016-12-08","REPAS ",60]
["Dr Christophe Massard, IGR","Médecin ","JANSSEN-CILAG","2016-12-08","AUTRE : REMBOURSEMENT DE FRAIS ",15]
["Dr Christophe Massard, IGR","Médecin ","AMGEN SAS","2017-02-03","REPAS ",10]
["Dr Christophe Massard, IGR","Médecin ","ASTRAZENECA","2017-02-08","Hospitalité ",89]
["Dr Christophe Massard, IGR","Médecin ","NOVARTIS PHARMA SAS","2017-02-08","Participation Evenement Scientifique ",12]
["Dr Christophe Massard, IGR","Médecin ","ASTRAZENECA","2017-02-08","Transport ",662]
["Dr Christophe Massard, IGR","Médecin ","ASTRAZENECA","2017-02-09","Hospitalité ",89]
["Dr Christophe Massard, IGR","Médecin ","ASTRAZENECA","2017-02-09","Repas ",60]
["Dr Christophe Massard, IGR","Médecin ","ASTRAZENECA","2017-02-09","Hébergement ",122]
["Dr Christophe Massard, IGR","Médecin ","JANSSEN-CILAG","23/02/2017","REPAS ",10]
["Dr Christophe Massard, IGR","Médecin ","JANSSEN-CILAG","28/02/2017","REPAS ",25]
["Dr Christophe Massard, IGR","Médecin ","ASTRAZENECA","2017-04-01","Hébergement ",275]
["Dr Christophe Massard, IGR","Médecin ","ASTRAZENECA","2017-04-01","Inscription ",1141]
["Dr Christophe Massard, IGR","Médecin ","ASTRAZENECA","2017-04-01","Transport ",8111]
["Dr Christophe Massard, IGR","Médecin ","ASTRAZENECA","2017-04-02","Hébergement ",275]
["Dr Christophe Massard, IGR","Médecin ","ASTRAZENECA","2017-04-02","Repas ",57]
["Dr Christophe Massard, IGR","Médecin ","ASTRAZENECA","2017-04-03","Hébergement ",275]
["Dr Christophe Massard, IGR","Médecin ","ASTRAZENECA","2017-04-04","Repas ",57]
["Dr Christophe Massard, IGR","Médecin ","ASTRAZENECA","2017-04-04","Hébergement ",275]
["Dr Christophe Massard, IGR","Médecin ","ASTRAZENECA","2017-04-06","transport ",114]
["Dr Christophe Massard, IGR","Médecin ","ASTRAZENECA","19/04/2017","Repas ",25]
["Dr Christophe Massard, IGR","Médecin ","ASTRAZENECA","27/04/2017","Repas ",57]
["Dr Christophe Massard, IGR","Médecin ","JANSSEN-CILAG","31/05/2017","AUTRE : REMBOURSEMENT DE FRAIS ",82]
["Dr Christophe Massard, IGR","Médecin ","JANSSEN-CILAG","2017-06-06","AUTRE : REMBOURSEMENT DE FRAIS ",120]
["Dr Christophe Massard, IGR","Médecin ","Medicys Limited","31/08/2017","Autre : Indemnite ",180]
["Dr Christophe Massard, IGR","Médecin ","JANSSEN-CILAG","2017-09-08","INSCRIPTION ",740]
["Dr Christophe Massard, IGR","Médecin ","JANSSEN-CILAG","2017-09-08","TRANSPORT ",25]
["Dr Christophe Massard, IGR","Médecin ","JANSSEN-CILAG","2017-09-08","TRANSPORT ",695]
["Dr Christophe Massard, IGR","Médecin ","JANSSEN-CILAG","2017-09-08","HEBERGEMENT ",330]
["Dr Christophe Massard, IGR","Médecin ","INVENTIVA","14/09/2017","TRANSPORT ",88]
["Dr Christophe Massard, IGR","Médecin ","BRISTOL-MYERS SQUIBB COMPANY","2017-11-08","Dîner ",57]
["Dr Christophe Massard, IGR","Médecin ","AMGEN SAS","20/11/2017","REPAS ",60]
["Dr Christophe Massard, IGR","Médecin ","JANSSEN-CILAG","28/11/2017","REPAS ",49]
["Dr Christophe Massard, IGR","Médecin ","Lilly France SAS","2017-12-01","TRANSPORT ",4961]
["Dr Christophe Massard, IGR","Médecin ","JANSSEN-CILAG","2017-12-07","REPAS ",60]
["Dr Aurélien Marabelle, IGR","Médecin ","Bayer HealthCare SAS","31/03/2014","Hospitalité ",84]
["Dr Aurélien Marabelle, IGR","Médecin ","BRISTOL-MYERS SQUIBB","22/01/2015","Hébergement ",548]
["Dr Aurélien Marabelle, IGR","Médecin ","BRISTOL-MYERS SQUIBB","22/01/2015","Repas ",245]
["Dr Aurélien Marabelle, IGR","Médecin ","BRISTOL-MYERS SQUIBB","22/01/2015","Transport ",3516]
["Dr Aurélien Marabelle, IGR","Médecin ","SANOFI AVENTIS FRANCE","21/03/2015","Autre : [Restauration] ",27]
["Dr Aurélien Marabelle, IGR","Médecin ","BRISTOL-MYERS SQUIBB","19/06/2015","Autre : [Rémunération] ",2000]
["Dr Aurélien Marabelle, IGR","Médecin ","Transgene SA","2015-09-05","REPAS ",49]
["Dr Aurélien Marabelle, IGR","Médecin ","AMGEN SAS","24/09/2015","HEBERGEMENT ",249]
["Dr Aurélien Marabelle, IGR","Médecin ","AMGEN SAS","24/09/2015","REPAS REUNION ",38]
["Dr Aurélien Marabelle, IGR","Médecin ","AMGEN SAS","25/09/2015","HEBERGEMENT ",249]
["Dr Aurélien Marabelle, IGR","Médecin ","AMGEN SAS","25/09/2015","TRANSPORT ",933]
["Dr Aurélien Marabelle, IGR","Médecin ","AMGEN SAS","25/09/2015","TRANSPORT ",232]
["Dr Aurélien Marabelle, IGR","Médecin ","AMGEN SAS","25/09/2015","REPAS REUNION ",27]
["Dr Aurélien Marabelle, IGR","Médecin ","AMGEN SAS","26/09/2015","HEBERGEMENT ",249]
["Dr Aurélien Marabelle, IGR","Médecin ","AMGEN SAS","26/09/2015","REPAS REUNION ",26]
["Dr Aurélien Marabelle, IGR","Médecin ","AMGEN SAS","27/09/2015","REPAS REUNION ",26]
["Dr Aurélien Marabelle, IGR","Médecin ","AMGEN SAS","27/09/2015","HEBERGEMENT ",249]
["Dr Aurélien Marabelle, IGR","Médecin ","BRISTOL-MYERS SQUIBB","27/09/2015","Repas ",20]
["Dr Aurélien Marabelle, IGR","Médecin ","AMGEN SAS","28/09/2015","HEBERGEMENT ",249]
["Dr Aurélien Marabelle, IGR","Médecin ","AMGEN SAS","28/09/2015","REPAS REUNION ",32]
["Dr Aurélien Marabelle, IGR","Médecin ","AMGEN SAS","23/10/2015","TRANSPORT ",58]
["Dr Aurélien Marabelle, IGR","Médecin ","BRISTOL-MYERS SQUIBB","27/11/2015","Transport ",27]
["Dr Aurélien Marabelle, IGR","Médecin ","AMGEN SAS","27/11/2015","TRANSPORT ",194]
["Dr Aurélien Marabelle, IGR","Médecin ","AMGEN SAS","27/11/2015","TRANSPORT ",65]
["Dr Aurélien Marabelle, IGR","Médecin ","BRISTOL-MYERS SQUIBB","27/11/2015","Dons ",28]
["Dr Aurélien Marabelle, IGR","Médecin ","MSD France","2015-12-08","REPAS ",10]
["Dr Aurélien Marabelle, IGR","Médecin ","MSD France","2015-12-08","REPAS ",10]
["Dr Aurélien Marabelle, IGR","Médecin ","MSD France","2015-12-08","REPAS ",60]
["Dr Aurélien Marabelle, IGR","Médecin ","ROCHE MAROC","2016-01-08","Autre ",46]
["Dr Aurélien Marabelle, IGR","Médecin ","ROCHE MAROC","2016-01-08","Repas ",57]
["Dr Aurélien Marabelle, IGR","Médecin ","ROCHE MAROC","2016-01-08","Repas ",53]
["Dr Aurélien Marabelle, IGR","Médecin ","ROCHE MAROC","2016-01-08","Transport ",233]
["Dr Aurélien Marabelle, IGR","Médecin ","ROCHE MAROC","2016-01-08","Hospitalité ",102]
["Dr Aurélien Marabelle, IGR","Médecin ","AMGEN SAS","15/01/2016","REPAS ",33]
["Dr Aurélien Marabelle, IGR","Médecin ","ROCHE ETATS-UNIS","21/01/2016","Transport ",9281]
["Dr Aurélien Marabelle, IGR","Médecin ","ROCHE ETATS-UNIS","21/01/2016","Transport ",243]
["Dr Aurélien Marabelle, IGR","Médecin ","ROCHE ETATS-UNIS","21/01/2016","Transport ",224]
["Dr Aurélien Marabelle, IGR","Médecin ","ROCHE ETATS-UNIS","21/01/2016","Repas ",18]
["Dr Aurélien Marabelle, IGR","Médecin ","ROCHE ETATS-UNIS","21/01/2016","Repas ",36]
["Dr Aurélien Marabelle, IGR","Médecin ","ROCHE ETATS-UNIS","21/01/2016","Repas ",50]
["Dr Aurélien Marabelle, IGR","Médecin ","ROCHE ETATS-UNIS","21/01/2016","Hospitalité ",622]
["Dr Aurélien Marabelle, IGR","Médecin ","ROCHE SUISSE","28/01/2016","Autre ",36]
["Dr Aurélien Marabelle, IGR","Médecin ","ROCHE SUISSE","28/01/2016","Repas ",18]
["Dr Aurélien Marabelle, IGR","Médecin ","ROCHE ETATS-UNIS","2016-02-03","Hospitalité ",202]
["Dr Aurélien Marabelle, IGR","Médecin ","ROCHE ETATS-UNIS","2016-02-03","Transport ",6005]
["Dr Aurélien Marabelle, IGR","Médecin ","ROCHE ETATS-UNIS","2016-02-03","Repas ",18]
["Dr Aurélien Marabelle, IGR","Médecin ","ROCHE ETATS-UNIS","2016-02-03","Repas ",33]
["Dr Aurélien Marabelle, IGR","Médecin ","ROCHE ETATS-UNIS","2016-02-03","Repas ",12]
["Dr Aurélien Marabelle, IGR","Médecin ","ROCHE ETATS-UNIS","2016-02-03","Transport ",245]
["Dr Aurélien Marabelle, IGR","Médecin ","ROCHE ETATS-UNIS","2016-02-03","Repas ",49]
["Dr Aurélien Marabelle, IGR","Médecin ","MSD France","2016-03-07","AUTRE : REMUNERATION ",2500]
["Dr Aurélien Marabelle, IGR","Médecin ","BRISTOL-MYERS SQUIBB","16/03/2016","Transport ",29]
["Dr Aurélien Marabelle, IGR","Médecin ","BRISTOL-MYERS SQUIBB","19/03/2016","Transport ",70]
["Dr Aurélien Marabelle, IGR","Médecin ","ROCHE ALLEMAGNE","23/03/2016","Transport ",175]
["Dr Aurélien Marabelle, IGR","Médecin ","ROCHE ALLEMAGNE","23/03/2016","Transport ",101]
["Dr Aurélien Marabelle, IGR","Médecin ","ROCHE ALLEMAGNE","23/03/2016","Transport ",343]
["Dr Aurélien Marabelle, IGR","Médecin ","MSD France","2016-04-01","REPAS ",30]
["Dr Aurélien Marabelle, IGR","Médecin ","MSD France","2016-04-11","REPAS ",66]
["Dr Aurélien Marabelle, IGR","Médecin ","ROCHE SAS","16/04/2016","Transport ",3797]
["Dr Aurélien Marabelle, IGR","Médecin ","ROCHE SAS","16/04/2016","Inscription ",1059]
["Dr Aurélien Marabelle, IGR","Médecin ","ROCHE SAS","16/04/2016","Inscription ",1059]
["Dr Aurélien Marabelle, IGR","Médecin ","MSD France","17/04/2016","REPAS ",60]
["Dr Aurélien Marabelle, IGR","Médecin ","ROCHE ETATS-UNIS","17/04/2016","Repas ",52]
["Dr Aurélien Marabelle, IGR","Médecin ","ROCHE SAS","17/04/2016","Hebergement ",250]
["Dr Aurélien Marabelle, IGR","Médecin ","ROCHE SAS","18/04/2016","Hebergement ",250]
["Dr Aurélien Marabelle, IGR","Médecin ","ROCHE SAS","19/04/2016","Hebergement ",250]
["Dr Aurélien Marabelle, IGR","Médecin ","ROCHE SAS","19/04/2016","Repas ",56]
["Dr Aurélien Marabelle, IGR","Médecin ","ROCHE SAS","20/04/2016","Transport ",22]
["Dr Aurélien Marabelle, IGR","Médecin ","BRISTOL-MYERS SQUIBB","19/05/2016","Hébergement ",189]
["Dr Aurélien Marabelle, IGR","Médecin ","BRISTOL-MYERS SQUIBB","19/05/2016","Repas ",115]
["Dr Aurélien Marabelle, IGR","Médecin ","BRISTOL-MYERS SQUIBB","20/05/2016","Transport ",508]
["Dr Aurélien Marabelle, IGR","Médecin ","ROCHE ETATS-UNIS","2016-06-03","Repas ",92]
["Dr Aurélien Marabelle, IGR","Médecin ","ROCHE ETATS-UNIS","2016-06-04","Autre ",63]
["Dr Aurélien Marabelle, IGR","Médecin ","ROCHE ETATS-UNIS","2016-06-04","Autre ",23]
["Dr Aurélien Marabelle, IGR","Médecin ","ROCHE ETATS-UNIS","2016-06-04","Repas ",54]
["Dr Aurélien Marabelle, IGR","Médecin ","ROCHE ETATS-UNIS","2016-06-06","Repas ",45]
["Dr Aurélien Marabelle, IGR","Médecin ","LABORATOIRE GLAXOSMITHKLINE","2016-06-06","TRANSPORT ",23]
["Dr Aurélien Marabelle, IGR","Médecin ","AMGEN SAS","2016-07-02","HEBERGEMENT ",133]
["Dr Aurélien Marabelle, IGR","Médecin ","AMGEN SAS","2016-07-02","REPAS REUNION ",40]
["Dr Aurélien Marabelle, IGR","Médecin ","AMGEN SAS","2016-07-02","TRANSPORT ",169]
["Dr Aurélien Marabelle, IGR","Médecin ","MSD France","2016-08-11","AUTRE : REMUNERATION ",5250]
["Dr Aurélien Marabelle, IGR","Médecin ","ROCHE SAS","15/09/2016","Transport ",589]
["Dr Aurélien Marabelle, IGR","Médecin ","ROCHE DANEMARK","2016-10-06","Repas ",31]
["Dr Aurélien Marabelle, IGR","Médecin ","ROCHE DANEMARK","2016-10-06","Repas ",12]
["Dr Aurélien Marabelle, IGR","Médecin ","Genmab A/S","2016-10-06","Transport ",147]
["Dr Aurélien Marabelle, IGR","Médecin ","MSD France","2016-10-08","REPAS ",11]
["Dr Aurélien Marabelle, IGR","Médecin ","ROCHE DANEMARK","2016-10-09","Repas ",52]
["Dr Aurélien Marabelle, IGR","Médecin ","ROCHE DANEMARK","2016-10-09","Hospitalité ",410]
["Dr Aurélien Marabelle, IGR","Médecin ","ROCHE DANEMARK","2016-10-09","Transport ",67]
["Dr Aurélien Marabelle, IGR","Médecin ","ROCHE DANEMARK","2016-10-09","Transport ",115]
["Dr Aurélien Marabelle, IGR","Médecin ","AMGEN SAS","13/10/2016","TRANSPORT ",37]
["Dr Aurélien Marabelle, IGR","Médecin ","BRISTOL-MYERS SQUIBB","2016-11-12","dejeuner ",43]
["Dr Aurélien Marabelle, IGR","Médecin ","GILEAD SCIENCES","2016-12-08","REPAS ",70]
["Dr Aurélien Marabelle, IGR","Médecin ","AMGEN SAS","2017-01-12","REPAS ",10]
["Dr Aurélien Marabelle, IGR","Médecin ","AMGEN SAS","2017-01-12","REPAS ",10]
["Dr Aurélien Marabelle, IGR","Médecin ","MERCK SERONO","25/01/2017","TRANSPORT ",353]
["Dr Aurélien Marabelle, IGR","Médecin ","BRISTOL-MYERS SQUIBB","2017-02-02","Repas ",50]
["Dr Aurélien Marabelle, IGR","Médecin ","LABORATOIRE GLAXOSMITHKLINE","14/02/2017","TRANSPORT ",36]
["Dr Aurélien Marabelle, IGR","Médecin ","GILEAD SCIENCES","2017-03-02","TRANSPORT ",48]
["Dr Aurélien Marabelle, IGR","Médecin ","BRISTOL-MYERS SQUIBB","16/03/2017","Hébergement ",159]
["Dr Aurélien Marabelle, IGR","Médecin ","BRISTOL-MYERS SQUIBB","16/03/2017","Transport ",1209]
["Dr Aurélien Marabelle, IGR","Médecin ","BRISTOL-MYERS SQUIBB","16/03/2017","Repas ",60]
["Dr Aurélien Marabelle, IGR","Médecin ","BRISTOL-MYERS SQUIBB","17/03/2017","Repas ",29]
["Dr Aurélien Marabelle, IGR","Médecin ","AMGEN SAS","20/03/2017","TRANSPORT ",74]
["Dr Aurélien Marabelle, IGR","Médecin ","ASTRAZENECA","2017-04-01","Transport ",3387]
["Dr Aurélien Marabelle, IGR","Médecin ","ASTRAZENECA","2017-04-01","Hébergement ",275]
["Dr Aurélien Marabelle, IGR","Médecin ","ASTRAZENECA","2017-04-01","Inscription ",1141]
["Dr Aurélien Marabelle, IGR","Médecin ","ASTRAZENECA","2017-04-02","Repas ",57]
["Dr Aurélien Marabelle, IGR","Médecin ","ASTRAZENECA","2017-04-02","Hébergement ",275]
["Dr Aurélien Marabelle, IGR","Médecin ","ASTRAZENECA","2017-04-03","Hébergement ",275]
["Dr Aurélien Marabelle, IGR","Médecin ","ASTRAZENECA","2017-04-04","Hébergement ",275]
["Dr Aurélien Marabelle, IGR","Médecin ","ASTRAZENECA","2017-04-04","Repas ",57]
["Dr Aurélien Marabelle, IGR","Médecin ","ASTRAZENECA","19/04/2017","Repas ",25]
["Dr Aurélien Marabelle, IGR","Médecin ","ASTRAZENECA","27/04/2017","Repas ",57]
["Dr Aurélien Marabelle, IGR","Médecin ","BRISTOL-MYERS SQUIBB","23/05/2017","Repas ",18]
["Dr Aurélien Marabelle, IGR","Médecin ","ROCHE SAS","2017-06-02","Transport ",5078]
["Dr Aurélien Marabelle, IGR","Médecin ","ROCHE SAS","2017-06-02","Hebergement ",30]
["Dr Aurélien Marabelle, IGR","Médecin ","ROCHE SAS","2017-06-02","Repas ",91]
["Dr Aurélien Marabelle, IGR","Médecin ","ASTRAZENECA","2017-06-06","transport ",82]
["Dr Aurélien Marabelle, IGR","Médecin ","ASTRAZENECA","2017-07-11","TRANSPORT ",93]
["Dr Aurélien Marabelle, IGR","Médecin ","ASTRAZENECA","2017-07-11","TRANSPORT ",70]
["Dr Aurélien Marabelle, IGR","Médecin ","ASTRAZENECA","2017-08-01","TRANSPORT ",90]
["Dr Aurélien Marabelle, IGR","Médecin ","MSD France","16/10/2017","HOSPITALITE ",144]
["Dr Aurélien Marabelle, IGR","Médecin ","EISAI SAS","2017-11-11","Repas ",154]
["Dr Aurélien Marabelle, IGR","Médecin ","INSTITUT MERIEUX","15/11/2017","TRANSPORT ",299]
["Dr Aurélien Marabelle, IGR","Médecin ","INSTITUT MERIEUX","15/11/2017","REPAS ET TRANSPORT ",2511]
["Dr Aurélien Marabelle, IGR","Médecin ","BRISTOL-MYERS SQUIBB","23/11/2017","Transport ",76]
["Dr Aurélien Marabelle, IGR","Médecin ","BRISTOL-MYERS SQUIBB","27/11/2017","Repas ",10]
["Dr Aurélien Marabelle, IGR","Médecin ","ASTRAZENECA","19/12/2017","TRANSPORT ",58]
["Dr Aurélien Marabelle, IGR","Médecin ","ASTRAZENECA","21/12/2017","TRANSPORT ",12]
["Dr Eric Angevin, IGR","Médecin ","MSD France","26/06/2013","AUTRE : REMUNERATION ",800]
["Dr Eric Angevin, IGR","Médecin ","MSD France","25/09/2013","HÉBERGEMENT ",750]
["Dr Eric Angevin, IGR","Médecin ","MSD France","25/09/2013","REPAS ",77]
["Dr Eric Angevin, IGR","Médecin ","MSD France","25/09/2013","INSCRIPTION ",775]
["Dr Eric Angevin, IGR","Médecin ","LABORATOIRE GLAXOSMITHKLINE","27/09/2013","TRANSPORT ",436]
["Dr Eric Angevin, IGR","Médecin ","LABORATOIRE GLAXOSMITHKLINE","27/09/2013","TRANSPORT ",172]
["Dr Eric Angevin, IGR","Médecin ","LABORATOIRE GLAXOSMITHKLINE","27/09/2013","REPAS ",60]
["Dr Eric Angevin, IGR","Médecin ","LABORATOIRE GLAXOSMITHKLINE","27/09/2013","Autre : [Inscription] ",699]
["Dr Eric Angevin, IGR","Médecin ","LABORATOIRE GLAXOSMITHKLINE","27/09/2013","HEBERGEMENT ",226]
["Dr Eric Angevin, IGR","Médecin ","LABORATOIRE GLAXOSMITHKLINE","28/09/2013","HEBERGEMENT ",226]
["Dr Eric Angevin, IGR","Médecin ","LABORATOIRE GLAXOSMITHKLINE","28/09/2013","REPAS ",50]
["Dr Eric Angevin, IGR","Médecin ","LABORATOIRE GLAXOSMITHKLINE","29/09/2013","HEBERGEMENT ",226]
["Dr Eric Angevin, IGR","Médecin ","LABORATOIRE GLAXOSMITHKLINE","29/09/2013","REPAS ",49]
["Dr Eric Angevin, IGR","Médecin ","LABORATOIRE GLAXOSMITHKLINE","30/09/2013","HEBERGEMENT ",226]
["Dr Eric Angevin, IGR","Médecin ","ROCHE SAS","2014-04-05","Transport ",5406]
["Dr Eric Angevin, IGR","Médecin ","ROCHE SAS","2014-04-05","Repas ",20]
["Dr Eric Angevin, IGR","Médecin ","ROCHE SAS","2014-04-05","Inscription ",750]
["Dr Eric Angevin, IGR","Médecin ","ROCHE SAS","2014-04-05","Hebergement ",270]
["Dr Eric Angevin, IGR","Médecin ","ROCHE SAS","2014-04-06","Transport ",22]
["Dr Eric Angevin, IGR","Médecin ","ROCHE SAS","2014-04-06","Hebergement ",270]
["Dr Eric Angevin, IGR","Médecin ","ROCHE SAS","2014-04-06","Repas ",64]
["Dr Eric Angevin, IGR","Médecin ","ROCHE SAS","2014-04-07","Hebergement ",270]
["Dr Eric Angevin, IGR","Médecin ","ROCHE SAS","2014-04-08","Hebergement ",270]
["Dr Eric Angevin, IGR","Médecin ","ROCHE SAS","2014-04-08","Repas ",57]
["Dr Eric Angevin, IGR","Médecin ","ROCHE SAS","2014-04-09","Hebergement ",270]
["Dr Eric Angevin, IGR","Médecin ","SANOFI-AVENTIS RECHERCHE & DEVELOPPEMENT","2014-08-05","Autre : [Remboursement de frais] ",10335]
["Dr Eric Angevin, IGR","Médecin ","LABORATOIRE GLAXOSMITHKLINE","2015-07-06","TRANSPORT ",2499]
["Dr Eric Angevin, IGR","Médecin ","LABORATOIRE GLAXOSMITHKLINE","2015-07-06","REPAS ",287]
["Dr Eric Angevin, IGR","Médecin ","LABORATOIRE GLAXOSMITHKLINE","2015-07-06","HEBERGEMENT ",1228]
["Dr Eric Angevin, IGR","Médecin ","LABORATOIRE GLAXOSMITHKLINE","2015-07-06","INSCRIPTION ",473]
["Dr Eric Angevin, IGR","Médecin ","MSD France","27/08/2015","AUTRE : REMUNERATION ",875]
["Dr Eric Angevin, IGR","Médecin ","Incyte Corporation","2015-11-05","REPAS ",21]
["Dr Eric Angevin, IGR","Médecin ","LABORATOIRE GLAXOSMITHKLINE","2015-12-11","REPAS ",80]
["Dr Eric Angevin, IGR","Médecin ","MSD France","22/03/2016","REPAS ",13]
["Dr Eric Angevin, IGR","Médecin ","MSD France","2016-04-01","REPAS ",30]
["Dr Eric Angevin, IGR","Médecin ","MSD France","2016-04-11","REPAS ",19]
["Dr Eric Angevin, IGR","Médecin ","MSD France","2016-04-11","REPAS ",66]
["Dr Eric Angevin, IGR","Médecin ","AbbVie","2016-06-02","TRANSPORT ",6133]
["Dr Eric Angevin, IGR","Médecin ","AbbVie","2016-06-02","HEBERGEMENT ",278]
["Dr Eric Angevin, IGR","Médecin ","AbbVie","2016-06-03","INSCRIPTION ",713]
["Dr Eric Angevin, IGR","Médecin ","AbbVie","2016-06-03","HEBERGEMENT ",278]
["Dr Eric Angevin, IGR","Médecin ","ROCHE ETATS-UNIS","2016-06-03","Repas ",92]
["Dr Eric Angevin, IGR","Médecin ","AbbVie","2016-06-04","HEBERGEMENT ",278]
["Dr Eric Angevin, IGR","Médecin ","AbbVie","2016-06-04","REPAS ",40]
["Dr Eric Angevin, IGR","Médecin ","AbbVie","2016-06-05","HEBERGEMENT ",258]
["Dr Eric Angevin, IGR","Médecin ","AbbVie","2016-06-06","TRANSPORT ",48]
["Dr Eric Angevin, IGR","Médecin ","AbbVie","2016-06-06","REPAS ",19]
["Dr Eric Angevin, IGR","Médecin ","MSD France","22/06/2016","AUTRE : REMUNERATION ",1050]
["Dr Eric Angevin, IGR","Médecin ","LABORATOIRE GLAXOSMITHKLINE","2016-10-09","REPAS ",53]
["Dr Eric Angevin, IGR","Médecin ","BRISTOL-MYERS SQUIBB","16/03/2017","Hébergement ",159]
["Dr Eric Angevin, IGR","Médecin ","BRISTOL-MYERS SQUIBB","16/03/2017","Transport ",1209]
["Dr Eric Angevin, IGR","Médecin ","BRISTOL-MYERS SQUIBB","16/03/2017","Repas ",60]
["Dr Eric Angevin, IGR","Médecin ","BRISTOL-MYERS SQUIBB","17/03/2017","Repas ",29]
["Dr Eric Angevin, IGR","Médecin ","ASTRAZENECA","19/04/2017","Repas ",25]
["Dr Eric Angevin, IGR","Médecin ","BRISTOL-MYERS SQUIBB","20/04/2017","Transport ",56]
["Dr Eric Angevin, IGR","Médecin ","AbbVie","2017-07-07","REPAS ",28]
["Dr Eric Angevin, IGR","Médecin ","LABORATOIRE GLAXOSMITHKLINE","2017-09-08","REPAS ",26]
["Dr Eric Angevin, IGR","Médecin ","CELGENE SAS","21/09/2017","REPAS ",60]
["Pr Jean-Yves Scoazec, IGR","Médecin ","MEDEXACT","18/07/2013","Autre: [Enquête] ",30]
["Pr Jean-Yves Scoazec, IGR","Médecin ","IPSEN PHARMA","2014-04-10","HOSPITALITE ",113]
["Pr Jean-Yves Scoazec, IGR","Médecin ","NOVARTIS PHARMA SAS","19/09/2014","Repas ",69]
["Pr Jean-Yves Scoazec, IGR","Médecin ","NOVARTIS PHARMA SAS","19/09/2014","Autre : [Participation Evenement Scientifique] ",69]
["Pr Jean-Yves Scoazec, IGR","Médecin ","PFIZER SAS","24/02/2015","Repas ",12]
["Pr Jean-Yves Scoazec, IGR","Médecin ","ICOMED","16/03/2015","Autre: [Enquête] ",32]
["Pr Jean-Yves Scoazec, IGR","Médecin ","ROCHE SAS","26/05/2016","Repas ",64]
["Pr Jean-Yves Scoazec, IGR","Médecin ","ROCHE SAS","24/06/2016","Transport ",211]
["Pr Jean-Yves Scoazec, IGR","Médecin ","ROCHE SAS","24/06/2016","Repas ",50]
["Pr Jean-Yves Scoazec, IGR","Médecin ","ROCHE SAS","24/06/2016","Hebergement ",147]
["Pr Jean-Yves Scoazec, IGR","Médecin ","NOVARTIS PHARMA SAS","16/01/2017","[Autre] : Participation Evenement Scientifique ",360]
["Pr Jean-Yves Scoazec, IGR","Médecin ","NOVARTIS PHARMA SAS","16/01/2017","Participation Evenement Scientifique ",40]
["Pr Jean-Yves Scoazec, IGR","Médecin ","NOVARTIS PHARMA SAS","16/01/2017","Participation Evenement Scientifique ",360]
["Pr Jean-Yves Scoazec, IGR","Médecin ","NOVARTIS PHARMA SAS","23/11/2017","Repas ",10]
["Pr Jean-Yves Scoazec, IGR","Médecin ","NOVARTIS PHARMA SAS","23/11/2017","Repas ",45]
["Dr Etienne Rouleau, IGR","Pharmacien ","AGILENT TECHNOLOGIES FRANCE","17/06/2013","REPAS ",24]
["Dr Etienne Rouleau, IGR","Pharmacien ","ASTRAZENECA","27/09/2013","Hospitalité ",1233]
["Dr Etienne Rouleau, IGR","Pharmacien ","ASTRAZENECA","27/09/2013","Autre ",1099]
["Dr Etienne Rouleau, IGR","Pharmacien ","ASTRAZENECA","21/03/2014","Repas ",103]
["Dr Etienne Rouleau, IGR","Pharmacien ","ASTRAZENECA","13/05/2014","Repas ",51]
["Dr Etienne Rouleau, IGR","Pharmacien ","ASTRAZENECA","26/09/2014","Transport ",719]
["Dr Etienne Rouleau, IGR","Pharmacien ","ASTRAZENECA","26/09/2014","Hébergement ",240]
["Dr Etienne Rouleau, IGR","Pharmacien ","ASTRAZENECA","26/09/2014","Autre[inscription congrès] ",1086]
["Dr Etienne Rouleau, IGR","Pharmacien ","ASTRAZENECA","27/09/2014","Repas ",60]
["Dr Etienne Rouleau, IGR","Pharmacien ","ASTRAZENECA","27/09/2014","Hébergement ",240]
["Dr Etienne Rouleau, IGR","Pharmacien ","ASTRAZENECA","28/09/2014","Hébergement ",240]
["Dr Etienne Rouleau, IGR","Pharmacien ","ASTRAZENECA","28/09/2014","Repas ",49]
["Dr Etienne Rouleau, IGR","Pharmacien ","ASTRAZENECA","29/09/2014","Hébergement ",240]
["Dr Etienne Rouleau, IGR","Pharmacien ","ASTRAZENECA","27/03/2015","Autre : [rémunération] ",565]
["Dr Etienne Rouleau, IGR","Pharmacien ","ASTRAZENECA","27/03/2015","Repas ",60]
["Dr Etienne Rouleau, IGR","Pharmacien ","ASTRAZENECA","18/09/2015","Repas ",10]
["Dr Etienne Rouleau, IGR","Pharmacien ","ASTRAZENECA","18/09/2015","Repas ",10]
["Dr Etienne Rouleau, IGR","Pharmacien ","ASTRAZENECA","19/09/2015","Repas ",10]
["Dr Etienne Rouleau, IGR","Pharmacien ","ASTRAZENECA","28/09/2015","Autre : [rémunération] ",1064]
["Dr Etienne Rouleau, IGR","Pharmacien ","ASTRAZENECA","2015-10-09","Repas ",20]
["Dr Etienne Rouleau, IGR","Médecin ","ROCHE SAS","2016-01-08","Repas ",64]
["Dr Etienne Rouleau, IGR","Pharmacien ","ASTRAZENECA","29/01/2016","Autre : [rémunération] ",708]
["Dr Etienne Rouleau, IGR","Pharmacien ","ASTRAZENECA","26/02/2016","Autre : [rémunération] ",351]
["Dr Etienne Rouleau, IGR","Pharmacien ","ASTRAZENECA","2016-05-06","Autre : [rémunération] ",351]
["Dr Etienne Rouleau, IGR","Pharmacien ","ASTRAZENECA","2016-05-12","Hébergement ",200]
["Dr Etienne Rouleau, IGR","Pharmacien ","ASTRAZENECA","13/05/2016","Repas ",43]
["Dr Etienne Rouleau, IGR","Pharmacien ","ASTRAZENECA","13/05/2016","Repas ",10]
["Dr Etienne Rouleau, IGR","Pharmacien ","ASTRAZENECA","20/05/2016","Transport ",124]
["Dr Etienne Rouleau, IGR","Pharmacien ","ASTRAZENECA","21/05/2016","Repas ",44]
["Dr Etienne Rouleau, IGR","Pharmacien ","ASTRAZENECA","2016-07-01","Repas ",10]
["Dr Etienne Rouleau, IGR","Pharmacien ","ASTRAZENECA","2016-07-01","Repas ",60]
["Dr Etienne Rouleau, IGR","Pharmacien ","ASTRAZENECA","2016-07-01","Repas ",10]
["Dr Etienne Rouleau, IGR","Pharmacien ","ASTRAZENECA","2016-11-03","Repas ",57]
["Dr Etienne Rouleau, IGR","Médecin ","ASTRAZENECA","25/11/2016","Hébergement ",140]
["Dr Etienne Rouleau, IGR","Médecin ","ASTRAZENECA","26/11/2016","Repas ",39]
["Dr Etienne Rouleau, IGR","Médecin ","ASTRAZENECA","26/11/2016","Transport ",379]
["Dr Etienne Rouleau, IGR","Pharmacien ","ASTRAZENECA","28/12/2016","Autre : [rémunération] ",1241]
["Dr Etienne Rouleau, IGR","Pharmacien ","ASTRAZENECA","23/01/2017","Repas ",57]
["Dr Etienne Rouleau, IGR","Pharmacien ","ASTRAZENECA","30/03/2017","Repas ",57]
["Dr Etienne Rouleau, IGR","Pharmacien ","ASTRAZENECA","26/04/2017","Repas ",57]
["Dr Etienne Rouleau, IGR","Pharmacien ","ASTRAZENECA","18/05/2017","Inscription ",190]
["Dr Etienne Rouleau, IGR","Pharmacien ","ASTRAZENECA","18/05/2017","Transport ",353]
["Dr Etienne Rouleau, IGR","Pharmacien ","ASTRAZENECA","15/06/2017","Repas ",50]
["Dr Etienne Rouleau, IGR","Pharmacien ","ASTRAZENECA","16/06/2017","Hospitalité ",110]
["Dr Etienne Rouleau, IGR","Pharmacien ","ASTRAZENECA","2017-10-02","Repas ",57]
["Dr Etienne Rouleau, IGR","Pharmacien ","ASTRAZENECA","14/11/2017","Repas ",57]
["Dr Etienne Rouleau, IGR","Médecin ","BRISTOL-MYERS SQUIBB COMPANY","2017-12-08","Transport ",615]
["Dr Etienne Rouleau, IGR","Médecin ","BRISTOL-MYERS SQUIBB COMPANY","2017-12-09","Transport ",65]
["Dr Dominique Goeury, FHF","Pharmacien ","PIERRE FABRE MEDICAMENT","2014-02-06","RESTAURATION ",17]
["Dr Dominique Goeury, FHF","Pharmacien ","AbbVie","20/11/2014","AUTRE : [PAUSE] ",10]
["Dr Dominique Goeury, FHF","Pharmacien ","AbbVie","20/11/2014","REPAS ",54]
["Dr Françoise Durandière, FEHAP","Médecin ","SANOFI AVENTIS FRANCE","22/01/2014","Repas ",45]
["Dr Françoise Durandière, FEHAP","Médecin ","SANOFI AVENTIS FRANCE","26/06/2014","Repas ",23]
["Pr. Pierre Fumoleau, Institut Curie","Médecin ","ROCHE SAS","16/01/2013","Restauration ",53]
["Pr. Pierre Fumoleau, Institut Curie","Médecin ","ROCHE SAS","16/01/2013","Restauration ",10]
["Pr. Pierre Fumoleau, Institut Curie","Médecin ","ROCHE SAS","16/01/2013","Frais remboursés (transport) ",384]
["Pr. Pierre Fumoleau, Institut Curie","Médecin ","ROCHE SAS","16/01/2013","Hébergement ",192]
["Pr. Pierre Fumoleau, Institut Curie","Médecin ","ROCHE SAS","16/01/2013","Inscription ",885]
["Pr. Pierre Fumoleau, Institut Curie","Médecin ","ROCHE SAS","16/01/2013","Restauration ",60]
["Pr. Pierre Fumoleau, Institut Curie","Médecin ","ROCHE SAS","16/01/2013","Restauration ",10]
["Pr. Pierre Fumoleau, Institut Curie","Médecin ","ROCHE SAS","17/01/2013","Restauration ",10]
["Pr. Pierre Fumoleau, Institut Curie","Médecin ","ROCHE SAS","17/01/2013","Hébergement ",192]
["Pr. Pierre Fumoleau, Institut Curie","Médecin ","ROCHE SAS","17/01/2013","Restauration ",53]
["Pr. Pierre Fumoleau, Institut Curie","Médecin ","ROCHE SAS","17/01/2013","Restauration ",10]
["Pr. Pierre Fumoleau, Institut Curie","Médecin ","ROCHE SAS","17/01/2013","Restauration ",60]
["Pr. Pierre Fumoleau, Institut Curie","Médecin ","ROCHE SAS","18/01/2013","Restauration ",10]
["Pr. Pierre Fumoleau, Institut Curie","Médecin ","ROCHE SAS","18/01/2013","Hébergement ",192]
["Pr. Pierre Fumoleau, Institut Curie","Médecin ","ROCHE SAS","18/01/2013","Restauration ",53]
["Pr. Pierre Fumoleau, Institut Curie","Médecin ","ROCHE SAS","19/01/2013","Restauration ",10]
["Pr. Pierre Fumoleau, Institut Curie","Médecin ","ROCHE SAS","19/01/2013","Restauration ",10]
["Pr. Pierre Fumoleau, Institut Curie","Médecin ","LABORATOIRE GLAXOSMITHKLINE","31/01/2013","Hospitalite ",54]
["Pr. Pierre Fumoleau, Institut Curie","Médecin ","AMGEN SAS","2013-02-08","HEBERGEMENT ",129]
["Pr. Pierre Fumoleau, Institut Curie","Médecin ","AMGEN SAS","2013-02-08","REPAS ",35]
["Pr. Pierre Fumoleau, Institut Curie","Médecin ","ROCHE SAS","2013-04-05","Hébergement ",200]
["Pr. Pierre Fumoleau, Institut Curie","Médecin ","ROCHE SAS","2013-04-06","Hébergement ",208]
["Pr. Pierre Fumoleau, Institut Curie","Médecin ","ROCHE SAS","2013-04-06","Frais remboursés (transport) ",133]
["Pr. Pierre Fumoleau, Institut Curie","Médecin ","ROCHE SAS","2013-04-06","Transport ",4259]
["Pr. Pierre Fumoleau, Institut Curie","Médecin ","ROCHE SAS","2013-04-06","Inscription ",786]
["Pr. Pierre Fumoleau, Institut Curie","Médecin ","ROCHE SAS","2013-04-06","Restauration ",65]
["Pr. Pierre Fumoleau, Institut Curie","Médecin ","ROCHE SAS","2013-04-07","Hébergement ",208]
["Pr. Pierre Fumoleau, Institut Curie","Médecin ","ROCHE SAS","2013-04-08","Restauration ",62]
["Pr. Pierre Fumoleau, Institut Curie","Médecin ","ROCHE SAS","2013-04-08","Hébergement ",208]
["Pr. Pierre Fumoleau, Institut Curie","Médecin ","ROCHE SAS","2013-04-09","Hébergement ",208]
["Pr. Pierre Fumoleau, Institut Curie","Médecin ","ROCHE SAS","2013-04-10","Restauration ",65]
["Pr. Pierre Fumoleau, Institut Curie","Médecin ","ROCHE SAS","2013-04-10","Hébergement ",208]
["Pr. Pierre Fumoleau, Institut Curie","Médecin ","PIERRE FABRE MEDICAMENT","2013-06-03","Restauration ",46]
["Pr. Pierre Fumoleau, Institut Curie","Médecin ","SANOFI AVENTIS FRANCE","27/09/2013","Hébergement ",519]
["Pr. Pierre Fumoleau, Institut Curie","Médecin ","SANOFI AVENTIS FRANCE","27/09/2013","Restauration ",50]
["Pr. Pierre Fumoleau, Institut Curie","Médecin ","SANOFI AVENTIS FRANCE","27/09/2013","Transport ",951]
["Pr. Pierre Fumoleau, Institut Curie","Médecin ","SANOFI AVENTIS FRANCE","27/09/2013","Frais d'inscription à une réunion scientifique ",699]
["Pr. Pierre Fumoleau, Institut Curie","Médecin ","AbbVie","20/11/2013","Repas ",20]
["Pr. Pierre Fumoleau, Institut Curie","Médecin ","AMGEN SAS","2013-12-10","AUTRE [FRAIS D INSCRIPTION] ",345]
["Pr. Pierre Fumoleau, Institut Curie","Médecin ","AMGEN SAS","2013-12-10","TRANSPORT ",31]
["Pr. Pierre Fumoleau, Institut Curie","Médecin ","AMGEN SAS","2013-12-10","TRANSPORT ",31]
["Pr. Pierre Fumoleau, Institut Curie","Médecin ","AMGEN SAS","2013-12-10","TRANSPORT ",4356]
["Pr. Pierre Fumoleau, Institut Curie","Médecin ","AMGEN SAS","2013-12-10","TRANSPORT ",31]
["Pr. Pierre Fumoleau, Institut Curie","Médecin ","AMGEN SAS","2013-12-10","TRANSPORT ",36]
["Pr. Pierre Fumoleau, Institut Curie","Médecin ","AMGEN SAS","2013-12-10","TRANSPORT ",17]
["Pr. Pierre Fumoleau, Institut Curie","Médecin ","AMGEN SAS","2013-12-10","REPAS REUNION ",56]
["Pr. Pierre Fumoleau, Institut Curie","Médecin ","AMGEN SAS","2013-12-11","HEBERGEMENT ",173]
["Pr. Pierre Fumoleau, Institut Curie","Médecin ","AMGEN SAS","2013-12-12","REPAS REUNION ",54]
["Pr. Pierre Fumoleau, Institut Curie","Médecin ","AMGEN SAS","2013-12-12","HEBERGEMENT ",173]
["Pr. Pierre Fumoleau, Institut Curie","Médecin ","AMGEN SAS","13/12/2013","HEBERGEMENT ",173]
["Pr. Pierre Fumoleau, Institut Curie","Médecin ","AMGEN SAS","14/12/2013","HEBERGEMENT ",173]
["Pr. Pierre Fumoleau, Institut Curie","Médecin ","NOVARTIS PHARMA SAS","15/01/2014","Repas ",261]
["Pr. Pierre Fumoleau, Institut Curie","Médecin ","NOVARTIS PHARMA SAS","15/01/2014","Autre : [Inscription Evenement Scientifique] ",688]
["Pr. Pierre Fumoleau, Institut Curie","Médecin ","NOVARTIS PHARMA SAS","15/01/2014","Hébergement ",393]
["Pr. Pierre Fumoleau, Institut Curie","Médecin ","NOVARTIS PHARMA SAS","15/01/2014","Transport ",564]
["Pr. Pierre Fumoleau, Institut Curie","Médecin ","ROCHE SAS","2014-02-12","Transport ",128]
["Pr. Pierre Fumoleau, Institut Curie","Médecin ","ROCHE SAS","2014-02-12","Hebergement ",151]
["Pr. Pierre Fumoleau, Institut Curie","Médecin ","ROCHE SAS","13/02/2014","Repas ",56]
["Pr. Pierre Fumoleau, Institut Curie","Médecin ","AMGEN SAS","20/02/2014","REPAS IMPROMPTU ",41]
["Pr. Pierre Fumoleau, Institut Curie","Médecin ","ROCHE SAS","25/02/2014","Repas ",30]
["Pr. Pierre Fumoleau, Institut Curie","Médecin ","EISAI SAS","2014-03-12","REPAS ",37]
["Pr. Pierre Fumoleau, Institut Curie","Médecin ","ROCHE SAS","2014-04-11","Hebergement ",190]
["Pr. Pierre Fumoleau, Institut Curie","Médecin ","ROCHE SAS","2014-04-12","Repas ",12]
["Pr. Pierre Fumoleau, Institut Curie","Médecin ","PIERRE FABRE MEDICAMENT","22/04/2014","RESTAURATION ",39]
["Pr. Pierre Fumoleau, Institut Curie","Médecin ","PIERRE FABRE MEDICAMENT","24/04/2014","RESTAURATION ",40]
["Pr. Pierre Fumoleau, Institut Curie","Médecin ","Lilly France SAS","20/05/2014","TRANSPORT ",90]
["Pr. Pierre Fumoleau, Institut Curie","Médecin ","NOVARTIS PHARMA SAS","29/05/2014","Transport ",100]
["Pr. Pierre Fumoleau, Institut Curie","Médecin ","ROCHE SAS","2014-06-12","Repas ",33]
["Pr. Pierre Fumoleau, Institut Curie","Médecin ","ROCHE SAS","15/07/2014","Repas ",28]
["Pr. Pierre Fumoleau, Institut Curie","Médecin ","ROCHE SAS","15/07/2014","Repas ",28]
["Pr. Pierre Fumoleau, Institut Curie","Médecin ","EISAI SAS","18/07/2014","REPAS ",34]
["Pr. Pierre Fumoleau, Institut Curie","Médecin ","ROCHE SAS","2014-09-12","Hebergement ",205]
["Pr. Pierre Fumoleau, Institut Curie","Médecin ","ROCHE SAS","2014-09-12","Repas ",66]
["Pr. Pierre Fumoleau, Institut Curie","Médecin ","ROCHE SAS","13/09/2014","Repas ",66]
["Pr. Pierre Fumoleau, Institut Curie","Médecin ","EISAI SAS","17/09/2014","TRANSPORT ",164]
["Pr. Pierre Fumoleau, Institut Curie","Médecin ","EISAI SAS","17/09/2014","REPAS ",50]
["Pr. Pierre Fumoleau, Institut Curie","Médecin ","EISAI SAS","17/09/2014","HÉBERGEMENT ",230]
["Pr. Pierre Fumoleau, Institut Curie","Médecin ","ROCHE SAS","2014-10-08","Repas ",25]
["Pr. Pierre Fumoleau, Institut Curie","Médecin ","ROCHE SAS","2014-10-08","Repas ",25]
["Pr. Pierre Fumoleau, Institut Curie","Médecin ","ROCHE SAS","21/10/2014","Repas ",45]
["Pr. Pierre Fumoleau, Institut Curie","Médecin ","AMGEN SAS","2014-12-08","HEBERGEMENT ",130]
["Pr. Pierre Fumoleau, Institut Curie","Médecin ","AMGEN SAS","2014-12-09","REPAS REUNION ",54]
["Pr. Pierre Fumoleau, Institut Curie","Médecin ","AMGEN SAS","2014-12-09","HEBERGEMENT ",176]
["Pr. Pierre Fumoleau, Institut Curie","Médecin ","AMGEN SAS","2014-12-09","AUTRE [FRAIS D INSCRIPTION] ",369]
["Pr. Pierre Fumoleau, Institut Curie","Médecin ","AMGEN SAS","2014-12-09","HEBERGEMENT ",22]
["Pr. Pierre Fumoleau, Institut Curie","Médecin ","AMGEN SAS","2014-12-09","TRANSPORT ",86]
["Pr. Pierre Fumoleau, Institut Curie","Médecin ","AMGEN SAS","2014-12-09","AUTRE [FRAIS D INSCRIPTION] ",32]
["Pr. Pierre Fumoleau, Institut Curie","Médecin ","AMGEN SAS","2014-12-09","TRANSPORT ",6013]
["Pr. Pierre Fumoleau, Institut Curie","Médecin ","AMGEN SAS","2014-12-09","TRANSPORT ",163]
["Pr. Pierre Fumoleau, Institut Curie","Médecin ","AMGEN SAS","2014-12-09","REPAS REUNION ",79]
["Pr. Pierre Fumoleau, Institut Curie","Médecin ","AMGEN SAS","2014-12-10","REPAS REUNION ",54]
["Pr. Pierre Fumoleau, Institut Curie","Médecin ","AMGEN SAS","2014-12-10","HEBERGEMENT ",22]
["Pr. Pierre Fumoleau, Institut Curie","Médecin ","AMGEN SAS","2014-12-10","HEBERGEMENT ",176]
["Pr. Pierre Fumoleau, Institut Curie","Médecin ","PIERRE FABRE MEDICAMENT","2014-12-11","RESTAURATION ",40]
["Pr. Pierre Fumoleau, Institut Curie","Médecin ","AMGEN SAS","2014-12-11","REPAS REUNION ",54]
["Pr. Pierre Fumoleau, Institut Curie","Médecin ","AMGEN SAS","2014-12-11","HEBERGEMENT ",22]
["Pr. Pierre Fumoleau, Institut Curie","Médecin ","AMGEN SAS","2014-12-11","HEBERGEMENT ",176]
["Pr. Pierre Fumoleau, Institut Curie","Médecin ","AMGEN SAS","2014-12-12","HEBERGEMENT ",176]
["Pr. Pierre Fumoleau, Institut Curie","Médecin ","AMGEN SAS","2014-12-12","REPAS REUNION ",54]
["Pr. Pierre Fumoleau, Institut Curie","Médecin ","AMGEN SAS","2014-12-12","HEBERGEMENT ",22]
["Pr. Pierre Fumoleau, Institut Curie","Médecin ","LABORATOIRE GLAXOSMITHKLINE","21/01/2015","INSCRIPTION ",890]
["Pr. Pierre Fumoleau, Institut Curie","Médecin ","LABORATOIRE GLAXOSMITHKLINE","22/01/2015","TRANSPORT ",151]
["Pr. Pierre Fumoleau, Institut Curie","Médecin ","LABORATOIRE GLAXOSMITHKLINE","22/01/2015","REPAS ",53]
["Pr. Pierre Fumoleau, Institut Curie","Médecin ","LABORATOIRE GLAXOSMITHKLINE","22/01/2015","HEBERGEMENT ",200]
["Pr. Pierre Fumoleau, Institut Curie","Médecin ","LABORATOIRE GLAXOSMITHKLINE","23/01/2015","HEBERGEMENT ",200]
["Pr. Pierre Fumoleau, Institut Curie","Médecin ","LABORATOIRE GLAXOSMITHKLINE","23/01/2015","REPAS ",90]
["Pr. Pierre Fumoleau, Institut Curie","Médecin ","MSD France","30/01/2015","TRANSPORT ",131]
["Pr. Pierre Fumoleau, Institut Curie","Médecin ","MSD France","30/01/2015","HOSPITALITÉ ",12]
["Pr. Pierre Fumoleau, Institut Curie","Médecin ","MSD France","30/01/2015","REPAS ",43]
["Pr. Pierre Fumoleau, Institut Curie","Médecin ","AMGEN SAS","2015-02-06","REPAS REUNION ",28]
["Pr. Pierre Fumoleau, Institut Curie","Médecin ","AMGEN SAS","2015-02-06","HEBERGEMENT ",230]
["Pr. Pierre Fumoleau, Institut Curie","Médecin ","AMGEN SAS","2015-02-06","REPAS REUNION ",27]
["Pr. Pierre Fumoleau, Institut Curie","Médecin ","AMGEN SAS","2015-02-06","REPAS REUNION ",19]
["Pr. Pierre Fumoleau, Institut Curie","Médecin ","PIERRE FABRE MEDICAMENT","19/02/2015","RESTAURATION ",59]
["Pr. Pierre Fumoleau, Institut Curie","Médecin ","Lilly France SAS","2015-03-02","HÉBERGEMENT ",195]
["Pr. Pierre Fumoleau, Institut Curie","Médecin ","Lilly France SAS","2015-03-03","REPAS ",60]
["Pr. Pierre Fumoleau, Institut Curie","Médecin ","Lilly France SAS","2015-03-03","HÉBERGEMENT ",195]
["Pr. Pierre Fumoleau, Institut Curie","Médecin ","Lilly France SAS","2015-03-04","AUTRE : [INSCRIPTION CONGRÈS SCIENTIFIQUE] ",540]
["Pr. Pierre Fumoleau, Institut Curie","Médecin ","LABORATOIRE GLAXOSMITHKLINE","2015-03-12","TRANSPORT ",344]
["Pr. Pierre Fumoleau, Institut Curie","Médecin ","PIERRE FABRE MEDICAMENT","17/03/2015","FRAIS DE DEPLACEMENT ",4560]
["Pr. Pierre Fumoleau, Institut Curie","Médecin ","PIERRE FABRE MEDICAMENT","18/03/2015","FRAIS DE DEPLACEMENT ",48]
["Pr. Pierre Fumoleau, Institut Curie","Médecin ","JANSSEN-CILAG","14/04/2015","REPAS ",49]
["Pr. Pierre Fumoleau, Institut Curie","Médecin ","PIERRE FABRE MEDICAMENT","27/04/2015","FRAIS DE DEPLACEMENT ",48]
["Pr. Pierre Fumoleau, Institut Curie","Médecin ","PIERRE FABRE MEDICAMENT","29/04/2015","FRAIS DE DEPLACEMENT ",48]
["Pr. Pierre Fumoleau, Institut Curie","Médecin ","PIERRE FABRE MEDICAMENT","29/04/2015","FRAIS DE DEPLACEMENT ",48]
["Pr. Pierre Fumoleau, Institut Curie","Médecin ","KEPHREN","2015-05-06","TRANSPORT ",96]
["Pr. Pierre Fumoleau, Institut Curie","Médecin ","PIERRE FABRE MEDICAMENT","2015-06-01","FRAIS DE DEPLACEMENT ",48]
["Pr. Pierre Fumoleau, Institut Curie","Médecin ","PIERRE FABRE MEDICAMENT","2015-06-02","RESTAURATION ",63]
["Pr. Pierre Fumoleau, Institut Curie","Médecin ","PIERRE FABRE MEDICAMENT","2015-07-08","FRAIS DE DEPLACEMENT ",91]
["Pr. Pierre Fumoleau, Institut Curie","Médecin ","PIERRE FABRE MEDICAMENT","2015-09-01","FRAIS DE DEPLACEMENT ",91]
["Pr. Pierre Fumoleau, Institut Curie","Médecin ","ROCHE SAS","2015-09-10","Repas ",55]
["Pr. Pierre Fumoleau, Institut Curie","Médecin ","Lilly France SAS","24/09/2015","TRANSPORT ",846]
["Pr. Pierre Fumoleau, Institut Curie","Médecin ","Lilly France SAS","24/09/2015","TRANSPORT ",96]
["Pr. Pierre Fumoleau, Institut Curie","Médecin ","Lilly France SAS","25/09/2015","TRANSPORT ",96]
["Pr. Pierre Fumoleau, Institut Curie","Médecin ","MSD France","13/10/2015","REPAS ",60]
["Pr. Pierre Fumoleau, Institut Curie","Médecin ","PIERRE FABRE MEDICAMENT","19/11/2015","RESTAURATION ",25]
["Pr. Pierre Fumoleau, Institut Curie","Médecin ","ROCHE SAS","2015-12-11","Repas ",46]
["Pr. Pierre Fumoleau, Institut Curie","Médecin ","Illumina France","2016-01-07","Repas ",48]
["Pr. Pierre Fumoleau, Institut Curie","Médecin ","AMGEN SAS","29/01/2016","HEBERGEMENT ",221]
["Pr. Pierre Fumoleau, Institut Curie","Médecin ","AMGEN SAS","29/01/2016","REPAS REUNION ",48]
["Pr. Pierre Fumoleau, Institut Curie","Médecin ","AMGEN SAS","29/01/2016","TRANSPORT ",137]
["Pr. Pierre Fumoleau, Institut Curie","Médecin ","PFIZER SAS","2016-02-02","Repas ",52]
["Pr. Pierre Fumoleau, Institut Curie","Médecin ","NOVARTIS PHARMA SAS","2016-03-11","REPAS ",65]
["Pr. Pierre Fumoleau, Institut Curie","Médecin ","ROCHE SAS","2016-04-01","Hebergement ",179]
["Pr. Pierre Fumoleau, Institut Curie","Médecin ","ROCHE SAS","2016-06-03","Transport ",8252]
["Pr. Pierre Fumoleau, Institut Curie","Médecin ","ROCHE SAS","2016-06-03","Hebergement ",250]
["Pr. Pierre Fumoleau, Institut Curie","Médecin ","ROCHE SAS","2016-06-03","Inscription ",482]
["Pr. Pierre Fumoleau, Institut Curie","Médecin ","ROCHE SAS","2016-06-07","Repas ",62]
["Pr. Pierre Fumoleau, Institut Curie","Médecin ","ROCHE SAS","21/06/2016","Repas ",65]
["Pr. Pierre Fumoleau, Institut Curie","Médecin ","EISAI SAS","2016-07-01","Repas ",39]
["Pr. Pierre Fumoleau, Institut Curie","Médecin ","MSD France","18/10/2016","REPAS ",51]
["Pr. Pierre Fumoleau, Institut Curie","Médecin ","ROCHE SAS","2016-12-04","Hebergement ",132]
["Pr. Pierre Fumoleau, Institut Curie","Médecin ","ROCHE SAS","2016-12-05","Hebergement ",250]
["Pr. Pierre Fumoleau, Institut Curie","Médecin ","PFIZER SAS","2016-12-06","Repas ",21]
["Pr. Pierre Fumoleau, Institut Curie","Médecin ","ROCHE SAS","2016-12-06","Transport ",4810]
["Pr. Pierre Fumoleau, Institut Curie","Médecin ","ROCHE SAS","2016-12-06","Hebergement ",250]
["Pr. Pierre Fumoleau, Institut Curie","Médecin ","ROCHE SAS","2016-12-06","Inscription ",642]
["Pr. Pierre Fumoleau, Institut Curie","Médecin ","ROCHE SAS","2016-12-07","Hebergement ",250]
["Pr. Pierre Fumoleau, Institut Curie","Médecin ","ROCHE SAS","2016-12-08","Hebergement ",250]
["Pr. Pierre Fumoleau, Institut Curie","Médecin ","ROCHE SAS","2016-12-09","Hebergement ",250]
["Pr. Pierre Fumoleau, Institut Curie","Médecin ","ROCHE SAS","24/01/2017","Inscription ",921]
["Pr. Pierre Fumoleau, Institut Curie","Médecin ","ROCHE SAS","24/01/2017","Transport ",383]
["Pr. Pierre Fumoleau, Institut Curie","Médecin ","ROCHE SAS","24/01/2017","Repas ",34]
["Pr. Pierre Fumoleau, Institut Curie","Médecin ","ROCHE SAS","25/01/2017","Repas ",45]
["Pr. Pierre Fumoleau, Institut Curie","Médecin ","ROCHE SAS","25/01/2017","Hebergement ",202]
["Pr. Pierre Fumoleau, Institut Curie","Médecin ","ROCHE SAS","26/01/2017","Repas ",45]
["Pr. Pierre Fumoleau, Institut Curie","Médecin ","AMGEN SAS","2017-02-03","REPAS ",10]
["Pr. Pierre Fumoleau, Institut Curie","Médecin ","AMGEN SAS","2017-02-03","REPAS ",48]
["Pr. Pierre Fumoleau, Institut Curie","Médecin ","AMGEN SAS","2017-02-03","HEBERGEMENT ",223]
["Pr. Pierre Fumoleau, Institut Curie","Médecin ","AMGEN SAS","2017-02-04","TRANSPORT ",298]
["Pr. Pierre Fumoleau, Institut Curie","Médecin ","NOVARTIS PHARMA SAS","24/03/2017","Repas ",156]
["Pr. Pierre Fumoleau, Institut Curie","Médecin ","NOVARTIS PHARMA SAS","24/03/2017","Hébergement ",222]
["Pr. Pierre Fumoleau, Institut Curie","Médecin ","ROCHE SAS","2017-06-02","Inscription ",539]
["Pr. Pierre Fumoleau, Institut Curie","Médecin ","ROCHE SAS","2017-06-02","Repas ",39]
["Pr. Pierre Fumoleau, Institut Curie","Médecin ","ROCHE SAS","2017-06-02","Transport ",4262]
["Pr. Pierre Fumoleau, Institut Curie","Médecin ","Lilly France SAS","2017-06-03","REPAS ",47]
["Pr. Pierre Fumoleau, Institut Curie","Médecin ","AMGEN SAS","16/06/2017","TRANSPORT ",95]
["Pr. Pierre Fumoleau, Institut Curie","Médecin ","AMGEN SAS","16/06/2017","TRANSPORT ",44]
["Pr. Pierre Fumoleau, Institut Curie","Médecin ","AMGEN SAS","17/06/2017","REPAS ",10]
["Pr. Pierre Fumoleau, Institut Curie","Médecin ","ROCHE SAS","2017-12-04","Hebergement ",320]
["Pr. Pierre Fumoleau, Institut Curie","Médecin ","ROCHE SAS","2017-12-04","Hebergement ",320]
["Pr. Pierre Fumoleau, Institut Curie","Médecin ","ROCHE SAS","2017-12-05","Inscription ",1324]
["Pr. Pierre Fumoleau, Institut Curie","Médecin ","ROCHE SAS","2017-12-05","Hebergement ",320]
["Pr. Pierre Fumoleau, Institut Curie","Médecin ","ROCHE SAS","2017-12-05","Transport ",15614]
["Pr. Pierre Fumoleau, Institut Curie","Médecin ","ROCHE SAS","2017-12-06","Repas ",118]
["Pr. Pierre Fumoleau, Institut Curie","Médecin ","ROCHE SAS","2017-12-06","Hebergement ",320]
["Pr. Pierre Fumoleau, Institut Curie","Médecin ","ROCHE SAS","2017-12-07","Hebergement ",320]
["Pr. Pierre Fumoleau, Institut Curie","Médecin ","ROCHE SAS","2017-12-08","Hebergement ",320]
["Pr. Pierre Fumoleau, Institut Curie","Médecin ","ROCHE SAS","2017-12-09","Transport ",30]
["Pr Norbert Ifrah, INCa","Médecin ","ROCHE SAS","2013-04-05","Hébergement ",200]
["Pr Norbert Ifrah, INCa","Médecin ","ROCHE SAS","2013-04-06","Inscription ",786]
["Pr Norbert Ifrah, INCa","Médecin ","ROCHE SAS","2013-04-06","Transport ",4411]
["Pr Norbert Ifrah, INCa","Médecin ","ROCHE SAS","2013-04-06","Hébergement ",208]
["Pr Norbert Ifrah, INCa","Médecin ","ROCHE SAS","2013-04-06","Restauration ",65]
["Pr Norbert Ifrah, INCa","Médecin ","ROCHE SAS","2013-04-07","Restauration ",66]
["Pr Norbert Ifrah, INCa","Médecin ","ROCHE SAS","2013-04-07","Hébergement ",208]
["Pr Norbert Ifrah, INCa","Médecin ","ROCHE SAS","2013-04-08","Restauration ",62]
["Pr Norbert Ifrah, INCa","Médecin ","ROCHE SAS","2013-04-08","Hébergement ",208]
["Pr Norbert Ifrah, INCa","Médecin ","ROCHE SAS","2013-04-09","Restauration ",66]
["Pr Norbert Ifrah, INCa","Médecin ","ROCHE SAS","2013-04-09","Hébergement ",208]
["Pr Norbert Ifrah, INCa","Médecin ","ROCHE SAS","2013-04-10","Hébergement ",208]
["Pr Norbert Ifrah, INCa","Médecin ","ROCHE SAS","2013-04-10","Restauration ",65]
["Pr Norbert Ifrah, INCa","Médecin ","MEDEXACT","28/05/2013","Autre: [Enquête] ",16]
["Pr Norbert Ifrah, INCa","Médecin ","ICOMED","27/06/2013","Autre: [Enquête] ",29]
["Pr Norbert Ifrah, INCa","Médecin ","CHUGAI PHARMA FRANCE","2013-07-08","REPAS ",45]
["Pr Norbert Ifrah, INCa","Médecin ","MEDEXACT","2013-11-07","Autre: [Enquête] ",12]
["Pr Norbert Ifrah, INCa","Médecin ","CHUGAI PHARMA FRANCE","23/11/2013","REPAS ",55]
["Pr Norbert Ifrah, INCa","Médecin ","CHUGAI PHARMA FRANCE","23/11/2013","HEBERGEMENT ",169]
["Pr Norbert Ifrah, INCa","Médecin ","CHUGAI PHARMA FRANCE","23/11/2013","TRANSPORT ",132]
["Pr Norbert Ifrah, INCa","Médecin ","CHUGAI PHARMA FRANCE","23/11/2013","TRANSPORT ",132]
["Pr Norbert Ifrah, INCa","Médecin ","Lilly France SAS","2013-12-04","TRANSPORT ",105]
["Pr Norbert Ifrah, INCa","Médecin ","Lilly France SAS","2013-12-04","TRANSPORT ",105]
["Pr Norbert Ifrah, INCa","Médecin ","Alexion Pharma France","2013-12-07","REPAS ",199]
["Pr Norbert Ifrah, INCa","Médecin ","CELGENE","2013-12-07","REPAS RELATION NORMALE DE TRAVAIL ",47]
["Pr Norbert Ifrah, INCa","Médecin ","Alexion Pharma France","2013-12-07","HEBERGEMENT ",700]
["Pr Norbert Ifrah, INCa","Médecin ","Alexion Pharma France","2013-12-07","TRANSPORT ",7094]
["Pr Norbert Ifrah, INCa","Médecin ","Alexion Pharma France","2013-12-07","AUTRE ",460]
["Pr Norbert Ifrah, INCa","Médecin ","Alexion Pharma France","2013-12-10","REPAS ",16]
["Pr Norbert Ifrah, INCa","Médecin ","INNATE PHARMA","13/02/2014","repas ",49]
["Pr Norbert Ifrah, INCa","Médecin ","MEDEXACT","13/02/2014","Autre: [Enquête] ",10]
["Pr Norbert Ifrah, INCa","Médecin ","INNATE PHARMA","13/03/2014","transport ",106]
["Pr Norbert Ifrah, INCa","Médecin ","MEDEXACT","2014-05-09","Autre: [Enquête] ",24]
["Pr Norbert Ifrah, INCa","Médecin ","Alexion Pharma France","2014-06-12","HEBERGEMENT ",642]
["Pr Norbert Ifrah, INCa","Médecin ","Alexion Pharma France","2014-06-12","REPAS ",150]
["Pr Norbert Ifrah, INCa","Médecin ","Alexion Pharma France","2014-06-12","AUTRE ",240]
["Pr Norbert Ifrah, INCa","Médecin ","Alexion Pharma France","2014-06-12","TRANSPORT ",551]
["Pr Norbert Ifrah, INCa","Médecin ","Alexion Pharma France","15/06/2014","REPAS ",39]
["Pr Norbert Ifrah, INCa","Médecin ","CELGENE","26/06/2014","REPAS REUNION SCIENTIFIQUE ",60]
["Pr Norbert Ifrah, INCa","Médecin ","CELGENE","26/06/2014","REPAS REUNION SCIENTIFIQUE ",60]
["Pr Norbert Ifrah, INCa","Médecin ","CHUGAI PHARMA FRANCE","26/09/2014","REPAS ",25]
["Pr Norbert Ifrah, INCa","Médecin ","CHUGAI PHARMA FRANCE","27/09/2014","TRANSPORT ",58]
["Pr Norbert Ifrah, INCa","Médecin ","CHUGAI PHARMA FRANCE","27/09/2014","REPAS ",20]
["Pr Norbert Ifrah, INCa","Médecin ","CHUGAI PHARMA FRANCE","27/09/2014","REPAS ",55]
["Pr Norbert Ifrah, INCa","Médecin ","CHUGAI PHARMA FRANCE","27/09/2014","HEBERGEMENT ",200]
["Pr Norbert Ifrah, INCa","Médecin ","CHUGAI PHARMA FRANCE","27/09/2014","REPAS ",60]
["Pr Norbert Ifrah, INCa","Médecin ","EUSA PHARMA SAS","24/10/2014","RESTAURATION ",12]
["Pr Norbert Ifrah, INCa","Médecin ","EUSA PHARMA SAS","24/10/2014","RESTAURATION ",21]
["Pr Norbert Ifrah, INCa","Médecin ","Alexion Pharma France","2014-12-05","Inscription ",747]
["Pr Norbert Ifrah, INCa","Médecin ","Alexion Pharma France","2014-12-05","Hébergement ",1257]
["Pr Norbert Ifrah, INCa","Médecin ","Alexion Pharma France","2014-12-05","Repas ",300]
["Pr Norbert Ifrah, INCa","Médecin ","Alexion Pharma France","2014-12-05","Transport ",4997]
["Pr Norbert Ifrah, INCa","Médecin ","MEDEXACT","2014-12-10","Autre: [Enquête] ",31]
["Pr Norbert Ifrah, INCa","Médecin ","NOVARTIS PHARMA SAS","15/01/2015","REPAS ",45]
["Pr Norbert Ifrah, INCa","Médecin ","NOVARTIS PHARMA SAS","15/01/2015","AUTRE : [PARTICIPATION EVENEMENT SCIENTIFIQUE] ",37]
["Pr Norbert Ifrah, INCa","Médecin ","EUSA PHARMA SAS","30/01/2015","RESTAURATION ",27]
["Pr Norbert Ifrah, INCa","Médecin ","AMGEN SAS","22/02/2015","TRANSPORT ",40]
["Pr Norbert Ifrah, INCa","Médecin ","AMGEN SAS","22/02/2015","TRANSPORT ",27]
["Pr Norbert Ifrah, INCa","Médecin ","AMGEN SAS","22/02/2015","TRANSPORT ",46]
["Pr Norbert Ifrah, INCa","Médecin ","AMGEN SAS","22/02/2015","AUTRE [FRAIS D INSCRIPTION] ",200]
["Pr Norbert Ifrah, INCa","Médecin ","AMGEN SAS","22/02/2015","TRANSPORT ",21]
["Pr Norbert Ifrah, INCa","Médecin ","AMGEN SAS","22/02/2015","TRANSPORT ",542]
["Pr Norbert Ifrah, INCa","Médecin ","AMGEN SAS","22/02/2015","HEBERGEMENT ",157]
["Pr Norbert Ifrah, INCa","Médecin ","AMGEN SAS","22/02/2015","TRANSPORT ",46]
["Pr Norbert Ifrah, INCa","Médecin ","AMGEN SAS","23/02/2015","REPAS REUNION ",52]
["Pr Norbert Ifrah, INCa","Médecin ","AMGEN SAS","23/02/2015","HEBERGEMENT ",157]
["Pr Norbert Ifrah, INCa","Médecin ","AMGEN SAS","23/02/2015","REPAS IMPROMPTU ",29]
["Pr Norbert Ifrah, INCa","Médecin ","AMGEN SAS","24/02/2015","REPAS REUNION ",60]
["Pr Norbert Ifrah, INCa","Médecin ","AMGEN SAS","24/02/2015","HEBERGEMENT ",157]
["Pr Norbert Ifrah, INCa","Médecin ","AMGEN SAS","24/02/2015","REPAS IMPROMPTU ",11]
["Pr Norbert Ifrah, INCa","Médecin ","GILEAD SCIENCES","2015-04-01","REPAS ",60]
["Pr Norbert Ifrah, INCa","Médecin ","ICOMED","2015-04-02","Autre: [Enquête] ",30]
["Pr Norbert Ifrah, INCa","Médecin ","ICOMED","2015-04-07","Autre: [Enquête] ",28]
["Pr Norbert Ifrah, INCa","Médecin ","CHUGAI PHARMA FRANCE","2015-05-05","REPAS ",46]
["Pr Norbert Ifrah, INCa","Médecin ","LIVE ! BY GL EVENTS","2015-06-02","Repas ",60]
["Pr Norbert Ifrah, INCa","Médecin ","LIVE ! BY GL EVENTS","18/06/2015","Autre : [Notes de frais] ",125]
["Pr Norbert Ifrah, INCa","Médecin ","GILEAD SCIENCES","17/09/2015","REPAS ",11]
["Pr Norbert Ifrah, INCa","Médecin ","Alexion Pharma France","2015-12-04","Transport ",7433]
["Pr Norbert Ifrah, INCa","Médecin ","Alexion Pharma France","2015-12-04","Hébergement ",1153]
["Pr Norbert Ifrah, INCa","Médecin ","Alexion Pharma France","2015-12-04","Repas ",183]
["Pr Norbert Ifrah, INCa","Médecin ","Alexion Pharma France","2015-12-04","Inscription ",465]
["Pr Norbert Ifrah, INCa","Médecin ","ROCHE SAS","2015-12-10","Repas ",128]
["Pr Norbert Ifrah, INCa","Médecin ","ROCHE SAS","2015-12-10","Transport ",228]
["Pr Norbert Ifrah, INCa","Médecin ","ROCHE SAS","2015-12-10","Hebergement ",200]
["Pr Norbert Ifrah, INCa","Médecin ","ROCHE SAS","2015-12-11","Repas ",45]
["Pr Norbert Ifrah, INCa","Médecin ","ARIAD Pharmaceuticals (France)","2015-12-11","DOCUMENTATION ",28]
["Pr Norbert Ifrah, INCa","Médecin ","CELGENE","14/01/2016","REPAS RÉUNION HOSPITALIÈRE ",26]
["Pr Norbert Ifrah, INCa","Médecin ","NOVARTIS PHARMA SAS","2016-02-12","TRANSPORT ",110]
["Pr Norbert Ifrah, INCa","Médecin ","NOVARTIS PHARMA SAS","2016-02-12","Transport ",110]
["Pr Norbert Ifrah, INCa","Médecin ","NOVARTIS PHARMA SAS","2016-02-12","Repas ",60]
["Pr Norbert Ifrah, INCa","Médecin ","BRISTOL-MYERS SQUIBB","2016-03-11","Transport ",476]
["Pr Norbert Ifrah, INCa","Médecin ","ICOMED","2016-07-08","Autre: [Enquête] ",28]
["Pr Norbert Ifrah, INCa","Médecin ","LivaNova France SAS","2016-11-08","REPAS ",60]
["Pr Dominique Le Guludec, HAS","Médecin ","LES LABORATOIRES SERVIER","2013-07-02","Repas ",20]
["Pr Dominique Le Guludec, HAS","Médecin ","GE Medical Systems SCS","24/02/2014","Hospitalité Congrès Symposium ",430]
["Pr Dominique Le Guludec, HAS","Médecin ","GE HEALTHCARE SAS","16/04/2014","REPAS PROFESSIONNEL ",45]
["Pr Dominique Le Guludec, HAS","Médecin ","GE Medical Systems SCS","2014-10-01","REPAS PROFESSIONNEL ",34]
["Pr Dominique Le Guludec, HAS","Médecin ","CIS BIO INTERNATIONAL","18/10/2014","Hébergement ",820]
["Pr Dominique Le Guludec, HAS","Médecin ","GE HEALTHCARE SAS","22/06/2015","REPAS PROFESSIONNEL ",31]
["Pr Dominique Le Guludec, HAS","Médecin ","LES LABORATOIRES SERVIER","23/06/2015","Repas ",18]
["Pr Dominique Le Guludec, HAS","Médecin ","GE Medical Systems SCS","29/05/2016","repas professionnel ",59]
["Pr Dominique Le Guludec, HAS","Médecin ","GE Medical Systems SCS","25/08/2016","repas professionnel ",39]
["Pr Dominique Le Guludec, HAS","Médecin ","MALLINCKRODT FRANCE SARL","19/11/2016","Repas ",51]
["Pr Dominique Le Guludec, HAS","Médecin ","Biosensors France SAS","27/03/2017","Repas ",30]
["Pr Dominique Le Guludec, HAS","Médecin ","PFIZER SAS","28/05/2017","Repas ",51]
["Pr Jean-Paul Vernant, AP-HP","Médecin ","GILEAD SCIENCES","31/01/2014","REPAS ",35]
["Pr Jean-Paul Vernant, AP-HP","Médecin ","BRISTOL-MYERS SQUIBB","27/06/2014","Repas ",10]
["Pr Pascal Joly, CHU Rouen","Médecin ","LABORATOIRE GLAXOSMITHKLINE","30/01/2013","Hospitalite ",229]
["Pr Pascal Joly, CHU Rouen","Médecin ","LABORATOIRE GLAXOSMITHKLINE","13/02/2013","Hospitalite ",38]
["Pr Pascal Joly, CHU Rouen","Médecin ","JANSSEN-CILAG","2013-03-05","INSCRIPTION ",436]
["Pr Pascal Joly, CHU Rouen","Médecin ","JANSSEN-CILAG","2013-03-05","TRANSPORT ",3329]
["Pr Pascal Joly, CHU Rouen","Médecin ","JANSSEN-CILAG","2013-03-05","HEBERGEMENT ",1101]
["Pr Pascal Joly, CHU Rouen","Médecin ","JANSSEN-CILAG","2013-03-05","REPAS ",246]
["Pr Pascal Joly, CHU Rouen","Médecin ","LABORATOIRE GLAXOSMITHKLINE","27/03/2013","Transport ",160]
["Pr Pascal Joly, CHU Rouen","Médecin ","LABORATOIRE GLAXOSMITHKLINE","24/04/2013","Hospitalite ",208]
["Pr Pascal Joly, CHU Rouen","Médecin ","JANSSEN-CILAG","30/05/2013","REPAS ",37]
["Pr Pascal Joly, CHU Rouen","Médecin ","AbbVie","31/05/2013","AUTRE : [HOSPITALITE] ",40]
["Pr Pascal Joly, CHU Rouen","Médecin ","AbbVie","20/06/2013","AUTRE : [HOSPITALITE] ",792]
["Pr Pascal Joly, CHU Rouen","Médecin ","AbbVie","27/06/2013","AUTRE : [HOSPITALITE] ",60]
["Pr Pascal Joly, CHU Rouen","Médecin ","NOVARTIS PHARMA SAS","2013-07-03","Repas ",58]
["Pr Pascal Joly, CHU Rouen","Médecin ","NOVARTIS PHARMA SAS","2013-07-03","Hébergement ",197]
["Pr Pascal Joly, CHU Rouen","Médecin ","NOVARTIS PHARMA SAS","2013-07-03","Transport ",68]
["Pr Pascal Joly, CHU Rouen","Médecin ","JANSSEN-CILAG","16/09/2013","AUTRE : REMBOURSEMENT DE FRAIS ",44]
["Pr Pascal Joly, CHU Rouen","Médecin ","JANSSEN-CILAG","16/09/2013","TRANSPORT ",68]
["Pr Pascal Joly, CHU Rouen","Médecin ","COSMETIQUE ACTIVE FRANCE","27/09/2013","AUTRE ",17]
["Pr Pascal Joly, CHU Rouen","Médecin ","LABORATOIRE GLAXOSMITHKLINE","2013-10-09","REPAS ",15]
["Pr Pascal Joly, CHU Rouen","Médecin ","LABORATOIRE GLAXOSMITHKLINE","2013-10-09","REPAS ",47]
["Pr Pascal Joly, CHU Rouen","Médecin ","LABORATOIRE GLAXOSMITHKLINE","2013-10-09","REPAS ",47]
["Pr Pascal Joly, CHU Rouen","Médecin ","galderma international","2013-10-10","Pause ",21]
["Pr Pascal Joly, CHU Rouen","Médecin ","galderma international","2013-10-10","Déjeuner ",88]
["Pr Pascal Joly, CHU Rouen","Médecin ","BRISTOL-MYERS SQUIBB","23/10/2013","Transport ",160]
["Pr Pascal Joly, CHU Rouen","Médecin ","BRISTOL-MYERS SQUIBB","28/10/2013","Repas ",35]
["Pr Pascal Joly, CHU Rouen","Médecin ","BRISTOL-MYERS SQUIBB","28/10/2013","Hébergement ",100]
["Pr Pascal Joly, CHU Rouen","Médecin ","galderma international","2013-11-07","Acheminement ",171]
["Pr Pascal Joly, CHU Rouen","Médecin ","galderma international","13/11/2013","Dîner ",120]
["Pr Pascal Joly, CHU Rouen","Médecin ","galderma international","13/11/2013","Autre : [ Forfait journée étude ] ",113]
["Pr Pascal Joly, CHU Rouen","Médecin ","galderma international","13/11/2013","Acheminement ",849]
["Pr Pascal Joly, CHU Rouen","Médecin ","AbbVie","27/11/2013","TRANSPORT ",45]
["Pr Pascal Joly, CHU Rouen","Médecin ","AbbVie","27/11/2013","REPAS ",51]
["Pr Pascal Joly, CHU Rouen","Médecin ","MSD France","2013-12-09","REPAS ",22]
["Pr Pascal Joly, CHU Rouen","Médecin ","galderma international","2013-12-11","Dîner ",58]
["Pr Pascal Joly, CHU Rouen","Médecin ","JANSSEN-CILAG","2013-12-12","REPAS ",54]
["Pr Pascal Joly, CHU Rouen","Médecin ","NOVARTIS PHARMA SAS","17/12/2013","Hébergement ",172]
["Pr Pascal Joly, CHU Rouen","Médecin ","NOVARTIS PHARMA SAS","17/12/2013","Repas ",62]
["Pr Pascal Joly, CHU Rouen","Médecin ","NOVARTIS PHARMA SAS","17/12/2013","Transport ",27]
["Pr Pascal Joly, CHU Rouen","Médecin ","AbbVie","31/12/2013","HONORAIRE HCP ",3450]
["Pr Pascal Joly, CHU Rouen","Médecin ","AbbVie","13/01/2014","REPAS ",18]
["Pr Pascal Joly, CHU Rouen","Médecin ","LABORATOIRE GLAXOSMITHKLINE","29/01/2014","REPAS ",64]
["Pr Pascal Joly, CHU Rouen","Médecin ","AbbVie","2014-02-04","REPAS ",60]
["Pr Pascal Joly, CHU Rouen","Médecin ","LABORATOIRE GLAXOSMITHKLINE","14/02/2014","REPAS ",35]
["Pr Pascal Joly, CHU Rouen","Médecin ","ICOMED","2014-03-06","Autre: [Enquête] ",25]
["Pr Pascal Joly, CHU Rouen","Médecin ","JANSSEN-CILAG","21/03/2014","AUTRE : REMBOURSEMENT DE FRAIS ",135]
["Pr Pascal Joly, CHU Rouen","Médecin ","JANSSEN-CILAG","21/03/2014","HEBERGEMENT ",1213]
["Pr Pascal Joly, CHU Rouen","Médecin ","JANSSEN-CILAG","21/03/2014","TRANSPORT ",2496]
["Pr Pascal Joly, CHU Rouen","Médecin ","JANSSEN-CILAG","21/03/2014","INSCRIPTION ",475]
["Pr Pascal Joly, CHU Rouen","Médecin ","JANSSEN-CILAG","21/03/2014","REPAS ",240]
["Pr Pascal Joly, CHU Rouen","Médecin ","NOVARTIS PHARMA SAS","2014-04-03","Transport ",364]
["Pr Pascal Joly, CHU Rouen","Médecin ","NOVARTIS PHARMA SAS","2014-04-03","Repas ",122]
["Pr Pascal Joly, CHU Rouen","Médecin ","AbbVie","2014-04-09","AUTRE : [PAUSE] ",10]
["Pr Pascal Joly, CHU Rouen","Médecin ","AbbVie","2014-04-09","TRANSPORT ",83]
["Pr Pascal Joly, CHU Rouen","Médecin ","LABORATOIRE GLAXOSMITHKLINE","2014-04-09","REPAS ",40]
["Pr Pascal Joly, CHU Rouen","Médecin ","AbbVie","2014-04-09","REPAS ",51]
["Pr Pascal Joly, CHU Rouen","Médecin ","LABORATOIRE GLAXOSMITHKLINE","15/04/2014","TRANSPORT ",70]
["Pr Pascal Joly, CHU Rouen","Médecin ","galderma international","22/05/2014","Acheminement ",70]
["Pr Pascal Joly, CHU Rouen","Médecin ","galderma international","22/05/2014","Déjeuner ",51]
["Pr Pascal Joly, CHU Rouen","Médecin ","galderma international","22/05/2014","Pause ",21]
["Pr Pascal Joly, CHU Rouen","Médecin ","LEO Pharma","2014-06-05","REPAS ",60]
["Pr Pascal Joly, CHU Rouen","Médecin ","COSMETIQUE ACTIVE FRANCE","2014-06-06","REPAS ",15]
["Pr Pascal Joly, CHU Rouen","Médecin ","MSD France","18/09/2014","REPAS ",60]
["Pr Pascal Joly, CHU Rouen","Médecin ","LABORATOIRE GLAXOSMITHKLINE","19/09/2014","REPAS ",10]
["Pr Pascal Joly, CHU Rouen","Médecin ","ROCHE SAS","23/09/2014","Repas ",23]
["Pr Pascal Joly, CHU Rouen","Médecin ","ROCHE SAS","23/09/2014","Repas ",23]
["Pr Pascal Joly, CHU Rouen","Médecin ","NOVARTIS PHARMA SAS","24/09/2014","Hébergement ",204]
["Pr Pascal Joly, CHU Rouen","Médecin ","NOVARTIS PHARMA SAS","24/09/2014","Transport ",61]
["Pr Pascal Joly, CHU Rouen","Médecin ","NOVARTIS PHARMA SAS","24/09/2014","Repas ",54]
["Pr Pascal Joly, CHU Rouen","Médecin ","NOVARTIS PHARMA SAS","2014-10-08","Hébergement ",844]
["Pr Pascal Joly, CHU Rouen","Médecin ","NOVARTIS PHARMA SAS","2014-10-08","Transport ",513]
["Pr Pascal Joly, CHU Rouen","Médecin ","NOVARTIS PHARMA SAS","2014-10-08","Autre : [Inscription Evenement Scientifique] ",920]
["Pr Pascal Joly, CHU Rouen","Médecin ","JANSSEN-CILAG","14/10/2014","REPAS ",29]
["Pr Pascal Joly, CHU Rouen","Médecin ","Laboratoire Bioderma","13/11/2014","HEBERGEMENT ",180]
["Pr Pascal Joly, CHU Rouen","Médecin ","Laboratoire Bioderma","13/11/2014","REPAS ",68]
["Pr Pascal Joly, CHU Rouen","Médecin ","Laboratoire Bioderma","14/11/2014","REPAS ",25]
["Pr Pascal Joly, CHU Rouen","Médecin ","LABORATOIRE GLAXOSMITHKLINE","19/11/2014","TRANSPORT ",10]
["Pr Pascal Joly, CHU Rouen","Médecin ","LABORATOIRE GLAXOSMITHKLINE","19/11/2014","TRANSPORT ",12]
["Pr Pascal Joly, CHU Rouen","Médecin ","NOVARTIS PHARMA SAS","26/11/2014","Repas ",30]
["Pr Pascal Joly, CHU Rouen","Médecin ","AbbVie","2014-12-09","TRANSPORT ",36]
["Pr Pascal Joly, CHU Rouen","Médecin ","AbbVie","2014-12-09","HEBERGEMENT ",220]
["Pr Pascal Joly, CHU Rouen","Médecin ","AbbVie","2014-12-10","REPAS ",50]
["Pr Pascal Joly, CHU Rouen","Médecin ","AbbVie","2014-12-10","HEBERGEMENT ",220]
["Pr Pascal Joly, CHU Rouen","Médecin ","galderma international","2014-12-10","Dîner ",45]
["Pr Pascal Joly, CHU Rouen","Médecin ","AbbVie","2014-12-11","HEBERGEMENT ",220]
["Pr Pascal Joly, CHU Rouen","Médecin ","AbbVie","2014-12-11","REPAS ",27]
["Pr Pascal Joly, CHU Rouen","Médecin ","AbbVie","2014-12-11","REPAS ",27]
["Pr Pascal Joly, CHU Rouen","Médecin ","AbbVie","2014-12-12","REPAS ",50]
["Pr Pascal Joly, CHU Rouen","Médecin ","AbbVie","2014-12-12","HEBERGEMENT ",220]
["Pr Pascal Joly, CHU Rouen","Médecin ","AbbVie","2014-12-12","REPAS ",51]
["Pr Pascal Joly, CHU Rouen","Médecin ","AbbVie","13/12/2014","TRANSPORT ",36]
["Pr Pascal Joly, CHU Rouen","Médecin ","AbbVie","13/12/2014","TRANSPORT ",144]
["Pr Pascal Joly, CHU Rouen","Médecin ","ROCHE SAS","16/12/2014","Repas ",48]
["Pr Pascal Joly, CHU Rouen","Médecin ","ROCHE SAS","16/12/2014","Repas ",48]
["Pr Pascal Joly, CHU Rouen","Médecin ","NOVARTIS PHARMA SAS","17/12/2014","Transport ",14]
["Pr Pascal Joly, CHU Rouen","Médecin ","NOVARTIS PHARMA SAS","17/12/2014","Repas ",47]
["Pr Pascal Joly, CHU Rouen","Médecin ","AbbVie","22/12/2014","REPAS ",23]
["Pr Pascal Joly, CHU Rouen","Médecin ","AbbVie","31/12/2014","HONORAIRE HCP ",650]
["Pr Pascal Joly, CHU Rouen","Médecin ","MSD France","2015-01-07","AUTRE : REMUNERATION ",875]
["Pr Pascal Joly, CHU Rouen","Médecin ","NOVARTIS PHARMA SAS","22/01/2015","REPAS ",59]
["Pr Pascal Joly, CHU Rouen","Médecin ","NOVARTIS PHARMA SAS","22/01/2015","TRANSPORT ",93]
["Pr Pascal Joly, CHU Rouen","Médecin ","galderma international","2015-03-12","Déjeuner ",53]
["Pr Pascal Joly, CHU Rouen","Médecin ","galderma international","2015-03-12","Autre ",40]
["Pr Pascal Joly, CHU Rouen","Médecin ","galderma international","2015-03-12","Autre : [ Forfait journée étude ] ",130]
["Pr Pascal Joly, CHU Rouen","Médecin ","galderma international","13/03/2015","Hébergement ",155]
["Pr Pascal Joly, CHU Rouen","Médecin ","BRISTOL-MYERS SQUIBB","2015-04-10","Transport ",111]
["Pr Pascal Joly, CHU Rouen","Médecin ","NOVARTIS PHARMA SAS","26/04/2015","Transport ",23]
["Pr Pascal Joly, CHU Rouen","Médecin ","galderma international","26/04/2015","Acheminement ",66]
["Pr Pascal Joly, CHU Rouen","Médecin ","LABORATOIRE GLAXOSMITHKLINE","2015-05-06","REPAS ",26]
["Pr Pascal Joly, CHU Rouen","Médecin ","NOVARTIS PHARMA SAS","2015-05-07","REPAS ",21]
["Pr Pascal Joly, CHU Rouen","Médecin ","LABORATOIRE GLAXOSMITHKLINE","2015-06-03","REPAS ",45]
["Pr Pascal Joly, CHU Rouen","Médecin ","NOVARTIS PHARMA SAS","2015-06-04","REPAS ",55]
["Pr Pascal Joly, CHU Rouen","Médecin ","NOVARTIS PHARMA SAS","2015-06-04","AUTRE : [PARTICIPATION EVENEMENT SCIENTIFIQUE] ",55]
["Pr Pascal Joly, CHU Rouen","Médecin ","COSMETIQUE ACTIVE FRANCE","2015-06-05","REPAS ",40]
["Pr Pascal Joly, CHU Rouen","Médecin ","COSMETIQUE ACTIVE FRANCE","2015-06-05","REPAS ",40]
["Pr Pascal Joly, CHU Rouen","Médecin ","NOVARTIS PHARMA SAS","2015-06-08","AUTRE : [INSCRIPTION EVENEMENT SCIENTIFIQUE] ",590]
["Pr Pascal Joly, CHU Rouen","Médecin ","NOVARTIS PHARMA SAS","2015-06-08","TRANSPORT ",4556]
["Pr Pascal Joly, CHU Rouen","Médecin ","NOVARTIS PHARMA SAS","2015-06-08","REPAS ",68]
["Pr Pascal Joly, CHU Rouen","Médecin ","COSMETIQUE ACTIVE FRANCE","2015-06-09","HOSPITALITE ",98]
["Pr Pascal Joly, CHU Rouen","Médecin ","JANSSEN-CILAG","22/06/2015","REPAS ",18]
["Pr Pascal Joly, CHU Rouen","Médecin ","AbbVie","24/06/2015","TRANSPORT ",83]
["Pr Pascal Joly, CHU Rouen","Médecin ","AbbVie","24/06/2015","REPAS ",53]
["Pr Pascal Joly, CHU Rouen","Médecin ","PFIZER SAS","2015-07-05","Repas ",46]
["Pr Pascal Joly, CHU Rouen","Médecin ","BRISTOL-MYERS SQUIBB","22/07/2015","Autre : [Rémunération] ",685]
["Pr Pascal Joly, CHU Rouen","Médecin ","LABORATOIRE GLAXOSMITHKLINE","2015-08-04","TRANSPORT ",115]
["Pr Pascal Joly, CHU Rouen","Médecin ","Lilly France SAS","2015-09-03","AUTRE : [REMBOURSEMENT FRAIS LOGISTIQUE] ",47]
["Pr Pascal Joly, CHU Rouen","Médecin ","LEO Pharma","2015-09-04","REPAS ",39]
["Pr Pascal Joly, CHU Rouen","Médecin ","LEO Pharma","16/09/2015","REPAS ",60]
["Pr Pascal Joly, CHU Rouen","Médecin ","LEO Pharma","23/09/2015","REPAS ",55]
["Pr Pascal Joly, CHU Rouen","Médecin ","JANSSEN-CILAG","28/09/2015","REPAS ",28]
["Pr Pascal Joly, CHU Rouen","Médecin ","Pierre Fabre Dermo-Cosmétique","2015-10-06","RESTAURATION ",12]
["Pr Pascal Joly, CHU Rouen","Médecin ","JANSSEN-CILAG","2015-10-07","HEBERGEMENT ",912]
["Pr Pascal Joly, CHU Rouen","Médecin ","JANSSEN-CILAG","2015-10-07","INSCRIPTION ",500]
["Pr Pascal Joly, CHU Rouen","Médecin ","JANSSEN-CILAG","2015-10-07","AUTRE : REMBOURSEMENT DE FRAIS ",98]
["Pr Pascal Joly, CHU Rouen","Médecin ","JANSSEN-CILAG","2015-10-07","REPAS ",60]
["Pr Pascal Joly, CHU Rouen","Médecin ","JANSSEN-CILAG","2015-10-07","TRANSPORT ",643]
["Pr Pascal Joly, CHU Rouen","Médecin ","AbbVie","2015-11-05","TRANSPORT ",73]
["Pr Pascal Joly, CHU Rouen","Médecin ","NAOS","2015-11-05","INVITATIONS ",142]
["Pr Pascal Joly, CHU Rouen","Médecin ","JANSSEN-CILAG","2015-11-06","AUTRE : REMBOURSEMENT DE FRAIS ",72]
["Pr Pascal Joly, CHU Rouen","Médecin ","BRISTOL-MYERS SQUIBB","13/11/2015","Repas ",60]
["Pr Pascal Joly, CHU Rouen","Médecin ","BRISTOL-MYERS SQUIBB","13/11/2015","Hébergement ",119]
["Pr Pascal Joly, CHU Rouen","Médecin ","BRISTOL-MYERS SQUIBB","13/11/2015","Transport ",46]
["Pr Pascal Joly, CHU Rouen","Médecin ","BRISTOL-MYERS SQUIBB","14/11/2015","Repas ",77]
["Pr Pascal Joly, CHU Rouen","Médecin ","Lilly France SAS","25/11/2015","REPAS ",10]
["Pr Pascal Joly, CHU Rouen","Médecin ","Lilly France SAS","25/11/2015","REPAS ",42]
["Pr Pascal Joly, CHU Rouen","Médecin ","galderma international","2015-12-09","Dîner ",58]
["Pr Pascal Joly, CHU Rouen","Médecin ","NOVARTIS PHARMA SAS","18/01/2016","Repas ",14]
["Pr Pascal Joly, CHU Rouen","Médecin ","NOVARTIS PHARMA SAS","2016-02-10","REPAS ",49]
["Pr Pascal Joly, CHU Rouen","Médecin ","NOVARTIS PHARMA SAS","25/02/2016","AUTRE : [PARTICIPATION EVENEMENT SCIENTIFIQUE] ",37]
["Pr Pascal Joly, CHU Rouen","Médecin ","AbbVie","2016-03-02","REPAS ",49]
["Pr Pascal Joly, CHU Rouen","Médecin ","JANSSEN-CILAG","2016-03-04","HEBERGEMENT ",1240]
["Pr Pascal Joly, CHU Rouen","Médecin ","JANSSEN-CILAG","2016-03-04","TRANSPORT ",5821]
["Pr Pascal Joly, CHU Rouen","Médecin ","JANSSEN-CILAG","2016-03-04","REPAS ",180]
["Pr Pascal Joly, CHU Rouen","Médecin ","JANSSEN-CILAG","2016-03-04","INSCRIPTION ",601]
["Pr Pascal Joly, CHU Rouen","Médecin ","JANSSEN-CILAG","2016-03-04","AUTRE : REMBOURSEMENT DE FRAIS ",147]
["Pr Pascal Joly, CHU Rouen","Médecin ","ROCHE ETATS-UNIS","2016-03-05","Repas ",42]
["Pr Pascal Joly, CHU Rouen","Médecin ","AbbVie","24/03/2016","REPAS ",60]
["Pr Pascal Joly, CHU Rouen","Médecin ","ROCHE SAS","18/04/2016","Repas ",29]
["Pr Pascal Joly, CHU Rouen","Médecin ","JANSSEN-CILAG","22/04/2016","REPAS ",24]
["Pr Pascal Joly, CHU Rouen","Médecin ","AbbVie","28/04/2016","TRANSPORT ",12]
["Pr Pascal Joly, CHU Rouen","Médecin ","AbbVie","28/04/2016","TRANSPORT ",36]
["Pr Pascal Joly, CHU Rouen","Médecin ","AbbVie","2016-05-11","REPAS ",56]
["Pr Pascal Joly, CHU Rouen","Médecin ","ICOMED","19/05/2016","Autre: [Enquête] ",31]
["Pr Pascal Joly, CHU Rouen","Médecin ","NOVARTIS PHARMA SAS","25/05/2016","Repas ",30]
["Pr Pascal Joly, CHU Rouen","Médecin ","ROCHE ETATS-UNIS","2016-06-06","Transport ",5835]
["Pr Pascal Joly, CHU Rouen","Médecin ","ROCHE ETATS-UNIS","2016-06-06","Hospitalité ",234]
["Pr Pascal Joly, CHU Rouen","Médecin ","ROCHE ETATS-UNIS","2016-06-06","Repas ",72]
["Pr Pascal Joly, CHU Rouen","Médecin ","ROCHE ETATS-UNIS","2016-06-06","Transport ",223]
["Pr Pascal Joly, CHU Rouen","Médecin ","ROCHE ETATS-UNIS","2016-06-06","Repas ",50]
["Pr Pascal Joly, CHU Rouen","Médecin ","ROCHE ETATS-UNIS","2016-06-06","Transport ",168]
["Pr Pascal Joly, CHU Rouen","Médecin ","ROCHE ETATS-UNIS","2016-06-06","Repas ",32]
["Pr Pascal Joly, CHU Rouen","Médecin ","LEO Pharma","16/06/2016","REPAS ",57]
["Pr Pascal Joly, CHU Rouen","Médecin ","JANSSEN-CILAG","17/06/2016","REPAS ",10]
["Pr Pascal Joly, CHU Rouen","Médecin ","JANSSEN-CILAG","17/06/2016","HEBERGEMENT ",170]
["Pr Pascal Joly, CHU Rouen","Médecin ","JANSSEN-CILAG","17/06/2016","REPAS ",20]
["Pr Pascal Joly, CHU Rouen","Médecin ","JANSSEN-CILAG","17/06/2016","HEBERGEMENT ",170]
["Pr Pascal Joly, CHU Rouen","Médecin ","Codexial Dermatologie","20/07/2016","REPAS ",20]
["Pr Pascal Joly, CHU Rouen","Médecin ","Lilly France SAS","27/07/2016","TRANSPORT ",720]
["Pr Pascal Joly, CHU Rouen","Médecin ","JANSSEN-CILAG","14/09/2016","REPAS ",39]
["Pr Pascal Joly, CHU Rouen","Médecin ","AbbVie","27/09/2016","TRANSPORT ",477]
["Pr Pascal Joly, CHU Rouen","Médecin ","AbbVie","27/09/2016","HEBERGEMENT ",210]
["Pr Pascal Joly, CHU Rouen","Médecin ","AbbVie","27/09/2016","TRANSPORT ",50]
["Pr Pascal Joly, CHU Rouen","Médecin ","AbbVie","27/09/2016","TRANSPORT ",26]
["Pr Pascal Joly, CHU Rouen","Médecin ","AbbVie","27/09/2016","REPAS ",60]
["Pr Pascal Joly, CHU Rouen","Médecin ","AbbVie","27/09/2016","TRANSPORT ",85]
["Pr Pascal Joly, CHU Rouen","Médecin ","AbbVie","28/09/2016","INSCRIPTION ",400]
["Pr Pascal Joly, CHU Rouen","Médecin ","AbbVie","28/09/2016","REPAS ",30]
["Pr Pascal Joly, CHU Rouen","Médecin ","AbbVie","28/09/2016","HEBERGEMENT ",210]
["Pr Pascal Joly, CHU Rouen","Médecin ","AbbVie","29/09/2016","REPAS ",33]
["Pr Pascal Joly, CHU Rouen","Médecin ","AbbVie","29/09/2016","REPAS ",55]
["Pr Pascal Joly, CHU Rouen","Médecin ","AbbVie","29/09/2016","HEBERGEMENT ",210]
["Pr Pascal Joly, CHU Rouen","Médecin ","AbbVie","30/09/2016","REPAS ",40]
["Pr Pascal Joly, CHU Rouen","Médecin ","AbbVie","30/09/2016","HEBERGEMENT ",210]
["Pr Pascal Joly, CHU Rouen","Médecin ","AbbVie","2016-10-01","HEBERGEMENT ",210]
["Pr Pascal Joly, CHU Rouen","Médecin ","AbbVie","2016-10-02","TRANSPORT ",50]
["Pr Pascal Joly, CHU Rouen","Médecin ","AbbVie","2016-10-02","TRANSPORT ",22]
["Pr Pascal Joly, CHU Rouen","Médecin ","BRISTOL-MYERS SQUIBB","2016-11-04","Repas ",31]
["Pr Pascal Joly, CHU Rouen","Médecin ","BRISTOL-MYERS SQUIBB","2016-11-04","Hébergement ",64]
["Pr Pascal Joly, CHU Rouen","Médecin ","NOVARTIS PHARMA SAS","16/11/2016","REPAS ",37]
["Pr Pascal Joly, CHU Rouen","Médecin ","AbbVie","19/12/2016","REPAS ",20]
["Pr Pascal Joly, CHU Rouen","Médecin ","BRISTOL-MYERS SQUIBB","28/12/2016","Transport ",120]
["Pr Pascal Joly, CHU Rouen","Médecin ","galderma international","2017-01-06","Dîner ",58]
["Pr Pascal Joly, CHU Rouen","Médecin ","AbbVie","2017-02-09","REPAS ",43]
["Pr Pascal Joly, CHU Rouen","Médecin ","JANSSEN-CILAG","2017-03-03","REPAS ",58]
["Pr Pascal Joly, CHU Rouen","Médecin ","JANSSEN-CILAG","2017-03-03","HEBERGEMENT ",1146]
["Pr Pascal Joly, CHU Rouen","Médecin ","JANSSEN-CILAG","2017-03-03","INSCRIPTION ",633]
["Pr Pascal Joly, CHU Rouen","Médecin ","JANSSEN-CILAG","2017-03-03","TRANSPORT ",22]
["Pr Pascal Joly, CHU Rouen","Médecin ","ICOMED","2017-03-10","Autre: [Enquête] ",27]
["Pr Pascal Joly, CHU Rouen","Médecin ","PIERRE FABRE MEDICAMENT","23/03/2017","RESTAURATION ",31]
["Pr Pascal Joly, CHU Rouen","Médecin ","JANSSEN-CILAG","30/03/2017","AUTRE : REMBOURSEMENT DE FRAIS ",11]
["Pr Pascal Joly, CHU Rouen","Médecin ","Lilly France SAS","2017-04-11","REPAS ",59]
["Pr Pascal Joly, CHU Rouen","Médecin ","COSMETIQUE ACTIVE FRANCE","24/04/2017","REPAS ",67]
["Pr Pascal Joly, CHU Rouen","Médecin ","AbbVie","27/04/2017","REPAS ",60]
["Pr Pascal Joly, CHU Rouen","Médecin ","AbbVie","28/04/2017","AUTRE : [PAUSE] ",10]
["Pr Pascal Joly, CHU Rouen","Médecin ","AbbVie","28/04/2017","REPAS ",58]
["Pr Pascal Joly, CHU Rouen","Médecin ","Lilly France SAS","2017-05-01","TRANSPORT ",72]
["Pr Pascal Joly, CHU Rouen","Médecin ","GlobalData","15/06/2017","Remuneration ",320]
["Pr Pascal Joly, CHU Rouen","Médecin ","SANDOZ","28/06/2017","REPAS ",31]
["Pr Pascal Joly, CHU Rouen","Médecin ","SANDOZ","2017-09-08","REPAS ",37]
["Pr Pascal Joly, CHU Rouen","Médecin ","SANOFI AVENTIS FRANCE","13/09/2017","Hébergement ",954]
["Pr Pascal Joly, CHU Rouen","Médecin ","SANOFI AVENTIS FRANCE","13/09/2017","Transport ",307]
["Pr Pascal Joly, CHU Rouen","Médecin ","SANOFI AVENTIS FRANCE","13/09/2017","Repas ",70]
["Pr Pascal Joly, CHU Rouen","Médecin ","BRISTOL-MYERS SQUIBB","2017-10-06","Repas ",60]
["Pr Pascal Joly, CHU Rouen","Médecin ","BRISTOL-MYERS SQUIBB","2017-10-06","Transport ",110]
["Pr Pascal Joly, CHU Rouen","Médecin ","BRISTOL-MYERS SQUIBB","2017-10-06","Hébergement ",120]
["Pr Pascal Joly, CHU Rouen","Médecin ","BRISTOL-MYERS SQUIBB","2017-10-10","Repas ",11]
["Pr Pascal Joly, CHU Rouen","Médecin ","BRISTOL-MYERS SQUIBB","2017-10-10","Repas ",11]
["Pr Pascal Joly, CHU Rouen","Médecin ","JANSSEN-CILAG","18/10/2017","TRANSPORT ",80]
["Pr Pascal Joly, CHU Rouen","Médecin ","JANSSEN-CILAG","2017-11-10","REPAS ",60]
["Pr Pascal Joly, CHU Rouen","Médecin ","JANSSEN-CILAG","23/11/2017","REPAS ",60]
["Pr Pascal Joly, CHU Rouen","Médecin ","Lilly France SAS","2017-12-12","HÉBERGEMENT ",903]
["Pr Pascal Joly, CHU Rouen","Médecin ","Lilly France SAS","2017-12-12","TRANSPORT ",159]
["Pr Pascal Joly, CHU Rouen","Médecin ","galderma international","13/12/2017","Dîner ",60]
["Pr Pascal Joly, CHU Rouen","Médecin ","LEO Pharma","24/09/2013","REPAS ",39]
["Dr Brigitte Roy-Geffroy, SFD","Médecin ","PIERRE FABRE MEDICAMENT","23/03/2017","RESTAURATION ",31]
["Dr Brigitte Roy-Geffroy, SFD","Médecin ","Genzyme","22/11/2017","Repas ",11]
["Pr Alain Astier, AP-HP","Pharmacien ","MSD France","19/04/2013","REPAS ",30]
["Pr Alain Astier, AP-HP","Pharmacien ","MERCK SERONO","13/06/2013","REPAS ",100]
["Pr Alain Astier, AP-HP","Pharmacien ","MERCK SERONO","13/06/2013","REPAS ",40]
["Pr Alain Astier, AP-HP","Pharmacien ","MERCK SERONO","19/06/2013","TRANSPORT ",582]
["Pr Alain Astier, AP-HP","Pharmacien ","MERCK SERONO","19/06/2013","TRANSPORT ",147]
["Pr Alain Astier, AP-HP","Pharmacien ","MERCK SERONO","19/06/2013","TRANSPORT ",70]
["Pr Alain Astier, AP-HP","Pharmacien ","MERCK SERONO","19/06/2013","TRANSPORT ",20]
["Pr Alain Astier, AP-HP","Pharmacien ","MERCK SERONO","19/06/2013","REPAS ",64]
["Pr Alain Astier, AP-HP","Pharmacien ","MERCK SERONO","19/06/2013","REPAS ",64]
["Pr Alain Astier, AP-HP","Pharmacien ","MERCK SERONO","19/06/2013","REPAS ",64]
["Pr Alain Astier, AP-HP","Pharmacien ","MERCK SERONO","19/06/2013","TRANSPORT ",20]
["Pr Alain Astier, AP-HP","Pharmacien ","MERCK SERONO","19/06/2013","HEBERGEMENT ",170]
["Pr Alain Astier, AP-HP","Pharmacien ","MERCK SERONO","19/06/2013","HEBERGEMENT ",170]
["Pr Alain Astier, AP-HP","Pharmacien ","MERCK SERONO","19/06/2013","REPAS ",69]
["Pr Alain Astier, AP-HP","Pharmacien ","MERCK SERONO","19/06/2013","TRANSPORT ",70]
["Pr Alain Astier, AP-HP","Pharmacien ","EISAI SAS","2013-07-05","REPAS ",45]
["Pr Alain Astier, AP-HP","Pharmacien ","AMGEN SAS","21/10/2013","REPAS IMPROMPTU ",16]
["Pr Alain Astier, AP-HP","Pharmacien ","EISAI SAS","15/01/2014","INSCRIPTION ",688]
["Pr Alain Astier, AP-HP","Pharmacien ","EISAI SAS","15/01/2014","TRANSPORT ",300]
["Pr Alain Astier, AP-HP","Pharmacien ","EISAI SAS","15/01/2014","REPAS ",300]
["Pr Alain Astier, AP-HP","Pharmacien ","EISAI SAS","15/01/2014","INSCRIPTION ",688]
["Pr Alain Astier, AP-HP","Pharmacien ","SANOFI AVENTIS FRANCE","29/01/2014","Transport ",200]
["Pr Alain Astier, AP-HP","Pharmacien ","SANOFI AVENTIS FRANCE","29/01/2014","Transport ",200]
["Pr Alain Astier, AP-HP","Pharmacien ","SANOFI AVENTIS FRANCE","29/01/2014","Hébergement ",450]
["Pr Alain Astier, AP-HP","Pharmacien ","SANOFI AVENTIS FRANCE","29/01/2014","Hébergement ",450]
["Pr Alain Astier, AP-HP","Pharmacien ","EISAI SAS","30/01/2014","REPAS ",60]
["Pr Alain Astier, AP-HP","Pharmacien ","CELGENE","17/04/2014","REPAS RELATION NORMALE DE TRAVAIL ",58]
["Pr Alain Astier, AP-HP","Pharmacien ","MERCK SERONO","26/05/2014","REPAS ",45]
["Pr Alain Astier, AP-HP","Pharmacien ","MERCK SERONO","26/05/2014","REPAS ",45]
["Pr Alain Astier, AP-HP","Pharmacien ","ROCHE SAS","13/08/2014","Repas ",19]
["Pr Alain Astier, AP-HP","Pharmacien ","ROCHE SAS","13/08/2014","Repas ",19]
["Pr Alain Astier, AP-HP","Pharmacien ","CELGENE","13/11/2014","REPAS REUNION HOSPITALIERE ",18]
["Pr Alain Astier, AP-HP","Pharmacien ","BRACCO IMAGING FRANCE","2014-12-11","REPAS ",20]
["Pr Alain Astier, AP-HP","Pharmacien ","NOVARTIS PHARMA SAS","30/01/2015","Repas ",19]
["Pr Alain Astier, AP-HP","Pharmacien ","BIOGARAN","2015-03-05","Repas ",15]
["Pr Alain Astier, AP-HP","Pharmacien ","CELGENE","2015-05-04","REPAS RELATION NORMALE DE TRAVAIL ",15]
["Pr Alain Astier, AP-HP","Pharmacien ","MSD France","2015-06-02","REPAS ",35]
["Pr Alain Astier, AP-HP","Pharmacien ","MERCK SERONO","17/06/2015","REPAS ",10]
["Pr Alain Astier, AP-HP","Pharmacien ","MERCK SERONO","17/06/2015","TRANSPORT ",304]
["Pr Alain Astier, AP-HP","Pharmacien ","MERCK SERONO","17/06/2015","REPAS ",10]
["Pr Alain Astier, AP-HP","Pharmacien ","MERCK SERONO","17/06/2015","TRANSPORT ",20]
["Pr Alain Astier, AP-HP","Pharmacien ","MERCK SERONO","17/06/2015","REPAS ",55]
["Pr Alain Astier, AP-HP","Pharmacien ","MERCK SERONO","17/06/2015","REPAS ",10]
["Pr Alain Astier, AP-HP","Pharmacien ","MERCK SERONO","17/06/2015","HÉBERGEMENT ",152]
["Pr Alain Astier, AP-HP","Pharmacien ","MERCK SERONO","17/06/2015","REPAS ",10]
["Pr Alain Astier, AP-HP","Pharmacien ","MERCK SERONO","17/06/2015","HÉBERGEMENT ",152]
["Pr Alain Astier, AP-HP","Pharmacien ","MERCK SERONO","17/06/2015","REPAS ",55]
["Pr Alain Astier, AP-HP","Pharmacien ","JANSSEN-CILAG","2015-10-12","REPAS ",15]
["Pr Alain Astier, AP-HP","Pharmacien ","ROCHE SAS","27/11/2015","Repas ",22]
["Pr Alain Astier, AP-HP","Pharmacien ","CELGENE","2015-12-01","REPAS REUNION HOSPITALIERE ",13]
["Pr Alain Astier, AP-HP","Pharmacien ","NOVARTIS PHARMA SAS","21/01/2016","AUTRE : [PARTICIPATION EVENEMENT SCIENTIFIQUE] ",20]
["Pr Alain Astier, AP-HP","Pharmacien ","BRISTOL-MYERS SQUIBB","22/02/2016","Hospitalité ",23]
["Pr Alain Astier, AP-HP","Pharmacien ","AMGEN SAS","2016-03-11","REPAS IMPROMPTU ",15]
["Pr Alain Astier, AP-HP","Pharmacien ","AMGEN SAS","15/03/2016","REPAS IMPROMPTU ",14]
["Pr Alain Astier, AP-HP","Pharmacien ","ASTELLAS PHARMA","17/06/2016","REPAS ",37]
["Pr Alain Astier, AP-HP","Pharmacien ","BIOGARAN","25/06/2016","TRANSPORT ",3600]
["Pr Alain Astier, AP-HP","Pharmacien ","FRESENIUS KABI FRANCE","15/09/2016","AUTRE: STAFF ",14]
["Pr Alain Astier, AP-HP","Pharmacien ","AMGEN SAS","2016-11-08","REPAS IMPROMPTU ",14]
["Pr Alain Astier, AP-HP","Pharmacien ","AMGEN SAS","2017-02-02","REPAS ",10]
["Pr Alain Astier, AP-HP","Pharmacien ","AMGEN SAS","2017-02-02","REPAS ",58]
["Pr Alain Astier, AP-HP","Pharmacien ","NOVARTIS PHARMA SAS","28/02/2017","Repas ",12]
["Pr Alain Astier, AP-HP","Pharmacien ","MSD France","20/04/2017","REPAS ",16]
["Pr Alain Astier, AP-HP","Pharmacien ","GILEAD SCIENCES","29/06/2017","REPAS ",21]
["Pr Alain Astier, AP-HP","Pharmacien ","ADDMEDICA","2017-09-07","REPAS ",20]
["Pr Alain Astier, AP-HP","Pharmacien ","LABORATOIRE GLAXOSMITHKLINE","21/09/2017","REPAS ",27]
["Pr Christophe Le Tourneau, Institut Curie","Médecin ","ICOMED","26/03/2013","Autre: [Enquête] ",29]
["Pr Christophe Le Tourneau, Institut Curie","Médecin ","MERCK SERONO","30/05/2013","HEBERGEMENT ",312]
["Pr Christophe Le Tourneau, Institut Curie","Médecin ","MERCK SERONO","30/05/2013","HEBERGEMENT ",312]
["Pr Christophe Le Tourneau, Institut Curie","Médecin ","MERCK SERONO","30/05/2013","TRANSPORT ",35]
["Pr Christophe Le Tourneau, Institut Curie","Médecin ","MERCK SERONO","30/05/2013","HEBERGEMENT ",312]
["Pr Christophe Le Tourneau, Institut Curie","Médecin ","MERCK SERONO","30/05/2013","TRANSPORT ",1187]
["Pr Christophe Le Tourneau, Institut Curie","Médecin ","MERCK SERONO","30/05/2013","TRANSPORT ",87]
["Pr Christophe Le Tourneau, Institut Curie","Médecin ","MERCK SERONO","30/05/2013","TRANSPORT ",35]
["Pr Christophe Le Tourneau, Institut Curie","Médecin ","MERCK SERONO","30/05/2013","HEBERGEMENT ",312]
["Pr Christophe Le Tourneau, Institut Curie","Médecin ","MERCK SERONO","30/05/2013","INVITATIONS ",416]
["Pr Christophe Le Tourneau, Institut Curie","Médecin ","MERCK SERONO","25/06/2013","REPAS ",55]
["Pr Christophe Le Tourneau, Institut Curie","Médecin ","MEDEXACT","19/09/2013","Autre: [Enquête] ",30]
["Pr Christophe Le Tourneau, Institut Curie","Médecin ","MERCK SERONO","27/09/2013","REPAS ",69]
["Pr Christophe Le Tourneau, Institut Curie","Médecin ","MERCK SERONO","27/09/2013","REPAS ",59]
["Pr Christophe Le Tourneau, Institut Curie","Médecin ","MERCK SERONO","27/09/2013","REPAS ",66]
["Pr Christophe Le Tourneau, Institut Curie","Médecin ","MERCK SERONO","27/09/2013","TRANSPORT ",35]
["Pr Christophe Le Tourneau, Institut Curie","Médecin ","MERCK SERONO","27/09/2013","TRANSPORT ",30]
["Pr Christophe Le Tourneau, Institut Curie","Médecin ","MERCK SERONO","27/09/2013","REPAS ",65]
["Pr Christophe Le Tourneau, Institut Curie","Médecin ","MERCK SERONO","27/09/2013","INVITATIONS ",479]
["Pr Christophe Le Tourneau, Institut Curie","Médecin ","MERCK SERONO","27/09/2013","TRANSPORT ",410]
["Pr Christophe Le Tourneau, Institut Curie","Médecin ","MERCK SERONO","27/09/2013","REPAS ",59]
["Pr Christophe Le Tourneau, Institut Curie","Médecin ","MERCK SERONO","27/09/2013","TRANSPORT ",410]
["Pr Christophe Le Tourneau, Institut Curie","Médecin ","MERCK SERONO","27/09/2013","TRANSPORT ",93]
["Pr Christophe Le Tourneau, Institut Curie","Médecin ","MEDEXACT","2013-11-06","Autre: [Enquête] ",29]
["Pr Christophe Le Tourneau, Institut Curie","Médecin ","MERCK SERONO","30/05/2014","TRANSPORT ",50]
["Pr Christophe Le Tourneau, Institut Curie","Médecin ","MERCK SERONO","30/05/2014","HÉBERGEMENT ",333]
["Pr Christophe Le Tourneau, Institut Curie","Médecin ","MERCK SERONO","30/05/2014","INVITATIONS ",560]
["Pr Christophe Le Tourneau, Institut Curie","Médecin ","MERCK SERONO","30/05/2014","TRANSPORT ",35]
["Pr Christophe Le Tourneau, Institut Curie","Médecin ","MERCK SERONO","30/05/2014","TRANSPORT ",50]
["Pr Christophe Le Tourneau, Institut Curie","Médecin ","MERCK SERONO","30/05/2014","HÉBERGEMENT ",333]
["Pr Christophe Le Tourneau, Institut Curie","Médecin ","MERCK SERONO","30/05/2014","HÉBERGEMENT ",333]
["Pr Christophe Le Tourneau, Institut Curie","Médecin ","MERCK SERONO","30/05/2014","TRANSPORT ",1335]
["Pr Christophe Le Tourneau, Institut Curie","Médecin ","MERCK SERONO","30/05/2014","HÉBERGEMENT ",333]
["Pr Christophe Le Tourneau, Institut Curie","Médecin ","MERCK SERONO","30/05/2014","REPAS ",60]
["Pr Christophe Le Tourneau, Institut Curie","Médecin ","MERCK SERONO","30/05/2014","HÉBERGEMENT ",333]
["Pr Christophe Le Tourneau, Institut Curie","Médecin ","Roche Diagnostics GmbH","2014-06-01","REPAS ",68]
["Pr Christophe Le Tourneau, Institut Curie","Médecin ","MSD France","2014-06-02","REPAS ",60]
["Pr Christophe Le Tourneau, Institut Curie","Médecin ","ICOMED","16/06/2014","Autre: [Enquête] ",25]
["Pr Christophe Le Tourneau, Institut Curie","Médecin ","ROCHE SAS","20/06/2014","Repas ",20]
["Pr Christophe Le Tourneau, Institut Curie","Médecin ","Takeda France","16/09/2014","REPAS ",14]
["Pr Christophe Le Tourneau, Institut Curie","Médecin ","MERCK SERONO","26/09/2014","INVITATIONS ",686]
["Pr Christophe Le Tourneau, Institut Curie","Médecin ","MERCK SERONO","26/09/2014","TRANSPORT ",35]
["Pr Christophe Le Tourneau, Institut Curie","Médecin ","MERCK SERONO","26/09/2014","TRANSPORT ",124]
["Pr Christophe Le Tourneau, Institut Curie","Médecin ","MERCK SERONO","26/09/2014","HE\u0090BERGEMENT ",245]
["Pr Christophe Le Tourneau, Institut Curie","Médecin ","MERCK SERONO","26/09/2014","TRANSPORT ",223]
["Pr Christophe Le Tourneau, Institut Curie","Médecin ","MERCK SERONO","26/09/2014","HE\u0090BERGEMENT ",245]
["Pr Christophe Le Tourneau, Institut Curie","Médecin ","MERCK SERONO","26/09/2014","TRANSPORT ",35]
["Pr Christophe Le Tourneau, Institut Curie","Médecin ","MERCK SERONO","26/09/2014","REPAS ",60]
["Pr Christophe Le Tourneau, Institut Curie","Médecin ","MERCK SERONO","26/09/2014","REPAS ",60]
["Pr Christophe Le Tourneau, Institut Curie","Médecin ","MERCK SERONO","26/09/2014","HE\u0090BERGEMENT ",245]
["Pr Christophe Le Tourneau, Institut Curie","Médecin ","MSD France","2014-11-04","REPAS ",58]
["Pr Christophe Le Tourneau, Institut Curie","Médecin ","MSD France","2014-11-04","TRANSPORT ",575]
["Pr Christophe Le Tourneau, Institut Curie","Médecin ","MSD France","2014-11-04","REPAS ",24]
["Pr Christophe Le Tourneau, Institut Curie","Médecin ","MSD France","2014-11-04","REPAS ",40]
["Pr Christophe Le Tourneau, Institut Curie","Médecin ","MSD France","2014-11-04","HÉBERGEMENT ",129]
["Pr Christophe Le Tourneau, Institut Curie","Médecin ","MSD France","2014-11-05","REPAS ",40]
["Pr Christophe Le Tourneau, Institut Curie","Médecin ","MEDEXACT","21/11/2014","Autre: [Enquête] ",19]
["Pr Christophe Le Tourneau, Institut Curie","Médecin ","MERCK SERONO","28/11/2014","TRANSPORT ",47]
["Pr Christophe Le Tourneau, Institut Curie","Médecin ","MERCK SERONO","28/11/2014","REPAS ",50]
["Pr Christophe Le Tourneau, Institut Curie","Médecin ","MERCK SERONO","28/11/2014","TRANSPORT ",21]
["Pr Christophe Le Tourneau, Institut Curie","Médecin ","MERCK SERONO","28/11/2014","TRANSPORT ",21]
["Pr Christophe Le Tourneau, Institut Curie","Médecin ","MERCK SERONO","28/11/2014","TRANSPORT ",193]
["Pr Christophe Le Tourneau, Institut Curie","Médecin ","MERCK SERONO","28/11/2014","REPAS ",50]
["Pr Christophe Le Tourneau, Institut Curie","Médecin ","MERCK SERONO","28/11/2014","TRANSPORT ",110]
["Pr Christophe Le Tourneau, Institut Curie","Médecin ","ICOMED","2014-12-09","Autre: [Enquête] ",12]
["Pr Christophe Le Tourneau, Institut Curie","Médecin ","Lilly France SAS","2015-03-04","AUTRE : [INSCRIPTION CONGRÈS SCIENTIFIQUE] ",540]
["Pr Christophe Le Tourneau, Institut Curie","Médecin ","MERCK SERONO","2015-04-09","REPAS ",56]
["Pr Christophe Le Tourneau, Institut Curie","Médecin ","MERCK SERONO","2015-04-09","REPAS ",56]
["Pr Christophe Le Tourneau, Institut Curie","Médecin ","ROCHE SAS","18/04/2015","Repas ",84]
["Pr Christophe Le Tourneau, Institut Curie","Médecin ","ROCHE SAS","18/04/2015","Inscription ",395]
["Pr Christophe Le Tourneau, Institut Curie","Médecin ","ROCHE SAS","18/04/2015","Hebergement ",289]
["Pr Christophe Le Tourneau, Institut Curie","Médecin ","ROCHE SAS","18/04/2015","Transport ",2662]
["Pr Christophe Le Tourneau, Institut Curie","Médecin ","ROCHE SAS","19/04/2015","Repas ",62]
["Pr Christophe Le Tourneau, Institut Curie","Médecin ","ROCHE SAS","19/04/2015","Hebergement ",289]
["Pr Christophe Le Tourneau, Institut Curie","Médecin ","ROCHE SAS","19/04/2015","Transport ",40]
["Pr Christophe Le Tourneau, Institut Curie","Médecin ","ROCHE SAS","20/04/2015","Hebergement ",289]
["Pr Christophe Le Tourneau, Institut Curie","Médecin ","ROCHE SAS","21/04/2015","Hebergement ",289]
["Pr Christophe Le Tourneau, Institut Curie","Médecin ","MSD France","28/05/2015","TRANSPORT ",2191]
["Pr Christophe Le Tourneau, Institut Curie","Médecin ","MSD France","28/05/2015","HÉBERGEMENT ",1808]
["Pr Christophe Le Tourneau, Institut Curie","Médecin ","MSD France","28/05/2015","TRANSPORT ",455]
["Pr Christophe Le Tourneau, Institut Curie","Médecin ","MSD France","28/05/2015","TRANSPORT ",455]
["Pr Christophe Le Tourneau, Institut Curie","Médecin ","Roche Diagnostics GmbH","30/05/2015","REPAS ",48]
["Pr Christophe Le Tourneau, Institut Curie","Médecin ","ICOMED","18/06/2015","Autre: [Enquête] ",30]
["Pr Christophe Le Tourneau, Institut Curie","Médecin ","ICOMED","29/07/2015","Autre: [Enquête] ",10]
["Pr Christophe Le Tourneau, Institut Curie","Médecin ","ASTRAZENECA","26/09/2015","Transport ",804]
["Pr Christophe Le Tourneau, Institut Curie","Médecin ","ASTRAZENECA","26/09/2015","Repas ",57]
["Pr Christophe Le Tourneau, Institut Curie","Médecin ","ASTRAZENECA","26/09/2015","Autre ",999]
["Pr Christophe Le Tourneau, Institut Curie","Médecin ","ASTRAZENECA","26/09/2015","Hébergement ",249]
["Pr Christophe Le Tourneau, Institut Curie","Médecin ","ASTRAZENECA","27/09/2015","Hébergement ",249]
["Pr Christophe Le Tourneau, Institut Curie","Médecin ","ASTRAZENECA","28/09/2015","Hébergement ",249]
["Pr Christophe Le Tourneau, Institut Curie","Médecin ","MSD France","2015-10-09","REPAS ",10]
["Pr Christophe Le Tourneau, Institut Curie","Médecin ","MSD France","2015-10-09","REPAS ",19]
["Pr Christophe Le Tourneau, Institut Curie","Médecin ","ICOMED","18/11/2015","Autre: [Enquête] ",18]
["Pr Christophe Le Tourneau, Institut Curie","Médecin ","MERCK SERONO","19/11/2015","REPAS ",60]
["Pr Christophe Le Tourneau, Institut Curie","Médecin ","MERCK SERONO","19/11/2015","REPAS ",60]
["Pr Christophe Le Tourneau, Institut Curie","Médecin ","BRISTOL-MYERS SQUIBB","26/11/2015","Repas ",38]
["Pr Christophe Le Tourneau, Institut Curie","Médecin ","BRISTOL-MYERS SQUIBB","26/11/2015","Transport ",18]
["Pr Christophe Le Tourneau, Institut Curie","Médecin ","BRISTOL-MYERS SQUIBB","27/11/2015","Transport ",18]
["Pr Christophe Le Tourneau, Institut Curie","Médecin ","ROCHE SAS","14/12/2015","Repas ",23]
["Pr Christophe Le Tourneau, Institut Curie","Médecin ","ASTRAZENECA","2016-01-08","Repas ",22]
["Pr Christophe Le Tourneau, Institut Curie","Médecin ","BRISTOL-MYERS SQUIBB","2016-02-04","Transport ",124]
["Pr Christophe Le Tourneau, Institut Curie","Médecin ","BRISTOL-MYERS SQUIBB","2016-02-04","Hospitalité ",415]
["Pr Christophe Le Tourneau, Institut Curie","Médecin ","BRISTOL-MYERS SQUIBB","2016-02-04","Transport ",744]
["Pr Christophe Le Tourneau, Institut Curie","Médecin ","ASTRAZENECA","2016-02-12","Repas ",25]
["Pr Christophe Le Tourneau, Institut Curie","Médecin ","NANOBIOTIX S.A.","2016-03-07","Repas ",52]
["Pr Christophe Le Tourneau, Institut Curie","Médecin ","ASTRAZENECA","25/03/2016","Repas ",25]
["Pr Christophe Le Tourneau, Institut Curie","Médecin ","MSD France","29/03/2016","REPAS ",17]
["Pr Christophe Le Tourneau, Institut Curie","Médecin ","MSD France","2016-04-11","REPAS ",19]
["Pr Christophe Le Tourneau, Institut Curie","Médecin ","ICOMED","2016-05-12","Autre: [Enquête] ",11]
["Pr Christophe Le Tourneau, Institut Curie","Médecin ","ICOMED","13/05/2016","Autre: [Enquête] ",32]
["Pr Christophe Le Tourneau, Institut Curie","Médecin ","MSD France","2016-06-02","REPAS ",60]
["Pr Christophe Le Tourneau, Institut Curie","Médecin ","MSD France","2016-06-02","HÉBERGEMENT ",1210]
["Pr Christophe Le Tourneau, Institut Curie","Médecin ","MSD France","2016-06-02","INSCRIPTION ",1204]
["Pr Christophe Le Tourneau, Institut Curie","Médecin ","MSD France","2016-06-02","TRANSPORT ",166]
["Pr Christophe Le Tourneau, Institut Curie","Médecin ","MSD France","2016-06-02","TRANSPORT ",7732]
["Pr Christophe Le Tourneau, Institut Curie","Médecin ","MSD France","2016-06-03","REPAS ",60]
["Pr Christophe Le Tourneau, Institut Curie","Médecin ","MSD France","2016-06-03","REPAS ",12]
["Pr Christophe Le Tourneau, Institut Curie","Médecin ","MSD France","2016-06-04","REPAS ",60]
["Pr Christophe Le Tourneau, Institut Curie","Médecin ","MSD France","2016-06-06","REPAS ",60]
["Pr Christophe Le Tourneau, Institut Curie","Médecin ","ICOMED","17/06/2016","Autre: [Enquête] ",34]
["Pr Christophe Le Tourneau, Institut Curie","Médecin ","ASTRAZENECA","21/06/2016","Repas ",25]
["Pr Christophe Le Tourneau, Institut Curie","Médecin ","ASTRAZENECA","24/06/2016","Repas ",25]
["Pr Christophe Le Tourneau, Institut Curie","Médecin ","ASTRAZENECA","2016-07-01","Repas ",19]
["Pr Christophe Le Tourneau, Institut Curie","Médecin ","MSD France","26/07/2016","AUTRE : REMUNERATION ",2000]
["Pr Christophe Le Tourneau, Institut Curie","Médecin ","ASTRAZENECA","26/08/2016","Repas ",25]
["Pr Christophe Le Tourneau, Institut Curie","Médecin ","ASTRAZENECA","2016-09-02","Repas ",25]
["Pr Christophe Le Tourneau, Institut Curie","Médecin ","BRISTOL-MYERS SQUIBB","22/09/2016","Repas ",45]
["Pr Christophe Le Tourneau, Institut Curie","Médecin ","LES LABORATOIRES SERVIER","28/09/2016","Repas ",60]
["Pr Christophe Le Tourneau, Institut Curie","Médecin ","AMGEN SAS","2016-10-05","REPAS REUNION ",54]
["Pr Christophe Le Tourneau, Institut Curie","Médecin ","AMGEN SAS","2016-10-06","REPAS REUNION ",56]
["Pr Christophe Le Tourneau, Institut Curie","Médecin ","BRISTOL-MYERS SQUIBB","2016-10-06","Hébergement ",191]
["Pr Christophe Le Tourneau, Institut Curie","Médecin ","BRISTOL-MYERS SQUIBB","2016-10-07","Transport ",733]
["Pr Christophe Le Tourneau, Institut Curie","Médecin ","BRISTOL-MYERS SQUIBB","2016-10-07","Hébergement ",191]
["Pr Christophe Le Tourneau, Institut Curie","Médecin ","BRISTOL-MYERS SQUIBB","2016-10-07","Hospitalité ",720]
["Pr Christophe Le Tourneau, Institut Curie","Médecin ","BRISTOL-MYERS SQUIBB","2016-10-08","Hébergement ",191]
["Pr Christophe Le Tourneau, Institut Curie","Médecin ","BRISTOL-MYERS SQUIBB","2016-10-09","Hébergement ",191]
["Pr Christophe Le Tourneau, Institut Curie","Médecin ","MSD France","18/10/2016","REPAS ",51]
["Pr Christophe Le Tourneau, Institut Curie","Médecin ","MSD France","20/10/2016","HÉBERGEMENT ",152]
["Pr Christophe Le Tourneau, Institut Curie","Médecin ","MSD France","20/10/2016","REPAS ",20]
["Pr Christophe Le Tourneau, Institut Curie","Médecin ","MSD France","20/10/2016","REPAS ",10]
["Pr Christophe Le Tourneau, Institut Curie","Médecin ","MSD France","20/10/2016","REPAS ",10]
["Pr Christophe Le Tourneau, Institut Curie","Médecin ","MSD France","20/10/2016","REPAS ",61]
["Pr Christophe Le Tourneau, Institut Curie","Médecin ","MSD France","20/10/2016","TRANSPORT ",375]
["Pr Christophe Le Tourneau, Institut Curie","Médecin ","MSD France","20/10/2016","REPAS ",41]
["Pr Christophe Le Tourneau, Institut Curie","Médecin ","MERCK SERONO","28/11/2016","REPAS ",58]
["Pr Christophe Le Tourneau, Institut Curie","Médecin ","BRISTOL-MYERS SQUIBB","30/11/2016","Transport ",90]
["Pr Christophe Le Tourneau, Institut Curie","Médecin ","ASTRAZENECA","15/12/2016","Autre[HONORAIRES] ",1000]
["Pr Christophe Le Tourneau, Institut Curie","Médecin ","ICOMED","2017-01-09","Autre: [Enquête] ",15]
["Pr Christophe Le Tourneau, Institut Curie","Médecin ","MSD France","2017-01-11","TRANSPORT ",146]
["Pr Christophe Le Tourneau, Institut Curie","Médecin ","MERCK SERONO","19/01/2017","REPAS ",86]
["Pr Christophe Le Tourneau, Institut Curie","Médecin ","MERCK SERONO","19/01/2017","TRANSPORT ",276]
["Pr Christophe Le Tourneau, Institut Curie","Médecin ","MSD France","23/01/2017","HOSPITALITE ",146]
["Pr Christophe Le Tourneau, Institut Curie","Médecin ","MSD France","24/01/2017","TRANSPORT ",90]
["Pr Christophe Le Tourneau, Institut Curie","Médecin ","BRISTOL-MYERS SQUIBB","2017-02-01","Autre : [Rémunération] ",1000]
["Pr Christophe Le Tourneau, Institut Curie","Médecin ","MSD France","2017-02-06","HOSPITALITE ",90]
["Pr Christophe Le Tourneau, Institut Curie","Médecin ","MSD France","2017-02-07","TRANSPORT ",35]
["Pr Christophe Le Tourneau, Institut Curie","Médecin ","ASTRAZENECA","2017-02-08","Hospitalité ",89]
["Pr Christophe Le Tourneau, Institut Curie","Médecin ","ASTRAZENECA","2017-02-08","Transport ",493]
["Pr Christophe Le Tourneau, Institut Curie","Médecin ","ASTRAZENECA","2017-02-09","Hospitalité ",89]
["Pr Christophe Le Tourneau, Institut Curie","Médecin ","ASTRAZENECA","2017-02-09","Repas ",60]
["Pr Christophe Le Tourneau, Institut Curie","Médecin ","ASTRAZENECA","2017-02-09","Hébergement ",122]
["Pr Christophe Le Tourneau, Institut Curie","Médecin ","MSD France","15/02/2017","HOSPITALITE ",35]
["Pr Christophe Le Tourneau, Institut Curie","Médecin ","PFIZER SAS","21/02/2017","Repas ",21]
["Pr Christophe Le Tourneau, Institut Curie","Médecin ","MSD France","2017-03-10","REPAS ",18]
["Pr Christophe Le Tourneau, Institut Curie","Médecin ","ASTRAZENECA","31/03/2017","Repas ",22]
["Pr Christophe Le Tourneau, Institut Curie","Médecin ","ASTRAZENECA","2017-04-01","Transport ",3739]
["Pr Christophe Le Tourneau, Institut Curie","Médecin ","ASTRAZENECA","2017-04-01","Hébergement ",275]
["Pr Christophe Le Tourneau, Institut Curie","Médecin ","ASTRAZENECA","2017-04-01","Inscription ",1141]
["Pr Christophe Le Tourneau, Institut Curie","Médecin ","ASTRAZENECA","2017-04-02","Hébergement ",275]
["Pr Christophe Le Tourneau, Institut Curie","Médecin ","ASTRAZENECA","2017-04-02","Repas ",57]
["Pr Christophe Le Tourneau, Institut Curie","Médecin ","ASTRAZENECA","2017-04-03","Hébergement ",275]
["Pr Christophe Le Tourneau, Institut Curie","Médecin ","ASTRAZENECA","2017-04-05","REPAS ",62]
["Pr Christophe Le Tourneau, Institut Curie","Médecin ","BRISTOL-MYERS SQUIBB","20/04/2017","Repas ",45]
["Pr Christophe Le Tourneau, Institut Curie","Médecin ","BRISTOL-MYERS SQUIBB","25/04/2017","Repas ",10]
["Pr Christophe Le Tourneau, Institut Curie","Médecin ","BRISTOL-MYERS SQUIBB","25/04/2017","Repas ",60]
["Pr Christophe Le Tourneau, Institut Curie","Médecin ","ASTRAZENECA","27/04/2017","Repas ",57]
["Pr Christophe Le Tourneau, Institut Curie","Médecin ","MSD France","2017-06-01","REPAS ",61]
["Pr Christophe Le Tourneau, Institut Curie","Médecin ","MSD France","2017-06-01","TRANSPORT ",157]
["Pr Christophe Le Tourneau, Institut Curie","Médecin ","MSD France","2017-06-01","REPAS ",61]
["Pr Christophe Le Tourneau, Institut Curie","Médecin ","MSD France","2017-06-01","REPAS ",56]
["Pr Christophe Le Tourneau, Institut Curie","Médecin ","MSD France","2017-06-01","TRANSPORT ",5815]
["Pr Christophe Le Tourneau, Institut Curie","Médecin ","MSD France","2017-06-01","INSCRIPTION ",270]
["Pr Christophe Le Tourneau, Institut Curie","Médecin ","MSD France","2017-06-01","TRANSPORT ",236]
["Pr Christophe Le Tourneau, Institut Curie","Médecin ","MSD France","2017-06-01","HÉBERGEMENT ",1248]
["Pr Christophe Le Tourneau, Institut Curie","Médecin ","MSD France","2017-06-01","REPAS ",61]
["Pr Christophe Le Tourneau, Institut Curie","Médecin ","MSD France","22/06/2017","HÉBERGEMENT ",217]
["Pr Christophe Le Tourneau, Institut Curie","Médecin ","MSD France","22/06/2017","TRANSPORT ",261]
["Pr Christophe Le Tourneau, Institut Curie","Médecin ","MSD France","22/06/2017","REPAS ",30]
["Pr Christophe Le Tourneau, Institut Curie","Médecin ","MSD France","22/06/2017","REPAS ",17]
["Pr Christophe Le Tourneau, Institut Curie","Médecin ","AbbVie","2017-07-07","REPAS ",28]
["Pr Christophe Le Tourneau, Institut Curie","Médecin ","ASTRAZENECA","2017-07-11","Repas ",43]
["Pr Christophe Le Tourneau, Institut Curie","Médecin ","MSD France","19/09/2017","HOSPITALITE ",83]
["Pr Christophe Le Tourneau, Institut Curie","Médecin ","BRISTOL-MYERS SQUIBB","13/10/2017","Transport ",76]
["Pr Christophe Le Tourneau, Institut Curie","Médecin ","NANOBIOTIX S.A.","2017-11-02","TRANSPORT ",398]
["Pr Christophe Le Tourneau, Institut Curie","Médecin ","BRISTOL-MYERS SQUIBB","24/11/2017","Transport ",202]
["Pr Christophe Le Tourneau, Institut Curie","Médecin ","BRISTOL-MYERS SQUIBB","24/11/2017","Repas ",60]
["Pr Christophe Le Tourneau, Institut Curie","Médecin ","BRISTOL-MYERS SQUIBB","27/11/2017","Repas ",10]
["Pr Christophe Le Tourneau, Institut Curie","Médecin ","ASTRAZENECA","2017-12-05","TRANSPORT ",31]
["Pr Jean-Marc Tréluyer, AP-HP","Médecin ","GILEAD SCIENCES","2013-07-04","REPAS ",19]
["Pr Jean-Marc Tréluyer, AP-HP","Médecin ","GILEAD SCIENCES","16/09/2013","REPAS ",21]
["Pr Jean-Marc Tréluyer, AP-HP","Médecin ","GILEAD SCIENCES","14/10/2013","REPAS ",25]
["Pr Jean-Marc Tréluyer, AP-HP","Médecin ","GILEAD SCIENCES","20/11/2013","REPAS ",12]
["Pr Jean-Marc Tréluyer, AP-HP","Médecin ","GILEAD SCIENCES","17/01/2014","REPAS ",36]
["Pr Jean-Marc Tréluyer, AP-HP","Médecin ","THERMO ELECTRON SAS","28/01/2014","FRAIS DE RESTAURATION ",40]
["Pr Jean-Marc Tréluyer, AP-HP","Médecin ","GILEAD SCIENCES","2014-02-10","REPAS ",60]
["Pr Jean-Marc Tréluyer, AP-HP","Médecin ","JANSSEN-CILAG","19/05/2014","TRANSPORT ",799]
["Pr Jean-Marc Tréluyer, AP-HP","Médecin ","JANSSEN-CILAG","19/05/2014","HEBERGEMENT ",639]
["Pr Jean-Marc Tréluyer, AP-HP","Médecin ","JANSSEN-CILAG","19/05/2014","INSCRIPTION ",522]
["Pr Jean-Marc Tréluyer, AP-HP","Médecin ","JANSSEN-CILAG","19/05/2014","REPAS ",41]
["Pr Jean-Marc Tréluyer, AP-HP","Médecin ","JANSSEN-CILAG","19/05/2014","REPAS ",55]
["Pr Jean-Marc Tréluyer, AP-HP","Médecin ","GILEAD SCIENCES","2014-07-07","REPAS ",52]
["Pr Jean-Marc Tréluyer, AP-HP","Médecin ","GILEAD SCIENCES","2014-07-09","REPAS ",10]
["Pr Jean-Marc Tréluyer, AP-HP","Médecin ","BRISTOL-MYERS SQUIBB","15/09/2014","Repas ",23]
["Pr Jean-Marc Tréluyer, AP-HP","Médecin ","GILEAD SCIENCES","2014-12-10","REPAS ",10]
["Pr Jean-Marc Tréluyer, AP-HP","Médecin ","BRISTOL-MYERS SQUIBB","2015-03-10","Repas ",16]
["Pr Jean-Marc Tréluyer, AP-HP","Médecin ","GILEAD SCIENCES","26/05/2015","REPAS ",28]
["Pr Jean-Marc Tréluyer, AP-HP","Médecin ","GILEAD SCIENCES","26/05/2015","HEBERGEMENT ",594]
["Pr Jean-Marc Tréluyer, AP-HP","Médecin ","GILEAD SCIENCES","26/05/2015","TRANSPORT ",1879]
["Pr Jean-Marc Tréluyer, AP-HP","Médecin ","GILEAD SCIENCES","26/05/2015","INSCRIPTION ",465]
["Pr Jean-Marc Tréluyer, AP-HP","Médecin ","GILEAD SCIENCES","27/05/2015","REPAS ",44]
["Pr Jean-Marc Tréluyer, AP-HP","Médecin ","GILEAD SCIENCES","2017-03-10","REPAS ",54]

{"sheet":"Conventions signées","index":1,"n_rows":553,"n_cols":8,"rows_kept":553,"cut":false,"hidden":false,"merged":[]}
["Bénéficiaire","Type de bénéficiaire","Entreprise","Date","Période","Objet","Montants","Lieux"]
["Pr Gilles Vassal, IGR","Médecin ","ROCHE SAS","30/05/2013","30/05/2013 - 07/06/2013 ","Autre : Congrès / Symposium "]
["Pr Gilles Vassal, IGR","Médecin ","ROCHE SAS","31/05/2013","31/05/2013 - 04/06/2013 ","Autre : Congres / Symposium ",null,"CHICAGO"]
["Pr Gilles Vassal, IGR","Médecin ","BRISTOL-MYERS SQUIBB","26/11/2014","20/11/2014 - ","Autre : Autre : [Consultant (HCP)] "]
["Pr Gilles Vassal, IGR","Médecin ","Lilly France SAS","28/05/2015","28/05/2015 - 28/05/2015 ","Autre : AUTRE : [CONTRAT D'ORATEUR] ",null,"CHICAGO"]
["Pr Gilles Vassal, IGR","Médecin ","ROCHE SAS","29/05/2015","29/05/2015 - 02/06/2015 ","Autre : Congres / Symposium ",null,"CHICAGO"]
["Pr Gilles Vassal, IGR","Médecin ","ROCHE SAS","03/06/2016","03/06/2016 - 07/06/2016 ","Autre : Congres / Symposium ",null,"CHICAGO"]
["Pr Gilles Vassal, IGR","Médecin ","Lilly France SAS","05/07/2016","05/07/2016 - 22/05/2018 ","Contrat d'expert scientifique, contrat dans le cadre d'une recherche, contrat de consultant ",15638]
["Pr Gilles Vassal, IGR","Médecin ","Lilly France SAS","24/09/2016","24/09/2016 - 24/09/2016 ","Autre : CONSEIL ",null,"NEW YORK"]
["Pr Gilles Vassal, IGR","Médecin ","BRISTOL-MYERS SQUIBB","29/11/2016","29/11/2016 - ","Autre : Autre : [Orateur] "]
["Pr Gilles Vassal, IGR","Médecin ","Sociétés étrangères du groupe Novartis","01/01/2017","01/01/2017 - 31/12/2017 ","Autres prestations de services ",1599]
["Pr Gilles Vassal, IGR","Médecin ","ASTRAZENECA","19/04/2017","19/04/2017 - ","Hospitalité ",25]
["Pr Gilles Vassal, IGR","Médecin ","Lilly France SAS","28/04/2017","05/05/2017 - 05/05/2017 ","Contrat d'intervenant à une manifestation / orateur",1380]
["Dr Christophe Massard, IGR","Médecin ","JANSSEN-CILAG","22/02/2013","28/03/2013 - 28/03/2013 ","Autre : CONGRES / SYMPOSIUM ",null,"ROUEN"]
["Dr Christophe Massard, IGR","Médecin ","PFIZER SAS","13/03/2013","13/03/2013 - ","Autre : ORATEUR RP/CONGRES/SYMPOSIUM "]
["Dr Christophe Massard, IGR","Médecin ","JANSSEN-CILAG","18/03/2013","20/04/2013 - 20/04/2013 ","Autre : CONGRES / SYMPOSIUM ",null,"PARIS"]
["Dr Christophe Massard, IGR","Médecin ","ASTELLAS PHARMA","31/05/2013","31/05/2013 - 04/06/2013 ","Autre : CONGRES / SYMPOSIUM ",null,"CHICAGO"]
["Dr Christophe Massard, IGR","Médecin ","Bayer HealthCare SAS","11/06/2013","11/06/2013 - 11/06/2013 ","Autre : CONGRES / SYMPOSIUM ",null,"LOOS"]
["Dr Christophe Massard, IGR","Médecin ","JANSSEN-CILAG","02/09/2013","06/09/2013 - 07/09/2013 ","Autre : CONGRES / SYMPOSIUM ",null,"LA ROCHELLE"]
["Dr Christophe Massard, IGR","Médecin ","JANSSEN-CILAG","10/10/2013","10/10/2013 - 12/10/2013 ","Autre : CONGRES / SYMPOSIUM ",null,"NICE"]
["Dr Christophe Massard, IGR","Médecin ","JANSSEN-CILAG","20/11/2013","28/11/2013 - 28/11/2013 ","Autre : CONSEIL "]
["Dr Christophe Massard, IGR","Médecin ","Orion Corporation Orion Pharma","20/11/2013","20/11/2013 - ","Autre : CONSEIL ET COMMUNICATION MEDICO-SCIENTIFIQUE "]
["Dr Christophe Massard, IGR","Médecin ","JANSSEN-CILAG","20/11/2013","28/11/2013 - 28/11/2013 ","Autre : CONGRES / SYMPOSIUM ",null,"ST-PRIEST EN JAREZ"]
["Dr Christophe Massard, IGR","Médecin ","PRA","19/12/2013","19/12/2013 - ","Recherche scientifique "]
["Dr Christophe Massard, IGR","Médecin ","JANSSEN-CILAG","17/01/2014","24/01/2014 - 31/12/2014 ","Autre : CONGRES / SYMPOSIUM "]
["Dr Christophe Massard, IGR","Médecin ","Laboratoires Grünenthal SAS","30/01/2014","30/01/2014 - ","Autre : REUNION SCIENTIFIQUE "]
["Dr Christophe Massard, IGR","Médecin ","SANOFI AVENTIS FRANCE","05/02/2014","05/02/2014 - 05/02/2014 ","Hospitalité ",null,"PARIS"]
["Dr Christophe Massard, IGR","Médecin ","SANOFI AVENTIS FRANCE","05/02/2014","05/02/2014 - 05/02/2014 ","Autre : Autre : [Communication scientifique] "]
["Dr Christophe Massard, IGR","Médecin ","Transgene SA","03/03/2014","28/02/2014 - ","Autre : CONSEIL "]
["Dr Christophe Massard, IGR","Médecin ","JANSSEN-CILAG","03/03/2014","28/03/2014 - 29/03/2014 ","Autre : CONGRES / SYMPOSIUM ",null,"CLERMONT-FERRAND"]
["Dr Christophe Massard, IGR","Médecin ","JANSSEN-CILAG","15/03/2014","15/03/2014 - 15/03/2014 ","Autre : CONGRES / SYMPOSIUM ",null,"PARIS"]
["Dr Christophe Massard, IGR","Médecin ","ASTELLAS PHARMA","21/03/2014","21/03/2014 - 21/03/2014 ","Recherche scientifique ",null,"PARIS"]
["Dr Christophe Massard, IGR","Médecin ","ASTELLAS PHARMA","21/03/2014","21/03/2014 - ","Autre : CONSEIL"]
["Dr Christophe Massard, IGR","Médecin ","SANOFI AVENTIS FRANCE","22/03/2014","22/03/2014 - 22/03/2014 ","Formation ",null,"CLAMART"]
["Dr Christophe Massard, IGR","Médecin ","NOVARTIS PHARMA SAS","28/03/2014","28/03/2014 - 29/03/2014 ","Autre : Autre : [Orateur] "]
["Dr Christophe Massard, IGR","Médecin ","SANOFI AVENTIS FRANCE","28/03/2014","28/03/2014 - 29/03/2014 ","Hospitalité ",null,"DINARD"]
["Dr Christophe Massard, IGR","Médecin ","SANOFI AVENTIS FRANCE","28/03/2014","28/03/2014 - 29/03/2014 ","Autre : Autre : [Opération SA/Journée-Soirée] ",null,"DINARD"]
["Dr Christophe Massard, IGR","Médecin ","JANSSEN-CILAG","09/04/2014","07/03/2014 - 08/03/2014 ","Autre : CONGRES / SYMPOSIUM ",null,"BORDEAUX"]
["Dr Christophe Massard, IGR","Médecin ","MSD France","22/04/2014","23/05/2014 - 30/06/2014 ","Autre : EXPERT ",null,"CHICAGO"]
["Dr Christophe Massard, IGR","Médecin ","Bayer HealthCare SAS","12/05/2014","20/06/2014 - 21/06/2014 ","Autre : Contrat de conseil scientifique ",null,"PARIS"]
["Dr Christophe Massard, IGR","Médecin ","Bayer HealthCare SAS","20/06/2014","20/06/2014 - 21/06/2014 ","Autre : CONGRES / SYMPOSIUM "]
["Dr Christophe Massard, IGR","Médecin ","MSD France","22/07/2014","03/09/2014 - 31/12/2014 ","Autre : EXPERT ",null,"PARIS"]
["Dr Christophe Massard, IGR","Médecin ","NOVARTIS PHARMA SAS","29/08/2014","29/08/2014 - 17/09/2014 ","Autre : Autre : [Contrat de conseil & prestation] "]
["Dr Christophe Massard, IGR","Médecin ","PSI CRO AG","10/09/2014","03/09/2014 - 03/09/2014 ","Autre : Autre ",null,"PARIS"]
["Dr Christophe Massard, IGR","Médecin ","Laboratoires Grünenthal SAS","24/09/2014","24/09/2014 - ","Autre : REUNION SCIENTIFIQUE "]
["Dr Christophe Massard, IGR","Médecin ","Lilly France SAS","27/09/2014","27/09/2014 - 27/09/2014 ","Autre : AUTRE : [CONTRAT D'ORATEUR] ",null,"CHARENTON LE PONT"]
["Dr Christophe Massard, IGR","Médecin ","MSD France","24/10/2014","01/12/2014 - 31/12/2014 ","Autre : EXPERT "]
["Dr Christophe Massard, IGR","Médecin ","ROCHE SAS","05/11/2014","09/01/2015 - 10/01/2015 ","Autre : Autre : [ Orateur / Intervenant ] ",null,"PARIS"]
["Dr Christophe Massard, IGR","Médecin ","IPSEN PHARMA","27/11/2014","05/12/2014 - 06/12/2014 ","Autre : CONSEIL "]
["Dr Christophe Massard, IGR","Médecin ","ROCHE SAS","12/12/2014","12/12/2014 - 12/12/2014 ","Autre : Autre : [ Reunion professionnelle ] ",null,"PARIS"]
["Dr Christophe Massard, IGR","Médecin ","ROCHE SAS","09/01/2015","09/01/2015 - 10/01/2015 ","Autre : Congres / Symposium ",null,"PARIS"]
["Dr Christophe Massard, IGR","Médecin ","AMGEN SAS","03/02/2015","06/02/2015 - 07/02/2015 ","Autre : AUTRE [CONVENTION D HOSPITALITE] ",null,"PARIS"]
["Dr Christophe Massard, IGR","Médecin ","SANOFI AVENTIS FRANCE","26/02/2015","26/02/2015 - 28/02/2015 ","Inscription congrès",null,"ORLANDO"]
["Dr Christophe Massard, IGR","Médecin ","SANOFI AVENTIS FRANCE","15/03/2015","15/03/2015 - 31/12/2015 ","Autre : Autre : [Communication scientifique] "]
["Dr Christophe Massard, IGR","Médecin ","SANOFI AVENTIS FRANCE","27/03/2015","27/03/2015 - 31/12/2015 ","Autre : Autre : [Communication scientifique] "]
["Dr Christophe Massard, IGR","Médecin ","JANSSEN-CILAG","28/03/2015","28/03/2015 - 28/03/2015 ","Autre : CONGRES / SYMPOSIUM ",null,"PARIS"]
["Dr Christophe Massard, IGR","Médecin ","PRA","14/04/2015","14/04/2015 - ","Recherche scientifique "]
["Dr Christophe Massard, IGR","Médecin ","Bayer HealthCare SAS","27/04/2015","05/06/2015 - 06/06/2015 ","Autre : Contrat de conseil scientifique ",null,"JUAN LES PINS"]
["Dr Christophe Massard, IGR","Médecin ","SANOFI AVENTIS FRANCE","23/05/2015","26/02/2015 - 28/02/2015 ","Contrat d'intervenant à une manifestation / orateur "]
["Dr Christophe Massard, IGR","Médecin ","JANSSEN-CILAG","09/06/2015","09/06/2015 - 09/06/2015 ","Autre : CONGRES / SYMPOSIUM ",null,"PARIS"]
["Dr Christophe Massard, IGR","Médecin ","SANOFI AVENTIS FRANCE","19/06/2015","19/06/2015 - 20/06/2015 ","Hospitalité ",null,"REIMS"]
["Dr Christophe Massard, IGR","Médecin ","SANOFI AVENTIS FRANCE","23/06/2015","23/06/2015 - 31/12/2015 ","Autre : Autre : [Communication scientifique] "]
["Dr Christophe Massard, IGR","Médecin ","ASTRAZENECA","30/06/2015","30/06/2015 - ","Formation "]
["Dr Christophe Massard, IGR","Médecin ","JANSSEN-CILAG","03/08/2015","22/09/2015 - 22/09/2015 ","Autre : CONGRES / SYMPOSIUM ",null,"LYON"]
["Dr Christophe Massard, IGR","Médecin ","Health Advances","13/08/2015","13/08/2015 - ","Autre : Autre: Phone consult "]
["Dr Christophe Massard, IGR","Médecin ","JANSSEN-CILAG","25/09/2015","25/09/2015 - 29/09/2015 ","Autre : CONGRES/SYMPOSIUM ",null,"VIENNE"]
["Dr Christophe Massard, IGR","Médecin ","SANOFI AVENTIS FRANCE","30/09/2015","19/06/2015 - 20/06/2015 ","Autre : Autre : [Communication scientifique] "]
["Dr Christophe Massard, IGR","Médecin ","SANOFI AVENTIS FRANCE","09/10/2015","15/03/2015 - 31/12/2015 ","Autre : Autre : [Communication scientifique] "]
["Dr Christophe Massard, IGR","Médecin ","JANSSEN-CILAG","14/10/2015","14/10/2015 - 14/10/2015 ","Autre : CONGRES / SYMPOSIUM ",null,"MELUN"]
["Dr Christophe Massard, IGR","Médecin ","JANSSEN-CILAG","26/10/2015","14/10/2015 - 14/10/2015 ","Autre : CONGRES / SYMPOSIUM ",null,"MELUN"]
["Dr Christophe Massard, IGR","Médecin ","Lilly France SAS","06/11/2015","06/11/2015 - 06/11/2015 ","Autre : AUTRE : [CONTRAT D'ORATEUR] "]
["Dr Christophe Massard, IGR","Médecin ","PSI CRO FRANCE","22/12/2015","16/01/2015 - 16/01/2015 ","Autre : 3116001; site 101; "]
["Dr Christophe Massard, IGR","Médecin ","Lilly France SAS","02/04/2016","02/04/2016 - 02/04/2016 ","Contrat d'expert scientifique, contrat dans le cadre d'une recherche, contrat de consultant ",1298,"NEW YORK"]
["Dr Christophe Massard, IGR","Médecin ","SANOFI AVENTIS FRANCE","23/05/2016","15/03/2016 - 31/12/2016 ","Autre : Autre : [Communication scientifique] "]
["Dr Christophe Massard, IGR","Médecin ","PRA","15/06/2016","15/06/2016 - ","Recherche scientifique "]
["Dr Christophe Massard, IGR","Médecin ","JANSSEN-CILAG","28/06/2016","28/06/2016 - 29/06/2016 ","Contrat d'intervenant à une manifestation / orateur ",600,"ROUEN"]
["Dr Christophe Massard, IGR","Médecin ","JANSSEN-CILAG","28/06/2016","28/06/2016 - 28/06/2016 ","Autre : CONGRES / SYMPOSIUM ",null,"ROUEN"]
["Dr Christophe Massard, IGR","Médecin ","JANSSEN-CILAG","28/06/2016","28/06/2016 - 28/06/2016 ","Autre : CONGRES/SYMPOSIUM ",null,"ROUEN"]
["Dr Christophe Massard, IGR","Médecin ","JANSSEN-CILAG","28/06/2016","28/06/2016 - 28/06/2016 ","Autre : CONGRES/SYMPOSIUM ",null,"ROUEN"]
["Dr Christophe Massard, IGR","Médecin ","SANOFI AVENTIS FRANCE","03/08/2016","18/11/2016 - 31/12/2016 ","Contrat d'intervenant à une manifestation / orateur "]
["Dr Christophe Massard, IGR","Médecin ","PRA","31/08/2016","31/08/2016 - ","Recherche scientifique "]
["Dr Christophe Massard, IGR","Médecin ","JANSSEN-CILAG","15/09/2016","15/09/2016 - 16/09/2016 ","Contrat d'intervenant à une manifestation / orateur ",600,"VALENCE"]
["Dr Christophe Massard, IGR","Médecin ","JANSSEN-CILAG","14/10/2016","14/10/2016 - 14/10/2016 ","Autre : CONGRES/SYMPOSIUM ",null,"BEAUNE"]
["Dr Christophe Massard, IGR","Médecin ","JANSSEN-CILAG","14/10/2016","14/10/2016 - 15/10/2016 ","Contrat d'intervenant à une manifestation / orateur ",700,"BEAUNE"]
["Dr Christophe Massard, IGR","Médecin ","SANOFI AVENTIS FRANCE","16/11/2016","16/11/2016 - 19/11/2016 ","Inscription congrès ",null,"PARIS"]
["Dr Christophe Massard, IGR","Médecin ","JANSSEN-CILAG","08/12/2016","08/12/2016 - 08/12/2016 ","Autre : CONGRES/SYMPOSIUM ",null,"ROUEN"]
["Dr Christophe Massard, IGR","Médecin ","AMGEN SAS","20/12/2016","03/02/2017 - 04/02/2017 ","Hospitalité ",null,"PARIS"]
["Dr Christophe Massard, IGR","Médecin ","AMGEN SAS","03/02/2017","31/01/2017 - 05/02/2017 ","Contrat d'intervenant à une manifestation / orateur ",null,"PARIS"]
["Dr Christophe Massard, IGR","Médecin ","ASTRAZENECA","08/02/2017","09/02/2017 - ","Contrat d'intervenant à une manifestation / orateur ",852]
["Dr Christophe Massard, IGR","Médecin ","ASTRAZENECA","09/02/2017","09/02/2017 - ","Hospitalité ",1022]
["Dr Christophe Massard, IGR","Médecin ","JANSSEN-CILAG","10/02/2017","20/03/2017 - 20/03/2017 ","Formation ",null,"PARIS"]
["Dr Christophe Massard, IGR","Médecin ","JANSSEN-CILAG","02/03/2017","24/04/2017 - 24/04/2017 ","Contrat d'intervenant à une manifestation / orateur ",null,"PARIS"]
["Dr Christophe Massard, IGR","Médecin ","JANSSEN-CILAG","02/03/2017","27/03/2017 - 27/03/2017 ","Contrat d'intervenant à une manifestation / orateur",null,"PARIS"]
["Dr Christophe Massard, IGR","Médecin ","ASTRAZENECA","08/03/2017","09/02/2017 - ","Contrat d'intervenant à une manifestation / orateur ",774]
["Dr Christophe Massard, IGR","Médecin ","SANOFI-AVENTIS RECHERCHE & DEVELOPPEMENT","26/03/2017","26/03/2017 - 26/03/2018 ","Recherche scientifique "]
["Dr Christophe Massard, IGR","Médecin ","ASTRAZENECA","01/04/2017","01/04/2017 - ","Hospitalité ",10466]
["Dr Christophe Massard, IGR","Médecin ","ASTRAZENECA","10/04/2017","27/04/2017 - ","Contrat d'intervenant à une manifestation / orateur ",929]
["Dr Christophe Massard, IGR","Médecin ","JANSSEN-CILAG","12/04/2017","21/04/2017 - 22/04/2017 ","Contrat d'intervenant à une manifestation / orateur ",null,"TOULOUSE"]
["Dr Christophe Massard, IGR","Médecin ","ASTRAZENECA","19/04/2017","19/04/2017 - ","Hospitalité ",25]
["Dr Christophe Massard, IGR","Médecin ","JANSSEN-CILAG","29/05/2017","29/05/2017 - 22/12/2017 ","Autre : CONGRES/ SYMPOSIUM ",null,"ISSY-LES-MOULINEAUX"]
["Dr Christophe Massard, IGR","Médecin ","INVENTIVA","12/06/2017","01/06/2017 - 31/12/2018 ","Contrat d'expert scientifique, contrat dans le cadre d'une recherche, contrat de consultant "]
["Dr Christophe Massard, IGR","Médecin ","ASTRAZENECA","14/06/2017","23/06/2017 - ","Contrat d'expert scientifique, contrat dans le cadre d'une recherche, contrat de consultant ",2527]
["Dr Christophe Massard, IGR","Médecin ","Lilly France SAS","07/09/2017","13/10/2017 - ","Contrat d'intervenant à une manifestation / orateur ",1521]
["Dr Christophe Massard, IGR","Médecin ","JANSSEN-CILAG","08/09/2017","08/09/2017 - 12/09/2017 ","Hospitalité ",null,"MADRID"]
["Dr Christophe Massard, IGR","Médecin ","AMGEN SAS","20/09/2017","20/11/2017 - 21/11/2017 ","Hospitalité ",null,"PARIS"]
["Dr Christophe Massard, IGR","Médecin ","INC RESEARCH, LLC","16/10/2017","16/10/2017 - ","Recherche scientifique "]
["Dr Christophe Massard, IGR","Médecin ","Covance Clinical And Periapproval Services SARL","23/10/2017","23/10/2017 - 23/06/2021 ","Autre : Convention unique Etablissement associé version septembre 2016 ",120071]
["Dr Christophe Massard, IGR","Médecin ","INC RESEARCH, LLC","26/10/2017","26/10/2017 - ","Recherche scientifique "]
["Dr Christophe Massard, IGR","Médecin ","INC RESEARCH, LLC","26/10/2017","26/10/2017 - ","Recherche scientifique "]
["Dr Christophe Massard, IGR","Médecin ","Taiho Oncology","30/10/2017","30/10/2017 - ","Contrat d'expert scientifique, contrat dans le cadre d'une recherche, contrat de consultant "]
["Dr Christophe Massard, IGR","Médecin ","Taiho Oncology","30/10/2017","30/10/2017 - ","Contrat d'expert scientifique, contrat dans le cadre d'une recherche, contrat de consultant "]
["Dr Christophe Massard, IGR","Médecin ","Taiho Oncology","30/10/2017","30/10/2017 - ","Contrat d'expert scientifique, contrat dans le cadre d'une recherche, contrat de consultant "]
["Dr Christophe Massard, IGR","Médecin ","JANSSEN-CILAG","28/11/2017","28/11/2017 - 28/11/2017 ","Hospitalité",null,"PARIS"]
["Dr Christophe Massard, IGR","Médecin ","IPSEN PHARMA","02/12/2017","01/12/2017 - 02/12/2017 ","Contrat d'intervenant à une manifestation / orateur ",700]
["Dr Christophe Massard, IGR","Médecin ","JANSSEN-CILAG","07/12/2017","07/12/2017 - 07/12/2017 ","Hospitalité",null,"ROUEN"]
["Dr Aurélien Marabelle, IGR","Médecin ","Bayer HealthCare SAS","21/11/2013","05/09/2013 - 31/12/2013 ","Autre : Contrat de recherche interventionnelle et non-interventionnelle "]
["Dr Aurélien Marabelle, IGR","Médecin ","AMGEN SAS","08/10/2014","13/11/2014 - 13/11/2014 ","Autre : AUTRE [CONTRAT D ORATEUR] ",null,"ZURICH"]
["Dr Aurélien Marabelle, IGR","Médecin ","ROCHE SAS","12/12/2014","12/12/2014 - 12/12/2014 ","Autre : Autre : [ Reunion professionnelle ] ",null,"PARIS"]
["Dr Aurélien Marabelle, IGR","Médecin ","Institut Roche","05/01/2015","05/01/2015 - 30/04/2017 ","Recherche scientifique "]
["Dr Aurélien Marabelle, IGR","Médecin ","BRISTOL-MYERS SQUIBB","22/01/2015","22/01/2015 - ","Autre : Autre : [Consultant (HCP)] "]
["Dr Aurélien Marabelle, IGR","Médecin ","SANOFI AVENTIS FRANCE","21/03/2015","21/03/2015 - 21/03/2015 ","Formation "]
["Dr Aurélien Marabelle, IGR","Médecin ","BRISTOL-MYERS SQUIBB","17/04/2015","05/05/2015 - ","Autre : Autre : [Orateur] "]
["Dr Aurélien Marabelle, IGR","Médecin ","AMGEN SAS","03/06/2015","05/07/2015 - 08/07/2015 ","Autre : AUTRE [CONTRAT DE CONSULTANT] ",null,"BOULOGNE BILLANCOURT"]
["Dr Aurélien Marabelle, IGR","Médecin ","AMGEN SAS","09/07/2015","25/09/2015 - 26/09/2015 ","Autre : AUTRE [CONTRAT D ORATEUR] "]
["Dr Aurélien Marabelle, IGR","Médecin ","Transgene SA","24/08/2015","13/08/2015 - 31/10/2015 ","Autre : CONSEIL "]
["Dr Aurélien Marabelle, IGR","Médecin ","Bayer HealthCare SAS","26/08/2015","30/07/2015 - 14/07/2016 ","Contrat d'expert scientifique, contrat dans le cadre d'une recherche, contrat de consultant "]
["Dr Aurélien Marabelle, IGR","Médecin ","BRISTOL-MYERS SQUIBB","07/09/2015","27/11/2015 - ","Autre : Autre : [Orateur] "]
["Dr Aurélien Marabelle, IGR","Médecin ","BRISTOL-MYERS SQUIBB","07/09/2015","27/11/2015 - ","Autre : Autre : [Orateur] "]
["Dr Aurélien Marabelle, IGR","Médecin ","AMGEN SAS","08/09/2015","07/10/2015 - 11/10/2015 ","Autre : AUTRE [CONTRAT D ORATEUR] ",null,"PARIS"]
["Dr Aurélien Marabelle, IGR","Médecin ","SANOFI-AVENTIS RECHERCHE & DEVELOPPEMENT","20/09/2015","09/09/2015 - 09/09/2016 ","Recherche scientifique "]
["Dr Aurélien Marabelle, IGR","Médecin ","BRISTOL-MYERS SQUIBB","27/09/2015","27/09/2015 - ","Autre : Autre : [Consultant (HCP)] "]
["Dr Aurélien Marabelle, IGR","Médecin ","MSD France","29/09/2015","30/10/2015 - 31/12/2015 ","Autre : EXPERT ",null,"PARIS"]
["Dr Aurélien Marabelle, IGR","Médecin ","AMGEN SAS","06/10/2015","09/10/2015 - 10/10/2015 ","Autre : AUTRE [CONVENTION D HOSPITALITE] ",null,"PARIS"]
["Dr Aurélien Marabelle, IGR","Médecin ","AMGEN SAS","07/10/2015","14/10/2015 - 30/09/2019 ","Autre : CONVENTION DE RECHERCHE "]
["Dr Aurélien Marabelle, IGR","Médecin ","AMGEN SAS","14/10/2015","27/11/2015 - 28/11/2015 ","Autre : AUTRE [CONVENTION D HOSPITALITE]",null,"REIMS"]
["Dr Aurélien Marabelle, IGR","Médecin ","ONXEO","12/11/2015","21/12/2015 - 20/12/2016 ","Autre : Conseil en R&D "]
["Dr Aurélien Marabelle, IGR","Médecin ","AMGEN SAS","14/12/2015","12/01/2016 - 16/01/2016 ","Autre : AUTRE [CONTRAT DE CONSULTANT] "]
["Dr Aurélien Marabelle, IGR","Médecin ","AMGEN SAS","14/12/2015","12/01/2016 - 16/01/2016 ","Autre : AUTRE [CONTRAT DE CONSULTANT] "]
["Dr Aurélien Marabelle, IGR","Médecin ","MSD France","14/12/2015","19/01/2016 - 15/07/2016 ","Autre : EXPERT "]
["Dr Aurélien Marabelle, IGR","Médecin ","AMGEN SAS","18/12/2015","15/01/2016 - 15/01/2016 ","Autre : AUTRE [CONVENTION D HOSPITALITE] "]
["Dr Aurélien Marabelle, IGR","Médecin ","BRISTOL-MYERS SQUIBB","18/12/2015","07/01/2015 - ","Autre : Autre : [Orateur] "]
["Dr Aurélien Marabelle, IGR","Médecin ","ROCHE MAROC","08/01/2016","30/06/2016 - ","Autre : Crossborder "]
["Dr Aurélien Marabelle, IGR","Médecin ","LABORATOIRE GLAXOSMITHKLINE","11/01/2016","12/01/2016 - 12/01/2016 ","Autre : Autre : [Collaboration Scientifique] "]
["Dr Aurélien Marabelle, IGR","Médecin ","ROCHE ETATS-UNIS","21/01/2016","30/06/2016 - ","Autre : Crossborder "]
["Dr Aurélien Marabelle, IGR","Médecin ","Covance Clinical And Periapproval Services SARL","25/01/2016","01/02/2016 - 30/06/2019 ","Recherche scientifique "]
["Dr Aurélien Marabelle, IGR","Médecin ","ROCHE SUISSE","28/01/2016","01/01/2016 - ","Autre : Crossborder "]
["Dr Aurélien Marabelle, IGR","Médecin ","BRISTOL-MYERS SQUIBB","08/03/2016","19/03/2016 - ","Autre : Autre : [Orateur] "]
["Dr Aurélien Marabelle, IGR","Médecin ","ROCHE ALLEMAGNE","23/03/2016","30/06/2016 - ","Autre : Crossborder "]
["Dr Aurélien Marabelle, IGR","Médecin ","ROCHE SAS","16/04/2016","16/04/2016 - 20/04/2016 ","Autre : Congres / Symposium ",null,"NEW ORLEANS"]
["Dr Aurélien Marabelle, IGR","Médecin ","AMGEN SAS","25/04/2016","02/07/2016 - 02/07/2016 ","Autre : AUTRE [CONVENTION D EXPERT] ",null,"MUNICH"]
["Dr Aurélien Marabelle, IGR","Médecin ","BRISTOL-MYERS SQUIBB","25/04/2016","20/05/2016 - ","Autre : Consultant (HCP) "]
["Dr Aurélien Marabelle, IGR","Médecin ","BRISTOL-MYERS SQUIBB","26/04/2016","26/04/2016 - ","Autre : Autre : [Orateur] "]
["Dr Aurélien Marabelle, IGR","Médecin ","ICON CLINICAL RESEARCH SARL","02/05/2016","02/05/2016 - ","Autre : Recherche Biomédicale "]
["Dr Aurélien Marabelle, IGR","Médecin ","LABORATOIRE GLAXOSMITHKLINE","18/05/2016","06/06/2016 - 06/06/2016 ","Autre : Autre : [Collaboration Scientifique] "]
["Dr Aurélien Marabelle, IGR","Médecin ","ICON CLINICAL RESEARCH SARL","19/05/2016","19/05/2016 - ","Autre : Recherche biomédicale"]
["Dr Aurélien Marabelle, IGR","Médecin ","PPD FRANCE SAS","07/07/2016","07/07/2016 - 06/07/2021 ","Recherche scientifique "]
["Dr Aurélien Marabelle, IGR","Médecin ","ROCHE SAS","11/07/2016","04/07/2016 - 31/12/2016 ","Autre : Autre : [ Expert ] "]
["Dr Aurélien Marabelle, IGR","Médecin ","MSD France","19/07/2016","24/08/2016 - 23/02/2017 ","Autre : EXPERT "]
["Dr Aurélien Marabelle, IGR","Médecin ","EISAI SAS","20/07/2016","12/07/2016 - 31/08/2017 ","Contrat d'intervenant à une manifestation / orateur ",1400]
["Dr Aurélien Marabelle, IGR","Médecin ","BRISTOL-MYERS SQUIBB","09/08/2016","09/08/2016 - ","Autre : Consultant (HCP) "]
["Dr Aurélien Marabelle, IGR","Médecin ","MSD France","18/08/2016","24/08/2016 - 23/02/2017 ","Autre : EXPERT "]
["Dr Aurélien Marabelle, IGR","Médecin ","AMGEN SAS","28/09/2016","25/09/2016 - 29/09/2016 ","Autre : AUTRE [CONTRAT DE CONSULTANT] "]
["Dr Aurélien Marabelle, IGR","Médecin ","AMGEN SAS","06/10/2016","08/11/2016 - 09/11/2016 ","Autre : AUTRE [CONTRAT D ORATEUR] ",null,"OXON ILL, MARYLAND"]
["Dr Aurélien Marabelle, IGR","Médecin ","PIERRE FABRE MEDICAMENT","08/10/2016","08/10/2016 - ","Contrat d'expert scientifique, contrat dans le cadre d'une recherche, contrat de consultant "]
["Dr Aurélien Marabelle, IGR","Médecin ","ROCHE DANEMARK","09/10/2016","01/07/2016 - ","Autre : Crossborder "]
["Dr Aurélien Marabelle, IGR","Médecin ","ROCHE DANEMARK","09/10/2016","01/07/2016 - ","Autre : Crossborder "]
["Dr Aurélien Marabelle, IGR","Médecin ","BRISTOL-MYERS SQUIBB","12/10/2016","08/10/2016 - 31/03/2017 ","Contrat d'expert scientifique, contrat dans le cadre d'une recherche, contrat de consultant ",2000]
["Dr Aurélien Marabelle, IGR","Médecin ","BRISTOL-MYERS SQUIBB","14/10/2016","24/11/2016 - ","Autre : Consultant (HCP) "]
["Dr Aurélien Marabelle, IGR","Médecin ","AMGEN SAS","18/10/2016","08/01/2017 - 13/01/2017 ","Autre : AUTRE [CONTRAT DE CONSULTANT] "]
["Dr Aurélien Marabelle, IGR","Médecin ","ASTRAZENECA","25/10/2016","02/12/2016 - ","Formation "]
["Dr Aurélien Marabelle, IGR","Médecin ","MSD France","31/10/2016","18/11/2016 - 19/11/2016 ","Autre : EXPERT "]
["Dr Aurélien Marabelle, IGR","Médecin ","GILEAD SCIENCES","08/12/2016","08/12/2016 - ","Autre : Reunion Medicale "]
["Dr Aurélien Marabelle, IGR","Médecin ","LABORATOIRE GLAXOSMITHKLINE","22/12/2016","22/12/2016 - 22/12/2016 ","Autre : Autre : [Collaboration Scientifique] "]
["Dr Aurélien Marabelle, IGR","Médecin ","ICON CLINICAL RESEARCH SARL","26/12/2016","26/12/2016 - ","Autre : Recherche biomédicale "]
["Dr Aurélien Marabelle, IGR","Médecin ","AMGEN SAS","12/01/2017","12/01/2017 - 12/01/2017 ","Hospitalité"]
["Dr Aurélien Marabelle, IGR","Médecin ","BRISTOL-MYERS SQUIBB","17/01/2017","02/02/2017 - ","Autre : Autre : [Consultant (HCP)] "]
["Dr Aurélien Marabelle, IGR","Médecin ","MERCK SERONO","25/01/2017","25/01/2017 - ","Contrat d'intervenant à une manifestation / orateur ",1355]
["Dr Aurélien Marabelle, IGR","Médecin ","MSD France","02/03/2017","07/03/2017 - 07/03/2017 ","Contrat d'expert scientifique, contrat dans le cadre d'une recherche, contrat de consultant ",2500]
["Dr Aurélien Marabelle, IGR","Médecin ","ROCHE SAS","07/03/2017","01/02/2017 - 31/12/2017 ","Contrat d'expert scientifique, contrat dans le cadre d'une recherche, contrat de consultant "]
["Dr Aurélien Marabelle, IGR","Médecin ","ASTRAZENECA","30/03/2017","20/04/2017 - ","Contrat d'intervenant à une manifestation / orateur ",1500]
["Dr Aurélien Marabelle, IGR","Médecin ","ASTRAZENECA","01/04/2017","01/04/2017 - ","Hospitalité ",5742]
["Dr Aurélien Marabelle, IGR","Médecin ","AMGEN SAS","06/04/2017","22/06/2017 - 23/06/2017 ","Contrat d'intervenant à une manifestation / orateur ",null,"ZURRICH"]
["Dr Aurélien Marabelle, IGR","Médecin ","ASTRAZENECA","19/04/2017","19/04/2017 - ","Hospitalité ",25]
["Dr Aurélien Marabelle, IGR","Médecin ","ROCHE SAS","10/05/2017","05/06/2017 - 30/04/2018 ","Contrat d'expert scientifique, contrat dans le cadre d'une recherche, contrat de consultant "]
["Dr Aurélien Marabelle, IGR","Médecin ","BRISTOL-MYERS SQUIBB","13/05/2017","23/05/2017 - ","Contrat d'intervenant à une manifestation / orateur ",1000]
["Dr Aurélien Marabelle, IGR","Médecin ","ASTRAZENECA","22/05/2017","27/04/2017 - ","Contrat d'intervenant à une manifestation / orateur ",1200]
["Dr Aurélien Marabelle, IGR","Médecin ","ASTRAZENECA","23/05/2017","07/04/2017 - ","Contrat d'intervenant à une manifestation / orateur ",1400]
["Dr Aurélien Marabelle, IGR","Médecin ","ROCHE SAS","02/06/2017","02/06/2017 - 06/06/2017 ","Hospitalité "]
["Dr Aurélien Marabelle, IGR","Médecin ","ASTRAZENECA","05/07/2017","04/07/2017 - ","Contrat d'expert scientifique, contrat dans le cadre d'une recherche, contrat de consultant ",1400]
["Dr Aurélien Marabelle, IGR","Médecin ","PFIZER SAS","19/07/2017","19/07/2017 - 19/05/2017 ","Autre : Congrès/Symposium "]
["Dr Aurélien Marabelle, IGR","Médecin ","MSD France","25/07/2017","05/09/2017 - 05/09/2017 ","Contrat d'expert scientifique, contrat dans le cadre d'une recherche, contrat de consultant ",1500]
["Dr Aurélien Marabelle, IGR","Médecin ","BRISTOL-MYERS SQUIBB","08/08/2017","08/08/2017 - 31/12/2017 ","Contrat d'expert scientifique, contrat dans le cadre d'une recherche, contrat de consultant ",1210]
["Dr Aurélien Marabelle, IGR","Médecin ","MSD France","01/09/2017","06/10/2017 - 07/10/2017 ","Contrat d'expert scientifique, contrat dans le cadre d'une recherche, contrat de consultant ",1375]
["Dr Aurélien Marabelle, IGR","Médecin ","ASTRAZENECA","06/09/2017","11/09/2017 - ","Contrat d'expert scientifique, contrat dans le cadre d'une recherche, contrat de consultant ",1500]
["Dr Aurélien Marabelle, IGR","Médecin ","PFIZER SAS","24/10/2017","24/10/2017 - 24/10/2017 ","Hospitalité"]
["Dr Aurélien Marabelle, IGR","Médecin ","ASTRAZENECA","20/11/2017","01/12/2017 - ","Contrat d'intervenant à une manifestation / orateur ",800]
["Dr Aurélien Marabelle, IGR","Médecin ","ASTRAZENECA","19/12/2017","07/12/2017 - ","Contrat d'intervenant à une manifestation / orateur ",700]
["Dr Eric Angevin, IGR","Médecin ","ROCHE SAS","18/01/2013","18/01/2013 - 18/01/2013 ","Autre : Autre : [ Reunion professionnelle ] "]
["Dr Eric Angevin, IGR","Médecin ","MSD France","31/05/2013","31/05/2013 - 31/05/2013 ","Autre : EXPERT ",null,"CHICAGO (?)"]
["Dr Eric Angevin, IGR","Médecin ","LABORATOIRE GLAXOSMITHKLINE","09/09/2013","27/09/2013 - 01/10/2013 ","Autre : [AUTRE] : [CONTRAT DE COLLABORATION] ",null,"AMSDERDAM"]
["Dr Eric Angevin, IGR","Médecin ","LABORATOIRE GLAXOSMITHKLINE","09/09/2013","27/09/2013 - 01/10/2013 ","Autre : AUTRE : [CONVENTION HOSPITALITE] "]
["Dr Eric Angevin, IGR","Médecin ","ROCHE SAS","25/02/2014","25/02/2014 - 26/02/2014 ","Recherche scientifique ",null,"AMSDERDAM"]
["Dr Eric Angevin, IGR","Médecin ","ROCHE SAS","05/04/2014","05/04/2014 - 09/04/2014 ","Autre : Congres / Symposium ",null,"SAN DIEGO"]
["Dr Eric Angevin, IGR","Médecin ","SANOFI-AVENTIS RECHERCHE & DEVELOPPEMENT","30/05/2014","30/05/2014 - 03/06/2014 ","Inscription congrès ",null,"CHICAGO"]
["Dr Eric Angevin, IGR","Médecin ","MSD France","16/04/2015","20/05/2015 - 19/05/2016 ","Autre : EXPERT ",null,"CHICAGO"]
["Dr Eric Angevin, IGR","Médecin ","LABORATOIRE GLAXOSMITHKLINE","29/05/2015","29/05/2015 - 02/06/2015 ","Autre : Congrès / Symposium "]
["Dr Eric Angevin, IGR","Médecin ","MSD France","13/10/2015","13/10/2015 - 13/10/2015 ","Autre : CONVENTION D’HOSPITALITÉ "]
["Dr Eric Angevin, IGR","Médecin ","LABORATOIRE GLAXOSMITHKLINE","26/11/2015","11/12/2015 - 31/12/2016 ","Autre : Autre : [Collaboration Scientifique] "]
["Dr Eric Angevin, IGR","Médecin ","MSD France","11/04/2016","11/04/2016 - ","Autre : CONFÉRENCE PRESSE "]
["Dr Eric Angevin, IGR","Médecin ","AbbVie","02/06/2016","02/06/2016 - ","Autre : CONVENTION D HOSPITALITE "]
["Dr Eric Angevin, IGR","Médecin ","AbbVie","03/06/2016","03/06/2016 - ","Autre : CONVENTION D HOSPITALITE "]
["Dr Eric Angevin, IGR","Médecin ","AbbVie","03/06/2016","03/06/2016 - ","Autre : CONVENTION D HOSPITALITE "]
["Dr Eric Angevin, IGR","Médecin ","AbbVie","04/06/2016","04/06/2016 - ","Autre : CONVENTION D HOSPITALITE "]
["Dr Eric Angevin, IGR","Médecin ","AbbVie","04/06/2016","04/06/2016 - ","Autre : CONVENTION D HOSPITALITE "]
["Dr Eric Angevin, IGR","Médecin ","AbbVie","05/06/2016","05/06/2016 - ","Autre : CONVENTION D HOSPITALITE "]
["Dr Eric Angevin, IGR","Médecin ","AbbVie","06/06/2016","06/06/2016 - ","Autre : CONVENTION D HOSPITALITE "]
["Dr Eric Angevin, IGR","Médecin ","AbbVie","06/06/2016","06/06/2016 - ","Autre : CONVENTION D HOSPITALITE"]
["Dr Eric Angevin, IGR","Médecin ","AbbVie","22/11/2016","22/11/2016 - ","Autre : CONTRAT DE COLLABORATION SCIENTIFIQUE "]
["Dr Eric Angevin, IGR","Médecin ","Inventivhealthclinical","07/12/2016","07/12/2016 - ","Recherche scientifique "]
["Dr Eric Angevin, IGR","Médecin ","ASTRAZENECA","19/04/2017","19/04/2017 - ","Hospitalité ",25]
["Dr Eric Angevin, IGR","Médecin ","LABORATOIRE GLAXOSMITHKLINE","08/09/2017","08/09/2017 - 08/09/2017 ","Hospitalité ",null,"MADRID"]
["Dr Eric Angevin, IGR","Médecin ","CELGENE SAS","12/09/2017","21/09/2017 - 21/09/2017 ","Contrat d'expert scientifique, contrat dans le cadre d'une recherche, contrat de consultant"]
["Pr Jean-Yves Scoazec, IGR","Médecin ","ROCHE SAS","23/01/2013","23/01/2013 - ","Autre : Expert "]
["Pr Jean-Yves Scoazec, IGR","Médecin ","DDB Health Paris","20/05/2013","20/05/2013 - 20/05/2013 ","Autre : Collaboration Scientifique - Conseil "]
["Pr Jean-Yves Scoazec, IGR","Médecin ","ROCHE SAS","07/06/2013","07/06/2013 - 09/06/2013 ","Autre : Autre : [ Manifestation professionnelle ] "]
["Pr Jean-Yves Scoazec, IGR","Médecin ","IPSEN PHARMA","02/12/2013","02/12/2013 - 02/12/2013 ","Autre : CONVENTION HOSPITALITE "]
["Pr Jean-Yves Scoazec, IGR","Médecin ","IPSEN PHARMA","10/04/2014","10/04/2014 - 11/04/2014 ","Autre : CONVENTION D'HOSPITALITE "]
["Pr Jean-Yves Scoazec, IGR","Médecin ","NOVARTIS PHARMA SAS","13/06/2014","13/06/2014 - 13/06/2014 ","Autre : Autre : [Orateur] "]
["Pr Jean-Yves Scoazec, IGR","Médecin ","NOVARTIS PHARMA SAS","19/08/2014","19/08/2014 - 17/09/2014 ","Autre : Autre : [Contrat de conseil & prestation] "]
["Pr Jean-Yves Scoazec, IGR","Médecin ","NOVARTIS PHARMA SAS","19/09/2014","19/09/2014 - 19/09/2014 ","Autre : Autre : [Orateur] "]
["Pr Jean-Yves Scoazec, IGR","Médecin ","NOVARTIS PHARMA SAS","22/01/2015","22/01/2015 - 23/01/2015 ","Autre : Autre : [Orateur] "]
["Pr Jean-Yves Scoazec, IGR","Médecin ","PFIZER SAS","10/04/2015","11/05/2015 - 10/08/2015 ","Autre : Autre : [Contrat autre] "]
["Pr Jean-Yves Scoazec, IGR","Médecin ","ROCHE SAS","24/06/2016","24/06/2016 - 25/06/2016 ","Autre : Autre : [ Reunion professionnelle ] ",null,"NANTES"]
["Pr Jean-Yves Scoazec, IGR","Médecin ","ROCHE SAS","25/06/2016","25/06/2016 - 25/06/2016 ","Autre : Autre : [ Orateur / Intervenant ] ",null,"NANTES"]
["Pr Jean-Yves Scoazec, IGR","Médecin ","KEOCYT","02/12/2016","02/12/2016 - 02/12/2016 ","Autre : CONGRES/SYMPOSIUM "]
["Pr Jean-Yves Scoazec, IGR","Médecin ","NOVARTIS PHARMA SAS","16/01/2017","16/01/2017 - 16/01/2017 ","Contrat d'intervenant à une manifestation / orateur ",696]
["Pr Jean-Yves Scoazec, IGR","Médecin ","NOVARTIS PHARMA SAS","02/05/2017","02/05/2017 - 30/09/2017 ","Contrat d'expert scientifique, contrat dans le cadre d'une recherche, contrat de consultant ",444]
["Pr Jean-Yves Scoazec, IGR","Médecin ","NOVARTIS PHARMA SAS","23/11/2017","23/11/2017 - 23/11/2017 ","Contrat d'expert scientifique, contrat dans le cadre d'une recherche, contrat de consultant",592]
["Dr Etienne Rouleau, IGR","Médecin ","ROCHE SAS","03/05/2013","03/05/2013 - 04/05/2013 ","Autre : Autre : [ Reunion professionnelle ] "]
["Dr Etienne Rouleau, IGR","Pharmacien ","ASTRAZENECA","19/08/2013","01/10/2013 - ","Formation "]
["Dr Etienne Rouleau, IGR","Pharmacien ","ASTRAZENECA","04/09/2013","04/09/2013 - ","Formation "]
["Dr Etienne Rouleau, IGR","Pharmacien ","ASTRAZENECA","27/09/2013","27/09/2013 - ","Autre : Congrès/Symposium "]
["Dr Etienne Rouleau, IGR","Pharmacien ","LABORATOIRE GLAXOSMITHKLINE","26/11/2013","26/11/2013 - ","Autre : Autre :[Collaboration Scientifique] "]
["Dr Etienne Rouleau, IGR","Pharmacien ","ASTRAZENECA","21/03/2014","21/03/2014 - ","Autre : Congrès / Symposium "]
["Dr Etienne Rouleau, IGR","Médecin ","AMGEN SAS","03/04/2014","29/04/2014 - 29/04/2014 ","Autre : AUTRE [CONVENTION D EXPERT] "]
["Dr Etienne Rouleau, IGR","Pharmacien ","ASTRAZENECA","13/05/2014","13/05/2014 - ","Autre : Congrès/Symposium "]
["Dr Etienne Rouleau, IGR","Pharmacien ","ASTRAZENECA","22/08/2014","28/08/2014 - ","Formation "]
["Dr Etienne Rouleau, IGR","Pharmacien ","ASTRAZENECA","26/09/2014","26/09/2014 - ","Autre : congrés/symposium "]
["Dr Etienne Rouleau, IGR","Pharmacien ","ASTRAZENECA","04/12/2014","04/12/2014 - ","Formation "]
["Dr Etienne Rouleau, IGR","Médecin ","ASTRAZENECA","23/02/2015","23/02/2015 - ","Autre : Conseil "]
["Dr Etienne Rouleau, IGR","Pharmacien ","ASTRAZENECA","31/08/2015","18/09/2015 - ","Formation "]
["Dr Etienne Rouleau, IGR","Pharmacien ","ASTRAZENECA","18/09/2015","18/09/2015 - ","Autre : congrès/symposium "]
["Dr Etienne Rouleau, IGR","Pharmacien ","ASTRAZENECA","02/11/2015","05/11/2015 - ","Formation "]
["Dr Etienne Rouleau, IGR","Pharmacien ","ASTRAZENECA","03/12/2015","03/12/2015 - ","Formation "]
["Dr Etienne Rouleau, IGR","Médecin ","ROCHE SAS","08/01/2016","08/01/2016 - 08/01/2016 ","Autre : Autre : [ Reunion professionnelle ] "]
["Dr Etienne Rouleau, IGR","Pharmacien ","ASTRAZENECA","24/03/2016","24/03/2016 - ","Formation "]
["Dr Etienne Rouleau, IGR","Pharmacien ","ASTRAZENECA","12/05/2016","12/05/2016 - ","Autre : congrès/symposium "]
["Dr Etienne Rouleau, IGR","Pharmacien ","ASTRAZENECA","20/05/2016","20/05/2016 - ","Autre : congrès/symposium"]
["Dr Etienne Rouleau, IGR","Pharmacien ","ASTRAZENECA","01/07/2016","01/07/2016 - ","Autre : congrès/symposium3 "]
["Dr Etienne Rouleau, IGR","Pharmacien ","ASTRAZENECA","06/09/2016","06/09/2016 - ","Formation "]
["Dr Etienne Rouleau, IGR","Médecin ","Kantar Health","27/10/2016","15/08/2016 - 15/08/2016 ","Autre : [MARKETING] "]
["Dr Etienne Rouleau, IGR","Pharmacien ","ASTRAZENECA","03/11/2016","03/11/2016 - ","Formation "]
["Dr Etienne Rouleau, IGR","Médecin ","ASTRAZENECA","08/11/2016","18/11/2016 - ","Autre : Conseil "]
["Dr Etienne Rouleau, IGR","Médecin ","ASTRAZENECA","25/11/2016","25/11/2016 - ","Hospitalité ",558]
["Dr Etienne Rouleau, IGR","Pharmacien ","ASTRAZENECA","23/01/2017","23/01/2017 - ","Contrat d'intervenant à une manifestation / orateur ",557]
["Dr Etienne Rouleau, IGR","Pharmacien ","ASTRAZENECA","30/03/2017","30/03/2017 - ","Contrat d'intervenant à une manifestation / orateur ",440]
["Dr Etienne Rouleau, IGR","Pharmacien ","ASTRAZENECA","26/04/2017","26/04/2017 - ","Contrat d'intervenant à une manifestation / orateur ",674]
["Dr Etienne Rouleau, IGR","Pharmacien ","ROCHE SAS","09/05/2017","09/05/2017 - 09/05/2017 ","Hospitalité "]
["Dr Etienne Rouleau, IGR","Pharmacien ","ROCHE SAS","15/05/2017","15/05/2017 - 31/12/2017 ","Contrat d'expert scientifique, contrat dans le cadre d'une recherche, contrat de consultant "]
["Dr Etienne Rouleau, IGR","Pharmacien ","ASTRAZENECA","15/06/2017","15/06/2017 - ","Hospitalité ",160]
["Dr Etienne Rouleau, IGR","Pharmacien ","ASTRAZENECA","02/10/2017","02/10/2017 - ","Contrat d'intervenant à une manifestation / orateur ",440]
["Dr Etienne Rouleau, IGR","Pharmacien ","ASTRAZENECA","14/11/2017","14/11/2017 - ","Contrat d'intervenant à une manifestation / orateur ",857]
["Dr Etienne Rouleau, IGR","Pharmacien ","ROCHE SAS","23/11/2017","23/11/2017 - 23/11/2017 ","Hospitalité "]
["Dr Etienne Rouleau, IGR","Médecin ","BRISTOL-MYERS SQUIBB COMPANY","30/11/2017","08/12/2017 - 31/12/2017 ","Contrat d'expert scientifique, contrat dans le cadre d'une recherche, contrat de consultant ",1800]
["Dr Dominique Goeury, FHF","Pharmacien ","Genzyme","10/01/2013","09/01/2013 - 31/12/2013 ","Contrat d'expert scientifique, contrat dans le cadre d'une recherche, contrat de consultant "]
["Dr Dominique Goeury, FHF","Pharmacien ","AbbVie","20/11/2014","20/11/2014 - ","Autre : AUTRE : [CONVENTION D HOSPITALITE] "]
["Dr Françoise Durandière, FEHAP","Médecin ","SANOFI AVENTIS FRANCE","22/01/2014","22/01/2014 - 22/01/2014 ","Hospitalité "]
["Dr Françoise Durandière, FEHAP","Médecin ","SANOFI AVENTIS FRANCE","26/06/2014","26/06/2014 - 26/06/2014 ","Hospitalité "]
["Pr. Pierre Fumoleau, Institut Curie","Médecin ","ROCHE SAS","16/01/2013","16/01/2013 - 19/01/2013 ","Autre : Congres / Symposium ",null,"NICE"]
["Pr. Pierre Fumoleau, Institut Curie","Médecin ","ROCHE SAS","16/01/2013","16/01/2013 - 20/01/2013 ","Autre : Congrès / Symposium "]
["Pr. Pierre Fumoleau, Institut Curie","Médecin ","AMGEN SAS","08/02/2013","08/02/2013 - 09/02/2013 ","Autre : CONGRES/SYMPOSIUM ",null,"PARIS"]
["Pr. Pierre Fumoleau, Institut Curie","Médecin ","ROCHE SAS","05/04/2013","05/04/2013 - 10/04/2013 ","Autre : Congrès / Symposium ",null,"WASHINGTON"]
["Pr. Pierre Fumoleau, Institut Curie","Médecin ","ROCHE SAS","06/04/2013","06/04/2013 - 10/04/2013 ","Autre : Congres / Symposium ",null,"WASHINGTON"]
["Pr. Pierre Fumoleau, Institut Curie","Médecin ","ROCHE SAS","24/04/2013","21/06/2013 - 21/06/2013 ","Autre : Autre : [ Orateur / Intervenant ] "]
["Pr. Pierre Fumoleau, Institut Curie","Médecin ","ROCHE SAS","03/05/2013","03/05/2013 - 04/05/2013 ","Autre : Autre : [ Reunion professionnelle ] "]
["Pr. Pierre Fumoleau, Institut Curie","Médecin ","ROCHE SAS","14/06/2013","14/06/2013 - 16/06/2013 ","Autre : Autre : [ Reunion professionnelle ] "]
["Pr. Pierre Fumoleau, Institut Curie","Médecin ","ROCHE SAS","19/06/2013","19/06/2013 - 19/06/2013 ","Autre : Autre : [ Reunion professionnelle ] "]
["Pr. Pierre Fumoleau, Institut Curie","Médecin ","SANOFI AVENTIS FRANCE","29/06/2013","29/06/2013 - 30/06/2013 ","Hospitalité "]
["Pr. Pierre Fumoleau, Institut Curie","Médecin ","AMGEN SAS","10/07/2013","10/12/2013 - 14/12/2013 ","Autre : AUTRE [CONVENTION D HOSPITALITE] ",null,"SAN ANTONIO"]
["Pr. Pierre Fumoleau, Institut Curie","Médecin ","SANOFI AVENTIS FRANCE","27/09/2013","27/09/2013 - 30/09/2013 ","Autre : Conseil et Communication Médico-Scientifique "]
["Pr. Pierre Fumoleau, Institut Curie","Médecin ","SANOFI AVENTIS FRANCE","27/09/2013","27/09/2013 - 01/10/2013 ","Autre : Convention d'Hospitalité ",null,"AMSTERDAM"]
["Pr. Pierre Fumoleau, Institut Curie","Médecin ","ROCHE SAS","07/02/2014","07/02/2014 - 07/02/2014 ","Autre : Autre : [ Reunion professionnelle ] ",null,"BARCELONE"]
["Pr. Pierre Fumoleau, Institut Curie","Médecin ","ROCHE SAS","12/02/2014","12/02/2014 - 13/02/2014 ","Autre : Autre : [ Manifestation professionnelle ] ",null,"PARIS"]
["Pr. Pierre Fumoleau, Institut Curie","Médecin ","ROCHE SAS","19/03/2014","19/03/2014 - 21/03/2014 ","Autre : Congrès / Symposium ",null,"GLASGOW"]
["Pr. Pierre Fumoleau, Institut Curie","Médecin ","ROCHE SAS","11/04/2014","11/04/2014 - 12/04/2014 ","Autre : Congres / Symposium ",null,"PARIS"]
["Pr. Pierre Fumoleau, Institut Curie","Médecin ","PIERRE FABRE MEDICAMENT","22/04/2014","22/04/2014 - ","Autre : CONVENTION D'HOSPITALITE "]
["Pr. Pierre Fumoleau, Institut Curie","Médecin ","Lilly France SAS","20/05/2014","20/05/2014 - 20/05/2014 ","Autre : AUTRE : [PARTICIPATION R�ION SCIENTIFIQUE] ",null,"PARIS"]
["Pr. Pierre Fumoleau, Institut Curie","Médecin ","SANOFI AVENTIS FRANCE","30/05/2014","30/05/2014 - 03/06/2014 ","Autre : Congrès / Symposium",null,"CHICAGO"]
["Pr. Pierre Fumoleau, Institut Curie","Médecin ","ROCHE SAS","12/06/2014","12/06/2014 - 12/06/2014 ","Autre : Autre : [ Manifestation professionnelle ] ",null,"BALE"]
["Pr. Pierre Fumoleau, Institut Curie","Médecin ","ICON CLINICAL RESEARCH SARL","30/06/2014","30/06/2014 - ","Autre : recherche biomédicale "]
["Pr. Pierre Fumoleau, Institut Curie","Médecin ","AMGEN SAS","07/07/2014","09/12/2014 - 13/12/2014 ","Autre : AUTRE [CONVENTION D HOSPITALITE] ",null,"SAN ANTONIO"]
["Pr. Pierre Fumoleau, Institut Curie","Médecin ","ROCHE SAS","09/09/2014","01/09/2014 - 13/09/2014 ","Autre : Autre : [ Expert ] ",null,"PARIS"]
["Pr. Pierre Fumoleau, Institut Curie","Médecin ","ROCHE SAS","12/09/2014","12/09/2014 - 13/09/2014 ","Autre : Congrès / Symposium ",null,"PARIS"]
["Pr. Pierre Fumoleau, Institut Curie","Médecin ","AMGEN SAS","11/12/2014","06/02/2015 - 07/02/2015 ","Autre : AUTRE [CONVENTION D HOSPITALITE] ",null,"PARIS"]
["Pr. Pierre Fumoleau, Institut Curie","Médecin ","AMGEN SAS","19/12/2014","20/01/2015 - 08/02/2015 ","Autre : AUTRE [CONVENTION D EXPERT] "]
["Pr. Pierre Fumoleau, Institut Curie","Médecin ","EISAI SAS","23/12/2014","17/09/2014 - 17/09/2014 ","Autre : Conseil : Invitation Board ",null,"PARIS"]
["Pr. Pierre Fumoleau, Institut Curie","Médecin ","LABORATOIRE GLAXOSMITHKLINE","21/01/2015","21/01/2015 - 24/01/2015 ","Autre : Congrès / Symposium ",null,"NICE"]
["Pr. Pierre Fumoleau, Institut Curie","Médecin ","MSD France","30/01/2015","30/01/2015 - ","Autre : CONVENTION D’HOSPITALITÉ ",null,"PARIS"]
["Pr. Pierre Fumoleau, Institut Curie","Médecin ","ROCHE SAS","06/05/2015","06/05/2015 - 06/05/2015 ","Autre : Autre : [ Reunion professionnelle ] ",null,"PARIS"]
["Pr. Pierre Fumoleau, Institut Curie","Médecin ","ROCHE SAS","18/06/2015","18/06/2015 - 18/06/2015 ","Autre : Autre : [ Reunion professionnelle ] ",null,"DOLE"]
["Pr. Pierre Fumoleau, Institut Curie","Médecin ","ROCHE SAS","10/09/2015","10/09/2015 - 10/09/2015 ","Autre : Autre : [ Manifestation professionnelle ] ",null,"PARIS"]
["Pr. Pierre Fumoleau, Institut Curie","Médecin ","MSD France","13/10/2015","13/10/2015 - ","Autre : CONVENTION D’HOSPITALITÉ ",null,"PARIS"]
["Pr. Pierre Fumoleau, Institut Curie","Médecin ","AMGEN SAS","19/11/2015","29/01/2016 - 30/01/2016 ","Autre : AUTRE [CONVENTION D HOSPITALITE] ",null,"PARIS"]
["Pr. Pierre Fumoleau, Institut Curie","Médecin ","PFIZER SAS","08/12/2015","08/12/2015 - 12/12/2015 ","Autre : Congrès / Symposium ",null,"SAN ANTONIO"]
["Pr. Pierre Fumoleau, Institut Curie","Médecin ","NOVARTIS PHARMA SAS","11/03/2016","11/03/2016 - 11/03/2016 ","Autre : AUTRE : [HOSPITALITE EVENEMENT] ",null,"PARIS"]
["Pr. Pierre Fumoleau, Institut Curie","Médecin ","ROCHE SAS","01/04/2016","01/04/2016 - 02/04/2016 ","Autre : Autre : [ Reunion professionnelle ] ",null,"PARIS"]
["Pr. Pierre Fumoleau, Institut Curie","Médecin ","Lilly France SAS","01/04/2016","19/04/2016 - 19/04/2018 ","Contrat d'expert scientifique, contrat dans le cadre d'une recherche, contrat de consultant ",15638]
["Pr. Pierre Fumoleau, Institut Curie","Médecin ","ROCHE SAS","03/06/2016","03/06/2016 - 07/06/2016 ","Autre : Congres / Symposium",null,"CHICAGO"]
["Pr. Pierre Fumoleau, Institut Curie","Médecin ","ROCHE SAS","21/06/2016","21/06/2016 - 21/06/2016 ","Autre : Autre : [ Reunion professionnelle ] ",null,"STRASBOURG"]
["Pr. Pierre Fumoleau, Institut Curie","Médecin ","ROCHE SAS","21/06/2016","21/06/2016 - 21/06/2016 ","Autre : Autre : [ Expert ] "]
["Pr. Pierre Fumoleau, Institut Curie","Médecin ","MSD France","18/10/2016","18/10/2016 - 18/10/2016 ","Autre : CONVENTION D’HOSPITALITÉ ",null,"PARIS"]
["Pr. Pierre Fumoleau, Institut Curie","Médecin ","EISAI SAS","16/11/2016","16/11/2016 - 18/11/2016 ","Autre : CONGRES / SYMPOSIUM / BOARD "]
["Pr. Pierre Fumoleau, Institut Curie","Médecin ","EISAI SAS","22/11/2016","16/11/2016 - 18/11/2016 ","Autre : CONSEIL / PRESTATION "]
["Pr. Pierre Fumoleau, Institut Curie","Médecin ","ROCHE SAS","24/01/2017","24/01/2017 - 27/01/2017 ","Hospitalité ",1630,"NICE"]
["Pr. Pierre Fumoleau, Institut Curie","Médecin ","AMGEN SAS","25/01/2017","03/02/2017 - 04/02/2017 ","Hospitalité ",null,"PARIS"]
["Pr. Pierre Fumoleau, Institut Curie","Médecin ","AMGEN SAS","15/05/2017","15/06/2017 - 18/06/2017 ","Contrat d'expert scientifique, contrat dans le cadre d'une recherche, contrat de consultant ",580,"LYON"]
["Pr. Pierre Fumoleau, Institut Curie","Médecin ","AMGEN SAS","22/05/2017","16/06/2017 - 17/06/2017 ","Hospitalité ",null,"LYON"]
["Pr. Pierre Fumoleau, Institut Curie","Médecin ","ROCHE SAS","02/06/2017","02/06/2017 - 06/06/2017 ","Hospitalité ",4840,"CHICAGO"]
["Pr. Pierre Fumoleau, Institut Curie","Médecin ","Laboratoires CYCLOPHARMA","29/06/2017","05/07/2017 - 05/07/2017 ","Hospitalité ",96]
["Pr. Pierre Fumoleau, Institut Curie","Médecin ","ROCHE SAS","05/12/2017","05/12/2017 - 09/12/2017 ","Hospitalité",20694,"SAN ANTONIO"]
["Pr Norbert Ifrah, INCa","Médecin ","ROCHE SAS","05/04/2013","05/04/2013 - 10/04/2013 ","Autre : Congrès / Symposium ",null,"WASHINGTON"]
["Pr Norbert Ifrah, INCa","Médecin ","ROCHE SAS","06/04/2013","06/04/2013 - 10/04/2013 ","Autre : Congres / Symposium ",null,"WASHINGTON"]
["Pr Norbert Ifrah, INCa","Médecin ","ROCHE SAS","18/04/2013","18/04/2013 - 19/04/2013 ","Autre : Autre : [ Reunion professionnelle ] ",null,"ANGERS"]
["Pr Norbert Ifrah, INCa","Médecin ","ROCHE SAS","01/10/2013","15/10/2013 - 15/10/2013 ","Autre : Autre : [ Réunion professionnelle ] "]
["Pr Norbert Ifrah, INCa","Médecin ","Alexion Pharma France","07/10/2013","07/10/2013 - 10/12/2013 ","Autre : CONGRES/SYMPO ",null,"NEW ORLEANS"]
["Pr Norbert Ifrah, INCa","Médecin ","LIVE ! BY GL EVENTS","12/05/2014","20/05/2014 - 20/05/2014 ","Autre : AUTRE ",null,"NANTES"]
["Pr Norbert Ifrah, INCa","Médecin ","Alexion Pharma France","12/06/2014","12/06/2014 - 15/06/2014 ","Autre : CONGRES / SYMPOSIUM ",null,"MILAN"]
["Pr Norbert Ifrah, INCa","Médecin ","CELGENE","26/06/2014","26/06/2014 - 26/06/2014 ","Formation "]
["Pr Norbert Ifrah, INCa","Médecin ","PFIZER SAS","27/11/2014","27/01/2015 - 27/01/2015 ","Autre : Autre : Contrat consultant ",null,"PARIS"]
["Pr Norbert Ifrah, INCa","Médecin ","Alexion Pharma France","05/12/2014","05/12/2014 - 09/12/2014 ","Autre : Congrès / Symposium ",null,"SAN FRANCISCO"]
["Pr Norbert Ifrah, INCa","Médecin ","NOVARTIS PHARMA SAS","15/01/2015","15/01/2015 - 15/01/2015 ","Autre : Autre : [Orateur] "]
["Pr Norbert Ifrah, INCa","Médecin ","AMGEN SAS","26/01/2015","22/02/2015 - 25/02/2015 ","Autre : AUTRE [CONVENTION D HOSPITALITE] ",null,"MUNICH"]
["Pr Norbert Ifrah, INCa","Médecin ","EUSA PHARMA SAS","30/01/2015","30/01/2015 - 31/01/2015 ","Hospitalité ",null,"PARIS"]
["Pr Norbert Ifrah, INCa","Médecin ","SANOFI AVENTIS FRANCE","30/03/2015","30/03/2015 - 31/12/2015 ","Contrat d'expert scientifique, contrat dans le cadre d'une recherche, contrat de consultant "]
["Pr Norbert Ifrah, INCa","Médecin ","MUNDIPHARMA","21/05/2015","21/05/2015 - 21/05/2015 ","Autre : AUTRE : CONVENTION D'HOSPITALITE "]
["Pr Norbert Ifrah, INCa","Médecin ","CELGENE","22/05/2015","28/05/2015 - 28/05/2015 ","Autre : CONGRES / SYMPOSIUM ",null,"ANGERS"]
["Pr Norbert Ifrah, INCa","Médecin ","PFIZER SAS","27/11/2015","27/11/2015 - 27/11/2015 ","Autre : Conseil ",null,"PARIS"]
["Pr Norbert Ifrah, INCa","Médecin ","Alexion Pharma France","04/12/2015","04/12/2015 - 08/12/2015 ","Autre : Congrès / Symposium ",null,"ORLANDO"]
["Pr Norbert Ifrah, INCa","Médecin ","ROCHE SAS","10/12/2015","10/12/2015 - 11/12/2015 ","Autre : Autre : [ Reunion professionnelle ] ",null,"PARIS"]
["Pr Norbert Ifrah, INCa","Médecin ","CELGENE","07/01/2016","01/11/2015 - 27/11/2015 ","Autre : CONSEIL"]
["Pr Norbert Ifrah, INCa","Médecin ","NOVARTIS PHARMA SAS","12/02/2016","12/02/2016 - 12/02/2016 ","Autre : AUTRE : [CONTRAT DE CONSEIL & PRESTATION] "]
["Pr Norbert Ifrah, INCa","Médecin ","BRISTOL-MYERS SQUIBB","29/02/2016","11/03/2016 - ","Autre : Autre : [Orateur] "]
["Pr Norbert Ifrah, INCa","Médecin ","LivaNova France SAS","08/11/2016","08/11/2016 - 08/11/2016 ","Hospitalité",60]
["Pr Dominique Le Guludec, HAS","Médecin ","LES LABORATOIRES SERVIER","02/07/2013","02/07/2013 - ","Autre : Autre : Manifestation scientifique "]
["Pr Dominique Le Guludec, HAS","Médecin ","Advanced Accelerator Applications","08/01/2014","15/01/2014 - ","Recherche scientifique "]
["Pr Dominique Le Guludec, HAS","Médecin ","GE Medical Systems SCS","24/02/2014","24/02/2014 - ","Autre : Hospitalité Congrès Symposium ",null,"BUC"]
["Pr Dominique Le Guludec, HAS","Médecin ","Advanced Accelerator Applications","12/05/2015","21/04/2015 - ","Evaluation produit cosmétique "]
["Pr Dominique Le Guludec, HAS","Médecin ","LES LABORATOIRES SERVIER","23/06/2015","23/06/2015 - ","Autre : Autre : Manifestation scientifique "]
["Pr Dominique Le Guludec, HAS","Médecin ","MALLINCKRODT FRANCE SARL","19/11/2016","19/11/2016 - 19/11/2016 ","Formation ",null,"DEAUVILLE"]
["Pr Dominique Le Guludec, HAS","Médecin ","PFIZER SAS","20/04/2017","20/04/2017 - 20/04/2017 ","Hospitalité ",null,"PARIS"]
["Pr Dominique Le Guludec, HAS","Médecin ","BOSTON SCIENTIFIC SAS","19/05/2017","19/05/2017 - 19/05/2017 ","Hospitalité",null,"PARIS"]
["Pr Jean-Paul Vernant, AP-HP","Médecin ","MSD France","04/04/2014","04/04/2014 - ","Autre : CONVENTION D HOSPITALITE "]
["Pr Jean-Paul Vernant, AP-HP","Médecin ","DDB Health Paris","26/11/2015","26/11/2015 - 26/11/2015 ","Inscription congrès"]
["Pr Pascal Joly, CHU Rouen","Médecin ","LABORATOIRE GLAXOSMITHKLINE","30/01/2013","30/01/2013 - ","Autre : Autre : [Collaboration Scientifique] "]
["Pr Pascal Joly, CHU Rouen","Médecin ","AbbVie","31/01/2013","31/01/2013 - ","Autre : AUTRE : [CONTRAT DE COLLABORATION SCIENTIFIQUE] "]
["Pr Pascal Joly, CHU Rouen","Médecin ","JANSSEN-CILAG","01/03/2013","01/03/2013 - 05/03/2013 ","Autre : CONGRES / SYMPOSIUM ",null,"MIAMI"]
["Pr Pascal Joly, CHU Rouen","Médecin ","JANSSEN-CILAG","17/04/2013","30/05/2013 - 30/05/2013 ","Autre : CONGRES / SYMPOSIUM ",null,"ROUEN"]
["Pr Pascal Joly, CHU Rouen","Médecin ","NOVARTIS PHARMA SAS","03/07/2013","03/07/2013 - 03/07/2013 ","Autre : Autre : [Hospitalité] "]
["Pr Pascal Joly, CHU Rouen","Médecin ","JANSSEN-CILAG","21/07/2013","16/09/2013 - 16/09/2013 ","Autre : CONSEIL "]
["Pr Pascal Joly, CHU Rouen","Médecin ","LABORATOIRE GLAXOSMITHKLINE","10/09/2013","10/09/2013 - ","Autre : Autre :[Collaboration Scientifique] "]
["Pr Pascal Joly, CHU Rouen","Médecin ","ROCHE SAS","21/09/2013","21/09/2013 - 21/12/2013 ","Autre : Autre : [ Expert ] "]
["Pr Pascal Joly, CHU Rouen","Médecin ","galderma international","10/10/2013","10/10/2013 - 11/10/2013 ","Hospitalité ",null,"PARIS"]
["Pr Pascal Joly, CHU Rouen","Médecin ","BRISTOL-MYERS SQUIBB","23/10/2013","20/09/2013 - ","Autre : Autre : [Orateur] "]
["Pr Pascal Joly, CHU Rouen","Médecin ","BRISTOL-MYERS SQUIBB","28/10/2013","20/09/2013 - ","Autre : Autre : [Orateur] "]
["Pr Pascal Joly, CHU Rouen","Médecin ","AbbVie","28/10/2013","28/10/2013 - ","Autre : AUTRE: [CONTRAT DE COLLABORATION SCIENTIFIQUE] "]
["Pr Pascal Joly, CHU Rouen","Médecin ","galderma international","13/11/2013","13/11/2013 - 17/11/2013 ","Hospitalité ",null,"ROME"]
["Pr Pascal Joly, CHU Rouen","Médecin ","MSD France","09/12/2013","09/12/2013 - ","Autre : CONVENTION D HOSPITALITE "]
["Pr Pascal Joly, CHU Rouen","Médecin ","galderma international","11/12/2013","11/12/2013 - 11/12/2013 ","Hospitalité ",null,"PARIS"]
["Pr Pascal Joly, CHU Rouen","Médecin ","NOVARTIS PHARMA SAS","17/12/2013","17/12/2013 - 17/12/2013 ","Autre : Autre : [Hospitalité] ",null,"PARIS"]
["Pr Pascal Joly, CHU Rouen","Médecin ","LABORATOIRE GLAXOSMITHKLINE","28/01/2014","28/01/2014 - ","Autre : AUTRE : [CONSULTANT] "]
["Pr Pascal Joly, CHU Rouen","Médecin ","ROCHE SAS","06/02/2014","06/02/2014 - 06/02/2014 ","Autre : Autre : [ Reunion professionnelle ] "]
["Pr Pascal Joly, CHU Rouen","Médecin ","LABORATOIRE GLAXOSMITHKLINE","14/02/2014","14/02/2014 - 14/02/2014 ","Autre : Autre : [Convention d'Hospitalité] ",null,"ROUEN"]
["Pr Pascal Joly, CHU Rouen","Médecin ","JANSSEN-CILAG","21/03/2014","21/03/2014 - 25/03/2014 ","Autre : CONGRES / SYMPOSIUM",null,"DENVER"]
["Pr Pascal Joly, CHU Rouen","Médecin ","NOVARTIS PHARMA SAS","03/04/2014","03/04/2014 - 04/04/2014 ","Autre : Autre : [Hospitalité Evenement] ",null,"BARCELONE"]
["Pr Pascal Joly, CHU Rouen","Médecin ","AbbVie","07/04/2014","07/04/2014 - ","Autre : AUTRE: [CONTRAT DE COLLABORATION SCIENTIFIQUE] "]
["Pr Pascal Joly, CHU Rouen","Médecin ","NOVARTIS PHARMA SAS","23/04/2014","23/04/2014 - 31/03/2016 ","Recherche scientifique "]
["Pr Pascal Joly, CHU Rouen","Médecin ","NOVARTIS PHARMA SAS","23/04/2014","23/04/2014 - ","Recherche scientifique "]
["Pr Pascal Joly, CHU Rouen","Médecin ","NOVARTIS PHARMA SAS","24/04/2014","24/04/2014 - 31/12/2014 ","Autre : Autre : [Contrat de conseil & prestation] "]
["Pr Pascal Joly, CHU Rouen","Médecin ","NOVARTIS PHARMA SAS","19/05/2014","19/05/2014 - 31/03/2016 ","Recherche scientifique "]
["Pr Pascal Joly, CHU Rouen","Médecin ","NOVARTIS PHARMA SAS","19/05/2014","19/05/2014 - ","Recherche scientifique "]
["Pr Pascal Joly, CHU Rouen","Médecin ","galderma international","22/05/2014","22/05/2014 - 23/05/2014 ","Formation ",null,"PARIS"]
["Pr Pascal Joly, CHU Rouen","Médecin ","ROCHE SAS","31/05/2014","24/03/2014 - 30/05/2014 ","Autre : Autre : [ Expert ] "]
["Pr Pascal Joly, CHU Rouen","Médecin ","LEO Pharma","05/06/2014","05/06/2014 - 05/06/2014 ","Formation "]
["Pr Pascal Joly, CHU Rouen","Médecin ","MSD France","16/07/2014","18/09/2014 - 18/09/2014 ","Autre : EXPERT ",null,"ROUEN"]
["Pr Pascal Joly, CHU Rouen","Médecin ","PAREXEL International","03/09/2014","10/09/2014 - ","Autre : RECHERCHE CLINIQUE "]
["Pr Pascal Joly, CHU Rouen","Médecin ","MSD France","18/09/2014","18/09/2014 - ","Autre : CONVENTION D’HOSPITALITÉ ",null,"ROUEN"]
["Pr Pascal Joly, CHU Rouen","Médecin ","NOVARTIS PHARMA SAS","24/09/2014","24/09/2014 - 24/09/2014 ","Autre : Autre : [Hospitalité Evenement] ",null,"PARIS"]
["Pr Pascal Joly, CHU Rouen","Médecin ","BRISTOL-MYERS SQUIBB","04/10/2014","04/10/2014 - ","Autre : Autre : [Orateur] "]
["Pr Pascal Joly, CHU Rouen","Médecin ","NOVARTIS PHARMA SAS","08/10/2014","08/10/2014 - 12/10/2014 ","Autre : Autre : [Hospitalité Evenement] ",null,"AMSTERDAM"]
["Pr Pascal Joly, CHU Rouen","Médecin ","AbbVie","09/12/2014","09/12/2014 - ","Autre : AUTRE: [CONVENTION HOSPITALITE] ",null,"PARIS"]
["Pr Pascal Joly, CHU Rouen","Médecin ","galderma international","10/12/2014","10/12/2014 - 10/12/2014 ","Autre : Congrès/symposium ",null,"PARIS"]
["Pr Pascal Joly, CHU Rouen","Médecin ","NOVARTIS PHARMA SAS","17/12/2014","17/12/2014 - 17/12/2014 ","Autre : Autre : [Hospitalité Evenement] ",null,"PARIS"]
["Pr Pascal Joly, CHU Rouen","Médecin ","NOVARTIS PHARMA SAS","16/01/2015","16/01/2015 - 31/12/2018 ","Recherche scientifique"]
["Pr Pascal Joly, CHU Rouen","Médecin ","NOVARTIS PHARMA SAS","16/01/2015","16/01/2015 - 31/12/2018 ","Recherche scientifique "]
["Pr Pascal Joly, CHU Rouen","Médecin ","NOVARTIS PHARMA SAS","22/01/2015","22/01/2015 - 22/01/2015 ","Autre : Autre : [Hospitalité Evenement] ",null,"PARIS"]
["Pr Pascal Joly, CHU Rouen","Médecin ","LABORATOIRE GLAXOSMITHKLINE","28/01/2015","01/03/2015 - 28/02/2016 ","Autre : Autre : [Collaboration Scientifique] "]
["Pr Pascal Joly, CHU Rouen","Médecin ","galderma international","12/03/2015","12/03/2015 - 13/03/2015 ","Formation ",null,"PARIS"]
["Pr Pascal Joly, CHU Rouen","Médecin ","PFIZER SAS","20/03/2015","20/03/2015 - 24/03/2015 ","Autre : Congres / Symposium ",null,"SAN FRANCISCO"]
["Pr Pascal Joly, CHU Rouen","Médecin ","PPD FRANCE SAS","30/03/2015","30/03/2015 - 28/03/2020 ","Recherche scientifique "]
["Pr Pascal Joly, CHU Rouen","Médecin ","BRISTOL-MYERS SQUIBB","10/04/2015","10/04/2015 - ","Autre : Autre : [Orateur] "]
["Pr Pascal Joly, CHU Rouen","Médecin ","BOEHRINGER INGELHEIM FRANCE","04/05/2015","04/05/2015 - ","Autre : RECHERCHE PRET "]
["Pr Pascal Joly, CHU Rouen","Médecin ","Covance Clinical And Periapproval Services SARL","26/05/2015","01/05/2015 - 31/07/2017 ","Recherche scientifique "]
["Pr Pascal Joly, CHU Rouen","Médecin ","AbbVie","26/05/2015","26/05/2015 - 25/06/2015 ","Autre : AUTRE : [ CONSEIL / EXPERTISE SCIENTIFIQUE ] "]
["Pr Pascal Joly, CHU Rouen","Médecin ","NOVARTIS PHARMA SAS","04/06/2015","04/06/2015 - 04/06/2015 ","Autre : Autre : [Orateur] "]
["Pr Pascal Joly, CHU Rouen","Médecin ","PFIZER SAS","05/06/2015","05/06/2015 - 05/06/2015 ","Autre : Autre : Reunion professionnelle ou scientifique ",null,"LE HAVRE"]
["Pr Pascal Joly, CHU Rouen","Médecin ","NOVARTIS PHARMA SAS","08/06/2015","08/06/2015 - 13/06/2015 ","Autre : AUTRE : [HOSPITALITÉ EVENEMENT] ",null,"VANCOUVER"]
["Pr Pascal Joly, CHU Rouen","Médecin ","Lilly France SAS","03/07/2015","03/07/2015 - 03/07/2015 ","Contrat d'expert scientifique, contrat dans le cadre d'une recherche, contrat de consultant ",1150,"PARIS"]
["Pr Pascal Joly, CHU Rouen","Médecin ","LEO Pharma","16/09/2015","16/09/2015 - 16/09/2015 ","Formation ",null,"AMIENS"]
["Pr Pascal Joly, CHU Rouen","Médecin ","PPD FRANCE SAS","17/09/2015","17/09/2015 - 15/09/2020 ","Recherche scientifique "]
["Pr Pascal Joly, CHU Rouen","Médecin ","LEO Pharma","23/09/2015","23/09/2015 - 23/09/2015 ","Formation ",null,"ROUEN"]
["Pr Pascal Joly, CHU Rouen","Médecin ","JANSSEN-CILAG","07/10/2015","07/10/2015 - 11/10/2015 ","Autre : CONGRES / SYMPOSIUM ",null,"COPENHAGUE"]
["Pr Pascal Joly, CHU Rouen","Médecin ","AbbVie","05/11/2015","05/11/2015 - 31/12/2015 ","Autre : AUTRE : [ CONSEIL / EXPERTISE SCIENTIFIQUE ] "]
["Pr Pascal Joly, CHU Rouen","Médecin ","Lilly France SAS","25/11/2015","25/11/2015 - 25/11/2015 ","Contrat d'intervenant à une manifestation / orateur ",1150,"PARIS"]
["Pr Pascal Joly, CHU Rouen","Médecin ","JANSSEN-CILAG","27/11/2015","06/11/2015 - 06/11/2015 ","Autre : CONGRES / SYMPOSIUM ",null,"ISSY-LES-MOULINEAUX"]
["Pr Pascal Joly, CHU Rouen","Médecin ","galderma international","09/12/2015","09/12/2015 - 09/12/2015 ","Autre : Autre ",null,"PARIS"]
["Pr Pascal Joly, CHU Rouen","Médecin ","ROCHE ROYAUME-UNI","01/01/2016","01/01/2016 - ","Autre : Crossborder "]
["Pr Pascal Joly, CHU Rouen","Médecin ","JANSSEN-CILAG","04/03/2016","04/03/2016 - 08/03/2016 ","Autre : CONGRES/SYMPOSIUM ",null,"WASHINGTON"]
["Pr Pascal Joly, CHU Rouen","Médecin ","ROCHE ETATS-UNIS","05/03/2016","30/06/2016 - ","Autre : Crossborder "]
["Pr Pascal Joly, CHU Rouen","Médecin ","AbbVie","24/03/2016","24/03/2016 - 24/03/2016 ","Autre : AUTRE : [ HOSPITALITE ] "]
["Pr Pascal Joly, CHU Rouen","Médecin ","ROCHE ROYAUME-UNI","01/04/2016","30/06/2016 - ","Autre : Crossborder "]
["Pr Pascal Joly, CHU Rouen","Médecin ","AbbVie","04/04/2016","04/04/2016 - ","Autre : AUTRE : [ CONSEIL / EXPERTISE SCIENTIFIQUE ] "]
["Pr Pascal Joly, CHU Rouen","Médecin ","JANSSEN-CILAG","22/04/2016","22/04/2016 - 22/04/2016 ","Autre : CONGRES/SYMPOSIUM ",null,"LE HAVRE"]
["Pr Pascal Joly, CHU Rouen","Médecin ","AbbVie","28/04/2016","28/04/2016 - 31/12/2016 ","Autre : AUTRE : [ HOSPITALITE ] "]
["Pr Pascal Joly, CHU Rouen","Médecin ","AbbVie","11/05/2016","11/05/2016 - 11/05/2016 ","Autre : AUTRE : [ HOSPITALITE ] "]
["Pr Pascal Joly, CHU Rouen","Médecin ","JANSSEN-CILAG","14/05/2016","17/06/2016 - 18/06/2016 ","Contrat d'intervenant à une manifestation / orateur ",1600,"BOUCHEVILLIERS"]
["Pr Pascal Joly, CHU Rouen","Médecin ","JANSSEN-CILAG","02/06/2016","02/06/2016 - 02/06/2016 ","Autre : CONGRES/SYMPOSIUM ",800,"ROUEN"]
["Pr Pascal Joly, CHU Rouen","Médecin ","JANSSEN-CILAG","02/06/2016","02/06/2016 - 02/06/2016 ","Autre : CONGRES / SYMPOSIUM ",null,"ROUEN"]
["Pr Pascal Joly, CHU Rouen","Médecin ","JANSSEN-CILAG","02/06/2016","02/06/2016 - 03/06/2016 ","Contrat d'intervenant à une manifestation / orateur ",null,"ROUEN"]
["Pr Pascal Joly, CHU Rouen","Médecin ","ROCHE ETATS-UNIS","06/06/2016","30/06/2016 - ","Autre : Crossborder "]
["Pr Pascal Joly, CHU Rouen","Médecin ","LEO Pharma","16/06/2016","16/06/2016 - 16/06/2016 ","Formation ",null,"ROUEN"]
["Pr Pascal Joly, CHU Rouen","Médecin ","AbbVie","16/06/2016","16/06/2016 - ","Autre : CONTRAT DE COLLABORATION SCIENTIFIQUE "]
["Pr Pascal Joly, CHU Rouen","Médecin ","JANSSEN-CILAG","17/06/2016","17/06/2016 - 18/06/2016 ","Autre : CONGRES/SYMPOSIUM ",null,"BOUCHEVILLIERS"]
["Pr Pascal Joly, CHU Rouen","Médecin ","JANSSEN-CILAG","17/06/2016","17/06/2016 - 17/06/2016 ","Autre : CONGRES/SYMPOSIUM",null,"BOUCHEVILLIERS"]
["Pr Pascal Joly, CHU Rouen","Médecin ","JANSSEN-CILAG","17/06/2016","17/06/2016 - 17/06/2016 ","Autre : CONGRES / SYMPOSIUM ",null,"BOUCHEVILLIERS"]
["Pr Pascal Joly, CHU Rouen","Médecin ","ROCHE ROYAUME-UNI","01/07/2016","31/12/2016 - ","Autre : Crossborder "]
["Pr Pascal Joly, CHU Rouen","Médecin ","Lilly France SAS","26/07/2016","26/07/2016 - 01/08/2018 ","Contrat d'expert scientifique, contrat dans le cadre d'une recherche, contrat de consultant ",9773]
["Pr Pascal Joly, CHU Rouen","Médecin ","Lilly France SAS","28/07/2016","28/07/2016 - 28/07/2016 ","Autre : CONSEIL ",null,"NEW YORK"]
["Pr Pascal Joly, CHU Rouen","Médecin ","AbbVie","27/09/2016","27/09/2016 - ","Autre : CONVENTION D HOSPITALITE "]
["Pr Pascal Joly, CHU Rouen","Médecin ","AbbVie","27/09/2016","27/09/2016 - ","Autre : CONVENTION D HOSPITALITE "]
["Pr Pascal Joly, CHU Rouen","Médecin ","AbbVie","28/09/2016","21/09/2016 - ","Autre : CONVENTION D HOSPITALITE ",null,"VIENNE (Autriche)"]
["Pr Pascal Joly, CHU Rouen","Médecin ","AbbVie","29/09/2016","29/09/2016 - ","Autre : CONVENTION D HOSPITALITE "]
["Pr Pascal Joly, CHU Rouen","Médecin ","BRISTOL-MYERS SQUIBB","27/10/2016","04/11/2016 - ","Autre : Autre : [Orateur] "]
["Pr Pascal Joly, CHU Rouen","Médecin ","galderma international","07/12/2016","07/12/2016 - 07/12/2016 ","Autre : Autre ",null,"PARIS"]
["Pr Pascal Joly, CHU Rouen","Médecin ","NOVARTIS PHARMA SAS","16/12/2016","16/12/2016 - 31/12/2017 ","Contrat d'expert scientifique, contrat dans le cadre d'une recherche, contrat de consultant ",600]
["Pr Pascal Joly, CHU Rouen","Médecin ","AbbVie","19/12/2016","19/12/2016 - ","Autre : CONVENTION D HOSPITALITE "]
["Pr Pascal Joly, CHU Rouen","Médecin ","NOVARTIS PHARMA SAS","03/01/2017","03/01/2017 - 10/03/2017 ","Contrat d'expert scientifique, contrat dans le cadre d'une recherche, contrat de consultant "]
["Pr Pascal Joly, CHU Rouen","Médecin ","JANSSEN-CILAG","10/02/2017","10/02/2017 - 10/02/2017 ","Autre : CONGRES/ SYMPOSIUM ",null,"ISSY-LES-MOULINEAUX"]
["Pr Pascal Joly, CHU Rouen","Médecin ","JANSSEN-CILAG","03/03/2017","03/03/2017 - 07/03/2017 ","Autre : CONGRES/ SYMPOSIUM ",null,"ORLANDO"]
["Pr Pascal Joly, CHU Rouen","Médecin ","Lilly France SAS","11/04/2017","11/04/2017 - 11/04/2017 ","Autre : PARTICIPATION REUNION SCIENTIFIQUE ",null,"PARIS"]
["Pr Pascal Joly, CHU Rouen","Médecin ","Lilly France SAS","11/04/2017","11/04/2017 - 11/04/2017 ","Contrat d'intervenant à une manifestation / orateur ",1161]
["Pr Pascal Joly, CHU Rouen","Médecin ","SANDOZ","28/06/2017","28/06/2017 - 31/12/2017 ","Contrat d'expert scientifique, contrat dans le cadre d'une recherche, contrat de consultant ",2537,"LEVALLOIS-PERRET"]
["Pr Pascal Joly, CHU Rouen","Médecin ","Simon-Kucher & Partners","23/08/2017","23/08/2017 - ","Enquête / Etude / Etude de marché (hors recherche) "]
["Pr Pascal Joly, CHU Rouen","Médecin ","SANOFI AVENTIS FRANCE","13/09/2017","13/09/2017 - 17/09/2017 ","Inscription congrès",null,"GENEVE"]
["Pr Pascal Joly, CHU Rouen","Médecin ","BRISTOL-MYERS SQUIBB","06/10/2017","06/10/2017 - 07/10/2017 ","Contrat d'expert scientifique, contrat dans le cadre d'une recherche, contrat de consultant ",1156]
["Pr Pascal Joly, CHU Rouen","Médecin ","JANSSEN-CILAG","10/11/2017","10/11/2017 - 10/11/2017 ","Hospitalité ",null,"ST JOUIN DE BRUNEVAL"]
["Pr Pascal Joly, CHU Rouen","Médecin ","JANSSEN-CILAG","23/11/2017","23/11/2017 - 23/11/2017 ","Hospitalité ",null,"ROUEN"]
["Pr Pascal Joly, CHU Rouen","Médecin ","galderma international","13/12/2017","13/12/2017 - 13/12/2017 ","Hospitalité ",null,"PARIS"]
["Pr Pascal Joly, CHU Rouen","Médecin ","Lilly France SAS","16/12/2017","12/12/2017 - 16/12/2017 ","Autre : PARTICIPATION REUNION SCIENTIFIQUE",null,"PARIS"]
["Dr Brigitte Roy-Geffroy, SFD","Médecin ","Genzyme","22/11/2017","22/11/2017 - 22/11/2017 ","Hospitalité",null,"PARIS"]
["Pr Alain Astier, AP-HP","Pharmacien ","EISAI SAS","05/07/2013","05/07/2013 - 05/07/2013 ","Autre : Conseil : Orateur Board ",null,"PARIS"]
["Pr Alain Astier, AP-HP","Pharmacien ","EISAI SAS","05/07/2013","05/07/2013 - 05/07/2013 ","Autre : Conseil ",null,"PARIS"]
["Pr Alain Astier, AP-HP","Pharmacien ","EISAI SAS","03/12/2013","15/01/2014 - 17/01/2014 ","Autre : Conseil : Invitation Congrès ",null,"NICE"]
["Pr Alain Astier, AP-HP","Pharmacien ","EISAI SAS","13/12/2013","30/01/2014 - 30/01/2014 ","Autre : Conseil : Invitation Board ",null,"MONACO"]
["Pr Alain Astier, AP-HP","Pharmacien ","SANOFI AVENTIS FRANCE","29/01/2014","29/01/2014 - 01/02/2014 ","Inscription congrès ",null,"MONACO"]
["Pr Alain Astier, AP-HP","Pharmacien ","ROCHE SAS","07/02/2014","07/02/2014 - 07/02/2014 ","Autre : Autre : [ Reunion professionnelle ] ",null,"BARCELONE"]
["Pr Alain Astier, AP-HP","Pharmacien ","SANOFI AVENTIS FRANCE","13/08/2014","13/08/2014 - 31/12/2014 ","Autre : Autre : [Communication scientifique] "]
["Pr Alain Astier, AP-HP","Pharmacien ","BIOGARAN","05/03/2015","05/03/2015 - ","Autre : Autre : Manifestation scientifique "]
["Pr Alain Astier, AP-HP","Pharmacien ","PFIZER SAS","31/03/2015","31/03/2015 - 31/03/2015 ","Autre : Autre : Reunion professionnelle ou scientifique ",null,"PARIS"]
["Pr Alain Astier, AP-HP","Pharmacien ","PFIZER SAS","19/05/2015","19/05/2015 - 19/05/2015 ","Autre : Autre : Reunion professionnelle ou scientifique ",null,"PARIS"]
["Pr Alain Astier, AP-HP","Pharmacien ","ROCHE SAS","27/11/2015","27/11/2015 - 27/11/2015 ","Autre : Autre : [ Reunion professionnelle ] ",null,"CRETEIL"]
["Pr Alain Astier, AP-HP","Médecin ","Adept Field Solutions","12/05/2016","12/05/2016 - ","Enquête / Etude / Etude de marché (hors recherche) "]
["Pr Alain Astier, AP-HP","Médecin ","Adept Field Solutions","12/07/2016","12/07/2016 - ","Enquête / Etude / Etude de marché (hors recherche) "]
["Pr Alain Astier, AP-HP","Pharmacien ","ROCHE SAS","10/01/2017","10/01/2017 - 11/01/2017 ","Hospitalité ",null,"PARIS"]
["Pr Alain Astier, AP-HP","Pharmacien ","AMGEN SAS","16/01/2017","24/03/2017 - 25/03/2017 ","Contrat d'expert scientifique, contrat dans le cadre d'une recherche, contrat de consultant ",null,"CANNES"]
["Pr Alain Astier, AP-HP","Pharmacien ","AMGEN SAS","02/02/2017","02/02/2017 - 03/02/2017 ","Hospitalité ",null,"PARIS"]
["Pr Alain Astier, AP-HP","Pharmacien ","LABORATOIRE GLAXOSMITHKLINE","21/09/2017","21/09/2017 - 21/09/2017 ","Hospitalité ",30,"CRETEIL"]
["Pr Alain Astier, AP-HP","Pharmacien ","AMGEN SAS","27/09/2017","30/11/2017 - 01/12/2017 ","Contrat d'intervenant à une manifestation / orateur ",null,"AMSTERDAM"]
["Pr Alain Astier, AP-HP","Médecin ","Adept Field Solutions","23/10/2017","23/10/2017 - ","Enquête / Etude / Etude de marché (hors recherche)"]
["Pr Christophe Le Tourneau, Institut Curie","Médecin ","INC RESEARCH, LLC","12/03/2013","12/03/2013 - ","Recherche scientifique "]
["Pr Christophe Le Tourneau, Institut Curie","Médecin ","NANOBIOTIX S.A.","09/07/2013","09/07/2013 - ","Autre : CONVENTION DE RECHERCHE BIOMEDICALE TRIPARTITE "]
["Pr Christophe Le Tourneau, Institut Curie","Médecin ","ICON CLINICAL RESEARCH SARL","15/10/2013","15/10/2013 - ","Autre : recherche biomédicale "]
["Pr Christophe Le Tourneau, Institut Curie","Médecin ","LES LABORATOIRES SERVIER","13/03/2014","13/03/2014 - ","Recherche scientifique "]
["Pr Christophe Le Tourneau, Institut Curie","Médecin ","ROCHE SAS","20/06/2014","20/06/2014 - 20/06/2014 ","Autre : Autre : [ Reunion professionnelle ] ",null,"PARIS"]
["Pr Christophe Le Tourneau, Institut Curie","Médecin ","ROCHE SAS","15/10/2014","15/10/2014 - 15/10/2014 ","Autre : Autre : [ Reunion professionnelle ] ",null,"PARIS"]
["Pr Christophe Le Tourneau, Institut Curie","Médecin ","MSD France","24/11/2014","24/11/2014 - ","Autre : RECHERCHE BIOMEDICALE "]
["Pr Christophe Le Tourneau, Institut Curie","Médecin ","MERCK SERONO","24/11/2014","24/11/2014 - 30/11/2014 ","Autre : CONSEIL "]
["Pr Christophe Le Tourneau, Institut Curie","Médecin ","PRA","26/03/2015","26/03/2015 - ","Recherche scientifique "]
["Pr Christophe Le Tourneau, Institut Curie","Médecin ","MERCK SERONO","01/04/2015","01/04/2015 - 10/04/2015 ","Autre : CONSEIL "]
["Pr Christophe Le Tourneau, Institut Curie","Médecin ","MERCK SERONO","09/04/2015","09/04/2015 - ","Contrat d'intervenant à une manifestation / orateur "]
["Pr Christophe Le Tourneau, Institut Curie","Médecin ","ROCHE SAS","18/04/2015","18/04/2015 - 22/04/2015 ","Autre : Congres / Symposium ",null,"PHILADELPHIE"]
["Pr Christophe Le Tourneau, Institut Curie","Médecin ","MSD France","28/05/2015","28/05/2015 - ","Autre : CONVENTION D’HOSPITALITÉ ",null,"CHICAGO"]
["Pr Christophe Le Tourneau, Institut Curie","Médecin ","MERCK SERONO","01/06/2015","01/06/2015 - 01/07/2015 ","Autre : CONSEIL ",null,"LYON"]
["Pr Christophe Le Tourneau, Institut Curie","Médecin ","MERCK SERONO","30/06/2015","30/06/2015 - ","Contrat d'intervenant à une manifestation / orateur ",800]
["Pr Christophe Le Tourneau, Institut Curie","Médecin ","BRISTOL-MYERS SQUIBB","02/09/2015","27/11/2015 - ","Autre : Autre : [Orateur] "]
["Pr Christophe Le Tourneau, Institut Curie","Médecin ","BRISTOL-MYERS SQUIBB","02/09/2015","27/11/2015 - ","Autre : Autre : [Orateur] "]
["Pr Christophe Le Tourneau, Institut Curie","Médecin ","ASTRAZENECA","25/09/2015","25/09/2015 - ","Autre : congrès/symposium "]
["Pr Christophe Le Tourneau, Institut Curie","Médecin ","MSD France","13/10/2015","13/10/2015 - 13/10/2015 ","Autre : CONVENTION D’HOSPITALITÉ ",null,"PARIS"]
["Pr Christophe Le Tourneau, Institut Curie","Médecin ","MERCK SERONO","19/11/2015","19/11/2015 - ","Contrat d'intervenant à une manifestation / orateur",60]
["Pr Christophe Le Tourneau, Institut Curie","Médecin ","BRISTOL-MYERS SQUIBB","26/01/2016","04/02/2016 - ","Autre : Autre : [Orateur] "]
["Pr Christophe Le Tourneau, Institut Curie","Médecin ","Covance Clinical And Periapproval Services SARL","18/03/2016","01/09/2015 - 31/12/2016 ","Recherche scientifique "]
["Pr Christophe Le Tourneau, Institut Curie","Médecin ","ROCHE SAS","23/03/2016","23/03/2016 - 23/03/2016 ","Autre : Autre : [ Reunion professionnelle ] "]
["Pr Christophe Le Tourneau, Institut Curie","Médecin ","MSD France","19/04/2016","23/05/2016 - 24/05/2016 ","Autre : EXPERT ",null,"FRANCFORT"]
["Pr Christophe Le Tourneau, Institut Curie","Médecin ","MSD France","25/04/2016","25/05/2016 - 24/05/2017 ","Autre : EXPERT "]
["Pr Christophe Le Tourneau, Institut Curie","Médecin ","MSD France","20/05/2016","20/05/2016 - ","Autre : CONVENTION D’HOSPITALITÉ ",null,"PARIS"]
["Pr Christophe Le Tourneau, Institut Curie","Médecin ","BRISTOL-MYERS SQUIBB","31/05/2016","31/05/2016 - ","Autre : Consultant (HCP) "]
["Pr Christophe Le Tourneau, Institut Curie","Médecin ","MSD France","02/06/2016","02/06/2016 - ","Autre : CONVENTION D’HOSPITALITÉ ",null,"CHICAGO"]
["Pr Christophe Le Tourneau, Institut Curie","Médecin ","MSD France","07/06/2016","06/07/2016 - 19/11/2016 ","Autre : EXPERT ",null,"PARIS"]
["Pr Christophe Le Tourneau, Institut Curie","Médecin ","PRA","15/06/2016","15/06/2016 - ","Recherche scientifique "]
["Pr Christophe Le Tourneau, Institut Curie","Médecin ","MSD France","02/08/2016","06/09/2016 - 06/09/2016 ","Autre : EXPERT ",null,"CHÂTEAU DE MAFFLIERS"]
["Pr Christophe Le Tourneau, Institut Curie","Médecin ","BRISTOL-MYERS SQUIBB","09/08/2016","22/09/2016 - ","Autre : Consultant (HCP) "]
["Pr Christophe Le Tourneau, Institut Curie","Médecin ","AMGEN SAS","29/08/2016","06/10/2016 - 06/10/2016 ","Autre : AUTRE [CONTRAT DE CONSULTANT] ",null,"COPENHAGUE"]
["Pr Christophe Le Tourneau, Institut Curie","Médecin ","MSD France","16/09/2016","20/10/2016 - 20/10/2016 ","Autre : EXPERT ",null,"PARIS"]
["Pr Christophe Le Tourneau, Institut Curie","Médecin ","LES LABORATOIRES SERVIER","28/09/2016","28/09/2016 - ","Contrat d'intervenant à une manifestation / orateur "]
["Pr Christophe Le Tourneau, Institut Curie","Médecin ","MSD France","18/10/2016","18/10/2016 - 18/10/2016 ","Autre : CONVENTION D’HOSPITALITÉ ",null,"PARIS"]
["Pr Christophe Le Tourneau, Institut Curie","Médecin ","ASTRAZENECA","03/11/2016","02/12/2016 - ","Formation "]
["Pr Christophe Le Tourneau, Institut Curie","Médecin ","MERCK SERONO","27/11/2016","27/11/2016 - 31/12/2017 ","Autre : CONSEIL "]
["Pr Christophe Le Tourneau, Institut Curie","Médecin ","MERCK SERONO","28/11/2016","28/11/2016 - ","Contrat d'expert scientifique, contrat dans le cadre d'une recherche, contrat de consultant ",640]
["Pr Christophe Le Tourneau, Institut Curie","Médecin ","ERYTECH Pharma","15/12/2016","15/12/2016 - ","Contrat d'expert scientifique, contrat dans le cadre d'une recherche, contrat de consultant"]
["Pr Christophe Le Tourneau, Institut Curie","Médecin ","MERCK SERONO","19/01/2017","19/01/2017 - ","Contrat d'intervenant à une manifestation / orateur ",862]
["Pr Christophe Le Tourneau, Institut Curie","Médecin ","ASTRAZENECA","09/02/2017","09/02/2017 - ","Hospitalité ",853]
["Pr Christophe Le Tourneau, Institut Curie","Médecin ","BRISTOL-MYERS SQUIBB","10/03/2017","20/04/2017 - ","Autre : Consultant (HCP) "]
["Pr Christophe Le Tourneau, Institut Curie","Médecin ","BRISTOL-MYERS SQUIBB","16/03/2017","16/03/2017 - ","Autre : Consultant (HCP) "]
["Pr Christophe Le Tourneau, Institut Curie","Médecin ","ASTRAZENECA","23/03/2017","20/04/2017 - ","Contrat d'intervenant à une manifestation / orateur ",1500]
["Pr Christophe Le Tourneau, Institut Curie","Médecin ","BRISTOL-MYERS SQUIBB","31/03/2017","15/04/2017 - 31/12/2017 ","Contrat d'expert scientifique, contrat dans le cadre d'une recherche, contrat de consultant "]
["Pr Christophe Le Tourneau, Institut Curie","Médecin ","ASTRAZENECA","31/03/2017","31/03/2017 - ","Hospitalité ",22]
["Pr Christophe Le Tourneau, Institut Curie","Médecin ","ASTRAZENECA","01/04/2017","01/04/2017 - ","Hospitalité ",5762]
["Pr Christophe Le Tourneau, Institut Curie","Médecin ","ASTRAZENECA","21/04/2017","25/04/2017 - ","Contrat d'expert scientifique, contrat dans le cadre d'une recherche, contrat de consultant ",1400]
["Pr Christophe Le Tourneau, Institut Curie","Médecin ","MSD France","25/04/2017","05/05/2017 - 31/12/2017 ","Contrat d'expert scientifique, contrat dans le cadre d'une recherche, contrat de consultant ",2503]
["Pr Christophe Le Tourneau, Institut Curie","Médecin ","ASTRAZENECA","27/04/2017","27/04/2017 - ","Contrat d'intervenant à une manifestation / orateur ",357]
["Pr Christophe Le Tourneau, Institut Curie","Médecin ","NANOBIOTIX S.A.","17/05/2017","17/05/2017 - 16/05/2019 ","Contrat d'expert scientifique, contrat dans le cadre d'une recherche, contrat de consultant "]
["Pr Christophe Le Tourneau, Institut Curie","Médecin ","MSD France","01/06/2017","22/06/2017 - 22/06/2018 ","Contrat d'expert scientifique, contrat dans le cadre d'une recherche, contrat de consultant ",14250]
["Pr Christophe Le Tourneau, Institut Curie","Médecin ","MSD France","02/06/2017","02/06/2017 - 06/06/2017 ","Hospitalité ",null,"CHICAGO"]
["Pr Christophe Le Tourneau, Institut Curie","Médecin ","ASTRAZENECA","15/06/2017","17/07/2017 - ","Contrat d'expert scientifique, contrat dans le cadre d'une recherche, contrat de consultant ",2800]
["Pr Christophe Le Tourneau, Institut Curie","Médecin ","PPD FRANCE SAS","07/07/2017","07/07/2017 - 06/07/2022 ","Recherche scientifique "]
["Pr Christophe Le Tourneau, Institut Curie","Médecin ","BRISTOL-MYERS SQUIBB","08/08/2017","08/08/2017 - 31/12/2017 ","Contrat d'expert scientifique, contrat dans le cadre d'une recherche, contrat de consultant ",900]
["Pr Christophe Le Tourneau, Institut Curie","Médecin ","MSD France","31/08/2017","06/10/2017 - 07/10/2017 ","Contrat d'expert scientifique, contrat dans le cadre d'une recherche, contrat de consultant ",2500,"PARIS"]
["Pr Christophe Le Tourneau, Institut Curie","Médecin ","MSD France","20/11/2017","27/11/2017 - 26/11/2018 ","Contrat d'expert scientifique, contrat dans le cadre d'une recherche, contrat de consultant ",5000,"PARIS"]
["Pr Christophe Le Tourneau, Institut Curie","Médecin ","LES LABORATOIRES SERVIER","23/11/2017","23/11/2017 - ","Contrat d'intervenant à une manifestation / orateur"]
["Pr Jean-Marc Tréluyer, AP-HP","Médecin ","GILEAD SCIENCES","20/11/2013","20/11/2013 - ","Autre : Board "]
["Pr Jean-Marc Tréluyer, AP-HP","Médecin ","GILEAD SCIENCES","11/03/2014","30/04/2014 - ","Autre : Board "]
["Pr Jean-Marc Tréluyer, AP-HP","Médecin ","JANSSEN-CILAG","19/05/2014","19/05/2014 - 21/05/2014 ","Autre : CONGRES / SYMPOSIUM ",null,"WASHINGTON"]
["Pr Jean-Marc Tréluyer, AP-HP","Médecin ","GILEAD SCIENCES","09/07/2014","09/07/2014 - ","Autre : Board "]
["Pr Jean-Marc Tréluyer, AP-HP","Médecin ","GILEAD SCIENCES","02/11/2014","10/12/2014 - ","Autre : Board"]

{"sheet":"AVANTAGES","index":2,"n_rows":227,"n_cols":2,"rows_kept":227,"cut":false,"hidden":false,"merged":[]}
["TYPE_AVTG dans Transparence.sante.gouv.fr","TYPE_AVTG (libellé de regroupement)"]
["[Autre] : Participation Evenement Scientifique ","Congrès"]
["[Autre] inscription congrès ","Inscription"]
["[HEBERGEMENT] ","Hébergement"]
["[HOSPITALITE] ","Hospitalité"]
["[REPAS] ","Repas"]
["[TRANSPORT] ","Transport"]
["Acheminement ","Transport"]
["AUTRE ","Autre"]
["Autre : [ Forfait journée d\u0092étude ] ","Autre"]
["Autre : [ Forfait journée d\u0092étude ou forfait congrès ] ","Congrès"]
["Autre : [ Forfait journée étude ] ","Autre"]
["Autre : [ Inscription ] ","Inscription"]
["AUTRE : [ACCOMPAGNEMENT] ","Autre"]
["AUTRE : [CONTRAT DE PARTENARIAT - LOCATION DE STAND] ","Congrès"]
["AUTRE : [DEDOMMAGEMENT] ","Autre"]
["Autre : [DEJEUNER REUNION] ","Repas"]
["AUTRE : [DON EN NATURE] ","Autre"]
["Autre : [don] ","Autre"]
["AUTRE : [DONS] ","Autre"]
["Autre : [ECHANTILLON] ","Autre"]
["Autre : [Forfait] ","Autre"]
["Autre : [Formation] ","Autre"]
["Autre : [FRAIS D'INSCRIPTION] ","Inscription"]
["Autre : [HONORAIRE] ","Autre"]
["Autre : [Honoraires PdS] ","Autre"]
["Autre : [Honoraires] ","Repas"]
["Autre : [Hospitalité Evenement Scientifique] ","Hospitalité"]
["AUTRE : [HOSPITALITE] ","Hospitalité"]
["AUTRE : [INSCRIPTION CONGRÈS SCIENTIFIQUE] ","Inscription"]
["Autre : [Inscription Evenement Scientifique] ","Inscription"]
["Autre : [Inscription] ","Inscription"]
["Autre : [Location de stand] ","Congrès"]
["Autre : [note de frais] ","Autre"]
["Autre : [Notes de frais] ","Autre"]
["AUTRE : [PARTICIPATION EVENEMENT SCIENTIFIQUE] ","Congrès"]
["AUTRE : [PAUSE] ","Autre"]
["Autre : [Remboursement de frais] ","Autre"]
["AUTRE : [REMBOURSEMENT FRAIS LOGISTIQUE] ","Autre"]
["Autre : [Remis Publication scientifique] ","Autre"]
["Autre : [rémunération] ","Repas"]
["Autre : [Restauration] ","Repas"]
["Autre : [stand] ","Congrès"]
["Autre : cheque ","Autre"]
["AUTRE : CONGRES ","Autre"]
["AUTRE : DEJEUNER ","Repas"]
["AUTRE : DEUX PAUSES ","Repas"]
["AUTRE : DINER ","Repas"]
["AUTRE : DON DE MÉDICAMENT ","Autre"]
["autre : enquête internet ","Autre"]
["AUTRE : FORMATION MEDICALE CONTINUE ","Autre"]
["AUTRE : FRAIS DE RESTAURATION / RP ","Repas"]
["Autre : Frais d'inscription Congres ","Inscription"]
["Autre : Frais d'inscription Congrès ","Inscription"]
["AUTRE : HONORAIRE ","Autre"]
["AUTRE : HONORAIRE CONFERENCE TELEPHONIQUE ","Autre"]
["AUTRE : HONORAIRES ","Autre"]
["AUTRE : HONORAIRES CONFERENCE TELEPHONIQUE ","Autre"]
["AUTRE : HONORAIRES ETUDES ","Autre"]
["AUTRE : HONORAIRES REUNION ","Autre"]
["AUTRE : HOSPITALITE CONGRES ","Congrès"]
["AUTRE : HOSPITALITE STAFF ","Hospitalité"]
["Autre : Indemnite ","Autre"]
["Autre : Inscription ","Inscription"]
["AUTRE : RELATIONS NORMALES DE TRAVAIL ","Autre"]
["AUTRE : REMBOURSEMENT DE FRAIS ","Autre"]
["AUTRE : REMUNERATION ","Autre"]
["AUTRE : REPAS PROFESSIONNEL ","Repas"]
["Autre : repas STAFF ","Repas"]
["AUTRE : REUNION ","Autre"]
["AUTRE : RNT ","Autre"]
["AUTRE : STAFF ","Repas"]
["AUTRE : STAND CONGRES ","Congrès"]
["AUTRE [DINER REUNION] ","Repas"]
["AUTRE [DONS] ","Autre"]
["AUTRE [ENQUETE] ","Autre"]
["AUTRE [FRAIS D INSCRIPTION] ","Inscription"]
["AUTRE [INSCRIPTION] ","Inscription"]
["AUTRE [PAUSE] ","Autre"]
["AUTRE [RESTAURATION STAFF] ","Repas"]
["AUTRE: [DON] ","Autre"]
["AUTRE: [DONS] ","Autre"]
["Autre: [Enquête] ","Autre"]
["AUTRE: [HEBERGEMENT ET RESTAURATIONS] ","Hébergement"]
["AUTRE: [INSCRIPTION] ","Inscription"]
["AUTRE: COLLATION ","Repas"]
["AUTRE: COLLATION/COLLATION ","Repas"]
["AUTRE: CONGRES/COCKTAIL ","Repas"]
["AUTRE: CONGRES/INSCRIPTION ","A définir"]
["AUTRE: DEJEUNER ","Repas"]
["AUTRE: DEJEUNER/DINER ","Repas"]
["AUTRE: DEJEUNER/RESTO ITALIEN BON ","Repas"]
["Autre: Don ","Autre"]
["AUTRE: HOSPITALITE ","Hospitalité"]
["AUTRE: INDEMNITE ","Autre"]
["AUTRE: INSCRIPTION ","Inscription"]
["Autre: Phone consult ","Autre"]
["AUTRE: SOIREE ","Hospitalité"]
["AUTRE: SOIREE/SOIREE ","Autre"]
["AUTRE: STAFF ","Repas"]
["AUTRE: VISITE/(2 X GO-ON 25MG) ","Autre"]
["AUTRE: VISITE/(3 X GO-ON 25MG) ","Autre"]
["AUTRE: VISITE/GO-ON 25MG ","Autre"]
["AUTRE:[FRAIS D'INSCRIPTION] ","Inscription"]
["Autre[HONORAIRES] ","Autre"]
["Autre[inscription congrès] ","Congrès"]
["AUTRES ","Autre"]
["AUTRES: INSCRIPTION ","Inscription"]
["CADEAUX ","Autre"]
["COLLATION ","Repas"]
["COLLATION/COLLATION ","Repas"]
["CONGRES/ACHEMINEMENT (AVION) ","Transport"]
["CONGRES/DEJEUNERS / DINERS (4) ","Repas"]
["CONGRES/HEBERGEMENT ","Hébergement"]
["CONGRES/HEBERGEMENT (1 NUITEES) ","Hébergement"]
["CONGRES/HEBERGEMENT (2 NUITEES) ","Hébergement"]
["CONGRES/HEBERGEMENT 3 NUITS ","Hébergement"]
["CONGRES/INSCRIPTION ","Inscription"]
["CONGRES/REPAS 12.06.13 ","Repas"]
["CONGRES/REPAS 13.06.13 ","Repas"]
["CONGRES/REPAS 14.06.13 ","Repas"]
["CONGRES/REPAS X3 ","Repas"]
["conseil ","Conseil"]
["Conseil - Intervention Ponctuelle ","Autre"]
["Dédommagement ","Autre"]
["DEJEUNER ","Repas"]
["déjeuner ","Repas"]
["DEJEUNER/DEJEUNER ","Repas"]
["DEJEUNER/REPAS ","Repas"]
["Déplacement ","Transport"]
["DINER ","Repas"]
["Dîner ","Repas"]
["DOCUMENTATION ","Autre"]
["Don ","Autre"]
["DONS ","Autre"]
["Dons de fonctionnement ","Autre"]
["DONS DE FONCTIONNEMENT (RÉMUNÉRATION LIÉE À DES ACTIVITÉS DE RECHERCHE) ","Autre"]
["DONS DE FONCTIONNEMENT / RECHERCHE ","Autre"]
["DONS DE MATERIEL ","Autre"]
["Dons de matériel ","Autre"]
["Droits d'auteur pris en charge par UCB ","Autre"]
["enquête ","Autre"]
["EPU ","Repas"]
["EPU/DINER ","Repas"]
["EPU/EPU ","Congrès"]
["EPU/REPAS ","Repas"]
["FRAIS DE BOUCHE ","Repas"]
["Frais de dÃƒÂ©placement ","Transport"]
["FRAIS DE DEPLACEMENT ","Transport"]
["FRAIS DE RESTAURATION ","Repas"]
["FRAIS D'HOSPITALITÉ ","Hospitalité"]
["FRAIS D'INSCRIPTION ","Inscription"]
["Frais d'inscription à une réunion scientifique ","Inscription"]
["Frais remboursés (transport) ","Transport"]
["H‚bergement ","Hébergement"]
["HÃ©bergement ","Hébergement"]
["HÃ‰BERGEMENT ","Hébergement"]
["HÃƒÂ©bergement ","Hébergement"]
["HE\u0090BERGEMENT ","Hospitalité"]
["HEBERGEMENT ","Hébergement"]
["Hébergement ","Hébergement"]
["Hébérgement ","Hébergement"]
["HEBERGEMENT SUR TOUTE LA DUREE DU CONGRES ","Hébergement"]
["Hébergement, restauration, transport ","Hospitalité"]
["Honoraire + hospitalité ","Hospitalité"]
["HONORAIRE HCP ","Autre"]
["HONORAIRES ","Autre"]
["Honoraires de consultant ","Conseil"]
["HOSPITALITE ","Hospitalité"]
["HOSPITALITÉ ","Hospitalité"]
["HOSPITALITE - RELATIONS NORMALES DE TRAVAIL ","Hospitalité"]
["Hospitalité [ transport/repas/Hébergement] ","Hospitalité"]
["HOSPITALITE CONGRES ","Hospitalité"]
["Hospitalité Congrès Symposium ","Congrès"]
["HOSPITALITE REUNION PROFESSIONNELLE ","Hospitalité"]
["HOSPITALITE SITES PIERRE FABRE ","Hospitalité"]
["HOSPITALITE STAFF ","Hospitalité"]
["INCRIPTION ","Inscription"]
["INDEMNITE ","Autre"]
["INSCRIPTION ","Inscription"]
["INSCRIPTION CONGRES ","Inscription"]
["Inscription congrès ","Congrès"]
["Inscription Evenement Scientifique ","Inscription"]
["INSCRIPTION_REPAS_TRANSPORT_HEBERGEMENT ","Hospitalité"]
["INVITATIONS ","Autre"]
["Logement ","Hébergement"]
["OPPORTUNITE ","Autre"]
["Participation Evenement Scientifique ","Congrès"]
["PAUSE ","Autre"]
["Prestation en tant que formateur et orateur ","Autre"]
["REMUNERATION ","Autre"]
["REPAS","Repas"]
["Repas ","Repas"]
["répas ","Repas"]
["Repas & Voyage de Train ","Hospitalité"]
["REPAS CONGRES ","Repas"]
["REPAS ET TRANSPORT ","Autre"]
["REPAS FORMATION ","Repas"]
["REPAS IMPROMPTU ","Repas"]
["REPAS MANIFESTATION DE FORMATION ","Repas"]
["REPAS PROFESSIONNEL ","Repas"]
["REPAS RELATION NORMALE DE TRAVAIL ","Repas"]
["REPAS REUNION ","Repas"]
["REPAS REUNION HOSPITALIERE ","Repas"]
["REPAS RÉUNION HOSPITALIÈRE ","Repas"]
["REPAS REUNION SCIENTIFIQUE ","Repas"]
["REPAS RÉUNION SCIENTIFIQUE ","Repas"]
["REPAS SUR TOUTE LA DUREE DU CONGRES ","Repas"]
["Restauration ","Repas"]
["Restauration / Dïner ","Repas"]
["Restauration / Pauses ","Repas"]
["SOIREE ","Repas"]
["SOIREE/REPAS ","Repas"]
["SOIREE/RP ","Autre"]
["STAFF ","Autre"]
["Taxonomie EFPIA ","Autre"]
["TRANBSPORT ","Transport"]
["TRANSFERT ","Transport"]
["TRANSFERT-REPAS(DINER) ","Repas"]
["Transport ","Transport"]
["TRANSPORT ALLER/RETOUR -REPAS(DINER-DEJEUNER-PAUSES)-HEBERGEMENT-TRANSFERT ","Hospitalité"]
["TRANSPORT ALLER/RETOUR -REPAS(DINERS-DEJEUNERS-PAUSES)-HEBERGEMENT-TRANSFERT ","Hospitalité"]
["Transport pris en charge par UCB ","Transport"]
["TRANSPORT taxi ","Transport"]
["VISITE/(2 X GO-ON 25MG) ","Autre"]
["VISITE/(3 X GO-ON 25MG) ","Autre"]
["VISITE/GO-ON 25MG ","Autre"]

{"sheet":"CONVENTIONS","index":3,"n_rows":770,"n_cols":2,"rows_kept":770,"cut":false,"hidden":false,"merged":[]}
["TYPE_CONVENTION dans Transparence.sante.gouv.fr","TYPE_CONVENTION (libellé de regroupement)"]
["[AUTRE] : [COLLABORATION SCIENTIFIQUE] ","Expert"]
["[AUTRE] : [CONVENTION HOSPITALITE]","Hospitalité"]
["[AUTRE] : [CONVENTION HOSPITALITE] ","Hospitalité"]
["[BOARD EXPERTS] ","Réunion de « Board »"]
["[FORMATION] ","Autre"]
["[MARKETING]","Etude de marché"]
["[MARKETING] ","Etude de marché"]
["[ORATEUR] ","Orateur"]
["[ORATEURS MODERATEURS]","Orateur"]
["[ORATEURS MODERATEURS] ","Orateur"]
["[REUNION INFORMATION MEDICALE] ","Réunion professionnelle"]
["26E CONGRES FRANÇAIS DE RHUMATOLOGIE ","Réunion professionnelle"]
["ACCORD DE COOPERATION ","Expert"]
["Achat / location d'espaces dans le cadre d'événements scientifiques","Autre"]
["Achat / location d'espaces dans le cadre d'événements scientifiques ","Autre"]
["AMERICAN COLLEGE OF RHEUMATHOLOGY ACR/ARHP ANNUAL MEETING 2012 ","Réunion professionnelle"]
["ANNUAL EUROPEAN CONGRESS OF RHEUMATOLOGY ","Réunion professionnelle"]
["ASSISES BARCELONE ","Réunion professionnelle"]
["ATELIERS SIMS ","Réunion professionnelle"]
["AUTRE","Autre"]
["AUTRE ","Autre"]
["Autre : ","Autre"]
["Autre : \"CONTRAT D'ORATEUR\" ","Orateur"]
["Autre : [ Collaboration Scientifique ]","Expert"]
["Autre : [ Collaboration Scientifique ] ","Expert"]
["AUTRE : [ CONSEIL / EXPERTISE SCIENTIFIQUE ] ","Conseil"]
["Autre : [ EPU ]","Réunion professionnelle"]
["Autre : [ EPU ] ","Réunion professionnelle"]
["Autre : [ Expert ]","Expert"]
["Autre : [ Expert ] ","Expert"]
["AUTRE : [ HOSPITALITE ]","Hospitalité"]
["AUTRE : [ HOSPITALITE ] ","Hospitalité"]
["Autre : [ hospitalité ] ","Hospitalité"]
["Autre : [ hospitalité liée à une manifestation scientifique ]","Hospitalité"]
["Autre : [ hospitalité liée à une manifestation scientifique ] ","Hospitalité"]
["Autre : [ Manifestation professionnelle ]","Réunion professionnelle"]
["Autre : [ Manifestation professionnelle ] ","Réunion professionnelle"]
["Autre : [ Orateur / Intervenant ]","Orateur"]
["Autre : [ Orateur / Intervenant ] ","Orateur"]
["Autre : [ Orateur ] ","Orateur"]
["Autre : [ Partenariat ] ","Autre"]
["Autre : [ Prestation ] ","Conseil"]
["Autre : [ R‚union professionnelle ]","Réunion professionnelle"]
["Autre : [ R‚union professionnelle ] ","Réunion professionnelle"]
["Autre : [ R\u0082union professionnelle ]","Réunion professionnelle"]
["Autre : [ R\u0082union professionnelle ] ","Réunion professionnelle"]
["Autre : [ Reunion professionnelle ]","Réunion professionnelle"]
["Autre : [ Réunion professionnelle ]","Réunion professionnelle"]
["Autre : [ Reunion professionnelle ] ","Réunion professionnelle"]
["Autre : [ Réunion professionnelle ] ","Réunion professionnelle"]
["Autre : [AUTRE] : [CONTRAT DE COLLABORATION] ","Autre"]
["Autre : [AUTRE] : [CONVENTION HOSPITALITE] ","Hospitalité"]
["Autre : [BOARD EXPERTS] ","Expert"]
["Autre : [collaboration scientifique] ","Expert"]
["Autre : [Communication scientifique]","Expert"]
["Autre : [Communication scientifique] ","Conseil"]
["Autre : [Consultant (HCP)]","Conseil"]
["Autre : [Consultant (HCP)] ","Conseil"]
["Autre : [Consultant] ","Conseil"]
["Autre : [Contrat autre]","Autre"]
["Autre : [Contrat autre] ","Autre"]
["AUTRE : [CONTRAT DE COLLABORATION SCIENTIFIQUE]","Expert"]
["AUTRE : [CONTRAT DE COLLABORATION SCIENTIFIQUE] ","Expert"]
["AUTRE : [CONTRAT DE CONSEIL & PRESTATION]","Conseil"]
["AUTRE : [CONTRAT DE CONSEIL & PRESTATION] ","Conseil"]
["Autre : [Contrat de consultant] ","Conseil"]
["AUTRE : [CONTRAT DE PARTENARIAT - LOCATION DE STAND]","Réunion professionnelle"]
["AUTRE : [CONTRAT DE PARTENARIAT - LOCATION DE STAND] ","Réunion professionnelle"]
["AUTRE : [CONTRAT DE PARTENARIAT] ","Autre"]
["AUTRE : [CONTRAT D'ORATEUR]","Orateur"]
["AUTRE : [CONTRAT D'ORATEUR] ","Orateur"]
["Autre : [CONTRAT ORATEUR] ","Orateur"]
["Autre : [CONTRAT_DE_PRESTATIONS_DE_SERVICES] ","Conseil"]
["AUTRE : [CONVENTION D HOSPITALITE]","Hospitalité"]
["AUTRE : [CONVENTION D HOSPITALITE] ","Hospitalité"]
["Autre : [Convention d’Hospitalité] ","Hospitalité"]
["Autre : [Convention de consultant] ","Conseil"]
["Autre : [CONVENTION D'HOSPITALITE]","Hospitalité"]
["Autre : [Convention d'Hospitalité]","Hospitalité"]
["Autre : [CONVENTION D'HOSPITALITE] ","Hospitalité"]
["Autre : [Convention d'hospitalité] ","Hospitalité"]
["AUTRE : [CONVENTION HOSPITALITE] ","Hospitalité"]
["Autre : [Convention Orateur] ","Orateur"]
["AUTRE : [CONVENTION SANS REMUNERATION]. ","Autre"]
["AUTRE : [DONS] ","Autre"]
["Autre : [entretien]","Etude de marché"]
["Autre : [entretien] ","Etude de marché"]
["Autre : [Espace publicitaire]","Autre"]
["Autre : [Espace publicitaire] ","Autre"]
["AUTRE : [ETUDE CLINIQUE] ","Recherche Clinique"]
["Autre : [EXPERT CONSULTANT] ","Expert"]
["Autre : [Expertise] ","Expert"]
["Autre : [Face face] ","Autre"]
["AUTRE : [HOSPITALITÉ EVENEMENT SCIENTIFIQUE] ","Hospitalité"]
["Autre : [Hospitalité Evenement]","Hospitalité"]
["AUTRE : [HOSPITALITE EVENEMENT] ","Hospitalité"]
["Autre : [Hospitalité Evenement] ","Hospitalité"]
["Autre : [Hospitalité Genzyme] ","Hospitalité"]
["Autre : [Hospitalité] ","Hospitalité"]
["AUTRE : [INTERVENANT]","A définir"]
["AUTRE : [INTERVENANT] ","Orateur"]
["Autre : [Invitation individuelle]","Autre"]
["Autre : [Invitation individuelle] ","Autre"]
["Autre : [Location de stand / Congrès / Autre] ","Réunion professionnelle"]
["Autre : [Marketing]","Etude de marché"]
["Autre : [Marketing] ","Etude de marché"]
["Autre : [Opération SA/Journée-Soirée] ","Autre"]
["Autre : [Opérations Genzyme] ","Autre"]
["Autre : [Orateur]","Orateur"]
["Autre : [Orateur] ","Orateur"]
["Autre : [ORATEURS MODERATEURS]","Orateur"]
["AUTRE : [PARTENARIAT] ","Autre"]
["AUTRE : [PARTICIPATION RÉUNION SCIENTIFIQUE]","Réunion professionnelle"]
["AUTRE : [PARTICIPATION RÉUNION SCIENTIFIQUE] ","Réunion professionnelle"]
["AUTRE : [PARTICIPATION R�ION SCIENTIFIQUE]","Réunion professionnelle"]
["AUTRE : [PARTICIPATION R�ION SCIENTIFIQUE] ","Réunion professionnelle"]
["AUTRE : [PRESTATION DE SERVICE] ","Conseil"]
["Autre : [Recherche biomédicale]","Recherche Clinique"]
["Autre : [Recherche biomédicale] ","Recherche Clinique"]
["Autre : [Recherche/Développement]","Recherche Clinique"]
["Autre : [Recherche/Développement] ","Recherche Clinique"]
["Autre : [Rédaction d'articles scientifiques] ","Rédacteur"]
["Autre : [Repas] ","Hospitalité"]
["Autre : [Réunion]","Réunion professionnelle"]
["Autre : [Réunion] ","Réunion professionnelle"]
["Autre : [RP Prédéclarée Hospitalité] ","Hospitalité"]
["AUTRE : [RP Table ronde actu Rhumatologie] ","Réunion professionnelle"]
["AUTRE : [RP TFI] ","Orateur"]
["Autre : [STAFF]","Réunion professionnelle"]
["Autre : [STAFF] ","Réunion professionnelle"]
["AUTRE : [STAND/TABLE] ","Réunion professionnelle"]
["Autre : 3116001; site 101; ","Autre"]
["Autre : Accord d'Orateur","Orateur"]
["Autre : Accord d'Orateur ","Orateur"]
["Autre : Auteur - rédacteur ","Rédacteur"]
["Autre : AUTRE","Autre"]
["Autre : AUTRE ","Autre"]
["Autre : AUTRE / HOSPITALITES ","Hospitalité"]
["Autre : AUTRE / STAND ","Autre"]
["Autre : AUTRE : [ CONSEIL / EXPERTISE SCIENTIFIQUE ] ","Conseil"]
["Autre : Autre : [ EPU ] ","Réunion professionnelle"]
["Autre : Autre : [ Expert ]","Expert"]
["Autre : Autre : [ Expert ] ","Expert"]
["Autre : AUTRE : [ HOSPITALITE ] ","Hospitalité"]
["Autre : Autre : [ hospitalité liée à une manifestation scientifique ] ","Hospitalité"]
["Autre : Autre : [ Manifestation professionnelle ]","Réunion professionnelle"]
["Autre : Autre : [ Manifestation professionnelle ] ","Réunion professionnelle"]
["Autre : Autre : [ Orateur / Intervenant ]","Orateur"]
["Autre : Autre : [ Orateur / Intervenant ] ","Orateur"]
["Autre : Autre : [ Parrainage ] ","Autre"]
["Autre : Autre : [ Partenariat ] ","Autre"]
["Autre : AUTRE : [ RECHERCHE SCIENTIFIQUE ] ","Recherche Clinique"]
["Autre : Autre : [ Reunion professionnelle ]","Réunion professionnelle"]
["Autre : Autre : [ Réunion professionnelle ]","Réunion professionnelle"]
["Autre : Autre : [ Reunion professionnelle ] ","Réunion professionnelle"]
["Autre : Autre : [ Réunion professionnelle ] ","Réunion professionnelle"]
["Autre : Autre : [Autre] ","Autre"]
["Autre : Autre : [collaboration scientifique à titre gratuit] ","Expert"]
["Autre : Autre : [Collaboration Scientifique non remuneree] ","Expert"]
["Autre : AUTRE : [COLLABORATION SCIENTIFIQUE]","Expert"]
["Autre : Autre : [Collaboration Scientifique] ","Expert"]
["Autre : Autre : [Communication scientifique]","Expert"]
["Autre : Autre : [Communication scientifique] ","Expert"]
["Autre : Autre : [Conseil communication] ","Conseil"]
["Autre : Autre : [Consultant (HCP)]","Conseil"]
["Autre : Autre : [Consultant (HCP)] ","Conseil"]
["Autre : AUTRE : [CONSULTANT] ","Conseil"]
["Autre : Autre : [Contrat autre] ","Autre"]
["Autre : AUTRE : [CONTRAT DE COLLABORATION SCIENTIFIQUE] ","Expert"]
["Autre : AUTRE : [CONTRAT DE COLLABORATION] ","Expert"]
["Autre : Autre : [Contrat de conseil & prestation]","Conseil"]
["Autre : AUTRE : [CONTRAT DE CONSEIL & PRESTATION] ","Conseil"]
["Autre : Autre : [CONTRAT DE CONSULTANT] ","Conseil"]
["Autre : AUTRE : [CONTRAT DE PARTENARIAT - LOCATION DE STAND] ","Réunion professionnelle"]
["Autre : AUTRE : [CONTRAT DE PARTENARIAT] ","Autre"]
["Autre : AUTRE : [CONTRAT D'ORATEUR] ","Orateur"]
["Autre : Autre : [CONTRAT_DE_PRESTATIONS_DE_SERVICES] ","Conseil"]
["Autre : Autre : [Convention d ’Hospitalite] ","Hospitalité"]
["Autre : AUTRE : [CONVENTION D HOSPITALITE] ","Hospitalité"]
["Autre : Autre : [Convention d’Hospitalite]","Hospitalité"]
["Autre : Autre : [Convention d’Hospitalite] ","Hospitalité"]
["Autre : Autre : [Convention d’Hospitalité] ","Hospitalité"]
["Autre : Autre : [Convention d\u0092Hospitalité] ","Hospitalité"]
["Autre : Autre : [Convention de partenariat]","Autre"]
["Autre : Autre : [CONVENTION D'HOSPITALITE] ","Hospitalité"]
["Autre : Autre : [Convention d'Hospitalité] ","Hospitalité"]
["Autre : AUTRE : [CONVENTION HOSPITALITE] ","Hospitalité"]
["Autre : Autre : [Convention mécénat]","Autre"]
["Autre : Autre : [Conventiond'hospitalité] ","Hospitalité"]
["Autre : AUTRE : [DROIT A L IMAGE] ","Autre"]
["Autre : Autre : [entretien]","Etude de marché"]
["Autre : Autre : [entretien] ","Etude de marché"]
["Autre : AUTRE : [ETUDE CLINIQUE] ","Recherche Clinique"]
["Autre : Autre : [EXPERT CONSULTANT] ","Expert"]
["Autre : Autre : [Expertise]","Expert"]
["Autre : Autre : [Expertise] ","Expert"]
["Autre : Autre : [HONORAIRES ou CONTRAT] ","Autre"]
["Autre : Autre : [HONORAIRES] ","Autre"]
["Autre : Autre : [Hospitalité Evenement Scientifique] ","Réunion professionnelle"]
["Autre : Autre : [Hospitalité Evenement]","Hospitalité"]
["Autre : AUTRE : [HOSPITALITE EVENEMENT] ","Hospitalité"]
["Autre : Autre : [Hospitalité Evenement] ","Hospitalité"]
["Autre : Autre : [HOSPITALITE] ","Hospitalité"]
["Autre : Autre : [Hospitalité] ","Hospitalité"]
["Autre : AUTRE : [INTERVENANT] ","Orateur"]
["Autre : Autre : [Lettre/mail Intervenant] ","Autre"]
["Autre : AUTRE : [LOCATION DE STAND]","Réunion professionnelle"]
["Autre : AUTRE : [LOCATION ESPACE STAND] ","Réunion professionnelle"]
["Autre : Autre : [Opération SA/Journée-Soirée] ","Hospitalité"]
["Autre : Autre : [Orateur]","Orateur"]
["Autre : Autre : [Orateur] ","Orateur"]
["Autre : Autre : [Partenariat / Collaboration scientifique]","Autre"]
["Autre : AUTRE : [PARTENARIAT/STAND] ","Réunion professionnelle"]
["Autre : Autre : [PARTENARIAT] ","Autre"]
["Autre : AUTRE : [PARTICIPATION RÉUNION SCIENTIFIQUE]","Réunion professionnelle"]
["Autre : AUTRE : [PARTICIPATION RÉUNION SCIENTIFIQUE] ","Réunion professionnelle"]
["Autre : AUTRE : [PARTICIPATION R�ION SCIENTIFIQUE]","Autre"]
["Autre : AUTRE : [PARTICIPATION R�ION SCIENTIFIQUE] ","Réunion professionnelle"]
["Autre : AUTRE : [PRESTATION DE SERVICES] ","Conseil"]
["Autre : AUTRE : [PRESTATIONS DE SERVICE] ","Conseil"]
["Autre : AUTRE : [PROJET] ","Autre"]
["Autre : Autre : [Recherche/Développement]","Recherche Clinique"]
["Autre : Autre : [Recherche/Développement] ","Recherche Clinique"]
["Autre : Autre : [Repas] ","Autre"]
["Autre : Autre : [Réunion] ","Réunion professionnelle"]
["Autre : Autre : [RP Prédéclarée Hospitalité] ","Hospitalité"]
["Autre : Autre : [RP VACCINER EN 2012 : Q/R] ","Autre"]
["Autre : Autre : [RP] ","Autre"]
["Autre : Autre : [Stand] ","Réunion professionnelle"]
["Autre : AUTRE : ASSISTANCE ","Autre"]
["Autre : AUTRE : CANCER DU POUMON EGFR MUTE ","Expert"]
["Autre : AUTRE : CONSULTANT SCIENTIFIQUE ","Conseil"]
["Autre : Autre : Contrat consultant ","Conseil"]
["Autre : Autre : contrat de collaboration ","Autre"]
["Autre : AUTRE : CONTRAT DE PRESTATIONS DE SERVICES ","Conseil"]
["Autre : Autre : Contrat de Sponsoring Evènement Commercial ","Autre"]
["Autre : Autre : Contrat de Visites sur Site ","Autre"]
["Autre : AUTRE : CONVENTION DE RECHERCHE ","Recherche Clinique"]
["Autre : AUTRE : CONVENTION D'HOSPITALITE ","Hospitalité"]
["Autre : AUTRE : CONVENTION D'HOSPITALITE ET DE COLLABORATION SCIENTIFIQUE ","Expert"]
["Autre : autre : enquête téléphonique ","Etude de marché"]
["Autre : autre : enquête web ","Etude de marché"]
["Autre : Autre : Etude de marché","Etude de marché"]
["Autre : Autre : ETUDE DE MARCHE ","Etude de marché"]
["Autre : Autre : Etude de marché ","Etude de marché"]
["Autre : AUTRE : EXPERT INTERVENANT ","Orateur"]
["Autre : AUTRE : EXPERTISE PARTAGEE ","Expert"]
["Autre : Autre : HOSPITALITE RP ","Hospitalité"]
["Autre : Autre : Intervenant (Orateur/ ModÃ©rateur/ PrÃ©sident...) ","Orateur"]
["Autre : Autre : Intervenant (Orateur/ Modérateur/ Président...)","Orateur"]
["Autre : Autre : Intervenant (Orateur/ Modérateur/ Président...) ","Orateur"]
["Autre : AUTRE : LOCATION DE STAND ","Réunion professionnelle"]
["Autre : AUTRE : MANIFESTATION DE PROMOTION ","Orateur"]
["Autre : Autre : Manifestation Scientifique","Réunion professionnelle"]
["Autre : Autre : Manifestation Scientifique ","Réunion professionnelle"]
["Autre : AUTRE : ORATEUR","Orateur"]
["Autre : AUTRE : ORATEUR ","Orateur"]
["Autre : AUTRE : Partenariat ","Autre"]
["Autre : AUTRE : PARTICIPATION A MANIFESTATION SCIENTIFIQUE","Réunion professionnelle"]
["Autre : AUTRE : PARTICIPATION A MANIFESTATION SCIENTIFIQUE ","Réunion professionnelle"]
["Autre : Autre : Prestation de service ","Conseil"]
["Autre : AUTRE : REFLEXION DANS LE DOMAINE DU CANCER GASTRIQUE METASTASE HER2+ ","Expert"]
["Autre : AUTRE : REFLEXION SCIENTFIQUE AUTOUR DE L'IMMUNOTHERAPIE DANS LA PRISE EN CHARGE DU CANCER BRONCHIQUE ","Expert"]
["Autre : Autre : Réunion professionnelle ou scientifique","Réunion professionnelle"]
["Autre : Autre : Reunion professionnelle ou scientifique ","Réunion professionnelle"]
["Autre : Autre : Réunion professionnelle ou scientifique ","Réunion professionnelle"]
["Autre : Autre : Réunion scientifique ","Réunion professionnelle"]
["Autre : Autre : site de référence ","Autre"]
["Autre : Autre : Stand ","Réunion professionnelle"]
["Autre : Autre :[Collaboration Scientifique] ","Expert"]
["Autre : Autre :Contrat de location de stand ","Réunion professionnelle"]
["Autre : AUTRE [CONNEXION] ","Autre"]
["Autre : AUTRE [CONTRAT D ORATEUR]","Orateur"]
["Autre : AUTRE [CONTRAT D ORATEUR] ","Orateur"]
["Autre : AUTRE [CONTRAT DE CONSULTANT]","Conseil"]
["Autre : AUTRE [CONTRAT DE CONSULTANT] ","Conseil"]
["Autre : AUTRE [CONTRAT ORATEUR] ","Orateur"]
["Autre : AUTRE [CONVENTION D EXPERT] ","Expert"]
["Autre : AUTRE [CONVENTION D HOSPITALITE]","Hospitalité"]
["Autre : AUTRE [CONVENTION D HOSPITALITE] ","Hospitalité"]
["Autre : Autre [CONVENTION D ORATEUR] ","Orateur"]
["Autre : AUTRE [CONVENTION DE PARTENARIAT] ","Autre"]
["Autre : AUTRE [CONVENTION HOSPITALITE] ","Hospitalité"]
["Autre : AUTRE [LOCATION DE STAND] ","Réunion professionnelle"]
["Autre : AUTRE [PRESTATIONS DE SERVICE] ","Conseil"]
["Autre : AUTRE ETUDE DE MARCHE","Etude de marché"]
["Autre : AUTRE ETUDE DE MARCHE ","Etude de marché"]
["Autre : AUTRE: [CONTRAT DE COLLABORATION SCENTIFIQUE] ","Expert"]
["Autre : AUTRE: [CONTRAT DE COLLABORATION SCIENTIFIQUE]","Expert"]
["Autre : AUTRE: [CONTRAT DE COLLABORATION SCIENTIFIQUE] ","Expert"]
["Autre : AUTRE: [CONTRAT DE PRESTATIONS DE SERVICES] ","Conseil"]
["Autre : Autre: [Convention d'hospitalité] ","Hospitalité"]
["Autre : AUTRE: [CONVENTION HOSPITALIERE] ","Autre"]
["Autre : AUTRE: [CONVENTION HOSPITALITE]","Hospitalité"]
["Autre : AUTRE: [CONVENTION HOSPITALITE] ","Hospitalité"]
["Autre : AUTRE: [ETUDE DE MARCHE] ","Etude de marché"]
["Autre : AUTRE: [HOSPITALITE] ","Hospitalité"]
["Autre : Autre: [Prestation de service] ","Conseil"]
["Autre : Autre: Collaboration pour une Etude de Marché ","Etude de marché"]
["Autre : AUTRE: ETUDES DE MARCHE SONDAGES","Etude de marché"]
["Autre : AUTRE: ETUDES DE MARCHE SONDAGES ","Etude de marché"]
["Autre : Autre: Intervenant ","Orateur"]
["Autre : Autre: Orateur ","Orateur"]
["Autre : Autre: Phone consult ","Autre"]
["Autre : AVENANT A CONVENTION DE PRESTATION DE SERVICES ","Conseil"]
["Autre : AVENANT A LA CONVENTION DE PRESTATION DE SERVICES ","Conseil"]
["Autre : Board","Réunion de « Board »"]
["Autre : Board ","Réunion de « Board »"]
["Autre : Bourse d'étude, de recherche ","Recherche Clinique"]
["Autre : collaboration scientifique ","Expert"]
["Autre : Collaboration Scientifique - Conseil","Conseil"]
["Autre : Collaboration Scientifique - Conseil ","Conseil"]
["Autre : CONFÉRENCE PRESSE ","Autre"]
["Autre : Congr\u008as / Symposium","Réunion professionnelle"]
["Autre : Congr\u008as / Symposium ","Réunion professionnelle"]
["Autre : CONGRES ","Réunion professionnelle"]
["Autre : Congres / Symposium","Réunion professionnelle"]
["Autre : Congrés / Symposium","Réunion professionnelle"]
["Autre : Congrès / Symposium","Réunion professionnelle"]
["Autre : CONGRES / SYMPOSIUM ","Réunion professionnelle"]
["Autre : Congrés / Symposium ","Réunion professionnelle"]
["Autre : Congrès / Symposium ","Réunion professionnelle"]
["Autre : CONGRES / SYMPOSIUM / BOARD ","Réunion professionnelle"]
["Autre : CONGRES / SYMPOSIUM / RP ","Réunion professionnelle"]
["Autre : CONGRÈS / SYMPOSIUM/ RP ","Réunion professionnelle"]
["Autre : CONGRES SYMPOSIUM ","Réunion professionnelle"]
["Autre : CONGRES/ SYMPOSIUM ","Réunion professionnelle"]
["Autre : CONGRES/SYMPO ","Réunion professionnelle"]
["Autre : CONGRES/SYMPOSIUM","Réunion professionnelle"]
["Autre : congrès/symposium","Réunion professionnelle"]
["Autre : CONGRES/SYMPOSIUM ","Réunion professionnelle"]
["Autre : congrés/symposium ","Réunion professionnelle"]
["Autre : congrès/symposium ","Réunion professionnelle"]
["Autre : congrès/symposium3 ","Réunion professionnelle"]
["Autre : CONSEIL","Conseil"]
["Autre : CONSEIL ","Conseil"]
["Autre : CONSEIL - PRESTATIONS MULTIPLES ","Conseil"]
["Autre : CONSEIL / PRESTATION ","Conseil"]
["Autre : Conseil : Invitation Board ","Réunion de « Board »"]
["Autre : Conseil : Invitation Congrès ","Réunion professionnelle"]
["Autre : Conseil : Orateur Board ","Réunion de « Board »"]
["Autre : Conseil en R&D ","Conseil"]
["Autre : CONSEIL ET COMMUNICATION MEDICO-SCIENTIFIQUE ","Conseil"]
["Autre : Conseil et Communication Médico-Scientifique ","Conseil"]
["Autre : conseil réunion scientifique ","Conseil"]
["Autre : Consultant ","Conseil"]
["Autre : Consultant (HCP) ","Conseil"]
["Autre : Contrat consultant","Conseil"]
["Autre : Contrat consultant ","Conseil"]
["AUTRE : CONTRAT DE COLLABORATION SCIENTIFIQUE ","Expert"]
["Autre : CONTRAT DE CONFIDENTIALITE ","Autre"]
["Autre : Contrat de conseil scientifique ","Conseil"]
["Autre : CONTRAT DE CONSULTANT ","Conseil"]
["Autre : contrat de consultant/expert/intervenant ","Orateur"]
["Autre : Contrat de Formation ","Autre"]
["Autre : CONTRAT DE LOCATION DE STAND ","Réunion professionnelle"]
["Autre : CONTRAT DE PARTENARIAT - PRESTATION ","Conseil"]
["Autre : CONTRAT DE PRESTATION DE RECHERCHE ","Recherche Clinique"]
["Autre : CONTRAT DE PRESTATION DE SERVICE ","Conseil"]
["Autre : Contrat de recherche interventionnelle et non-interventionnelle ","Recherche Clinique"]
["Autre : Contrat intervenant","Orateur"]
["Autre : Contrat intervenant ","Orateur"]
["Autre : CONTRAT ORATEUR ","Orateur"]
["Autre : Contrat Parrainage Inauguration ","Autre"]
["Autre : CONTRATS D'HOSPITALITE ","Hospitalité"]
["Autre : Convention assimilé à de la recherche ","Recherche Clinique"]
["Autre : CONVENTION D HOSPITALITE","Hospitalité"]
["Autre : CONVENTION D HOSPITALITE ","Hospitalité"]
["Autre : CONVENTION D’HOSPITALITÉ","Hospitalité"]
["Autre : CONVENTION D’HOSPITALITE ","Hospitalité"]
["Autre : CONVENTION D’HOSPITALITÉ ","Hospitalité"]
["Autre : CONVENTION D'ACHAT : FORMATION ","Autre"]
["Autre : CONVENTION DE COLLABORATION","Expert"]
["Autre : CONVENTION DE COLLABORATION ","Expert"]
["AUTRE : CONVENTION DE COLLABORATION SCIENTIFIQUE ","Expert"]
["Autre : CONVENTION DE CONSULTANT ","Conseil"]
["Autre : CONVENTION DE DONS (SUBVENTIONS) ","Autre"]
["Autre : CONVENTION DE PARTENARIAT ","Autre"]
["Autre : Convention de prestation de service ","Conseil"]
["Autre : CONVENTION DE PRESTATION DE SERVICES","Conseil"]
["Autre : Convention de prestation de services ","Conseil"]
["Autre : CONVENTION DE RECHERCHE","Recherche Clinique"]
["Autre : CONVENTION DE RECHERCHE ","Recherche Clinique"]
["Autre : Convention de Recherche Biomédicale ","Recherche Clinique"]
["Autre : CONVENTION DE RECHERCHE BIOMEDICALE TRIPARTITE ","Recherche Clinique"]
["Autre : Convention de recherche biomédicale. ","Recherche Clinique"]
["Autre : CONVENTION D'HOSPITALITÃ‰ ","Hospitalité"]
["Autre : CONVENTION D'HOSPITALITE","Hospitalité"]
["AUTRE : CONVENTION D'HOSPITALITE ","Hospitalité"]
["Autre : Convention d'Hospitalité ","Hospitalité"]
["AUTRE : CONVENTION D'HOSPITALITE ET DE COLLABORATION SCIENTIFIQUE ","Expert"]
["Autre : CONVENTION HOSPITALITE ","Hospitalité"]
["Autre : CONVENTION ORATEUR ","Orateur"]
["Autre : Convention pour la participation à un comité de surveillance et de suivi d’une recherche clinique ","Autre"]
["Autre : Convention unique Etablissement associé version septembre 2016 ","Autre"]
["Autre : CONVENTIONS DE RECHERCHE BIO MEDICALE","Recherche Clinique"]
["Autre : CONVENTIONS DE RECHERCHE BIO MEDICALE ","Recherche Clinique"]
["Autre : Crossborder ","Autre"]
["Autre : ENGAGEMENT UNILATERAL","Autre"]
["autre : enquête téléphonique","Etude de marché"]
["autre : enquête téléphonique ","Etude de marché"]
["autre : enquête téléphonique ","Etude de marché"]
["autre : enquête téléphonique ","Etude de marché"]
["autre : enquête web","Etude de marché"]
["autre : enquête web ","Etude de marché"]
["autre : ETUDE ","Etude de marché"]
["Autre : ETUDE DE MARCHE","Etude de marché"]
["Autre : Etude de marché","Etude de marché"]
["Autre : ETUDE DE MARCHE ","Etude de marché"]
["Autre : Etude de marché ","Etude de marché"]
["Autre : EXPERT","Expert"]
["Autre : EXPERT ","Expert"]
["AUTRE : EXPERT INTERVENANT","Orateur"]
["AUTRE : EXPERT INTERVENANT ","Expert"]
["AUTRE : EXPERTISE PARTAGEE ","Expert"]
["Autre : Hospitalité Congrès Symposium ","Réunion professionnelle"]
["Autre : HOSPITALITE RP/CONGRES / SYMPO","Réunion professionnelle"]
["Autre : HOSPITALITE RP/CONGRES / SYMPO ","Hospitalité"]
["Autre : Intervenant (Orateur/ ModÃ©rateur/ PrÃ©sident...) ","Orateur"]
["Autre : Intervenant (Orateur/ Modérateur/ Président...) ","Orateur"]
["Autre : Interview","Expert"]
["Autre : Interview ","Expert"]
["Autre : INVITATION ","Hospitalité"]
["Autre : LETTRE ACCORD ","Autre"]
["Autre : LOCATION DE STAND ","Réunion professionnelle"]
["AUTRE : MANIFESTATION DE PROMOTION ","Autre"]
["Autre : Manifestation scientifique","Réunion professionnelle"]
["Autre : Manifestation scientifique ","Réunion professionnelle"]
["Autre : MARKETING","Conseil"]
["Autre : Marketing ","Etude de marché"]
["Autre : Marketing et Parrainage ","Autre"]
["Autre : Orateur","Orateur"]
["Autre : Orateur ","Orateur"]
["Autre : ORATEUR INTERVENANT ","Orateur"]
["Autre : ORATEUR REUNION POST EULAR MONTPELLIER ","Orateur"]
["Autre : ORATEUR RP/CONGRES/SYMPO ","Orateur"]
["Autre : ORATEUR RP/CONGRES/SYMPOSIUM ","Orateur"]
["Autre : ORATEUR SOIREE EPU \"Actualités sur les Biothérapies\" ","Orateur"]
["Autre : ORATEUR/MODERATEUR ","Orateur"]
["AUTRE : PARTENARIAT ","Autre"]
["Autre : Partenariat / Collaboration scientifique ","Autre"]
["Autre : PARTENARIAT MEDICAL ","Expert"]
["Autre : PARTENARIAT RECHERCHE ","Recherche Clinique"]
["AUTRE : PARTICIPATION A MANIFESTATION SCIENTIFIQUE","Réunion professionnelle"]
["AUTRE : PARTICIPATION A MANIFESTATION SCIENTIFIQUE ","Orateur"]
["Autre : Participation à une étude de marché ","Etude de marché"]
["Autre : PARTICIPATION REUNION SCIENTIFIQUE","Réunion professionnelle"]
["Autre : PARTICIPATION REUNION SCIENTIFIQUE ","Réunion professionnelle"]
["Autre : PRESTATION CONSEIL SCIENTIF/ PARTICIPATION BOARD ","Réunion de « Board »"]
["Autre : Prestation de service","Conseil"]
["Autre : Prestation de service ","Conseil"]
["Autre : PRESTATION SERVICE ","Conseil"]
["Autre : prestations de services ","Conseil"]
["Autre : PRESTATIONS DE SERVICES AVEC DES PERSONNES MORALES ","Conseil"]
["Autre : Pret d'un instrument ","Autre"]
["Autre : PUBLICITE STAND ","Réunion professionnelle"]
["Autre : RÃ©union scientifique ","Réunion professionnelle"]
["Autre : REALISATION D'UNE ENQUETE ","Etude de marché"]
["Autre : REALISATION D'UNE ENQUÊTE ","Etude de marché"]
["Autre : RECHERCHE - ETUDE OBSERVATIONNELLE - OBSERVATEUR","Recherche Clinique"]
["Autre : RECHERCHE - ETUDE OBSERVATIONNELLE - OBSERVATEUR ","Etude de marché"]
["Autre : RECHERCHE AVENANT ","Recherche Clinique"]
["Autre : RECHERCHE BIOMÉDICALE","Recherche Clinique"]
["Autre : RECHERCHE BIOMEDICALE ","Recherche Clinique"]
["Autre : recherche biomédicale ","Recherche Clinique"]
["Autre : Recherche biomédicale - Avenant n° 1 ","Recherche Clinique"]
["Autre : RECHERCHE CLINIQUE","Recherche Clinique"]
["Autre : Recherche Clinique ","Recherche Clinique"]
["Autre : Recherche et Développement ","Recherche Clinique"]
["Autre : Recherche et Evaluation ","Recherche Clinique"]
["Autre : RECHERCHE PRET ","Recherche Clinique"]
["Autre : RECHERCHE SCIENTIFIQUE ","Recherche Clinique"]
["Autre : Recherche/Développement ","Recherche Clinique"]
["AUTRE : REFLEXION SCIENTFIQUE EVENEMENT INTERDISCIPLINAIRE ","Conseil"]
["Autre : Reunion Medicale","Réunion professionnelle"]
["Autre : Reunion Medicale ","Réunion professionnelle"]
["Autre : Reunion professionnelle ou scientifique","Réunion professionnelle"]
["Autre : Réunion professionnelle ou scientifique","Réunion professionnelle"]
["Autre : Reunion professionnelle ou scientifique ","Réunion professionnelle"]
["Autre : Réunion professionnelle ou scientifique ","Réunion professionnelle"]
["Autre : Réunion scientifique","Réunion professionnelle"]
["Autre : REUNION SCIENTIFIQUE ","Réunion professionnelle"]
["Autre : Réunion scientifique ","Réunion professionnelle"]
["Autre : RP de type EPU (2007-01)","Réunion professionnelle"]
["Autre : RP de type EPU (2007-01)","Orateur"]
["Autre : RP de type EPU (2007-01) ","Réunion professionnelle"]
["Autre : subventions ","Autre"]
["Autre : SUVENTIONS ","Autre"]
["Autre : VISITE USINE ","Autre"]
["AUTRE [CONNEXION]","Autre"]
["AUTRE [CONNEXION] ","Autre"]
["AUTRE [CONTRAT D ORATEUR]","Orateur"]
["AUTRE [CONTRAT D ORATEUR] ","Orateur"]
["AUTRE [CONTRAT DE CONSULTANT]","Conseil"]
["AUTRE [CONTRAT DE CONSULTANT] ","Conseil"]
["AUTRE [CONTRAT DE PRESTATION DE SERVICE] ","Conseil"]
["AUTRE [CONTRAT ORATEUR]","Orateur"]
["AUTRE [CONTRAT ORATEUR] ","Orateur"]
["AUTRE [CONVENTION D EXPERT]","Expert"]
["AUTRE [CONVENTION D EXPERT] ","Expert"]
["Autre [CONVENTION D HOSPITALITE]","Hospitalité"]
["AUTRE [CONVENTION D HOSPITALITE] ","Hospitalité"]
["AUTRE [CONVENTION D ORATEUR]","Orateur"]
["AUTRE [CONVENTION D ORATEUR] ","Orateur"]
["AUTRE [CONVENTION DE PARTENARIAT] ","Autre"]
["AUTRE [CONVENTION HOSPITALITE] ","Hospitalité"]
["AUTRE [EXPERT]","Expert"]
["AUTRE [EXPERT] ","Expert"]
["AUTRE [ORATEUR] ","Orateur"]
["AUTRE ETUDE DE MARCHE","Etude de marché"]
["AUTRE ETUDE DE MARCHE ","Etude de marché"]
["AUTRE: [CONTRAT DE COLLABORATION SCENTIFIQUE]","Expert"]
["AUTRE: [CONTRAT DE COLLABORATION SCENTIFIQUE] ","Expert"]
["AUTRE: [CONTRAT DE COLLABORATION SCIENTIFIQUE]","Expert"]
["AUTRE: [CONTRAT DE COLLABORATION SCIENTIFIQUE] ","Expert"]
["AUTRE: [CONTRAT DE PRESTATIONS DE SERVICES] ","Conseil"]
["AUTRE: [CONTRAT INVESTIGATEUR] ","Recherche Clinique"]
["Autre: [Convention d'hospitalité] ","Hospitalité"]
["AUTRE: [CONVENTION HOSPITALITE]","Hospitalité"]
["AUTRE: [CONVENTION HOSPITALITE] ","Hospitalité"]
["AUTRE: [CONVENTION] ","Autre"]
["AUTRE: [DONS] ","Autre"]
["AUTRE: [ETUDE DE MARCHE]","Etude de marché"]
["AUTRE: [ETUDE DE MARCHE] ","Etude de marché"]
["AUTRE: [HOSPITALITE] ","Hospitalité"]
["AUTRE: [PARTENARIAT] ","Autre"]
["AUTRE: 27EME JOURNEE SCIENTIFIQUE DU GRIO ","Réunion professionnelle"]
["Autre: Collaboration pour une Etude de Marché","Etude de marché"]
["Autre: Collaboration pour une Etude de Marché","Etude de marché"]
["AUTRE: COLLABORATION POUR UNE ETUDE DE MARCHÉ ","Etude de marché"]
["AUTRE: CONVENTION D'HOSPITALITE ","Hospitalité"]
["AUTRE: DON ","Autre"]
["autre: ETUDE ","Etude de marché"]
["AUTRE: ETUDES DE MARCHE SONDAGES ","Etude de marché"]
["Autre: Intervenant ","Orateur"]
["AUTRE: PARTENARIAT ","Autre"]
["AUTRE: PRESTATION ","Conseil"]
["autre: REDACTION D'ARTICLES ","Rédacteur"]
["AUTRE:[CONVENTION HOSPITALITE] ","Hospitalité"]
["Autre:[RP] ","Autre"]
["AUTRE[EXPERTISE] ","Expert"]
["Autre[INTERVENTION EPU LIMOGES 13/01/2015] ","Orateur"]
["Autre[INTERVENTION REUNION BEZIERS 21 MAI] ","Réunion professionnelle"]
["Autre[INTERVENTION REUNION BEZIERS 21 MAI] ","Orateur"]
["Autre[INTERVENTION REUNION P EULAR LIMOGES 8 OCTOBRE 15] ","Orateur"]
["Autre[INTERVENTION REUNION P EULAR LYON LE 2 JUILLET] ","Orateur"]
["Autre[ORATEUR REUNION POST EULAR AGEN] ","Orateur"]
["Autre[ORATEUR REUNION POST EULAR BORDEAUX] ","Orateur"]
["Autre[ORATEUR REUNION POST EULAR PARIS 94] ","Orateur"]
["Autre[ORATEUR REUNION POST EULAR PARIS] ","Orateur"]
["Autre[ORATEUR REUNION POST EULAR ROUEN] ","Orateur"]
["Autre[ORATEUR REUNION POST EULAR ST ETENNE 18 SEPTEMBRE 14] ","Orateur"]
["Autre[ORATEUR REUNION POST EULAR TOULOUSE] ","Orateur"]
["Autre[ORATEUR REUNION POST EULAR TOURS]","Orateur"]
["AUTRE_CONNEXION ","Autre"]
["Autres ","Autre"]
["Autres prestations de services","Conseil"]
["Autres prestations de services ","Conseil"]
["AVENANT 2 CONVENTION DE RECHERCHE ","Recherche Clinique"]
["Board ","Réunion de « Board »"]
["Collaboration Editions Scientifiques ","Rédacteur"]
["Collaboration Scientifique - Conseil ","Conseil"]
["COLLABORATION SCIENTIFIQUE ET PROFESSIONNELLE ","Expert"]
["Comite Echange scientifique ","Expert"]
["Comite Expert","Expert"]
["Comite Experts ","Expert"]
["COMITE SCIENTIFIQUE ","Expert"]
["COMITÉ SCIENTIFIQUE ","Expert"]
["CONFÉRENCE PRESSE ","Autre"]
["CONFÉRENCE PRESSE ","Orateur"]
["Congès / Symposium ","Réunion professionnelle"]
["Congr\u008as / Symposium","Réunion professionnelle"]
["Congr\u008as / Symposium ","Réunion professionnelle"]
["CongrÃ¨s / Symposium ","Réunion professionnelle"]
["CONGRES","Réunion professionnelle"]
["Congrès","Réunion professionnelle"]
["CONGRES ","Réunion professionnelle"]
["Congrès ","Réunion professionnelle"]
["CONGRES / SYMPOSIUM","Réunion professionnelle"]
["Congrès / symposium","Réunion professionnelle"]
["Congres / Symposium ","Réunion professionnelle"]
["Congrès / Symposium ","Réunion professionnelle"]
["CONGRES / SYMPOSIUM / BOARD ","Réunion de « Board »"]
["CONGRÈS / SYMPOSIUM/ RP ","Réunion professionnelle"]
["CONGRES REUNION SCIENTIFIQUE STRASBOURG ","Réunion professionnelle"]
["CONGRES SYMPOSIUM","Réunion professionnelle"]
["CONGRES SYMPOSIUM ","Réunion professionnelle"]
["CONGRES, SYMPOSIUM ","Réunion professionnelle"]
["CONGRES/SYMPO ","Réunion professionnelle"]
["CONGRES/SYMPOSIUM","Réunion professionnelle"]
["CONGRES/SYMPOSIUM ","Réunion professionnelle"]
["Congrès/symposium ","Réunion professionnelle"]
["congrès-symposium","Réunion professionnelle"]
["congrès-symposium ","Réunion professionnelle"]
["conseil","Conseil"]
["Conseil ","Conseil"]
["CONSEIL ","Conseil"]
["Conseil : Invitation Board ","Réunion de « Board »"]
["Conseil : Invitation Congrès ","Réunion professionnelle"]
["Conseil : Orateur Board ","Réunion de « Board »"]
["Conseil : Orateur RP ","Orateur"]
["Conseil et Communication Médico-Scientifique ","Conseil"]
["Conseil Relations professionnelles ","Conseil"]
["Conseil réunion d'experts ","Conseil"]
["CONSEIL SCIENTIFIQUE ","Expert"]
["Conseil, réunion d'experts ","Conseil"]
["Consultance ","Conseil"]
["Consultance (rhumatologie) ","Conseil"]
["CONSULTANT ","Conseil"]
["Consultation Scientifique ","Conseil"]
["Contrat / expertise autre que scientifique ","Expert"]
["Contrat de conseil scientifique","Expert"]
["Contrat de conseil scientifique ","Expert"]
["CONTRAT DE CONSULTANT ","Conseil"]
["CONTRAT DE PARTENARIAT ","Autre"]
["CONTRAT DE PRESTATION DE SERVICE ","Conseil"]
["CONTRAT DE PRESTATION DE SERVICES ","Conseil"]
["Contrat de recherche interventionnelle et non-interventionnelle ","Recherche Clinique"]
["Contrat d'essai clinique ","Recherche Clinique"]
["Contrat d'expert scientifique, contrat dans le cadre d'une recherche, contrat de consultant","Conseil"]
["Contrat d'expert scientifique, contrat dans le cadre d'une recherche, contrat de consultant ","Conseil"]
["Contrat d'intervenant à une manifestation / orateur","Orateur"]
["Contrat d'intervenant à une manifestation / orateur ","Orateur"]
["Contrat d'interview","Expert"]
["Contrat d'interview ","Expert"]
["CONTRAT D'ORATEUR ","Orateur"]
["CONTRAT ORATEUR ","Orateur"]
["CONTRATS D'HOSPITALITE","Hospitalité"]
["CONTRATS D'HOSPITALITE ","Hospitalité"]
["Convention assimilé à de la recherche ","Recherche Clinique"]
["CONVENTION D HOSPITALITE","Hospitalité"]
["CONVENTION D HOSPITALITE ","Hospitalité"]
["CONVENTION D’HOSPITALITÉ","Hospitalité"]
["CONVENTION D’HOSPITALITE ","Hospitalité"]
["CONVENTION D’HOSPITALITÉ ","Hospitalité"]
["CONVENTION DE COLLABORATION","Expert"]
["CONVENTION DE COLLABORATION ","Expert"]
["CONVENTION DE CONSULTANT ","Conseil"]
["Convention de prestation de service ","Conseil"]
["CONVENTION DE PRESTATION DE SERVICES ","Conseil"]
["CONVENTION DE RECHERCHE","Recherche Clinique"]
["CONVENTION DE RECHERCHE ","Recherche Clinique"]
["Convention de recherche biomédicale /Annexe: Roles et responsabilites des differentes parties impliquees","Recherche Clinique"]
["Convention de recherche biomédicale /Annexe: Roles et responsabilites des differentes parties impliquees ","Recherche Clinique"]
["Convention de recherche biomédicale Investigateur-Coordinateur ","Recherche Clinique"]
["CONVENTION D'HOSPITALITE","Hospitalité"]
["CONVENTION D'HOSPITALITÉ","Hospitalité"]
["CONVENTION D'HOSPITALITE ","Hospitalité"]
["CONVENTION D'HOSPITALITÉ ","Hospitalité"]
["CONVENTION D'ORATEUR RÉUNION D'ÉCHANGES SCIENTIFIQUES ","Orateur"]
["CONVENTION D'ORATEUR RÉUNION PROFESSIONNELLE ","Orateur"]
["CONVENTION HOSPITALITE ","Hospitalité"]
["CONVENTION ORATEUR ","Orateur"]
["CONVENTION RECHERCHE","Recherche Clinique"]
["CONVENTION RECHERCHE ","Recherche Clinique"]
["CONVENTIONDE RECHERCHE ","Recherche Clinique"]
["CONVENTIONS CONSEIL","Conseil"]
["CONVENTIONS ORATEUR ","Orateur"]
["Don / Mécénat","Autre"]
["Don / Mécénat ","Autre"]
["ECCEO ","Réunion professionnelle"]
["EDITION ","Rédacteur"]
["EFIC ","Réunion professionnelle"]
["Enquête / Etude / Etude de marché (hors recherche)","Etude de marché"]
["Enquête / Etude / Etude de marché (hors recherche) ","Etude de marché"]
["EPU ","Réunion professionnelle"]
["ESCEO ","Autre"]
["ÉTUDE / INTERVIEW","Etude de marché"]
["ÉTUDE / INTERVIEW ","Etude de marché"]
["ETUDE DE MARCHE","Etude de marché"]
["ETUDE DE MARCHE","Etude de marché"]
["ETUDE DE MARCHE","Etude de marché"]
["ETUDE DE MARCHE ","Etude de marché"]
["Etudes","Etude de marché"]
["Etudes ","Autre"]
["EULAR ","Réunion professionnelle"]
["Evaluation ","Autre"]
["Evaluation produit cosmétique ","Autre"]
["EXPERT","Expert"]
["EXPERT ","Expert"]
["EXPERTISE ","Expert"]
["EXPERTISE SCIENTIFIQUE","Réunion professionnelle"]
["EXPERTISE SCIENTIFIQUE ","Expert"]
["FORMATION","Formateur"]
["FORMATION ","Formateur"]
["FORMATION CONTINUE ","Autre"]
["FORMATION PERSONNEL ","Autre"]
["Formation, Conseil et Congrès ","Conseil"]
["Hospitalité","Hospitalité"]
["Hospitalité ","Hospitalité"]
["HOSPITALITE RP/CONGRES / SYMPO","Hospitalité"]
["HOSPITALITE RP/CONGRES / SYMPO ","Hospitalité"]
["HOSPITALITE RP/CONGRES/SYMPO ","Hospitalité"]
["HOSPITALITE RP/CONGRES/SYMPOSIUM","Réunion professionnelle"]
["HOSPITALITE RP/CONGRES/SYMPOSIUM ","Réunion professionnelle"]
["Inscription congrès","Réunion professionnelle"]
["Inscription congrès ","Réunion professionnelle"]
["INTERNATIONAL SYMPOSIUM ON INTRA ARTICULAR TREATMENT ","Réunion professionnelle"]
["Interview ","Etude de marché"]
["INVITATION","Hospitalité"]
["INVITATION ","Hospitalité"]
["LETTRE ACCORD","Autre"]
["LETTRE ACCORD ","Autre"]
["Manifestation scientifique - congrès - table ronde - ... (A SUP. APRES FIX INDACFOBJCNV) ","Réunion professionnelle"]
["Marketing","Etude de marché"]
["Marketing","Etude de marché"]
["MARKETING ","Etude de marché"]
["ORATEUR","Orateur"]
["ORATEUR ","Orateur"]
["ORATEUR INTERVENANT ","Orateur"]
["ORATEUR RP/CONGRES/SYMPO","Orateur"]
["Orateur RP/Congres/Sympo ","Orateur"]
["ORATEUR RP/CONGRES/SYMPOSIUM","Orateur"]
["ORATEUR RP/CONGRES/SYMPOSIUM ","Orateur"]
["Orateur symposium","Orateur"]
["Parrainage","Autre"]
["Parrainage ","Autre"]
["Partenariat","Autre"]
["Partenariat ","Autre"]
["PARTENARIAT MEDICAL ","Autre"]
["PARTICIPATION À UN COMITÉ CONSULTATIF SCIENTIFIQUE SUR LA SPÉCIALITÉ CINRYZE À PARIS LE 02/07/2013 ","Expert"]
["Participation à une étude de marché","Etude de marché"]
["Participation à une étude de marché ","Etude de marché"]
["PHYSIOPATHOLOGIE DE L'ARTHROSE ","Autre"]
["PRESTATION","Conseil"]
["PRESTATION ","Conseil"]
["PRESTATION CONSEIL SCIENTIF/ PARTICIPATION BOARD ","Conseil"]
["PRESTATION DE SERVICES ","Conseil"]
["Prestation en tant que formateur et orateur ","Formateur"]
["PRESTATION ÉVÈNEMENTIELLE (STAND, AUTRE) ","Réunion professionnelle"]
["prestation scientifique ","Conseil"]
["PRESTATION SERVICE","Conseil"]
["PRESTATION SERVICE ","Conseil"]
["PRESTATION SERVICE ","Conseil"]
["Prêt de matériel ","Autre"]
["RACHIS AQUITANE CONGRES ","Réunion professionnelle"]
["Recherche","Recherche Clinique"]
["RECHERCHE ","Recherche Clinique"]
["RECHERCHE BIOMEDICALE","Recherche Clinique"]
["RECHERCHE BIOMÉDICALE","Recherche Clinique"]
["RECHERCHE BIOMEDICALE ","Recherche Clinique"]
["recherche biomédicale ","Recherche Clinique"]
["Recherche biomédicale - Avenant n° 1 ","Recherche Clinique"]
["Recherche biomédicale - Avenant n° 2 ","Recherche Clinique"]
["Recherche biomédicale - Avenant n° 3 ","Recherche Clinique"]
["RECHERCHE CLINIQUE","Recherche Clinique"]
["Recherche Clinique ","Recherche Clinique"]
["Recherche et Développement ","Recherche Clinique"]
["RECHERCHE MARKETING ","Etude de marché"]
["Recherche non interventionnelle ou observationnelle ","Etude de marché"]
["RECHERCHE PRET ","Autre"]
["Recherche scientifique","Recherche Clinique"]
["Recherche scientifique ","Recherche Clinique"]
["REDACTEUR SCIENTIFIQUE ","Rédacteur"]
["research ","Recherche Clinique"]
["Réunion de board ","Réunion de « Board »"]
["Reunion Medicale","Réunion professionnelle"]
["Reunion Medicale ","Réunion professionnelle"]
["Reunion Professionnelle ","Réunion professionnelle"]
["Réunion Professionnelle ","Réunion professionnelle"]
["REUNION SCIENTIFIQUE","Réunion professionnelle"]
["REUNION SCIENTIFIQUE ","Réunion professionnelle"]
["REUNION SCIENTIQUE ","Réunion professionnelle"]
["SFR","Réunion professionnelle"]
["SOCIETE FRANCAISE DE RHUMATOLOGIE ","Autre"]
["Subventions ","Autre"]
["SYMPOSIUM SFH ","Réunion professionnelle"]
["VIGGO PETERSEN ","Autre"]
["WCO-IOF-ESCEO ","Réunion professionnelle"]

{"sheet":"FIRMES","index":4,"n_rows":2109,"n_cols":2,"rows_kept":2109,"cut":false,"hidden":false,"merged":[]}
["FIRME dans Transparence.sante.gouv.fr","FIRME (libellé de regroupement)"]
["22 Juillet Conseil","22 Juillet Conseil"]
["3-D Matrix Europe SAS","3-D Matrix Europe SAS"]
["3M Belgium bvba/sprl","3M Belgium bvba/sprl"]
["3M Deutschland GmbH","3M Deutschland GmbH"]
["3M France","3M France"]
["3M MAROC","3M MAROC"]
["3M United Kingdom PLC","3M United Kingdom PLC"]
["3S ORTHO","3S ORTHO"]
["4Tech Cardio Ltd","4Tech Cardio Ltd"]
["7 MED INDUSTRIE","7 MED INDUSTRIE"]
["A a Z SANTE","A a Z SANTE"]
["A DEC INTERNATIONAL INC","A DEC INTERNATIONAL INC"]
["A.I.R.","A.I.R."]
["A.MENARINI diagnostics","A.MENARINI diagnostics"]
["A.R.C. Pharma","A.R.C. Pharma"]
["A+A","A+A"]
["a2m rehateam","a2m rehateam"]
["AADAIRC","AADAIRC"]
["ABBOTT FRANCE","ABBOTT"]
["ABBOTT HEALTHCARE SAS","ABBOTT"]
["ABBOTT PRODUCTS SAS","ABBOTT"]
["AbbVie","AbbVie"]
["ABENA-FRANTEX","ABENA-FRANTEX"]
["Abiomed GmbH","Abiomed GmbH"]
["ABM","ABM"]
["abmedica","abmedica"]
["ABS-Bolton Medical","ABS-Bolton Medical"]
["accomed","accomed"]
["ACCORD HEALTHCARE FRANCE SAS","ACCORD HEALTHCARE FRANCE SAS"]
["ACCOVION SARL","ACCOVION SARL"]
["Accuray Europe","Accuray Europe"]
["ACIST Europe BV","ACIST Europe BV"]
["ACM","ACM"]
["Acorda Therapeutics, Inc.","Acorda Therapeutics, Inc."]
["ACOUSTIQUE MEDICAL DU LITTORAL","ACOUSTIQUE MEDICAL DU LITTORAL"]
["ACS-Agence Conseil Santé","ACS-Agence Conseil Santé"]
["ACS-Agence Conseil Santé","ACS-Agence Conseil Santé"]
["ACT+ Consulting","ACT+ Consulting"]
["ACTAVIS GROUP PTC EHF","ACTAVIS GROUP PTC EHF"]
["Actelion Pharmaceuticals France","Actelion"]
["Actelion Pharmaceuticals Ltd","Actelion"]
["ACTION D'ECLAT","ACTION D'ECLAT"]
["ADAIR","ADAIR"]
["ADAPSIA","ADAPSIA"]
["Adaptimmune LTD","Adaptimmune LTD"]
["ADARE PHARMACEUTICALS SAS","ADARE PHARMACEUTICALS SAS"]
["ADDMEDICA","ADDMEDICA"]
["ADEP ASSISTANCE","ADEP ASSISTANCE"]
["Adept Field Solutions","Adept Field Solutions"]
["ADIR ASSISTANCE","ADIR ASSISTANCE"]
["Adiral Assistance","Adiral Assistance"]
["ADIRAL Association d'Aide aux Traitements À Domicile","ADIRAL Association d'Aide aux Traitements À Domicile"]
["ADLER ORTHO France","ADLER ORTHO France"]
["Adler Ortho srl","Adler Ortho srl"]
["ADS ALSACE","ADS ALSACE"]
["ADS CHAMPAGNE ARDENNE","ADS CHAMPAGNE ARDENNE"]
["ADS LORRAINE","ADS LORRAINE"]
["ADVANCE SAS","ADVANCE SAS"]
["Advanced Accelerator Applications","Advanced Accelerator Applications"]
["Advanced Accelerator Applications International SA","Advanced Accelerator Applications International SA"]
["ADVANCED BIONICS SARL","ADVANCED BIONICS SARL"]
["Advanced Medical Services, AMS GmbH","Advanced Medical Services, AMS GmbH"]
["ADVICENNE","ADVICENNE"]
["Aegerion Pharmaceuticals","Aegerion Pharmaceuticals"]
["Aepodia France SARL","Aepodia France SARL"]
["AERIS Medical SAS","AERIS Medical SAS"]
["AEROGEN","AEROGEN"]
["AFFINITES SANTE","AFFINITES SANTE"]
["Agence Conseil 3P","Agence Conseil 3P"]
["agence européenne informatique","agence européenne informatique"]
["Agfa HealthCare France SA","Agfa HealthCare France SA"]
["AGFA Healthcare Imaging Agents France","AGFA Healthcare Imaging Agents France"]
["AGILENT TECHNOLOGIES FRANCE","AGILENT TECHNOLOGIES FRANCE"]
["AGIR À dom Assistance","AGIR À dom Assistance"]
["Aide aux Insuffisants Respiratoires de la Région Auvergne (A.I.R.R.A.)","Aide aux Insuffisants Respiratoires de la Région Auvergne (A.I.R.R.A.)"]
["Aide aux Insuffisants Respiratoires de la Région Auvergne (A.I.R.R.A.)","Aide aux Insuffisants Respiratoires de la Région Auvergne (A.I.R.R.A.)"]
["AIR A DOMICILE","AIR A DOMICILE"]
["AIR DE BRETAGNE","AIR DE BRETAGNE"]
["AIR DOMICILE SANTE ALPES","AIR DOMICILE SANTE ALPES"]
["AIR DOMICILE VALLEE DU RHONE","AIR DOMICILE VALLEE DU RHONE"]
["Air Liquide European Homecare Operations Services","Air Liquide European Homecare Operations Services"]
["AIR LIQUIDE MEDICAL SYSTEMS","AIR LIQUIDE MEDICAL SYSTEMS"]
["AIR LIQUIDE SANTE (INTERNATIONAL)","AIR LIQUIDE SANTE (INTERNATIONAL)"]
["AIR LIQUIDE SANTE FRANCE","AIR LIQUIDE SANTE FRANCE"]
["AIR SANTE","AIR SANTE"]
["AIRE","AIRE"]
["AIREL","AIREL"]
["AIXIAL","AIXIAL"]
["AIXPER'F","AIXPER'F"]
["AJ4MED","AJ4MED"]
["ALAIN AFFLELOU FRANCHISEUR","ALAIN AFFLELOU FRANCHISEUR"]
["ALAIR & AVD","ALAIR & AVD"]
["Alcimed GmbH","Alcimed GmbH"]
["Alcimed Inc","Alcimed Inc"]
["Alcimed SARL","Alcimed SARL"]
["Alcimed SAS","Alcimed SAS"]
["Alcimed Sprl","Alcimed Sprl"]
["Alcura France","Alcura France"]
["ALERE E-SANTE SAS","ALERE E-SANTE SAS"]
["ALERE SAS","ALERE SAS"]
["Alexion Pharma France","Alexion Pharma France"]
["ALFA WASSERMANN PHARMA","ALFA WASSERMANN PHARMA"]
["Align Technology SAS","Align Technology SAS"]
["Alimera Sciences France","Alimera Sciences France"]
["ALISEO","ALISEO"]
["Alizé Pharma SAS","Alizé Pharma SAS"]
["Alizé Pharma SAS","Alizé Pharma SAS"]
["Alizé Santé","Alizé Santé"]
["Alizé Santé","Alizé Santé"]
["ALK-Abelló","ALK-Abelló"]
["ALK-AbellÓ","ALK-AbellÓ"]
["ALKAPHARM","ALKAPHARM"]
["All Global","All Global"]
["ALLERGAN FRANCE","ALLERGAN FRANCE"]
["alliance healthcare repartition","alliance healthcare repartition"]
["ALLIANCE PHARMA FRANCE","ALLIANCE PHARMA FRANCE"]
["ALLIANCE'PERF","ALLIANCE'PERF"]
["ALLP MEDITEC","ALLP MEDITEC"]
["ALMIRALL SAS","ALMIRALL SAS"]
["ALMUS","ALMUS"]
["ALPHATEC SPINE INC","ALPHATEC SPINE INC"]
["ALPHEGA","ALPHEGA"]
["ALPINE SCIENTIFIC","ALPINE SCIENTIFIC"]
["ALSANZA sarl","ALSANZA sarl"]
["ALTEOR","ALTEOR"]
["alveol'air","alveol'air"]
["ALVIMEDICA Medical Technologie France","ALVIMEDICA Medical Technologie France"]
["AM AUDITION","AM AUDITION"]
["AMADEUS SANTE","AMADEUS SANTE"]
["AMB-I SANTE PROVENCE","AMB-I SANTE PROVENCE"]
["AMC APPAREILLAGE ET MATERIEL DE CARDIOLOGIE","AMC APPAREILLAGE ET MATERIEL DE CARDIOLOGIE"]
["American Medical Systems France","American Medical Systems France"]
["American Orthodontics","American Orthodontics"]
["AMGEN SAS","Amgen"]
["AMICUS THERAPEUTICS SAS","AMICUS THERAPEUTICS SAS"]
["AMO FRANCE SAS","AMO FRANCE SAS"]
["AMO Germany GmbH","AMO Germany GmbH"]
["AMO INC USA","AMO INC USA"]
["Amplifon Groupe France","Amplifon Groupe France"]
["AMPLITUDE","AMPLITUDE"]
["AMS 25","AMS 25"]
["AMS 70","AMS 70"]
["AMS 88","AMS 88"]
["ANERA","ANERA"]
["ANNAYAKE","ANNAYAKE"]
["ANTADIR","ANTADIR"]
["Antadir Assistance SAS","Antadir Assistance SAS"]
["ANTHOGYR","ANTHOGYR"]
["ANTILLES AUDITION GUADELOUPE","ANTILLES AUDITION GUADELOUPE"]
["AOTI Ltd","AOTI Ltd"]
["APARD","APARD"]
["apol","apol"]
["APOLLO ENDOSURGERY UK LTD","APOLLO ENDOSURGERY UK LTD"]
["Applied Medical France","Applied Medical France"]
["APROVA","APROVA"]
["APTALIS PHARMA SAS","APTALIS PHARMA SAS"]
["Aptiv Solutions","Aptiv Solutions"]
["AQUILAB","AQUILAB"]
["ARAIR Assistance","ARAIR Assistance"]
["ARAIR Assistance S.A.","ARAIR Assistance S.A."]
["ARAIRCHAR","ARAIRCHAR"]
["arard","arard"]
["ARCHIMEDES PHARMA France","ARCHIMEDES PHARMA France"]
["ARCOS","ARCOS"]
["ARGON MEDICAL DEVICES","ARGON MEDICAL DEVICES"]
["ARIAD Pharmaceuticals (France)","ARIAD Pharmaceuticals (France)"]
["ARJOHUNTLEIGH","ARJOHUNTLEIGH"]
["ARROW GENERIQUES SAS","ARROW GENERIQUES SAS"]
["ARSENAL-CDM","ARSENAL-CDM"]
["ART&COS","ART&COS"]
["ARTHES","ARTHES"]
["Arthrex SAS","Arthrex SAS"]
["Arthritis Fondation Courtin","Arthritis Fondation Courtin"]
["ArthroCare France","ArthroCare France"]
["Artialis","Artialis"]
["ARX SAS","ARX SAS"]
["ASAHI INTECC CO., LTD.","ASAHI INTECC CO., LTD."]
["Ascensia Diabetes Care France","Ascensia Diabetes Care France"]
["ASDIA","ASDIA"]
["Asept InMed","Asept InMed"]
["ASKLE SANTE","ASKLE SANTE"]
["ASPEN FRANCE","ASPEN FRANCE"]
["ASPIDE AESTHETIC","ASPIDE AESTHETIC"]
["ASPIDE MEDICAL","ASPIDE MEDICAL"]
["ASSISTANCE DU GRAND EST","ASSISTANCE DU GRAND EST"]
["ASSISTANCES MEDICALES SPECIALISEES","ASSISTANCES MEDICALES SPECIALISEES"]
["Association Françoise et Eugène MINKOWSKI pour la santé mentale des migrants","Association Françoise et Eugène MINKOWSKI pour la santé mentale des migrants"]
["Association Françoise et Eugène MINKOWSKI pour la santé mentale des migrants","Association Françoise et Eugène MINKOWSKI pour la santé mentale des migrants"]
["Association pour le Développement de l'Enseignement et des Recherches auprès des universités des centres de recherches et des entreprises d'Aquitaine (ADERA)","Association pour le Développement de l'Enseignement et des Recherches auprès des universités des centres de recherches et des entreprises d'Aquitaine (ADERA)"]
["Association pour le Développement de l'Enseignement et des Recherches auprès des universités des centres de recherches et des entreprises d'Aquitaine (ADERA)","Association pour le Développement de l'Enseignement et des Recherches auprès des universités des centres de recherches et des entreprises d'Aquitaine (ADERA)"]
["ASTELLAS PHARMA","ASTELLAS PHARMA"]
["ASTELLAS PHARMA B.V.","ASTELLAS PHARMA B.V."]
["ASTELLAS PHARMA GLOBAL DEVELOPMENT","ASTELLAS PHARMA GLOBAL DEVELOPMENT"]
["ASTELLAS PHARMA GmbH","ASTELLAS PHARMA GmbH"]
["ASTELLAS PHARMA Inc","ASTELLAS PHARMA Inc"]
["ASTELLAS PHARMA Ltd","ASTELLAS PHARMA Ltd"]
["ASTELLAS PHARMA S.A.","ASTELLAS PHARMA S.A."]
["Astellas Pharma Singapore Pte. Ltd.","Astellas Pharma Singapore Pte. Ltd."]
["ASTELLAS PHARMACEUTICALS AE","ASTELLAS PHARMACEUTICALS AE"]
["ASTON MEDICAL Anciennement SOCIETE DE GENIE MEDICAL - S.G.M.","ASTON MEDICAL Anciennement SOCIETE DE GENIE MEDICAL - S.G.M."]
["ASTRAZENECA","AstraZeneca"]
["Athersys, Inc.","Athersys, Inc."]
["Atlantic Pharmacetuicals Ltd","Atlantic Pharmacetuicals Ltd"]
["ATLANTIC SURDITE","ATLANTIC SURDITE"]
["ATLANTIS DIFFUSION","ATLANTIS DIFFUSION"]
["ATLANTIS DIFFUSION SAM","ATLANTIS DIFFUSION SAM"]
["ATOS MEDICAL SAS","ATOS MEDICAL SAS"]
["AtriCure, Inc.","AtriCure, Inc."]
["AUDARMOR","AUDARMOR"]
["Audika Groupe SA","Audika Groupe SA"]
["audio acoustique sud","audio acoustique sud"]
["AUDIOCONSULTING","AUDIOCONSULTING"]
["AUDIOELYSCAU","AUDIOELYSCAU"]
["AUDIOMEDI SAS","AUDIOMEDI SAS"]
["AudioNova France SAS","AudioNova France SAS"]
["AUDIOPTIC TRADE SERVICES","AUDIOPTIC TRADE SERVICES"]
["AUDITION 50","AUDITION 50"]
["AUDITION AQUITAINE CARBON BLANC","AUDITION AQUITAINE CARBON BLANC"]
["AUDITION B&H","AUDITION B&H"]
["AUDITION BOULEVARD MARIE","AUDITION BOULEVARD MARIE"]
["AUDITION CONSEIL FRANCE","AUDITION CONSEIL FRANCE"]
["Audition DEBRUILLE","Audition DEBRUILLE"]
["AUDITION DEBRUILLE BEZANNES","AUDITION DEBRUILLE BEZANNES"]
["AUDITION FISMES","AUDITION FISMES"]
["AUDITION GAMBETTA","AUDITION GAMBETTA"]
["AUDITION LYON EST","AUDITION LYON EST"]
["AUDITION MARIE SIRVEN","AUDITION MARIE SIRVEN"]
["Audition Martin","Audition Martin"]
["AUDITION OUTRE MER","AUDITION OUTRE MER"]
["AUDITION PARIS EST","AUDITION PARIS EST"]
["AUDITION REMI LAMOINE","AUDITION REMI LAMOINE"]
["AUDITION SANTE","AUDITION SANTE"]
["AUDITION TRIBUT VERJUS","AUDITION TRIBUT VERJUS"]
["AUDITIONLAC","AUDITIONLAC"]
["AUXESIA","AUXESIA"]
["AVANTEC","AVANTEC"]
["AX'AIR MEDICAL","AX'AIR MEDICAL"]
["AXDOM VAR","AXDOM VAR"]
["Axess Research","Axess Research"]
["AXIS biodental SA","AXIS biodental SA"]
["AXIS Dental Sarl","AXIS Dental Sarl"]
["AXIS Santé","AXIS Santé"]
["AXIS Santé","AXIS Santé"]
["AXONAL","AXONAL"]
["Axonics Modulation Technologies, Inc.","Axonics Modulation Technologies, Inc."]
["AX'PERF MEDICAL","AX'PERF MEDICAL"]
["AZ MEDICAL","AZ MEDICAL"]
["B. Braun Avitum France SAS","B. Braun Avitum France SAS"]
["B.BRAUN MEDICAL SAS","B.BRAUN MEDICAL SAS"]
["B.R.A. SAS","B.R.A. SAS"]
["B3TSI","B3TSI"]
["BAC OPTIQUE","BAC OPTIQUE"]
["BALJO","BALJO"]
["BALT EXTRUSION SAS","BALT EXTRUSION SAS"]
["BALT INTERNATIONAL","BALT INTERNATIONAL"]
["BARD FRANCE SAS","BARD FRANCE SAS"]
["Bastide Le Confort Médical","Bastide Le Confort Médical"]
["Bastide Le Confort Médical","Bastide Le Confort Médical"]
["BAUERFEIND FRANCE","BAUERFEIND FRANCE"]
["BAXALTA FRANCE SAS","BAXALTA FRANCE SAS"]
["Baxter SAS","Baxter SAS"]
["Bayer HealthCare SAS","Bayer HealthCare SAS"]
["BAYER SANTE FAMILIALE","BAYER SANTE FAMILIALE"]
["BBGR SAS","BBGR SAS"]
["BEAUFOUR IPSEN INDUSTRIE","BEAUFOUR IPSEN INDUSTRIE"]
["BEAUTE PRESTIGE INTERNATIONAL","BEAUTE PRESTIGE INTERNATIONAL"]
["Beaver-Visitec Int'l Sales Ltd","Beaver-Visitec Int'l Sales Ltd"]
["BECKMAN COULTER FRANCE","BECKMAN COULTER FRANCE"]
["Becton Dickinson France SAS","Becton Dickinson France SAS"]
["Beiersdorf s.a.s","Beiersdorf s.a.s"]
["BELLCO FRANCE","BELLCO FRANCE"]
["BEST OF OPTIMIZERS","BEST OF OPTIMIZERS"]
["Bien-Air France","Bien-Air France"]
["BIO COMPOSANTS MEDICAUX","BIO COMPOSANTS MEDICAUX"]
["BIOCODEX","BIOCODEX"]
["Biocompatibles UK Ltd","Biocompatibles UK Ltd"]
["BIOCORP PRODUCTION","BIOCORP PRODUCTION"]
["BioCryst Pharmaceuticals Inc.","BioCryst Pharmaceuticals Inc."]
["BIOCYTEX","BIOCYTEX"]
["BIODIMED Conseils","BIODIMED Conseils"]
["Biofortis SAS","Biofortis SAS"]
["BIOGARAN","BIOGARAN"]
["BIOGEN FRANCE SAS","BIOGEN FRANCE SAS"]
["BioHorizons Iberica S.R.L.","BioHorizons Iberica S.R.L."]
["Biomarin Europe Ltd.","Biomarin Europe Ltd."]
["BIOMATLANTE SA","BIOMATLANTE SA"]
["bioMérieux","bioMérieux"]
["bioMérieux","bioMérieux"]
["BIOMET","BIOMET"]
["BIOMET 3i","BIOMET 3i"]
["BIOMET BELGIUM BVBA","BIOMET BELGIUM BVBA"]
["BIOMET CHINA","BIOMET CHINA"]
["Biomet France","Biomet France"]
["BIOMET GLOBAL SUPPLY CHAIN CENTER B.V.","BIOMET GLOBAL SUPPLY CHAIN CENTER B.V."]
["Biomet Inc","Biomet Inc"]
["Biomet Japan, Inc.","Biomet Japan, Inc."]
["Biomet Orthopaedics Sweeden","Biomet Orthopaedics Sweeden"]
["Biomet Spain Orthopaedics S.L.","Biomet Spain Orthopaedics S.L."]
["BIOMET UK Limited","BIOMET UK Limited"]
["BIOM'UP","BIOM'UP"]
["Bioprojet","Bioprojet"]
["BIOPROJET PHARMA","BIOPROJET PHARMA"]
["BIO-RAD","BIO-RAD"]
["BIO-RAD AbD Serotec Ltd","BIO-RAD AbD Serotec Ltd"]
["BIO-RAD Innovations","BIO-RAD Innovations"]
["BIO-RAD Laboratories Inc.","BIO-RAD Laboratories Inc."]
["BIO-RAD Laboratories Limited","BIO-RAD Laboratories Limited"]
["BIO-RAD Laboratories S.A.S.","BIO-RAD Laboratories S.A.S."]
["Biosensors Europe SA","Biosensors Europe SA"]
["Biosensors France SAS","Biosensors France SAS"]
["BIOSERENITY","BIOSERENITY"]
["Biosphere Medical, Inc.","Biosphere Medical, Inc."]
["Biosphere Medical, S.A.","Biosphere Medical, S.A."]
["BIOSPINE IMPLANTS","BIOSPINE IMPLANTS"]
["BIOSTATEM","BIOSTATEM"]
["BIOTECH DENTAL","BIOTECH DENTAL"]
["BIOTECH ORTHO","BIOTECH ORTHO"]
["BIOTEST AG","BIOTEST AG"]
["BIOTEST FRANCE SAS","BIOTEST FRANCE SAS"]
["BIOTEST HUNGARIA KFT.","BIOTEST HUNGARIA KFT."]
["BIOTRIAL","BIOTRIAL"]
["BIOTRONIK AG","BIOTRONIK AG"]
["BIOTRONIK Belgium","BIOTRONIK Belgium"]
["BIOTRONIK FRANCE SAS","BIOTRONIK FRANCE SAS"]
["BIOTRONIK SE & Co. KG","BIOTRONIK SE & Co. KG"]
["BIOVENTUS","BIOVENTUS"]
["Bisico","Bisico"]
["BLOCKADE MEDICAL, LLC","BLOCKADE MEDICAL, LLC"]
["BLUE-REG PHARMA CONSULT","BLUE-REG PHARMA CONSULT"]
["BLUESOM","BLUESOM"]
["BOEHRINGER INGELHEIM FRANCE","BOEHRINGER INGELHEIM FRANCE"]
["BOIRON","BOIRON"]
["BOIRON CARAIBES","BOIRON CARAIBES"]
["BOIRON OCEAN INDIEN","BOIRON OCEAN INDIEN"]
["Bone Therapeutics","Bone Therapeutics"]
["BONNET SOUYRIS PROSPECTIVE","BONNET SOUYRIS PROSPECTIVE"]
["Boston Healthcare International","Boston Healthcare International"]
["BOSTON SCIENTIFIC SAS","BOSTON SCIENTIFIC SAS"]
["BRACCO DIAGNOSTICS INC","BRACCO DIAGNOSTICS INC"]
["BRACCO IMAGING FRANCE","BRACCO IMAGING FRANCE"]
["BRACCO IMAGING ITALIA SRL","BRACCO IMAGING ITALIA SRL"]
["BRACCO IMAGING SPA","BRACCO IMAGING SPA"]
["BRACCO SUISSE SA","BRACCO SUISSE SA"]
["BRAHMS FRANCE SAS","BRAHMS FRANCE SAS"]
["BRAHMS GmbH","BRAHMS GmbH"]
["Brainlab","Brainlab"]
["Brand Institute","Brand Institute"]
["Branding Science (UK) Ltd","Branding Science (UK) Ltd"]
["BREAS MEDICAL","BREAS MEDICAL"]
["Bristol -Myers Squibb GmbH & Co. KGaA","Bristol -Myers Squibb"]
["BRISTOL-MYERS SQUIBB","Bristol -Myers Squibb"]
["Bristol-Myers Squibb Australia Pty Limited","Bristol -Myers Squibb"]
["Bristol-Myers Squibb Business Services Limited","Bristol-Myers Squibb Business Services Limited"]
["BRISTOL-MYERS SQUIBB COMPANY","Bristol -Myers Squibb"]
["Bristol-Myers Squibb EMEA","Bristol -Myers Squibb"]
["Bristol-Myers Squibb Finlande Ab","Bristol-Myers Squibb Finlande Ab"]
["Bristol-Myers Squibb Israel","Bristol-Myers Squibb Israel"]
["Bristol-Myers Squibb K.K","Bristol-Myers Squibb K.K"]
["Bristol-Myers Squibb Middle East & Africa FZ-LLC","Bristol-Myers Squibb Middle East & Africa FZ-LLC"]
["BRISTOL-MYERS SQUIBB PHARMACEUTICALS LTD","Bristol -Myers Squibb"]
["BRISTOL-MYERS SQUIBB SA","Bristol -Myers Squibb"]
["Bristol-Myers Squibb, S.A.U.","Bristol-Myers Squibb, S.A.U."]
["Bruker Daltonique","Bruker Daltonique"]
["bruneau","bruneau"]
["BSN medical SAS","BSN medical SAS"]
["BSN-RADIANTE SAS","BSN-RADIANTE SAS"]
["Buhlmann France","Buhlmann France"]
["Bull's Eye Innovations","Bull's Eye Innovations"]
["BVA","BVA"]
["BY AGENCY GROUP","BY AGENCY GROUP"]
["C.F.E.B. SISLEY","C.F.E.B. SISLEY"]
["C@RDISTIM","C@RDISTIM"]
["C2F IMPLANTS","C2F IMPLANTS"]
["C2R SAS","C2R SAS"]
["CAB","CAB"]
["CAIR LGL","CAIR LGL"]
["CANAL 55 COMMUNICATION","CANAL 55 COMMUNICATION"]
["CAPIDEL SANTE SARL","CAPIDEL SANTE SARL"]
["CAPRON PODOLOGIE","CAPRON PODOLOGIE"]
["carco","carco"]
["Cardiac Dimensions, Pty LTD","Cardiac Dimensions, Pty LTD"]
["Cardial SAS","Cardial SAS"]
["CardiAQ Valve Technologies, Inc.","CardiAQ Valve Technologies, Inc."]
["CARDIF ASSISTANCE","CARDIF ASSISTANCE"]
["Cardim@t","Cardim@t"]
["CARDINAL HEALTH FRANCE 506 SAS","CARDINAL HEALTH FRANCE 506 SAS"]
["CARDIOLOGS TECHNOLOGIES","CARDIOLOGS TECHNOLOGIES"]
["cardipulse","cardipulse"]
["CAREFUSION FRANCE 309 SAS","CAREFUSION FRANCE 309 SAS"]
["CAREFUSION SWITZERLAND 317 SÀrl","CAREFUSION SWITZERLAND 317 SÀrl"]
["CARESTREAM HEALTH FRANCE","CARESTREAM HEALTH FRANCE"]
["CARL ZEISS MEDITEC AG","CARL ZEISS MEDITEC AG"]
["Carl Zeiss Meditec France","Carl Zeiss Meditec France"]
["CARL ZEISS MEDITEC SAS","CARL ZEISS MEDITEC SAS"]
["Carl Zeiss Vision France","Carl Zeiss Vision France"]
["CARMAT","CARMAT"]
["CAROLINE ROBIN AUDITION","CAROLINE ROBIN AUDITION"]
["CARPENTER SAS","CARPENTER SAS"]
["Carvadys S.A.S","Carvadys S.A.S"]
["CBPartners","CBPartners"]
["CDL OPTIQUE","CDL OPTIQUE"]
["CECS","CECS"]
["CELGENE","CELGENE"]
["CELGENE SAS","CELGENE SAS"]
["Celldex Therapeutics","Celldex Therapeutics"]
["CELLforCURE","CELLforCURE"]
["CELONOVA BIOSCIENCES OF EUROPE B.V","CELONOVA BIOSCIENCES OF EUROPE B.V"]
["cemka","cemka"]
["CENDRES+METAUX FRANCE SAS","CENDRES+METAUX FRANCE SAS"]
["CENTRALE DES OPTICIENS","CENTRALE DES OPTICIENS"]
["CENTRALE DES PEELINGS","CENTRALE DES PEELINGS"]
["CENTRALE DES PHARMACIENS","CENTRALE DES PHARMACIENS"]
["Centre d'Audition Bruant","Centre d'Audition Bruant"]
["Centre de stomathérapie","Centre de stomathérapie"]
["Centre de stomathérapie","Centre de stomathérapie"]
["Centre d'Etudes et de Recherches cosmétologiques CERCO","Centre d'Etudes et de Recherches cosmétologiques CERCO"]
["Centre d'Etudes et de Recherches cosmétologiques CERCO","Centre d'Etudes et de Recherches cosmétologiques CERCO"]
["centre d'optique et d'audition","centre d'optique et d'audition"]
["Cepheid Europe SAS","Cepheid Europe SAS"]
["Ceramconcept France","Ceramconcept France"]
["CERC","CERC"]
["CERECARE","CERECARE"]
["CEREDAS","CEREDAS"]
["CEREPLAS","CEREPLAS"]
["CERI MEDICAL","CERI MEDICAL"]
["CERMAVEIN","CERMAVEIN"]
["CERP RHIN RHONE MEDITERRANEE","CERP RHIN RHONE MEDITERRANEE"]
["CERP ROUEN","CERP ROUEN"]
["Cerus Corporation","Cerus Corporation"]
["Cerus Europe B.V.","Cerus Europe B.V."]
["Cezanne","Cezanne"]
["CHEMO S.A. FRANCE","CHEMO S.A. FRANCE"]
["CHIESI SAS","CHIESI SAS"]
["Chiltern International SARL","Chiltern International SARL"]
["CHOC","CHOC"]
["chris eyes","chris eyes"]
["CHRISTEYNS FRANCE","CHRISTEYNS FRANCE"]
["CHUGAI PHARMA FRANCE","CHUGAI"]
["CID","CID"]
["CIDELEC","CIDELEC"]
["Cido Research GmbH","Cido Research GmbH"]
["Cirrina","Cirrina"]
["CIS BIO INTERNATIONAL","CIS BIO INTERNATIONAL"]
["Cisbio Bioassays","Cisbio Bioassays"]
["CIZETA MEDICALI France","CIZETA MEDICALI France"]
["CLARIANCE","CLARIANCE"]
["CLARIANCE INC","CLARIANCE INC"]
["CLARIPHARM","CLARIPHARM"]
["CLCA consulting","CLCA consulting"]
["CLIN DATA MANAGEMENT","CLIN DATA MANAGEMENT"]
["CLINHOSPI","CLINHOSPI"]
["Clinical Trial Consulting","Clinical Trial Consulting"]
["CLINICPROSPORT SAS","CLINICPROSPORT SAS"]
["CLINSEARCH","CLINSEARCH"]
["CLS Paris","CLS Paris"]
["Cochlear France","Cochlear France"]
["Codexial Dermatologie","Codexial Dermatologie"]
["colgate palmolive","colgate palmolive"]
["COLGATE PALMOLIVE EUROPE SARL","COLGATE PALMOLIVE EUROPE SARL"]
["COLLIN","COLLIN"]
["COLOPLAST A/S","COLOPLAST A/S"]
["Coloplast Manufacturing France","Coloplast Manufacturing France"]
["COMM Santé","COMM Santé"]
["COMM Santé","COMM Santé"]
["COMMUNICATION GLOBALE SANTE","COMMUNICATION GLOBALE SANTE"]
["Conceptus SAS","Conceptus SAS"]
["CONGRES COLLOQUES CONVENTIONS","CONGRES COLLOQUES CONVENTIONS"]
["CONMED France","CONMED France"]
["Consentio","Consentio"]
["ConsuMed Research","ConsuMed Research"]
["CONVATEC Inc.","CONVATEC Inc."]
["Cook France SARL","Cook France SARL"]
["COOPERATION PHARMACEUTIQUE FRANCAISE","COOPERATION PHARMACEUTIQUE FRANCAISE"]
["COOPERVISION SAS","COOPERVISION SAS"]
["CORDIS","CORDIS"]
["CORMOVE","CORMOVE"]
["CORONA MEDICAL SAS","CORONA MEDICAL SAS"]
["CORREVIO","CORREVIO"]
["CORSE OXYGENE","CORSE OXYGENE"]
["CORTEX VISION TECH","CORTEX VISION TECH"]
["Corvia Medical Inc.","Corvia Medical Inc."]
["COSMACT","COSMACT"]
["COSMETIQUE ACTIVE FRANCE","COSMETIQUE ACTIVE FRANCE"]
["COSMETIQUE ACTIVE INTERNATIONAL","COSMETIQUE ACTIVE INTERNATIONAL"]
["Côté Audition","Côté Audition"]
["Côté Audition","Côté Audition"]
["COUSIN BIOSERV","COUSIN BIOSERV"]
["COUSIN BIOTECH","COUSIN BIOTECH"]
["COUSIN ENDOSURG","COUSIN ENDOSURG"]
["Covalia Interactive","Covalia Interactive"]
["Covance Clinical And Periapproval Services SARL","Covance Clinical And Periapproval Services SARL"]
["Covidien AG","Covidien AG"]
["COVIDIEN FRANCE S.A.S.","COVIDIEN FRANCE S.A.S."]
["CREAFIRST","CREAFIRST"]
["Creativ-Ceutical France","Creativ-Ceutical France"]
["CRISTALENS SA","CRISTALENS SA"]
["CRISTERS","CRISTERS"]
["CROMA","CROMA"]
["CROMA FRANCE SASU","CROMA FRANCE SASU"]
["CRYOLIFE FRANCE","CRYOLIFE FRANCE"]
["CSA","CSA"]
["CSL BEHRING SA","CSL BEHRING SA"]
["CTI Clinical Trial and Consulting Services France SARL","CTI Clinical Trial and Consulting Services France SARL"]
["Cubist Pharmaceuticals France","Cubist Pharmaceuticals France"]
["Cutting Edge","Cutting Edge"]
["CVRx Inc.","CVRx Inc."]
["Cyberonics BVBA","Cyberonics BVBA"]
["Cyberonics SA","Cyberonics SA"]
["Cyble Marketing","Cyble Marketing"]
["Cytori Therapeutics Inc.","Cytori Therapeutics Inc."]
["DAIICHI SANKYO FRANCE SAS","DAIICHI SANKYO FRANCE SAS"]
["DAKO FRANCE SAS","DAKO FRANCE SAS"]
["Damos","Damos"]
["DÃœRR DENTAL FRANCE","DÃœRR DENTAL FRANCE"]
["Datamonitor Healthcare","Datamonitor Healthcare"]
["DATEXIM","DATEXIM"]
["DATIS NORD","DATIS NORD"]
["David Pruce","David Pruce"]
["DDB Health Paris","DDB Health Paris"]
["DDS Assistance","DDS Assistance"]
["DDSM SARL","DDSM SARL"]
["DEBREGEAS ET ASSOCIES PHARMA","DEBREGEAS ET ASSOCIES PHARMA"]
["DEDIENNE SANTE","DEDIENNE SANTE"]
["DEFI ORTHO","DEFI ORTHO"]
["DENTALINOV","DENTALINOV"]
["DENTAURUM FRANCE","DENTAURUM FRANCE"]
["DENTSPLY FRANCE","DENTSPLY FRANCE"]
["Dentsply Gac Europe","Dentsply Gac Europe"]
["DENTSPLY IH AB","DENTSPLY IH AB"]
["DENTSPLY IH K.K.","DENTSPLY IH K.K."]
["DENTSPLY IH SAS","DENTSPLY IH SAS"]
["DENTSPLY Implants","DENTSPLY Implants"]
["DENTSPLY Implants Manufacturing GmbH","DENTSPLY Implants Manufacturing GmbH"]
["DEPUY France","DEPUY France"]
["Devicor Medical","Devicor Medical"]
["Dexter","Dexter"]
["DFine Europe GmbH","DFine Europe GmbH"]
["DFINE Inc","DFINE Inc"]
["DIABSANTE","DIABSANTE"]
["DIADOM SAS","DIADOM SAS"]
["DIAGAST","DIAGAST"]
["DIAGNOSTICA STAGO","DIAGNOSTICA STAGO"]
["Diamed France SA","Diamed France SA"]
["Diamed GmbH","Diamed GmbH"]
["DIASORIN SA","DIASORIN SA"]
["DIAXONHIT","DIAXONHIT"]
["DIDACTIC","DIDACTIC"]
["DINNO SANTE","DINNO SANTE"]
["Direct Medica","Direct Medica"]
["DIS PAR","DIS PAR"]
["DISMEDIS","DISMEDIS"]
["DISTRICLASS MEDICAL SA","DISTRICLASS MEDICAL SA"]
["DIXI microtechniques","DIXI microtechniques"]
["DJO France SAS","DJO France SAS"]
["DMEDICA","DMEDICA"]
["DOM'AIR","DOM'AIR"]
["Dominique TATE","Dominique TATE"]
["DOMISANTE PROXIMED","DOMISANTE PROXIMED"]
["DON'ORTHO","DON'ORTHO"]
["DR WEIGERT FRANCE SAS","DR WEIGERT FRANCE SAS"]
["Draeger Medical Canada","Draeger Medical Canada"]
["Draeger Medical Systems, Inc","Draeger Medical Systems, Inc"]
["DRÄGER MEDICAL GmbH","DRÄGER MEDICAL GmbH"]
["DRÄGER MEDICAL GmbH","DRÄGER MEDICAL GmbH"]
["DRAGER MEDICAL S.A.S.","DRAGER MEDICAL S.A.S."]
["Drägerwerk AG & Co. KGaA","Drägerwerk AG & Co. KGaA"]
["DRAPER PHARMA","DRAPER PHARMA"]
["DUFLOT SANTE","DUFLOT SANTE"]
["DUNES MEDICAL","DUNES MEDICAL"]
["DUOTECH","DUOTECH"]
["DUX B.V.","DUX B.V."]
["Dynavie","Dynavie"]
["E Coach Cardio","E Coach Cardio"]
["e(ye)BRAIN","e(ye)BRAIN"]
["Echosens","Echosens"]
["Eckert & Ziegler BEBIG","Eckert & Ziegler BEBIG"]
["ECM PROXIMED","ECM PROXIMED"]
["EDAP TMS France SAS","EDAP TMS France SAS"]
["EDIMARK","EDIMARK"]
["EDITION DE L'INTERLIGNE","EDITION DE L'INTERLIGNE"]
["EDUSANTE","EDUSANTE"]
["EDWARDS LIFESCIENCES","EDWARDS LIFESCIENCES"]
["EDWARDS LIFESCIENCES ALLEMAGNE","EDWARDS LIFESCIENCES ALLEMAGNE"]
["EDWARDS LIFESCIENCES AUSTRALIE","EDWARDS LIFESCIENCES AUSTRALIE"]
["EDWARDS LIFESCIENCES AUTRICHE","EDWARDS LIFESCIENCES AUTRICHE"]
["EDWARDS LIFESCIENCES BELGIQUE","EDWARDS LIFESCIENCES BELGIQUE"]
["EDWARDS LIFESCIENCES BRESIL","EDWARDS LIFESCIENCES BRESIL"]
["EDWARDS LIFESCIENCES CANADA","EDWARDS LIFESCIENCES CANADA"]
["EDWARDS LIFESCIENCES CHINA","EDWARDS LIFESCIENCES CHINA"]
["EDWARDS LIFESCIENCES COREE DU SUD","EDWARDS LIFESCIENCES COREE DU SUD"]
["EDWARDS LIFESCIENCES CORPORATION","EDWARDS LIFESCIENCES CORPORATION"]
["Edwards Lifesciences Danemark","Edwards Lifesciences Danemark"]
["EDWARDS LIFESCIENCES ESPAGNE","EDWARDS LIFESCIENCES ESPAGNE"]
["EDWARDS LIFESCIENCES GRECE","EDWARDS LIFESCIENCES GRECE"]
["EDWARDS LIFESCIENCES IRLANDE","EDWARDS LIFESCIENCES IRLANDE"]
["EDWARDS LIFESCIENCES ISRAEL","EDWARDS LIFESCIENCES ISRAEL"]
["EDWARDS LIFESCIENCES ITALIE","EDWARDS LIFESCIENCES ITALIE"]
["EDWARDS LIFESCIENCES JAPON","EDWARDS LIFESCIENCES JAPON"]
["EDWARDS LIFESCIENCES NORDIC/FINLAND","EDWARDS LIFESCIENCES NORDIC/FINLAND"]
["EDWARDS LIFESCIENCES PAYS-BAS","EDWARDS LIFESCIENCES PAYS-BAS"]
["EDWARDS LIFESCIENCES PORTUGAL","EDWARDS LIFESCIENCES PORTUGAL"]
["EDWARDS LIFESCIENCES REPUBLIQUE TCHEQUE","EDWARDS LIFESCIENCES REPUBLIQUE TCHEQUE"]
["EDWARDS LIFESCIENCES ROYAUME-UNI","EDWARDS LIFESCIENCES ROYAUME-UNI"]
["EDWARDS LIFESCIENCES RUSSIE","EDWARDS LIFESCIENCES RUSSIE"]
["Edwards Lifesciences SA","Edwards Lifesciences SA"]
["EDWARDS LIFESCIENCES SUEDE","EDWARDS LIFESCIENCES SUEDE"]
["EDWARDS LIFESCIENCES SUISSE","EDWARDS LIFESCIENCES SUISSE"]
["EDWARDS LIFESCIENCES TURQUIE","EDWARDS LIFESCIENCES TURQUIE"]
["EFFICARE SARL","EFFICARE SARL"]
["EFFIK","EFFIK"]
["EG LABO - LABORATOIRES EUROGENERICS","EG LABO - EUROGENERICS"]
["EISAI SAS","EISAI SAS"]
["ELEKTA SAS","ELEKTA SAS"]
["ELIA MEDICAL","ELIA MEDICAL"]
["ELIA MEDICAL MEDITERRANEE","ELIA MEDICAL MEDITERRANEE"]
["ELIA MEDICAL OUEST","ELIA MEDICAL OUEST"]
["ELIA MEDICAL PARIS","ELIA MEDICAL PARIS"]
["ELIA MEDICAL PARIS OUEST","ELIA MEDICAL PARIS OUEST"]
["ELIA SUD OUEST","ELIA SUD OUEST"]
["ELIAMM SARL","ELIAMM SARL"]
["ELITech France","ELITech France"]
["Elixo SAS","Elixo SAS"]
["Elma Research srl","Elma Research srl"]
["ELOI MEDICAL","ELOI MEDICAL"]
["Eloi Pernet","Eloi Pernet"]
["ELSODENT","ELSODENT"]
["EM Services","EM Services"]
["EMA SARL","EMA SARL"]
["EMETROP'","EMETROP'"]
["EMS FRANCE SARL","EMS FRANCE SARL"]
["EMULSAR","EMULSAR"]
["ENDOCONTROL","ENDOCONTROL"]
["ENDOLOGIX INTERNATIONAL BV","ENDOLOGIX INTERNATIONAL BV"]
["ENTENDRE","ENTENDRE"]
["Eole santé","Eole santé"]
["Eole santé","Eole santé"]
["EOLIS SANTE","EOLIS SANTE"]
["Eos imaging","Eos imaging"]
["EPISKIN","EPISKIN"]
["EQINOX HEALTHCARE FRANCE","EQINOX HEALTHCARE FRANCE"]
["ERYTECH Pharma","ERYTECH Pharma"]
["esanum GmbH","esanum GmbH"]
["ESAOTE Medical","ESAOTE Medical"]
["ESPACE MEDICAL BOURGES","ESPACE MEDICAL BOURGES"]
["espace medical medic centre","espace medical medic centre"]
["ESPACE MEDICAL MONTLUCON","ESPACE MEDICAL MONTLUCON"]
["ESPACE MEDICAL MOULINS","ESPACE MEDICAL MOULINS"]
["espace medical nevers","espace medical nevers"]
["espace medical vichy","espace medical vichy"]
["esprimed","esprimed"]
["Essilor","Essilor"]
["ESSOR FRANCE","ESSOR FRANCE"]
["Et Si ?","Et Si ?"]
["ETHICON","ETHICON"]
["ethimedix","ethimedix"]
["ETHYPHARM","ETHYPHARM"]
["EUMEDICA s.a.","EUMEDICA s.a."]
["EURAXI PHARMA","EURAXI PHARMA"]
["EURL Antoine Durouchez Audition","EURL Antoine Durouchez Audition"]
["Eurl Chaudemanche","Eurl Chaudemanche"]
["eurl generale d'optique","eurl generale d'optique"]
["Eurl Pharmacie Cantarelli","Eurl Pharmacie Cantarelli"]
["EUROBIO","EUROBIO"]
["Eurodep Exploitant","Eurodep Exploitant"]
["EUROFINS OPTIMED","EUROFINS OPTIMED"]
["EUROFINS OPTIMED LYON","EUROFINS OPTIMED LYON"]
["EUROMEDICA IMAGING","EUROMEDICA IMAGING"]
["EUROMEDS","EUROMEDS"]
["EUROPHTA","EUROPHTA"]
["EUROS SAS","EUROS SAS"]
["EUROSAFE","EUROSAFE"]
["EUROSILICONE SAS","EUROSILICONE SAS"]
["EUROSPINE SARL","EUROSPINE SARL"]
["EUROTEKNIKA","EUROTEKNIKA"]
["EUSA Pharma (France) SAS","EUSA Pharma (France) SAS"]
["EUSA PHARMA SAS","EUSA PHARMA SAS"]
["EV3 EUROPE S.A.S.","EV3 EUROPE S.A.S."]
["EVALYS SAS","EVALYS SAS"]
["EVAUX Laboratoires","EVAUX Laboratoires"]
["EVIC FRANCE","EVIC FRANCE"]
["EVIDENCE BASED COMMUNICATION","EVIDENCE BASED COMMUNICATION"]
["EVOLUTIS","EVOLUTIS"]
["EXACTECH FRANCE SAS","EXACTECH FRANCE SAS"]
["EXACTECH INTERNATIONAL OPERATION Ltd.","EXACTECH INTERNATIONAL OPERATION Ltd."]
["EXAFIELD","EXAFIELD"]
["EXPERF AQUITAINE","EXPERF AQUITAINE"]
["EXPERF AUVERGNE","EXPERF AUVERGNE"]
["EXPERF COTE D'AZUR","EXPERF COTE D'AZUR"]
["EXPERF DROME","EXPERF DROME"]
["EXPERF ISERE","EXPERF ISERE"]
["EXPERF LANGUEDOC ROUSSILLON","EXPERF LANGUEDOC ROUSSILLON"]
["EXPERF LORRAINE","EXPERF LORRAINE"]
["EXPERF MIDI PYRENEES","EXPERF MIDI PYRENEES"]
["EXPERF NORD","EXPERF NORD"]
["EXPERF NORMANDIE","EXPERF NORMANDIE"]
["EXPERF PACA","EXPERF PACA"]
["EXPERF PYRENEES ORIENTALES","EXPERF PYRENEES ORIENTALES"]
["EXPERF RHONE ALPES","EXPERF RHONE ALPES"]
["EXPERF VAUCLUSE DROME","EXPERF VAUCLUSE DROME"]
["EXPERTISE RESEARCH","EXPERTISE RESEARCH"]
["EYETECHCARE","EYETECHCARE"]
["Fab'entech","Fab'entech"]
["FAGRON","FAGRON"]
["FARCODERM France","FARCODERM France"]
["FCI SAS","FCI SAS"]
["FeetMe","FeetMe"]
["FERRING SAS","FERRING SAS"]
["FFF AUDIO","FFF AUDIO"]
["FH ORTHOPEDICS","FH ORTHOPEDICS"]
["Field Scope Int Ltd","Field Scope Int Ltd"]
["Field Scope International","Field Scope International"]
["FII","FII"]
["FIMED","FIMED"]
["FINANCIERE BATTEUR","FINANCIERE BATTEUR"]
["FINOX BIOTECH FRANCE SARL","FINOX BIOTECH FRANCE SARL"]
["Firme","Firme"]
["FISHER & PAYKEL HEALTHCARE SAS","FISHER & PAYKEL HEALTHCARE SAS"]
["FISHER SCIENTIFIC SAS","FISHER SCIENTIFIC SAS"]
["FLUOPTICS","FLUOPTICS"]
["Fondation Transplantation","Fondation Transplantation"]
["FOVEA PHARMACEUTICALS","FOVEA PHARMACEUTICALS"]
["France Oxygène","France Oxygène"]
["France Oxygène","France Oxygène"]
["FRANCHIS OPTIQUE AUDITION DE LA SCELLERIE","FRANCHIS OPTIQUE AUDITION DE LA SCELLERIE"]
["FRANCOPIA","FRANCOPIA"]
["FRESENIUS KABI FRANCE","FRESENIUS KABI FRANCE"]
["Fresenius Medical Care France S.A.S.","Fresenius Medical Care France S.A.S."]
["FRESENIUS VIAL","FRESENIUS VIAL"]
["FUJIFILM Medical Systems France","FUJIFILM Medical Systems France"]
["Fujifilm Sonosite France SARL","Fujifilm Sonosite France SARL"]
["FUJIREBIO FRANCE SARL","FUJIREBIO FRANCE SARL"]
["FUKUDA DENSHI CO., LTD","FUKUDA DENSHI CO., LTD"]
["FUMOUZE DIAGNOSTICS - SOFIBEL","FUMOUZE DIAGNOSTICS - SOFIBEL"]
["Future Thinking France","Future Thinking France"]
["FV Clinical","FV Clinical"]
["FX SOLUTIONS","FX SOLUTIONS"]
["GACD","GACD"]
["galderma international","galderma international"]
["Galderma Research & Development","Galderma Research & Development"]
["GaldermaQMed","GaldermaQMed"]
["GALLILEO BUSINESS CONSULTING","GALLILEO BUSINESS CONSULTING"]
["GAMAIN LEGROS","GAMAIN LEGROS"]
["GAMAMABS PHARMA","GAMAMABS PHARMA"]
["GAMBRO HOSPAL SAS","GAMBRO HOSPAL SAS"]
["GAMBRO INDUSTRIES","GAMBRO INDUSTRIES"]
["GAMIDA","GAMIDA"]
["GC FRANCE SAS","GC FRANCE SAS"]
["GC Orthodonics Europe GmbH","GC Orthodonics Europe GmbH"]
["GC TECHNOLOGY","GC TECHNOLOGY"]
["GE HEALTHCARE SAS","GE HEALTHCARE SAS"]
["GE Medical Systems SCS","GE Medical Systems SCS"]
["GECEM","GECEM"]
["GEDEON RICHTER France - Division Santé de la Femme","GEDEON RICHTER France - Division Santé de la Femme"]
["GEDEON RICHTER France - Division Santé de la Femme","GEDEON RICHTER France - Division Santé de la Femme"]
["GEISTLICH PHARMA FRANCE","GEISTLICH PHARMA FRANCE"]
["GemSeek","GemSeek"]
["Genactis SAS","Genactis SAS"]
["GENBIOTECH","GENBIOTECH"]
["Genen-Tech Inc","Genen-Tech Inc"]
["GENERIC IMPLANTS","GENERIC IMPLANTS"]
["generique international","generique international"]
["GENETHON","GENETHON"]
["GeNeuro","GeNeuro"]
["GeNeuro Innovation","GeNeuro Innovation"]
["GENEWAVE S.A.S","GENEWAVE S.A.S"]
["Genmab A/S","Genmab A/S"]
["GENOMIC HEALTH","GENOMIC HEALTH"]
["GENTICEL","GENTICEL"]
["Genzyme","Genzyme"]
["GENZYME POLYCLONALS","GENZYME POLYCLONALS"]
["GEP Santé","GEP Santé"]
["GEP Santé","GEP Santé"]
["Gesellschaft für Konsumforschung (GfK SE)","Gesellschaft für Konsumforschung (GfK SE)"]
["Gesellschaft fÜr Konsumforschung (GfK SE)","Gesellschaft fÜr Konsumforschung (GfK SE)"]
["GETINGE France","GETINGE France"]
["GFK ISL CUSTOM RESEARCH FRANCE","GFK ISL CUSTOM RESEARCH FRANCE"]
["GfK Market Access","GfK Market Access"]
["GfK NOP","GfK NOP"]
["GIBAUD","GIBAUD"]
["GIE DIALYSE SERVICES","GIE DIALYSE SERVICES"]
["GIFRER BARBEZAT","GIFRER BARBEZAT"]
["GILEAD SCIENCES","GILEAD SCIENCES"]
["GIM France","GIM France"]
["Gina","Gina"]
["GIVEN IMAGING","GIVEN IMAGING"]
["GlaxoSmithKline Biologicals","GlaxoSmithKline Biologicals"]
["GLAXOSMITHKLINE SANTE GRAND PUBLIC","GLAXOSMITHKLINE SANTE GRAND PUBLIC"]
["GLOBAL D","GLOBAL D"]
["GLOBAL MEDIA SANTE","GLOBAL MEDIA SANTE"]
["GlobalData","GlobalData"]
["Globe Life Sciences","Globe Life Sciences"]
["Glocal Mind","Glocal Mind"]
["GLocal Mind Inc","GLocal Mind Inc"]
["GLPTest","GLPTest"]
["gn hearing sas","gn hearing sas"]
["GN OTOMETRICS","GN OTOMETRICS"]
["GNB AUDIO 7","GNB AUDIO 7"]
["GNM Healthcare Consulting Ltd","GNM Healthcare Consulting Ltd"]
["GRAFTYS SA","GRAFTYS SA"]
["Grayling","Grayling"]
["GREAT PROJECTS 66","GREAT PROJECTS 66"]
["Grey Healthcare Paris","Grey Healthcare Paris"]
["GRIFOLS France","GRIFOLS France"]
["Groupe d'Etudes pour la Chirurgie Osseuse","Groupe d'Etudes pour la Chirurgie Osseuse"]
["GROUPE LEPINE","GROUPE LEPINE"]
["GROUPE SEBBIN","GROUPE SEBBIN"]
["GROUPE WELCOOP","GROUPE WELCOOP"]
["GT Urological, LLC","GT Urological, LLC"]
["GTO","GTO"]
["Guerbet","Guerbet"]
["GUERBET France","Guerbet"]
["GUILDE DES LUNETIERS","GUILDE DES LUNETIERS"]
["GXEL MEDICAL SARL","GXEL MEDICAL SARL"]
["H.A.C.Pharma","H.A.C.Pharma"]
["H32","H32"]
["H4D","H4D"]
["HALYARD France","HALYARD France"]
["HANDI PHARM ATLANTIQUE","HANDI PHARM ATLANTIQUE"]
["HANDI PHARM CHARENTES","HANDI PHARM CHARENTES"]
["HANDI PHARM GROUPE","HANDI PHARM GROUPE"]
["HANDI PHARM LIMOUSIN","HANDI PHARM LIMOUSIN"]
["HANDI PHARM NORMANDIE","HANDI PHARM NORMANDIE"]
["HANDI PHARM OCEAN","HANDI PHARM OCEAN"]
["HANDI PHARM PERCHE","HANDI PHARM PERCHE"]
["HANDI PHARM POITOU","HANDI PHARM POITOU"]
["HANSATON","HANSATON"]
["Hansen Medical, Inc.","Hansen Medical, Inc."]
["HARD CAB'","HARD CAB'"]
["HARMONIE MEDICAL SERVICE GRAND EST","HARMONIE MEDICAL SERVICE GRAND EST"]
["HAVAS LIFE PARIS","HAVAS LIFE PARIS"]
["HD MEDICAL","HD MEDICAL"]
["Health Advances","Health Advances"]
["HEALTHCARE COMPLIANCE CONSULTING FRANCE SAS","HEALTHCARE COMPLIANCE CONSULTING FRANCE SAS"]
["HEALTHCAREGEN COMMUNICATION","HEALTHCAREGEN COMMUNICATION"]
["HEARTWARE FRANCE","HEARTWARE FRANCE"]
["HeartWare Inc.","HeartWare Inc."]
["HELP ORTHO PRODUCTION","HELP ORTHO PRODUCTION"]
["HEMA.T MEDICAL","HEMA.T MEDICAL"]
["HEMODIA SAS","HEMODIA SAS"]
["HEMOTECH","HEMOTECH"]
["HENRY SCHEIN FRANCE SCA","HENRY SCHEIN FRANCE SCA"]
["HERAEUS","HERAEUS"]
["HERAEUS KULZER FRANCE","HERAEUS KULZER FRANCE"]
["HERINOMENJANAHARY ZAFITSARA","HERINOMENJANAHARY ZAFITSARA"]
["HEXACATH FRANCE","HEXACATH FRANCE"]
["HEXACATH SA","HEXACATH SA"]
["HEXAMEDICAL SAS","HEXAMEDICAL SAS"]
["HILL-ROM S.A.S.","HILL-ROM S.A.S."]
["HITACHI MEDICAL SYSTEMS SAS","HITACHI MEDICAL SYSTEMS SAS"]
["Hogan Lovells International LLP","Hogan Lovells International LLP"]
["Holaira, Inc.","Holaira, Inc."]
["HOLLISTER FRANCE Incorporated","HOLLISTER FRANCE Incorporated"]
["HOLOGIC","HOLOGIC"]
["Hologic Deutschland GmbH","Hologic Deutschland GmbH"]
["HOME AIR","HOME AIR"]
["HOMEDIS SANTE","HOMEDIS SANTE"]
["Homeperf","Homeperf"]
["HORIBA ABX SAS","HORIBA ABX SAS"]
["HORMETA FRANCE","HORMETA FRANCE"]
["horus pharma","horus pharma"]
["HOSPIDOM","HOSPIDOM"]
["HOSPIRA FRANCE","HOSPIRA"]
["HOYA LENS FRANCE SAS","HOYA LENS FRANCE SAS"]
["HOYA Surgical Optics GmbH","HOYA Surgical Optics GmbH"]
["HRA PHARMA FRANCE","HRA PHARMA FRANCE"]
["H-research Asia","H-research Asia"]
["HUERRE ALAIN FRANCOIS","HUERRE ALAIN FRANCOIS"]
["HUMANAIR MEDICAL","HUMANAIR MEDICAL"]
["HYPHEN BIOMED SAS","HYPHEN BIOMED SAS"]
["Hyprevention sas","Hyprevention sas"]
["I.CERAM","I.CERAM"]
["ICARE","ICARE"]
["ICOMED","Icomed"]
["ICON CLINICAL RESEARCH SARL","ICON CLINICAL RESEARCH SARL"]
["ICON CLINICAL RESEARCH UK LIMITED","ICON CLINICAL RESEARCH UK LIMITED"]
["ICTA PROJECT MANAGEMENT","ICTA PROJECT MANAGEMENT"]
["Ideal Gourmet","Ideal Gourmet"]
["IDEC 56","IDEC 56"]
["ID-NEST Medical","ID-NEST Medical"]
["idrm","idrm"]
["IFOP","IFOP"]
["IHEALTHLABS","IHEALTHLABS"]
["Illumina France","Illumina France"]
["IMACCESS","IMACCESS"]
["IMACTIS","IMACTIS"]
["IMAGO RESEARCH","IMAGO RESEARCH"]
["Imaxio","Imaxio"]
["Immucor France","Immucor France"]
["ImmunoDiagnostic Systems SAS","ImmunoDiagnostic Systems SAS"]
["IMPACT MEDICOM","IMPACT MEDICOM"]
["Impatients N.V","Impatients N.V"]
["IMPETO MEDICAL","IMPETO MEDICAL"]
["IMPLANET SA","IMPLANET SA"]
["IMPLANTS SERVICE ORTHOPEDIE","IMPLANTS SERVICE ORTHOPEDIE"]
["IMS Health Belgique","IMS Health Belgique"]
["IMS Health Cambridge","IMS Health Cambridge"]
["IMS HEALTH SAS","IMS HEALTH SAS"]
["IMS Medical Radar","IMS Medical Radar"]
["In2Bones","In2Bones"]
["INC RESEARCH, LLC","INC RESEARCH, LLC"]
["Incyte Biosciences France","Incyte Biosciences France"]
["Incyte Corporation","Incyte Corporation"]
["Indigo Medical","Indigo Medical"]
["INFECO","INFECO"]
["INGEN","INGEN"]
["INIT","INIT"]
["INNATE PHARMA","INNATE PHARMA"]
["InnOpath sarl","InnOpath sarl"]
["INNOPSYS","INNOPSYS"]
["Innothera Chouzy","Innothera Chouzy"]
["Innothera Services","Innothera Services"]
["INOVITALE","INOVITALE"]
["INRESA Sarl","INRESA Sarl"]
["Insight Research Group","Insight Research Group"]
["INSMED France SAS","INSMED France SAS"]
["INSMED INCORPORATED","INSMED INCORPORATED"]
["INSTITUT DE BIOTECHNOLOGIES J. BOY","INSTITUT DE BIOTECHNOLOGIES J. BOY"]
["INSTITUT GEORGES LOPEZ","INSTITUT GEORGES LOPEZ"]
["INSTITUT MERIEUX","INSTITUT MERIEUX"]
["Institut Roche","Institut Roche"]
["INSTITUT STERLING COOPER","INSTITUT STERLING COOPER"]
["Integra LifeSciences Services (France)","Integra LifeSciences Services (France)"]
["Integra MicroFrance","Integra MicroFrance"]
["Integra NeuroSciences Implants (France)","Integra NeuroSciences Implants (France)"]
["INTEGRAL ORTHO","INTEGRAL ORTHO"]
["INTER ORTHO","INTER ORTHO"]
["Interactive Biosoftware","Interactive Biosoftware"]
["Intercept Pharma France SAS","Intercept Pharma France SAS"]
["Intercept Pharmaceuticals Inc.","Intercept Pharmaceuticals Inc."]
["InterMune France SAS","InterMune France SAS"]
["InterMune International AG","InterMune International AG"]
["INTERSURGICAL SARL","INTERSURGICAL SARL"]
["Inter-View Partners France","Inter-View Partners France"]
["INTUITIVE SURGICAL SARL","INTUITIVE SURGICAL SARL"]
["INVACARE POIRIER SAS","INVACARE POIRIER SAS"]
["INVENTIVA","INVENTIVA"]
["Inventivhealthclinical","Inventivhealthclinical"]
["IP Santé domicile","IP Santé domicile"]
["IP Santé domicile","IP Santé domicile"]
["IPAD Médical","IPAD Médical"]
["IPAD Médical","IPAD Médical"]
["Ipanema Healthcare Consulting","Ipanema Healthcare Consulting"]
["IPPMed GmbH","IPPMed GmbH"]
["IPSEN INNOVATION","IPSEN INNOVATION"]
["IPSEN PHARMA","IPSEN PHARMA"]
["IPSEN PHARMA BIOTECH","IPSEN PHARMA BIOTECH"]
["Ipsos (France)","Ipsos (France)"]
["Ipsos Insight LLC","Ipsos Insight LLC"]
["Ipsos Mori UK Limited","Ipsos Mori UK Limited"]
["Ipsos Observer","Ipsos Observer"]
["Iris Pharma","Iris Pharma"]
["ISIS ADOUR","ISIS ADOUR"]
["ISIS ATLANTIQUE","ISIS ATLANTIQUE"]
["ISIS COTE D'AZUR","ISIS COTE D'AZUR"]
["ISIS DIABETE","ISIS DIABETE"]
["ISIS DIABETE EST","ISIS DIABETE EST"]
["ISIS DIABETE SERVICE","ISIS DIABETE SERVICE"]
["ISIS DIABETE SUD","ISIS DIABETE SUD"]
["ISIS GUADELOUPE","ISIS GUADELOUPE"]
["ISIS LANGUEDOC ROUSSILLON","ISIS LANGUEDOC ROUSSILLON"]
["ISIS MARTINIQUE","ISIS MARTINIQUE"]
["ISIS MÉDICAL VAR","ISIS MÉDICAL VAR"]
["ISIS MÉDICAL VAR","ISIS MÉDICAL VAR"]
["Isis Méditerranée","Isis Méditerranée"]
["Isis Méditerranée","Isis Méditerranée"]
["ISIS MIDI PYRENEES","ISIS MIDI PYRENEES"]
["ISIS NORMANDIE","ISIS NORMANDIE"]
["ISIS PARIS EST","ISIS PARIS EST"]
["ISIS PARIS NORD","ISIS PARIS NORD"]
["ISIS PARIS NORMANDIE","ISIS PARIS NORMANDIE"]
["ISIS PARIS OUEST","ISIS PARIS OUEST"]
["ISIS PARIS SUD","ISIS PARIS SUD"]
["ISIS PAYS DE LA LOIRE","ISIS PAYS DE LA LOIRE"]
["ISIS PERFUSION","ISIS PERFUSION"]
["ISIS PERFUSION NORD","ISIS PERFUSION NORD"]
["ISIS RHONE ALPES","ISIS RHONE ALPES"]
["IsoTis International SÀRL","IsoTis International SÀRL"]
["IST cardiology","IST cardiology"]
["ITEC SERVICES","ITEC SERVICES"]
["ITEM","ITEM"]
["ITENA CLINICAL","ITENA CLINICAL"]
["Ivoclar Vivadent SAS","Ivoclar Vivadent SAS"]
["IVTEC (Iol Vision Technology)","IVTEC (Iol Vision Technology)"]
["IXAIR","IXAIR"]
["IXAIR ASSISTANCE","IXAIR ASSISTANCE"]
["IXXI","IXXI"]
["JANSSEN-CILAG","Janssen-Cilag"]
["JAZZ PHARMACEUTICALS FRANCE","JAZZ PHARMACEUTICALS FRANCE"]
["Jean-Manuel Toussaint, IHMT","Jean-Manuel Toussaint, IHMT"]
["JLM MEDICAL","JLM MEDICAL"]
["Johnson & Johnson Diabetes Institute SAS","Johnson & Johnson Diabetes Institute SAS"]
["Johnson et Johnson Santé Beauté France","Johnson et Johnson Santé Beauté France"]
["Johnson et Johnson Santé Beauté France","Johnson et Johnson Santé Beauté France"]
["JOTEC GmbH","JOTEC GmbH"]
["JULIUS CLINICAL RESEARCH B.V.","JULIUS CLINICAL RESEARCH B.V."]
["Julius Zorn GmbH","Julius Zorn GmbH"]
["Junicon","Junicon"]
["Junicon Europe SL","Junicon Europe SL"]
["K. PARTICULIER","K. PARTICULIER"]
["Kadence international","Kadence international"]
["Kantar Health","Kantar Health"]
["Kappa Santé","Kappa Santé"]
["Kappa Santé","Kappa Santé"]
["KARL STORZ ENDOSCOPIE FRANCE SAS","KARL STORZ ENDOSCOPIE FRANCE SAS"]
["Karl Storz Gmbh and co KG","Karl Storz Gmbh and co KG"]
["KARUKERA AUDITION","KARUKERA AUDITION"]
["Karyopharm Therapeutics Inc.","Karyopharm Therapeutics Inc."]
["KASIOS","KASIOS"]
["Kavo Dental SAS","Kavo Dental SAS"]
["KCI EUROPE HOLDING B.V.","KCI EUROPE HOLDING B.V."]
["KCI KK JAPAN","KCI KK JAPAN"]
["KCI MEDICAL (CHINA) CO. LTD.","KCI MEDICAL (CHINA) CO. LTD."]
["KEBOMED","KEBOMED"]
["KEOCYT","KEOCYT"]
["KEPHREN","KEPHREN"]
["KERI MEDICAL FRANCE","KERI MEDICAL FRANCE"]
["KeyQuest Health Ltd","KeyQuest Health Ltd"]
["KeyQuest Health Ltd.","KeyQuest Health Ltd."]
["KEYSTONE DENTAL SAS","KEYSTONE DENTAL SAS"]
["Kimberly-Clark SAS","Kimberly-Clark SAS"]
["KINETIC CONCEPTS, INC.","KINETIC CONCEPTS, INC."]
["KISCO International","KISCO International"]
["KOELIS","KOELIS"]
["KOMET FRANCE","KOMET FRANCE"]
["KPL","KPL"]
["KRKA FRANCE EURL","KRKA FRANCE EURL"]
["Kuraray Europe France","Kuraray Europe France"]
["KYD ORTHOPEDIE","KYD ORTHOPEDIE"]
["L&L Rsourcing","L&L Rsourcing"]
["LA DIFFUSION TECHNIQUE FRANCAISE","LA DIFFUSION TECHNIQUE FRANCAISE"]
["LA FONDERIE","LA FONDERIE"]
["LA REGIE PUBLIQUE","LA REGIE PUBLIQUE"]
["LA SOLUTION AUDITIVE","LA SOLUTION AUDITIVE"]
["Lab Marketing SL","Lab Marketing SL"]
["LABCATAL","LABCATAL"]
["LABODIAL","LABODIAL"]
["Laboratoier Innotech international","Laboratoier Innotech international"]
["LABORATOIR CLAYTONE-TERRAFOR","LABORATOIR CLAYTONE-TERRAFOR"]
["Laboratoire AGUETTANT, Société par Actions Simplifiée","AGUETTANT, Société par Actions Simplifiée"]
["Laboratoire AGUETTANT, Société par Actions Simplifiée","Laboratoire AGUETTANT, Société par Actions Simplifiée"]
["LABORATOIRE ATO-ZIZINE","ATO-ZIZINE"]
["laboratoire audioprothèse lorrain","audioprothèse lorrain"]
["laboratoire audioprothèse lorrain","laboratoire audioprothèse lorrain"]
["laboratoire BAUSCH&LOMB","BAUSCH&LOMB"]
["Laboratoire Bioderma","Bioderma"]
["LABORATOIRE BIODIM","BIODIM"]
["Laboratoire CAT","CAT"]
["Laboratoire CCD","CCD"]
["LABORATOIRE CEVIDRA","LABORATOIRE CEVIDRA"]
["LABORATOIRE CORRECTION AUDITIVE DRAGUIGNAN","CORRECTION AUDITIVE DRAGUIGNAN"]
["LABORATOIRE CORRECTION AUDITIVE ST RAPHAEL-FREJUS","CORRECTION AUDITIVE ST RAPHAEL-FREJUS"]
["LABORATOIRE COSMETIQUE DE LECOUSSE","COSMETIQUE DE LECOUSSE"]
["Laboratoire de correction auditive","de correction auditive"]
["Laboratoire de correction auditive d'Aix en Provence","de correction auditive d'Aix en Provence"]
["laboratoire de correction auditive d'Aubagne","de correction auditive d'Aubagne"]
["LABORATOIRE DE CORRECTION AUDITIVE D'AVIGNON SAINT ROCH","DE CORRECTION AUDITIVE D'AVIGNON SAINT ROCH"]
["LABORATOIRE DE CORRECTION AUDITIVE DE CAVAILLON","DE CORRECTION AUDITIVE DE CAVAILLON"]
["laboratoire de correction auditive de dijon","de correction auditive de dijon"]
["LABORATOIRE DE CORRECTION AUDITIVE DE ISTRES","DE CORRECTION AUDITIVE DE ISTRES"]
["Laboratoire de correction auditive de lambesc","de correction auditive de lambesc"]
["LABORATOIRE DE CORRECTION AUDITIVE DE MARTIGUES","DE CORRECTION AUDITIVE DE MARTIGUES"]
["LABORATOIRE DE CORRECTION AUDITIVE DE TOULON","DE CORRECTION AUDITIVE DE TOULON"]
["Laboratoire de Correction Auditive de Villeneuve lez Avignon","de Correction Auditive de Villeneuve lez Avignon"]
["laboratoire de correction auditive Sylvain Chopinaud","de correction auditive Sylvain Chopinaud"]
["LABORATOIRE DE CORRECTION DE LA SURDITE","DE CORRECTION DE LA SURDITE"]
["laboratoire de correction de l'audition","de correction de l'audition"]
["Laboratoire de Dermocosmétique Active Docteur Pierre Ricaud","de Dermocosmétique Active Docteur Pierre Ricaud"]
["Laboratoire de Dermocosmétique Active Docteur Pierre Ricaud","Laboratoire de Dermocosmétique Active Docteur Pierre Ricaud"]
["LABORATOIRE DE DIFFUSION DE PRODUITS DE SANTE APPLIQUEE","DE DIFFUSION DE PRODUITS DE SANTE APPLIQUEE"]
["LABORATOIRE DE LA MER","DE LA MER"]
["LABORATOIRE DENSMORE","DENSMORE"]
["Laboratoire DERMSCAN","DERMSCAN"]
["LABORATOIRE DES GRANIONS","DES GRANIONS"]
["LABORATOIRE DISSOLVUROL","DISSOLVUROL"]
["Laboratoire du Dermophil Indien","Dermophil Indien"]
["LABORATOIRE DU SOLVIREX","LABORATOIRE DU SOLVIREX"]
["Laboratoire Eneomey","Laboratoire Eneomey"]
["LABORATOIRE EREMPHARMA","EREMPHARMA"]
["LABORATOIRE FLORENCE VERJUS","FLORENCE VERJUS"]
["Laboratoire français du Fractionnement et des Biotechnologies","LFB"]
["Laboratoire français du Fractionnement et des Biotechnologies","Laboratoire français du Fractionnement et des Biotechnologies"]
["Laboratoire GANDHOUR","GANDHOUR"]
["LABORATOIRE GLAXOSMITHKLINE","GSK"]
["Laboratoire HEPATOUM","HEPATOUM"]
["Laboratoire Innothera","Innothéra"]
["LABORATOIRE JALDES","JALDES"]
["LABORATOIRE KCI MEDICAL","KCI MEDICAL"]
["Laboratoire Kreussler pharma","Kreussler pharma"]
["laboratoire leblanc et associés","leblanc et associés"]
["laboratoire leblanc et associés","laboratoire leblanc et associés"]
["LABORATOIRE MENE ET MOY","MENE ET MOY"]
["Laboratoire MSD Chibret","MSD France"]
["LABORATOIRE NOVEX PHARMA","NOVEX PHARMA"]
["LABORATOIRE NUXE","NUXE"]
["Laboratoire PEDIACT","PEDIACT"]
["Laboratoire PHARMASTRA","PHARMASTRA"]
["Laboratoire Protec'Som","Protec'Som"]
["LABORATOIRE RENAUDIN","RENAUDIN"]
["Laboratoire SCIENCEX","SCIENCEX"]
["LABORATOIRE SOBER","SOBER"]
["LABORATOIRE TETRA MEDICAL","TETRA MEDICAL"]
["Laboratoire TRADIPHAR","TRADIPHAR"]
["LABORATOIRE UNITHER","UNITHER"]
["LABORATOIRES ALCON","ALCON"]
["LABORATOIRES ALTER","ALTER"]
["LABORATOIRES ARION","ARION"]
["Laboratoires ARKOPHARMA","ARKOPHARMA"]
["Laboratoires AUVEX","AUVEX"]
["Laboratoires Bailleul","Bailleul"]
["Laboratoires BESINS INTERNATIONAL","BESINS INTERNATIONAL"]
["LABORATOIRES BOUCHARA - RECORDATI","BOUCHARA - RECORDATI"]
["LABORATOIRES BROTHIER","BROTHIER"]
["Laboratoires Carilène","Carilène"]
["Laboratoires Carilène","Laboratoires Carilène"]
["LABORATOIRES CHAIX ET DU MARAIS","CHAIX ET DU MARAIS"]
["LABORATOIRES CLARINS","CLARINS"]
["LABORATOIRES COLOPLAST","COLOPLAST"]
["LABORATOIRES CONVATEC","CONVATEC"]
["Laboratoires Crinex","Crinex"]
["LABORATOIRES CTRS","CTRS"]
["Laboratoires CYCLOPHARMA","CYCLOPHARMA"]
["Laboratoires de Biologie Marine Daniel Jouvance","de Biologie Marine Daniel Jouvance"]
["Laboratoires de Biologie Végétale Yves Rocher","de Biologie Végétale Yves Rocher"]
["Laboratoires de Biologie Végétale Yves Rocher","Laboratoires de Biologie Végétale Yves Rocher"]
["Laboratoires DELBERT","DELBERT"]
["laboratoires dermatologiques d'Uriage","dermatologiques d'Uriage"]
["Laboratoires des Réalisations Thérapeutiques ELERTE","des Réalisations Thérapeutiques ELERTE"]
["Laboratoires des Réalisations Thérapeutiques ELERTE","Laboratoires des Réalisations Thérapeutiques ELERTE"]
["Laboratoires Doliage","Doliage"]
["Laboratoires ETHYPHARM","ETHYPHARM"]
["Laboratoires Expanscience","Expanscience"]
["LABORATOIRES GENEVRIER","GENEVRIER"]
["LABORATOIRES GERDA","GERDA"]
["LABORATOIRES GILBERT","GILBERT"]
["LABORATOIRES GRIMBERG SA","GRIMBERG SA"]
["Laboratoires Grünenthal SAS","Grünenthal"]
["Laboratoires Grünenthal SAS","Laboratoires Grünenthal SAS"]
["Laboratoires INELDEA","INELDEA"]
["Laboratoires inneov SNC","inneov SNC"]
["Laboratoires IPRAD PHARMA","IPRAD PHARMA"]
["LABORATOIRES JOLLY-JATEL","JOLLY-JATEL"]
["Laboratoires Juva Production","Juva Production"]
["Laboratoires Juva Santé","Juva Santé"]
["Laboratoires Juva Santé","Laboratoires Juva Santé"]
["LABORATOIRES JUVISE PHARMACEUTICALS","JUVISE PHARMACEUTICALS"]
["LABORATOIRES LEHNING SAS","LEHNING SAS"]
["Laboratoires Leurquin Mediolanum","Leurquin Mediolanum"]
["Laboratoires Lohmann & Rauscher","Lohmann & Rauscher"]
["LABORATOIRES M&L","M&L"]
["Laboratoires MAJORELLE","MAJORELLE"]
["LABORATOIRES MAYOLY SPINDLER","MAYOLY SPINDLER"]
["Laboratoires Moulin Royal Cosmetics","Moulin Royal Cosmetics"]
["Laboratoires NEGMA","NEGMA"]
["Laboratoires Nicox","Laboratoires Nicox"]
["LABORATOIRES NIGY","NIGY"]
["LABORATOIRES NOREVA LED","NOREVA LED"]
["LABORATOIRES OMEGA PHARMA FRANCE","OMEGA PHARMA FRANCE"]
["Laboratoires PHARMA 2000","PHARMA 2000"]
["LABORATOIRES PHARMACEUTIQUES DEXO","PHARMACEUTIQUES DEXO"]
["LABORATOIRES PHARMY II","PHARMY II"]
["Laboratoires PRED","PRED"]
["LABORATOIRES SUPER DIET","SUPER DIET"]
["Laboratoires SVR France","SVR France"]
["Laboratoires TERUMO S.A","TERUMO S.A"]
["Laboratoires THEA","THEA"]
["Laboratoires TONIPHARM SARL","TONIPHARM SARL"]
["LABORATOIRES URGO","URGO"]
["Laboratoires URSAPHARM SAS","URSAPHARM SAS"]
["LABORATORY IMPLANT MEDICAL DEVICE - LIMMED","LABORATORY IMPLANT MEDICAL DEVICE - LIMMED"]
["Labvoratoire CHAUVIN","Labvoratoire CHAUVIN"]
["Lamidey Noury Medical","Lamidey Noury Medical"]
["larm-o-tec","larm-o-tec"]
["LARS","LARS"]
["LASER","LASER"]
["LASOL ROYAN","LASOL ROYAN"]
["LAUVAL","LAUVAL"]
["LCA S.A.","LCA S.A."]
["LDR Médical","LDR Médical"]
["LDR Médical","LDR Médical"]
["Leica Biosystems Nussloch GmbH","Leica Biosystems Nussloch GmbH"]
["Leica Microsystèmes SAS","Leica Microsystèmes SAS"]
["Leica Microsystèmes SAS","Leica Microsystèmes SAS"]
["Leica Microsystems Inc.","Leica Microsystems Inc."]
["LeMaitre Vascular SAS","LeMaitre Vascular SAS"]
["LEN Médical","LEN Médical"]
["LEN Médical","LEN Médical"]
["LENTILLES SAS","LENTILLES SAS"]
["L'Entreprise Médicale","L'Entreprise Médicale"]
["L'Entreprise Médicale","L'Entreprise Médicale"]
["LEO Pharma","LEO Pharma"]
["LES LABORATOIRES OSTEAL MEDICAL","LES OSTEAL MEDICAL"]
["LES LABORATOIRES SERVIER","LES SERVIER"]
["LES SALONS DU PALAIS ROYAL SHISEIDO","LES SALONS DU PALAIS ROYAL SHISEIDO"]
["LFB BIOMANUFACTURING","LFB"]
["LFB BIOMEDICAMENTS","LFB"]
["LFB BIOTECHNOLOGIES","LFB"]
["LG HOMEO","LG HOMEO"]
["LIFE PARTNERS EUROPE","LIFE PARTNERS EUROPE"]
["Life Technologies Corporation","Life Technologies Corporation"]
["LIFE TECHNOLOGIES SAS","LIFE TECHNOLOGIES SAS"]
["LifeCell EMEA Limited","LifeCell EMEA Limited"]
["Lifescan","Lifescan"]
["Lilly France SAS","Lilly"]
["LIMA FRANCE","LIMA FRANCE"]
["LINDE FRANCE","LINDE FRANCE"]
["LINDE HOMECARE FRANCE SAS","LINDE HOMECARE FRANCE SAS"]
["LION / SENECA FRANCE AUDIO","LION / SENECA FRANCE AUDIO"]
["Lipomed GmbH","Lipomed GmbH"]
["Listening Pharma","Listening Pharma"]
["LivaNova","LivaNova"]
["LIVE ! BY GL EVENTS","LIVE ! BY GL EVENTS"]
["LKN MEDICAL SARL","LKN MEDICAL SARL"]
["Lohmann & Rauscher International GmbH & Co KG","Lohmann & Rauscher International GmbH & Co KG"]
["LOL PHARMA","LOL PHARMA"]
["LONGUEUR D'ONDES","LONGUEUR D'ONDES"]
["L'OREAL S.A.","L'OREAL S.A."]
["LPV","LPV"]
["LUCANE PHARMA","LUCANE PHARMA"]
["LUCAS MEYER COSMETICS","LUCAS MEYER COSMETICS"]
["Lumenis Ltd.","Lumenis Ltd."]
["LUNDBECK SAS","LUNDBECK SAS"]
["LV2","LV2"]
["LVL MEDICAL CENTRE EST","LVL MEDICAL CENTRE EST"]
["LVL MEDICAL EST","LVL MEDICAL EST"]
["LVL MEDICAL GROUPE","LVL MEDICAL GROUPE"]
["LVL MEDICAL OUEST","LVL MEDICAL OUEST"]
["LVL MEDICAL PARIS ET NORD","LVL MEDICAL PARIS ET NORD"]
["LVL MEDICAL SUD","LVL MEDICAL SUD"]
["LVL MEDICAL SUD OUEST","LVL MEDICAL SUD OUEST"]
["LYON KLEBER SANTE","LYON KLEBER SANTE"]
["Lysogene","Lysogene"]
["M3 Global Research Ltd","M3 Global Research Ltd"]
["MACO PHARMA","MACO PHARMA"]
["MACO PRODUCTIONS","MACO PRODUCTIONS"]
["MALLINCKRODT FRANCE SARL","MALLINCKRODT FRANCE SARL"]
["MANTARAY","MANTARAY"]
["MAPI SAS","MAPI SAS"]
["MAQUET SAS","MAQUET SAS"]
["MARIE AMELIE LENOIR CONSULTING - VICTA CONSEIL","MARIE AMELIE LENOIR CONSULTING - VICTA CONSEIL"]
["MARINA","MARINA"]
["mark'ennovy SARL","mark'ennovy SARL"]
["MARKET VISION","MARKET VISION"]
["MARQUAT GENIE BIOMEDICAL","MARQUAT GENIE BIOMEDICAL"]
["MARQUE VERTE WELCOOP SANTE","MARQUE VERTE WELCOOP SANTE"]
["MASIMO","MASIMO"]
["MAST THERAPEUTICS","MAST THERAPEUTICS"]
["Mathys Orthopédie","Mathys Orthopédie"]
["Mathys Orthopédie","Mathys Orthopédie"]
["Mauna Kea Technologies","Mauna Kea Technologies"]
["MAVALA FRANCE SA","MAVALA FRANCE SA"]
["MCCANN HEALTHCARE","MCCANN HEALTHCARE"]
["MD HANDICAP ET SOINS","MD HANDICAP ET SOINS"]
["MD ORTHO","MD ORTHO"]
["MDC-Partners","MDC-Partners"]
["Mdoloris Medical Systems","Mdoloris Medical Systems"]
["MECCELLIS BIOTECH","MECCELLIS BIOTECH"]
["MED OUEST","MED OUEST"]
["MED PLANET","MED PLANET"]
["med&you","med&you"]
["MEDA PHARMA","MEDA PHARMA"]
["MEDAC SAS","MEDAC SAS"]
["MEDACTA FRANCE","MEDACTA FRANCE"]
["MEDARTIS SARL","MEDARTIS SARL"]
["MEDCARE","MEDCARE"]
["medDigital","medDigital"]
["MED-EL Elektromedizinische Geraete Gesellschaft m.b.H","MED-EL Elektromedizinische Geraete Gesellschaft m.b.H"]
["Medela France Sarl","Medela France Sarl"]
["M-Eden","M-Eden"]
["MEDEX","MEDEX"]
["MEDEXACT","MEDEXACT"]
["medi","medi"]
["MEDI SYS","MEDI SYS"]
["Median Conseil","Median Conseil"]
["MEDIAN Technologies","MEDIAN Technologies"]
["MEDIATION CONSEIL SANTE","MEDIATION CONSEIL SANTE"]
["MEDIBOUM","MEDIBOUM"]
["MEDIC CENTRE EQUIPEMENT","MEDIC CENTRE EQUIPEMENT"]
["MEDIC CENTRE INDUSTRIE","MEDIC CENTRE INDUSTRIE"]
["MEDICAL AXÃˆS","MEDICAL AXÃˆS"]
["MEDICAL BEL AIR","MEDICAL BEL AIR"]
["Medical Eye Tec","Medical Eye Tec"]
["MEDICAL IMPLANTS","MEDICAL IMPLANTS"]
["MEDICAL INNOVATION DEVELOPPEMENT","MEDICAL INNOVATION DEVELOPPEMENT"]
["MEDICAL SANTE GRAND NORD","MEDICAL SANTE GRAND NORD"]
["Medicalo2","Medicalo2"]
["Medicals International (Off-Shore) SARL","Medicals International (Off-Shore) SARL"]
["Medicare_HTM","Medicare_HTM"]
["MEDICO FRANCE","MEDICO FRANCE"]
["MEDICONSEIL","MEDICONSEIL"]
["MEDICREA Europe Francophone","MEDICREA Europe Francophone"]
["MEDICREA INTERNATIONAL","MEDICREA INTERNATIONAL"]
["Medicys Limited","Medicys Limited"]
["Médi-Fav","Médi-Fav"]
["Médi-Fav","Médi-Fav"]
["MEDIKEA","MEDIKEA"]
["MEDIMARK EUROPE SARL","MEDIMARK EUROPE SARL"]
["MEDIOUTREMER","MEDIOUTREMER"]
["MEDIPHA SANTE","MEDIPHA SANTE"]
["MEDIPREMA","MEDIPREMA"]
["MEDISPORT","MEDISPORT"]
["MEDITEX","MEDITEX"]
["MEDITOR","MEDITOR"]
["MEDIVAL OUTRE-MER","MEDIVAL OUTRE-MER"]
["Mediwound Germany GmbH","Mediwound Germany GmbH"]
["Medline Assembly France SAS","Medline Assembly France SAS"]
["Medline International France SAS","Medline International France SAS"]
["Medtech","Medtech"]
["MEDTRONIC France S.A.S","MEDTRONIC France S.A.S"]
["MEDUSIMS","MEDUSIMS"]
["medwork France","medwork France"]
["MEGA DENTAL SAS","MEGA DENTAL SAS"]
["MELISANA","MELISANA"]
["MELLITUS CARE","MELLITUS CARE"]
["MENARINI FRANCE","MENARINI"]
["MENETRIER NARD SAS","MENETRIER NARD SAS"]
["MENICON SAS","MENICON SAS"]
["MENIX GROUP","MENIX GROUP"]
["Merck Medication Familiale","Merck Medication Familiale"]
["MERCK SANTE","MERCK SANTE"]
["MERCK SERONO","MERCK SERONO"]
["Mérieux Université","Mérieux Université"]
["Mérieux Université","Mérieux Université"]
["Merit Medical Asia Co., Ltd","Merit Medical Asia Co., Ltd"]
["Merit Medical France","Merit Medical France"]
["Merit Medical Netherlands","Merit Medical Netherlands"]
["Merit Medical Systems, Inc.","Merit Medical Systems, Inc."]
["MERZ PHARMA France","MERZ PHARMA France"]
["MERZ PHARMACEUTICALS GmbH","MERZ PHARMACEUTICALS GmbH"]
["MESSER FRANCE","MESSER FRANCE"]
["MICROGENICS GmbH","MICROGENICS GmbH"]
["MICRO-MEGA","MICRO-MEGA"]
["MICROPORT ORTHOPEDICS","MICROPORT ORTHOPEDICS"]
["MICROVAL","MICROVAL"]
["MicroVention Europe","MicroVention Europe"]
["MicroVention Inc.","MicroVention Inc."]
["MIELE SAS","MIELE SAS"]
["MILLWARD BROWN","MILLWARD BROWN"]
["MINMAXMEDICAL","MINMAXMEDICAL"]
["MINVASYS","MINVASYS"]
["MIS IMPLANTS TECHNOLOGIES FRANCE","MIS IMPLANTS TECHNOLOGIES FRANCE"]
["MITHRA PHARMACEUTICALS S.A.S","MITHRA PHARMACEUTICALS S.A.S"]
["ML2S","ML2S"]
["Mobidiag Oy","Mobidiag Oy"]
["Modérateur Ministère de la Santé","Modérateur Ministère de la Santé"]
["Modérateur Ministère de la Santé","Modérateur Ministère de la Santé"]
["Molnlycke Health Care","Molnlycke Health Care"]
["MONATH ELECTRONIC SARL","MONATH ELECTRONIC SARL"]
["MON-EVENT.COM","MON-EVENT.COM"]
["MONITORING FORCE FRANCE","MONITORING FORCE FRANCE"]
["MORIA LASE","MORIA LASE"]
["MORIA S.A.","MORIA S.A."]
["MOVE-UP","MOVE-UP"]
["MSD France","MSD France"]
["MSDAVENIR","MSD France"]
["MULTALER & CIE","MULTALER & CIE"]
["MULTIPLICOM","MULTIPLICOM"]
["MUNDIPHARMA","MUNDIPHARMA"]
["MV3 SAS","MV3 SAS"]
["MVRx, Inc.","MVRx, Inc."]
["MYLAN MEDICAL SAS","MYLAN"]
["MYLAN SAS","MYLAN"]
["NANOBIOTIX S.A.","NANOBIOTIX S.A."]
["Nanosonics Europe Limited","Nanosonics Europe Limited"]
["Nanosonics Limite","Nanosonics Limite"]
["Nanostring Technologies, Inc","Nanostring Technologies, Inc"]
["NAOS","NAOS"]
["NAOS FRANCE","NAOS FRANCE"]
["NeoMedLight SAS","NeoMedLight SAS"]
["NEOS","NEOS"]
["NEOSTEO","NEOSTEO"]
["NEOVACS","NEOVACS"]
["Nestlé Clinical Nutrition","Nestlé Clinical Nutrition"]
["Nestlé Clinical Nutrition","Nestlé Clinical Nutrition"]
["NESTLE HOMECARE","NESTLE HOMECARE"]
["Netika SA","Netika SA"]
["NEURAVI LIMITED","NEURAVI LIMITED"]
["NEURELEC","NEURELEC"]
["NEURELEC MAROC","NEURELEC MAROC"]
["newbone","newbone"]
["NEWCLIP INTERNATIONAL","NEWCLIP INTERNATIONAL"]
["NEWCLIP TECHNICS","NEWCLIP TECHNICS"]
["Newdeal","Newdeal"]
["NEXMED PHARMA","NEXMED PHARMA"]
["NICHROMINOX","NICHROMINOX"]
["NICOX","NICOX"]
["NIDEK SA","NIDEK SA"]
["NIHON KOHDEN","NIHON KOHDEN"]
["nile","nile"]
["NIPRO FRANCE","NIPRO FRANCE"]
["NOBEL BIOCARE FRANCE SAS","NOBEL BIOCARE FRANCE SAS"]
["Nobel Biocare Russia LLC","Nobel Biocare Russia LLC"]
["Nobel Biocare Services AG","Nobel Biocare Services AG"]
["Nobel Biocare USA LLC","Nobel Biocare USA LLC"]
["NODEA MEDICAL","NODEA MEDICAL"]
["NORAKER","NORAKER"]
["NORD IMPLANT","NORD IMPLANT"]
["NORDIC PHARMA SAS","Nordic Pharma"]
["NordiMED ApS","NordiMED ApS"]
["NORGINE PHARMA","NORGINE PHARMA"]
["Nouveal","Nouveal"]
["NOVALLIANCE MEDICAL","NOVALLIANCE MEDICAL"]
["NOVARTIS PHARMA SAS","Novartis"]
["NOVARTIS SANTE FAMILIALE SAS","Novartis"]
["NOVARTIS VACCINES AND DIAGNOSTICS SAS","Novartis"]
["NOVASTEP","NOVASTEP"]
["NOVATECH SA","NOVATECH SA"]
["NOVATEST","NOVATEST"]
["NOVILOIRE","NOVILOIRE"]
["NOVO NORDISK","Novo Nordisk"]
["Novo Nordisk Production SAS","Novo Nordisk Production SAS"]
["NPS PHARMA FRANCE","NPS PHARMA FRANCE"]
["NPS Pharma Holdings Limited","NPS Pharma Holdings Limited"]
["NPS Pharma UK Limited","NPS Pharma UK Limited"]
["NUTRICIA Nutrition Clinique","NUTRICIA Nutrition Clinique"]
["NUTRIMEDIA","NUTRIMEDIA"]
["NxStage Medical, Inc.","NxStage Medical, Inc."]
["OBJECTIF PHARMA","OBJECTIF PHARMA"]
["Objective Focus Limited","Objective Focus Limited"]
["OBL","OBL"]
["Observia SAS","Observia SAS"]
["Occurrence Healthcare","Occurrence Healthcare"]
["OCEAN TERRE BIOTECHNOLOGIE","OCEAN TERRE BIOTECHNOLOGIE"]
["Oceana Therapeutics, Ltd.","Oceana Therapeutics, Ltd."]
["Oceanide","Oceanide"]
["OCP REPARTITION","OCP REPARTITION"]
["Octapharma AG - Switzerland","Octapharma AG - Switzerland"]
["Octapharma France","Octapharma France"]
["OLEA MEDICAL S.A","OLEA MEDICAL S.A"]
["Olympus Biotech International","Olympus Biotech International"]
["Olympus Biotech International Europe","Olympus Biotech International Europe"]
["OLYMPUS CORPORATION","OLYMPUS CORPORATION"]
["OLYMPUS EUROPA SE & CO. KG","OLYMPUS EUROPA SE & CO. KG"]
["OLYMPUS France SAS","OLYMPUS France SAS"]
["OLYMPUS WINTER & IBE GmbH","OLYMPUS WINTER & IBE GmbH"]
["OMNIS MEDICA","OMNIS MEDICA"]
["OMR Globus","OMR Globus"]
["Omron Santé France","Omron Santé France"]
["Omron Santé France","Omron Santé France"]
["ONCommit","ONCommit"]
["ONIRIS","ONIRIS"]
["ONXEO","ONXEO"]
["OPHTACOM","OPHTACOM"]
["Ophta-France SA","Ophta-France SA"]
["Ophtalmic Compagnie","Ophtalmic Compagnie"]
["OPIA TECHNOLOGIES","OPIA TECHNOLOGIES"]
["OptiMed SARL","OptiMed SARL"]
["OPTIQUE E'CAUX","OPTIQUE E'CAUX"]
["OPTIQUE MENIVAL","OPTIQUE MENIVAL"]
["optique sebastopol","optique sebastopol"]
["Orexigen Therapeutics Ireland Limited","Orexigen Therapeutics Ireland Limited"]
["Orexigen Therapeutics, Inc.","Orexigen Therapeutics, Inc."]
["ORGENTEC SAS","ORGENTEC SAS"]
["ORIGIO France","ORIGIO France"]
["Orion Corporation Orion Pharma","Orion Corporation Orion Pharma"]
["ORION Santé","ORION Santé"]
["ORION Santé","ORION Santé"]
["ORLANE","ORLANE"]
["ORMCO FRANCE SAS","ORMCO FRANCE SAS"]
["ORMIHL DANET","ORMIHL DANET"]
["Orphan Europe","Orphan Europe"]
["Orphan Synergy Europe - Pharma","Orphan Synergy Europe - Pharma"]
["OrpheliPharm","OrpheliPharm"]
["ORTHO CLINICAL DIAGNOSTICS France","ORTHO CLINICAL DIAGNOSTICS France"]
["ORTHO CONCEPT","ORTHO CONCEPT"]
["ORTHO JET","ORTHO JET"]
["ortho medic","ortho medic"]
["Ortho Union","Ortho Union"]
["ORTHO.POUHAER","ORTHO.POUHAER"]
["Ortho-Clinical Diagnostics France","Ortho-Clinical Diagnostics France"]
["Orthofix S.r.l.","Orthofix S.r.l."]
["ORTHOFIX SA","ORTHOFIX SA"]
["ORTHOPAEDIC & SPINE DEVELOPMENT (OSD)","ORTHOPAEDIC & SPINE DEVELOPMENT (OSD)"]
["ORTHOPLUS","ORTHOPLUS"]
["ORTHO-SPACE Ltd","ORTHO-SPACE Ltd"]
["OrthoZ","OrthoZ"]
["OSE Immunotherapeutics","OSE Immunotherapeutics"]
["Oséus","Oséus"]
["Oséus","Oséus"]
["OST DEVELOPPEMENT","OST DEVELOPPEMENT"]
["OSTEOMED","OSTEOMED"]
["OSTESYS","OSTESYS"]
["OTICON MEDICAL","OTICON MEDICAL"]
["OTR3","OTR3"]
["Otsuka Novel Products GmbH","Otsuka Novel Products GmbH"]
["Otsuka Pharmaceutical France SAS","Otsuka Pharmaceutical France SAS"]
["Otsuka Pharpaceutical (Suisse) Sarl","Otsuka Pharpaceutical (Suisse) Sarl"]
["OTTO BOCK FRANCE SNC","OTTO BOCK FRANCE SNC"]
["Ouïe Fine","Ouïe Fine"]
["Ouïe Fine","Ouïe Fine"]
["OVERCOME","OVERCOME"]
["OWEN MUMFORD","OWEN MUMFORD"]
["OXOID","OXOID"]
["OXYPHARM","OXYPHARM"]
["OXYVIE S.A.S","OXYVIE S.A.S"]
["P\\S\\L Group France S.A. R. L.","P\\S\\L Group France S.A. R. L."]
["P\\S\\L Group Services","P\\S\\L Group Services"]
["PACKAGE","PACKAGE"]
["PALL FRANCE","PALL FRANCE"]
["PALLIEZ OPTIQUE","PALLIEZ OPTIQUE"]
["PALO ALTOURS","PALO ALTOURS"]
["PANPHARMA","PANPHARMA"]
["PANSEPLAIE","PANSEPLAIE"]
["Pa-pri-K","Pa-pri-K"]
["PAREXEL International","PAREXEL International"]
["PARIS KLEBER SANTE","PARIS KLEBER SANTE"]
["PASCALEO","PASCALEO"]
["PASTEL AUDIOLOGIE","PASTEL AUDIOLOGIE"]
["PathoQuest SAS","PathoQuest SAS"]
["PAUL HARTMANN SA","PAUL HARTMANN SA"]
["PDL ORTHO","PDL ORTHO"]
["PECH CERCIAT","PECH CERCIAT"]
["PEGASE","PEGASE"]
["PENTAX MEDICAL","PENTAX MEDICAL"]
["Penumbra, Inc.","Penumbra, Inc."]
["PERF NUT ASSISTANCE ILE DE FRANCE","PERF NUT ASSISTANCE ILE DE FRANCE"]
["PERF NUT ASSISTANCE LANGUEDOC ROUSSILLON","PERF NUT ASSISTANCE LANGUEDOC ROUSSILLON"]
["PERF NUT ASSISTANCE MIDI PYRENEES","PERF NUT ASSISTANCE MIDI PYRENEES"]
["PERF NUT ASSISTANCE NORD","PERF NUT ASSISTANCE NORD"]
["PERF NUT ASSISTANCE SUD EST","PERF NUT ASSISTANCE SUD EST"]
["PERF.U.LOR GROUPE","PERF.U.LOR GROUPE"]
["PERFORMANCE COMMUNICATION PHARMA","PERFORMANCE COMMUNICATION PHARMA"]
["PERF-R","PERF-R"]
["perkinElmer","perkinElmer"]
["PEROUSE MEDICAL","PEROUSE MEDICAL"]
["PEROUSE PLASTIE","PEROUSE PLASTIE"]
["PERRIER SURDITE ANNECY SAS","PERRIER SURDITE ANNECY SAS"]
["PETERS SURGICAL","PETERS SURGICAL"]
["PETNET Solutions SAS","PETNET Solutions SAS"]
["PFIZER INTERNATIONAL OPERATIONS","Pfizer"]
["PFIZER PFE FRANCE","Pfizer"]
["PFIZER SANTE FAMILIALE","Pfizer"]
["PFIZER SAS","Pfizer"]
["PFM MEDICAL FRANCE","PFM MEDICAL FRANCE"]
["PGRD","PGRD"]
["PHADIA GmbH","PHADIA GmbH"]
["PHADIA NV/SA","PHADIA NV/SA"]
["PHADIA SAS","PHADIA SAS"]
["PHARMA DOM","PHARMA DOM"]
["PHARMA MAR S.A.R.L.","PHARMA MAR S.A.R.L."]
["Pharma Services","Pharma Services"]
["Pharmacie du Tholon","Pharmacie du Tholon"]
["pharmacie ramberti","pharmacie ramberti"]
["Pharmacosmos","Pharmacosmos"]
["PHARMACTIV DISTRIBUTION","PHARMACTIV DISTRIBUTION"]
["pharmaouest industries","pharmaouest industries"]
["PHARMATHERA","PHARMATHERA"]
["Pharm-Olam International SPRL","Pharm-Olam International SPRL"]
["PHAROLY","PHAROLY"]
["PHASE 5 Editions médicales","PHASE 5 Editions médicales"]
["PHASE 5 Editions médicales","PHASE 5 Editions médicales"]
["PHENIX CARDIOLOGIE","PHENIX CARDIOLOGIE"]
["PHILIPS FRANCE","PHILIPS FRANCE"]
["Philips France Commercial","Philips France Commercial"]
["PHOCEENNE D'ORTHOPEDIE","PHOCEENNE D'ORTHOPEDIE"]
["PHOENIX PHARMA","PHOENIX PHARMA"]
["PHONAK FRANCE","PHONAK FRANCE"]
["PhoneResearch","PhoneResearch"]
["PHYDATA","PHYDATA"]
["PHYSIDIA","PHYSIDIA"]
["PHYSIO CONTROL FRANCE SARL","PHYSIO CONTROL FRANCE SARL"]
["Physiol","Physiol"]
["PHYSIOL FRANCE","PHYSIOL FRANCE"]
["PHYSIOMED","PHYSIOMED"]
["PHYTOCOM","PHYTOCOM"]
["Pierre Fabre Dermo-Cosmétique","Pierre Fabre Dermo-Cosmétique"]
["Pierre Fabre Dermo-Cosmétique","Pierre Fabre Dermo-Cosmétique"]
["PIERRE FABRE MEDICAMENT","Pierre Fabre Médicament"]
["PIERRE FABRE SA","PIERRE FABRE SA"]
["Piramal Imaging GmbH","Piramal Imaging GmbH"]
["PLASMA SURGICAL SARL","PLASMA SURGICAL SARL"]
["PneumRx Ltd.","PneumRx Ltd."]
["POLARIS MANAGEMENT","POLARIS MANAGEMENT"]
["PolyNovo Biomaterials Pty Ltd","PolyNovo Biomaterials Pty Ltd"]
["Porte de l'audition","Porte de l'audition"]
["POURET MEDICAL","POURET MEDICAL"]
["PPD FRANCE SAS","PPD FRANCE SAS"]
["PPi Healthcare Consulting Ltd","PPi Healthcare Consulting Ltd"]
["PR EDITIONS SAS","PR EDITIONS SAS"]
["PRA","PRA"]
["Precilens","Precilens"]
["PRECIPHAR","PRECIPHAR"]
["Premier Research","Premier Research"]
["PRESSE & PAPIERS","PRESSE & PAPIERS"]
["prevor","prevor"]
["Primax","Primax"]
["PRIORITIS","PRIORITIS"]
["PRIVIUM MEDICAL","PRIVIUM MEDICAL"]
["PROBACE MEDITEC","PROBACE MEDITEC"]
["PROBACE VAR","PROBACE VAR"]
["PROBIONOV","PROBIONOV"]
["PROCLAIM","PROCLAIM"]
["PROCTER & GAMBLE FRANCE","PROCTER & GAMBLE FRANCE"]
["PROCTER & GAMBLE PHARMACEUTICALS FRANCE","PROCTER & GAMBLE PHARMACEUTICALS FRANCE"]
["PRODAREV","PRODAREV"]
["PRODIS","PRODIS"]
["Prodition","Prodition"]
["PRODUITS DENTAIRES PIERRE ROLLAND","PRODUITS DENTAIRES PIERRE ROLLAND"]
["PROFIL ORTHOPEDIE","PROFIL ORTHOPEDIE"]
["Promethera Biosciences SA","Promethera Biosciences SA"]
["PROMOGEN","PROMOGEN"]
["PROMONET PROMEDICAL","PROMONET PROMEDICAL"]
["PROSTEEL","PROSTEEL"]
["ProStrakan Pharma","ProStrakan Pharma"]
["PROTHEOS INDUSTRIE","PROTHEOS INDUSTRIE"]
["PROTHEOS OUEST","PROTHEOS OUEST"]
["PROTHEOS SA","PROTHEOS SA"]
["PROXILIO","PROXILIO"]
["PSI CRO AG","PSI CRO AG"]
["PSI CRO FRANCE","PSI CRO FRANCE"]
["PTC THERAPEUTICS  INTERNATIONAL LIMITED","PTC THERAPEUTICS  INTERNATIONAL LIMITED"]
["PTC Therapeutics France SAS","PTC Therapeutics France SAS"]
["Publicis Consultants France","Publicis Consultants France"]
["PUBLICIS LIFE BRANDS","PUBLICIS LIFE BRANDS"]
["Pulmonx International SARL","Pulmonx International SARL"]
["Pulmonx International SÀrl","Pulmonx International SÀrl"]
["PURESSENTIEL","PURESSENTIEL"]
["Qiagen France SAS","Qiagen France SAS"]
["QIAGEN Marseille S.A","QIAGEN Marseille S.A"]
["QUALEES","QUALEES"]
["Qualitative & Quantitative Fieldwork Services","Qualitative & Quantitative Fieldwork Services"]
["QualWorld","QualWorld"]
["QUANTEL MEDICAL","QUANTEL MEDICAL"]
["QUERYO MEDICAL SAS","QUERYO MEDICAL SAS"]
["QUINTILES BENEFIT FRANCE SNC","QUINTILES BENEFIT FRANCE SNC"]
["RADENKOVIC SACHA","RADENKOVIC SACHA"]
["RADIANTE","RADIANTE"]
["RADIOMETER SAS","RADIOMETER SAS"]
["RANBAXY PHARMACIE GENERIQUES","RANBAXY PHARMACIE GENERIQUES"]
["RAPTOR PHARMACEUTICALS FRANCE","RAPTOR PHARMACEUTICALS FRANCE"]
["RAPTOR PHARMACEUTICALS FRANCE SAS","RAPTOR PHARMACEUTICALS FRANCE SAS"]
["RB Pharmaceuticals France","RB Pharmaceuticals France"]
["rc - research & consulting GmbH","rc - research & consulting GmbH"]
["Reckitt Benckiser France","Reckitt Benckiser France"]
["Reckitt Benckiser Healthcare France","Reckitt Benckiser Healthcare France"]
["Reckitt Benckiser SLOUGH","Reckitt Benckiser SLOUGH"]
["ReCor Medical Inc","ReCor Medical Inc"]
["Regeneron Pharmaceuticals, Inc.","Regeneron Pharma"]
["REGULUS THERAPEUTICS INC.",{"$error":"#N/A"}]
["RE-IMAGINE Health Agency","RE-IMAGINE Health Agency"]
["Renishaw Mayfield","Renishaw Mayfield"]
["RESAL","RESAL"]
["RESEARCH NOW SAS","RESEARCH NOW SAS"]
["RESMED SAS","RESMED SAS"]
["RESPI'SANTE","RESPI'SANTE"]
["ReVision Optics","ReVision Optics"]
["REVOL-BUISSON","REVOL-BUISSON"]
["RICHARD FRERES","RICHARD FRERES"]
["Richard SIMON","Richard SIMON"]
["RICHARD WOLF FRANCE","RICHARD WOLF FRANCE"]
["RIVORTHO","RIVORTHO"]
["RMO EUROPE","RMO EUROPE"]
["RNP SANTE","RNP SANTE"]
["ROCHE DIABETES CARE FRANCE","ROCHE DIABETES CARE FRANCE"]
["ROCHE DIAGNOSTICS FRANCE","ROCHE DIAGNOSTICS FRANCE"]
["Roche Diagnostics GmbH","Roche Diagnostics GmbH"]
["Roche Diagnostics International Ltd","Roche Diagnostics International Ltd"]
["Roche Diagnostics Operations, Inc.","Roche Diagnostics Operations, Inc."]
["Roche Lebanon SARL","Roche Lebanon SARL"]
["Roche Products (Pty) Ltd South Africa","Roche Products (Pty) Ltd South Africa"]
["ROCHE SAS","Roche"]
["Rodenstock France","Rodenstock France"]
["RONIN Corporation","RONIN Corporation"]
["ROTTAPHARM SAS","ROTTAPHARM"]
["R-Squared Services and Solutions, Inc.","R-Squared Services and Solutions, Inc."]
["R'SUD MEDICAL","R'SUD MEDICAL"]
["RTI SURGICAL","RTI SURGICAL"]
["RUNESCENCE","RUNESCENCE"]
["S.O.S M.A.D","S.O.S M.A.D"]
["S.O.S OXYGENE ILE DE France","S.O.S OXYGENE ILE DE France"]
["S.O.S OXYGENE SUD","S.O.S OXYGENE SUD"]
["S.O.S. OXYGENE ATLANTIQUE","S.O.S. OXYGENE ATLANTIQUE"]
["S.O.S. OXYGENE BRETAGNE","S.O.S. OXYGENE BRETAGNE"]
["S.O.S. OXYGENE GARONNE","S.O.S. OXYGENE GARONNE"]
["S.O.S. OXYGENE GRAND OUEST","S.O.S. OXYGENE GRAND OUEST"]
["S.O.S. OXYGENE NORMANDIE","S.O.S. OXYGENE NORMANDIE"]
["S.O.S. OXYGENE SUD","S.O.S. OXYGENE SUD"]
["S2A SANTE ILE DE FRANCE","S2A SANTE ILE DE FRANCE"]
["SA Bristol-Myers Squibb Belgium","SA Bristol-Myers Squibb Belgium"]
["SA CERP BRETAGNE ATLANTIQUE","SA CERP BRETAGNE ATLANTIQUE"]
["SA J & B FRANCOIS","SA J & B FRANCOIS"]
["SA LANDANGER","SA LANDANGER"]
["SA MEDICOSCOP","SA MEDICOSCOP"]
["SADIR ASSISTANCE","SADIR ASSISTANCE"]
["SAFE ORTHOPAEDICS","SAFE ORTHOPAEDICS"]
["SAFIR DENTAIRE","SAFIR DENTAIRE"]
["Sage Products LLC","Sage Products LLC"]
["SALESWAY","SALESWAY"]
["Salix Pharmaceuticals, Inc.","Salix Pharmaceuticals, Inc."]
["SAM TECHNI-PHARMA","SAM TECHNI-PHARMA"]
["SAMSUNG ELECTRONICS FRANCE","SAMSUNG ELECTRONICS FRANCE"]
["SANDOZ","SANDOZ"]
["SANETIS","SANETIS"]
["SANOFI AVENTIS FRANCE","Sanofi Aventis France"]
["SANOFI CHIMIE","SANOFI CHIMIE"]
["SANOFI PASTEUR","SANOFI PASTEUR"]
["SANOFI PASTEUR MSD SNC","SANOFI PASTEUR MSD SNC"]
["SANOFI WINTHROP INDUSTRIE","SANOFI WINTHROP INDUSTRIE"]
["SANOFI-AVENTIS GROUPE","SANOFI-AVENTIS GROUPE"]
["SANOFI-AVENTIS RECHERCHE & DEVELOPPEMENT","SANOFI-AVENTIS RECHERCHE & DEVELOPPEMENT"]
["SANOTEK","SANOTEK"]
["SANTE PLUS","SANTE PLUS"]
["Santelynes","Santelynes"]
["SANTELYS ASSOCIATION","SANTELYS ASSOCIATION"]
["SANTEN","SANTEN"]
["SANTEO","SANTEO"]
["Santor edition","Santor edition"]
["SARL ACIO","SARL ACIO"]
["SARL ACOUSTIQUE ALBIGEOISE","SARL ACOUSTIQUE ALBIGEOISE"]
["SARL ADAGIO","SARL ADAGIO"]
["SARL ALLIANCESOINS","SARL ALLIANCESOINS"]
["SARL ASTRIAD","SARL ASTRIAD"]
["sarl ATLANTIQUE PERFUSION","sarl ATLANTIQUE PERFUSION"]
["SARL AUDIO EISENHOWER","SARL AUDIO EISENHOWER"]
["SARL AUDIO.V","SARL AUDIO.V"]
["Sarl Audioptique Conseil","Sarl Audioptique Conseil"]
["SARL AUDIOSON","SARL AUDIOSON"]
["SARL AUDITION AQUITAINE","SARL AUDITION AQUITAINE"]
["SARL AUDITION JUTIER PIRON","SARL AUDITION JUTIER PIRON"]
["SARL AUNIS AUDITION","SARL AUNIS AUDITION"]
["SARL AURISSIMANS","SARL AURISSIMANS"]
["SARL AURISSIMO","SARL AURISSIMO"]
["SARL BALLAN AUDITION","SARL BALLAN AUDITION"]
["SARL BRIVE AUDITION","SARL BRIVE AUDITION"]
["SARL CENTRE DE L AUDITION","SARL CENTRE DE L AUDITION"]
["SARL Centre Val de Loire Audition","SARL Centre Val de Loire Audition"]
["SARL CLAUDE EMARD","SARL CLAUDE EMARD"]
["sarl conseil medico technique","sarl conseil medico technique"]
["SARL DLMEDICAL","SARL DLMEDICAL"]
["SARL DOMORTHO","SARL DOMORTHO"]
["SARL ETS M GRANDET","SARL ETS M GRANDET"]
["SARL GHAMA","SARL GHAMA"]
["SARL GROUSEAU","SARL GROUSEAU"]
["SARL INFINY","SARL INFINY"]
["SARL LABORATOIRE DUPONT","SARL DUPONT"]
["SARL LABORATOIRE LEMOINE AUDITION","SARL LEMOINE AUDITION"]
["SARL LABORATOIRE MICHAEL BERTOUX","SARL MICHAEL BERTOUX"]
["SARL LAUBEN","SARL LAUBEN"]
["SARL LE STRAT","SARL LE STRAT"]
["SARL LES MOUETTES OPTIQUE","SARL LES MOUETTES OPTIQUE"]
["SARL LOMACO","SARL LOMACO"]
["SARL L'OREILLETTE DU MANS","SARL L'OREILLETTE DU MANS"]
["SARL LUNODIA","SARL LUNODIA"]
["sarl msdcp","sarl msdcp"]
["SARL NIVOLET AUDITION","SARL NIVOLET AUDITION"]
["SARL OPTAC","SARL OPTAC"]
["sarl optique audioprotheses roussarie","sarl optique audioprotheses roussarie"]
["sarl optique mesnard","sarl optique mesnard"]
["sarl optique mesnard auchy","sarl optique mesnard auchy"]
["SARL ORLEANS AUDIOPROTHESE","SARL ORLEANS AUDIOPROTHESE"]
["SARL OXY-PERF","SARL OXY-PERF"]
["SARL PACIMED","SARL PACIMED"]
["Sarl Parapharm France","Sarl Parapharm France"]
["SARL PEFD","SARL PEFD"]
["SARL PROTHYS","SARL PROTHYS"]
["SARL RR CONSEIL","SARL RR CONSEIL"]
["SARL SOPHILMED","SARL SOPHILMED"]
["SARL SOPHILMED LENS","SARL SOPHILMED LENS"]
["SAS ALLIANCE MEDICALE SERVICES","SAS ALLIANCE MEDICALE SERVICES"]
["SAS AUDITION EXPERT","SAS AUDITION EXPERT"]
["SAS BIOVAS","SAS BIOVAS"]
["SAS Esprit d'Ethique","SAS Esprit d'Ethique"]
["SAS IOVIE","SAS IOVIE"]
["SAS LABORATOIRES VIVACY","SAS VIVACY"]
["SAS OPTIQUE SURDITE DESNOUES","SAS OPTIQUE SURDITE DESNOUES"]
["SAS ORTHO OUEST","SAS ORTHO OUEST"]
["SATELEC SAS","SATELEC SAS"]
["SBM","SBM"]
["Schering-Plough","Schering-Plough"]
["SCHEU DENTAL FRANCE","SCHEU DENTAL FRANCE"]
["Schulke France SARL","Schulke France SARL"]
["SCHWA-MEDICO FRANCE","SCHWA-MEDICO FRANCE"]
["SCIENCE ET MEDECINE","SCIENCE ET MEDECINE"]
["SCIENT'X SAS","SCIENT'X SAS"]
["Scope International France","Scope International France"]
["SCORPION","SCORPION"]
["SDC SOCIETE DES CENDRES","SDC SOCIETE DES CENDRES"]
["SDI Dental Limited","SDI Dental Limited"]
["SEBAC","SEBAC"]
["Sebia","Sebia"]
["Second Stage Pharma","Second Stage Pharma"]
["SEDOMA","SEDOMA"]
["SEFAM","SEFAM"]
["Segmedica","Segmedica"]
["Selarl Pharmacie Panonnaise","Selarl Pharmacie Panonnaise"]
["SELAS PHARMACIE DE LA REPUBLIQUE","SELAS PHARMACIE DE LA REPUBLIQUE"]
["SEMES","SEMES"]
["SENDAL FRANCE","SENDAL FRANCE"]
["SEPRODOM ANTILLES","SEPRODOM ANTILLES"]
["SEPRODOM REUNION","SEPRODOM REUNION"]
["SEPROPHARM INTERNATIONAL","SEPROPHARM INTERNATIONAL"]
["SEPTODONT SAS","SEPTODONT SAS"]
["Sequent Medical GmbH","Sequent Medical GmbH"]
["Sequent Medical Inc.","Sequent Medical Inc."]
["SERB","SERB"]
["SERENITY MEDICAL SERVICES SARL","SERENITY MEDICAL SERVICES SARL"]
["SERF","SERF"]
["SERF EXTREMITY","SERF EXTREMITY"]
["Serial Creative","Serial Creative"]
["SESC","SESC"]
["SETMI","SETMI"]
["seven dreamers laboratories","seven dreamers laboratories"]
["SGP AUDIO","SGP AUDIO"]
["SHAMIR FRANCE SARL","SHAMIR FRANCE SARL"]
["SHC Universal","SHC Universal"]
["SHIRE France S.A.","SHIRE France S.A."]
["SHISEIDO INTERNATIONAL FRANCE SIF","SHISEIDO INTERNATIONAL FRANCE SIF"]
["SHOCKWAVE MEDICAL INC.","SHOCKWAVE MEDICAL INC."]
["SIEMENS AUDIOLOGIE","SIEMENS AUDIOLOGIE"]
["Siemens Healthcare Diagnostics SAS","Siemens Healthcare Diagnostics SAS"]
["SIEMENS HEALTHCARE SAS","SIEMENS HEALTHCARE SAS"]
["SIEMENS SAS","SIEMENS SAS"]
["Sigma-tau France","Sigma-tau France"]
["SIGVARIS","SIGVARIS"]
["SIMARATO","SIMARATO"]
["Simon-Kucher & Partners","Simon-Kucher & Partners"]
["Simpson Carpenter","Simpson Carpenter"]
["SINCLAIR PHARMA","SINCLAIR PHARMA"]
["Sinclair pharmaceuticals limited french branch","Sinclair pharmaceuticals limited french branch"]
["SIRONA DENTAL SYSTEMS SAS","SIRONA DENTAL SYSTEMS SAS"]
["Sirtex Medical Europe GmbH","Sirtex Medical Europe GmbH"]
["SIVANTOS","SIVANTOS"]
["SKY CONSULTING","SKY CONSULTING"]
["SM EUROPE","SM EUROPE"]
["Small Bone Innovations International SAS","Small Bone Innovations International SAS"]
["Smartsanté Gestion","Smartsanté Gestion"]
["Smartsanté Gestion","Smartsanté Gestion"]
["Smith & Nephew FZE","Smith & Nephew FZE"]
["Smith & Nephew Inc.","Smith & Nephew Inc."]
["Smith & Nephew Orthopaedics AG","Smith & Nephew Orthopaedics AG"]
["Smith & Nephew Orthopaedics France SAS","Smith & Nephew Orthopaedics France SAS"]
["Smith & Nephew S.A.S.","Smith & Nephew S.A.S."]
["Smith & Nephew UK Limited","Smith & Nephew UK Limited"]
["Smith & Nephew US - Ortho","Smith & Nephew US - Ortho"]
["Smith & Nephew, Inc. Recon","Smith & Nephew, Inc. Recon"]
["SMITHS MEDICAL FRANCE","SMITHS MEDICAL FRANCE"]
["SNC LCA de NICE","SNC LCA de NICE"]
["Sociable Data Ltd","Sociable Data Ltd"]
["SOCIETE CARIBEENNE DE L'AUDITION","SOCIETE CARIBEENNE DE L'AUDITION"]
["Société des gaz industriels de la Guadeloupe","Société des gaz industriels de la Guadeloupe"]
["Société des gaz industriels de la Guadeloupe","Société des gaz industriels de la Guadeloupe"]
["Société Française de Cardiologie","Société Française de Cardiologie"]
["Société Française de Cardiologie","Société Française de Cardiologie"]
["SOCIETE FRANCAISE D'ORTHOPEDIE","SOCIETE FRANCAISE D'ORTHOPEDIE"]
["Société Guyanaise de l'Air Liquide","Société Guyanaise de l'Air Liquide"]
["Société Guyanaise de l'Air Liquide","Société Guyanaise de l'Air Liquide"]
["Société Martiniquaise de l'Air Liquide","Société Martiniquaise de l'Air Liquide"]
["Société Martiniquaise de l'Air Liquide","Société Martiniquaise de l'Air Liquide"]
["SOCIETES DU GROUPE TEVA HORS FRANCE","SOCIETES DU GROUPE TEVA HORS FRANCE"]
["SOFIBEL","SOFIBEL"]
["SOFIBEL Laboratoires Fumouze","SOFIBEL Fumouze"]
["SOFRADIM PRODUCTION","SOFRADIM PRODUCTION"]
["Solutions Finances","Solutions Finances"]
["SomnoMed France","SomnoMed France"]
["SONATINE","SONATINE"]
["SONY EUROPE LIMITED","SONY EUROPE LIMITED"]
["Sophysa","Sophysa"]
["SOPRO ACTEON Group","SOPRO ACTEON Group"]
["SORIN GROUP FRANCE","SORIN GROUP FRANCE"]
["SOS MEDICAL","SOS MEDICAL"]
["SOS OXYGENE","SOS OXYGENE"]
["SOS OXYGENE ALSACE","SOS OXYGENE ALSACE"]
["SOS OXYGENE ANTILLES","SOS OXYGENE ANTILLES"]
["SOS OXYGENE ATLANTIQUE CENTRE","SOS OXYGENE ATLANTIQUE CENTRE"]
["SOS OXYGENE AUVERGNE","SOS OXYGENE AUVERGNE"]
["SOS OXYGENE BASSIN PARISIEN NORD","SOS OXYGENE BASSIN PARISIEN NORD"]
["SOS OXYGENE BASSIN PARISIEN NORD Les Mureaux","SOS OXYGENE BASSIN PARISIEN NORD Les Mureaux"]
["SOS OXYGENE BASSIN PARISIEN SUD","SOS OXYGENE BASSIN PARISIEN SUD"]
["SOS OXYGENE CENTRE","SOS OXYGENE CENTRE"]
["SOS OXYGENE CENTRE EST","SOS OXYGENE CENTRE EST"]
["SOS OXYGENE CENTRE OUEST","SOS OXYGENE CENTRE OUEST"]
["SOS OXYGENE CHAMPAGNE ARDENNES","SOS OXYGENE CHAMPAGNE ARDENNES"]
["SOS OXYGENE FRANCHE COMTE","SOS OXYGENE FRANCHE COMTE"]
["SOS OXYGENE GARONNE","SOS OXYGENE GARONNE"]
["SOS OXYGENE GRAND EST","SOS OXYGENE GRAND EST"]
["SOS OXYGENE GRAND PERIGORD","SOS OXYGENE GRAND PERIGORD"]
["SOS OXYGENE GRAND SUD","SOS OXYGENE GRAND SUD"]
["SOS OXYGENE ILE DE France EST","SOS OXYGENE ILE DE France EST"]
["SOS OXYGENE ILE DE FRANCE EST Vierzon 1","SOS OXYGENE ILE DE FRANCE EST Vierzon 1"]
["SOS OXYGENE ILE DE FRANCE EST Vierzon 2","SOS OXYGENE ILE DE FRANCE EST Vierzon 2"]
["SOS OXYGENE ILE DE France NORD","SOS OXYGENE ILE DE France NORD"]
["SOS OXYGENE ILE E FRANCE EST","SOS OXYGENE ILE E FRANCE EST"]
["SOS OXYGENE LOIRE HAUTE LOIRE","SOS OXYGENE LOIRE HAUTE LOIRE"]
["SOS OXYGENE LORRAINE","SOS OXYGENE LORRAINE"]
["SOS OXYGENE MEDITERRANEE","SOS OXYGENE MEDITERRANEE"]
["SOS OXYGENE MOR-BIHAN / PENN AR BEDÂ Â","SOS OXYGENE MOR-BIHAN / PENN AR BEDÂ Â"]
["SOS OXYGENE MOR-BIHAN / PENN AR BEDÂ Â ","SOS OXYGENE MOR-BIHAN / PENN AR BEDÂ Â "]
["SOS OXYGENE NORD JOLY MEDICAL","SOS OXYGENE NORD JOLY MEDICAL"]
["SOS OXYGENE NORD OUEST","SOS OXYGENE NORD OUEST"]
["SOS OXYGENE NORMANDIE","SOS OXYGENE NORMANDIE"]
["SOS OXYGENE PARTICIPATIONS","SOS OXYGENE PARTICIPATIONS"]
["SOS OXYGENE PAYS DE LOIRE","SOS OXYGENE PAYS DE LOIRE"]
["SOS OXYGENE PAYS DE LOIRE NORD","SOS OXYGENE PAYS DE LOIRE NORD"]
["SOS OXYGENE PROVENCE","SOS OXYGENE PROVENCE"]
["SOS OXYGENE PYRENEES CENTRE","SOS OXYGENE PYRENEES CENTRE"]
["SOS OXYGENE REUNION","SOS OXYGENE REUNION"]
["SOS OXYGENE REUNION St Leu","SOS OXYGENE REUNION St Leu"]
["SOS OXYGENE REUNION St Paul","SOS OXYGENE REUNION St Paul"]
["SOS OXYGENE RHONE ALPES","SOS OXYGENE RHONE ALPES"]
["SOS OXYGENE RHONE ALPES Vaulx","SOS OXYGENE RHONE ALPES Vaulx"]
["SOS OXYGENE SUD ALSACE","SOS OXYGENE SUD ALSACE"]
["SOS OXYGENE SUD LOIRE","SOS OXYGENE SUD LOIRE"]
["SOS OXYGENE VAR","SOS OXYGENE VAR"]
["SOSECAT","SOSECAT"]
["SOTHYS PARIS","SOTHYS PARIS"]
["sowadio","sowadio"]
["Spector Consulting","Spector Consulting"]
["SPECTRANETICS FRANCE SARL","SPECTRANETICS FRANCE SARL"]
["SPECTRANETICS INTERNATIONAL B.V.","SPECTRANETICS INTERNATIONAL B.V."]
["SPINEART SA","SPINEART SA"]
["SPINEGUARD","SPINEGUARD"]
["SPINEVISION","SPINEVISION"]
["SPINEWAY","SPINEWAY"]
["Springer Science+Business Media France","Springer Science+Business Media France"]
["SSL HEALTHCARE ITALIA","SSL HEALTHCARE ITALIA"]
["ST AUDITION","ST AUDITION"]
["St Jude Medical France SAS","St Jude Medical France SAS"]
["STALLERGENES SA","STALLERGENES SA"]
["Stanhome International","Stanhome International"]
["STARKEY FRANCE","STARKEY FRANCE"]
["STATESIA","STATESIA"]
["STENTYS S.A","STENTYS S.A"]
["STEPHANIX","STEPHANIX"]
["sterience","sterience"]
["STERIS","STERIS"]
["STERLING COOPER","STERLING COOPER"]
["STETHOS","STETHOS"]
["STETHOS INTERNATIONAL","STETHOS INTERNATIONAL"]
["Stragen France","Stragen France"]
["STRATEGIQUE SANTE","STRATEGIQUE SANTE"]
["StratLab81","StratLab81"]
["STRAUB MEDICAL (France)","STRAUB MEDICAL (France)"]
["Straumann France","Straumann France"]
["STRYKER FRANCE SAS","STRYKER FRANCE SAS"]
["Stryker Trauma GmbH","Stryker Trauma GmbH"]
["SUBLIMED","SUBLIMED"]
["SUBSTIPHARM DEVELOPPEMENT","SUBSTIPHARM DEVELOPPEMENT"]
["SUBSTRATHOMME","SUBSTRATHOMME"]
["SUD OUEST ORTHOPEDIE","SUD OUEST ORTHOPEDIE"]
["SUN PHARMACEUTICALS FRANCE","SUN PHARMACEUTICALS FRANCE"]
["Sunesis Pharmaceuticals","Sunesis Pharmaceuticals"]
["Sunnikan Consulting","Sunnikan Consulting"]
["SUNSTAR FRANCE","SUNSTAR FRANCE"]
["SuperSonic Imagine","SuperSonic Imagine"]
["surdioptic","surdioptic"]
["SURGIVIEW SAS","SURGIVIEW SAS"]
["SURGIVISIO","SURGIVISIO"]
["SWEDISH ORPHAN BIOVITRUM","SWEDISH ORPHAN BIOVITRUM"]
["SWEDISH ORPHAN BIOVITRUM AB (publ)","SWEDISH ORPHAN BIOVITRUM AB (publ)"]
["SWING TECHNOLOGIES","SWING TECHNOLOGIES"]
["SYLVESTRE AUDITION","SYLVESTRE AUDITION"]
["SYMATESE","SYMATESE"]
["SYMATESE AESTHETICS","SYMATESE AESTHETICS"]
["Symbios Orthopédie SA","Symbios Orthopédie SA"]
["Symbios Orthopédie SA","Symbios Orthopédie SA"]
["symbios sas","symbios sas"]
["Synageva BioPharma SAS","Synageva BioPharma SAS"]
["Synakene","Synakene"]
["SYNAPSE SANTE","SYNAPSE SANTE"]
["SynteractHCR France S.A.S.","SynteractHCR France S.A.S."]
["SYNTHES","SYNTHES"]
["SYSMED ASSISTANCE","SYSMED ASSISTANCE"]
["SYSMED PAS DE CALAIS","SYSMED PAS DE CALAIS"]
["SYSMEX FRANCE","SYSMEX FRANCE"]
["SYSTAGENIX WOUND MANAGEMENT FRANCE","SYSTAGENIX WOUND MANAGEMENT FRANCE"]
["System Analytic","System Analytic"]
["System Assistance Medical","System Assistance Medical"]
["Takeda France","Takeda France"]
["TARA SANTE","TARA SANTE"]
["TBF GENIE TISSULAIRE","TBF GENIE TISSULAIRE"]
["TBWA\\ADELPHI","TBWA\\ADELPHI"]
["TEKNIMED","TEKNIMED"]
["TELEFLEX MEDICAL SAS","TELEFLEX MEDICAL SAS"]
["TEM-France","TEM-France"]
["TEOXANE","TEOXANE"]
["TEOXANE FRANCE","TEOXANE FRANCE"]
["TERALI","TERALI"]
["TERRA FIRMA","TERRA FIRMA"]
["TERRE NEUVE","TERRE NEUVE"]
["Terumo BCT Europe SA","Terumo BCT Europe SA"]
["Test","Test"]
["TEVA SANTE SAS","TEVA SANTE SAS"]
["TEXTILE HI-TEC","TEXTILE HI-TEC"]
["TFS TRIAL FORM SUPPORT SASU","TFS TRIAL FORM SUPPORT SASU"]
["THE BINDING SITE GROUP LTD","THE BINDING SITE GROUP LTD"]
["The KOL Connection","The KOL Connection"]
["The MarkeTech Group SARL","The MarkeTech Group SARL"]
["The Medicines Company France SAS","The Medicines Company France SAS"]
["The Research Partnership","The Research Partnership"]
["The Spectranetics Corporation","The Spectranetics Corporation"]
["Theorem Clinical Research SARL","Theorem Clinical Research SARL"]
["THERABEL LUCIEN PHARMA","THERABEL LUCIEN PHARMA"]
["THERACLION","THERACLION"]
["THERADIAG SA","THERADIAG SA"]
["THERADIAL SAS","THERADIAL SAS"]
["THERAKOS UK Ltd","THERAKOS UK Ltd"]
["Theravance, Inc.","Theravance, Inc."]
["THERMO ELECTRON LED SAS","THERMO ELECTRON LED SAS"]
["THERMO ELECTRON SAS","THERMO ELECTRON SAS"]
["THERMO FISHER DIAGNOSTICS","THERMO FISHER DIAGNOSTICS"]
["Think Tuvalu","Think Tuvalu"]
["THORATEC EUROPE LTD","THORATEC EUROPE LTD"]
["THUASNE","THUASNE"]
["Tillotts Pharma France SAS","Tillotts Pharma France SAS"]
["TIME RESEARCH LIMITED","TIME RESEARCH LIMITED"]
["to the heart ltd","to the heart ltd"]
["Topcon SARL","Topcon SARL"]
["TOP-Service für Lingualtechnik GmbH","TOP-Service für Lingualtechnik GmbH"]
["TOP-Service für Lingualtechnik GmbH","TOP-Service für Lingualtechnik GmbH"]
["Toray Industries, Inc.","Toray Industries, Inc."]
["TORNIER","TORNIER"]
["TOSHIBA MEDICAL FRANCE","TOSHIBA MEDICAL FRANCE"]
["TOSOH EUROPE NV","TOSOH EUROPE NV"]
["TOURS CERAM","TOURS CERAM"]
["Trame Way","Trame Way"]
["Transgene SA","Transgene SA"]
["Transystème - JMT IMPLANTS","Transystème - JMT IMPLANTS"]
["Transystème - JMT IMPLANTS","Transystème - JMT IMPLANTS"]
["TRANSYSTEME SN","TRANSYSTEME SN"]
["TRB CHEMEDICA","TRB CHEMEDICA"]
["TROIS PRIME","TROIS PRIME"]
["TROPHOS","TROPHOS"]
["TSP","TSP"]
["Tungsten-Software","Tungsten-Software"]
["Tutogen Médical France","Tutogen Médical France"]
["Tutogen Médical France","Tutogen Médical France"]
["TxCell","TxCell"]
["UCB Pharma SA","UCB Pharma"]
["Ugam Solutions","Ugam Solutions"]
["Ultradent Products GmbH","Ultradent Products GmbH"]
["ULURU SANTE / VIGIE Pharma","ULURU SANTE / VIGIE Pharma"]
["UNILEVER FRANCE","UNILEVER FRANCE"]
["United Orthopedic Corporation (France)","United Orthopedic Corporation (France)"]
["UNITHER DEVELOPPEMENT BORDEAUX","UNITHER DEVELOPPEMENT BORDEAUX"]
["UNITHER INDUSTRIES","UNITHER INDUSTRIES"]
["UNITHER LIQUID MANUFACTURING","UNITHER LIQUID MANUFACTURING"]
["UNITHER PHARMACEUTICALS","UNITHER PHARMACEUTICALS"]
["UNIVERSAL MEDICA","UNIVERSAL MEDICA"]
["Update France Terrain d'Etudes","Update France Terrain d'Etudes"]
["UPSA SAS","UPSA SAS"]
["URGO RECHERCHE INNOVATION ET DEVELOPPEMENT","URGO RECHERCHE INNOVATION ET DEVELOPPEMENT"]
["Use-Lab GmbH","Use-Lab GmbH"]
["Valtech Cardio Ltd","Valtech Cardio Ltd"]
["VALUA SARL","VALUA SARL"]
["Varian Medical Systems France Sarl","Varian Medical Systems France Sarl"]
["Vascular Solutions, Inc.","Vascular Solutions, Inc."]
["VASCUTEK FRANCE","VASCUTEK FRANCE"]
["Vatech France","Vatech France"]
["VECTEC","VECTEC"]
["Veniti, Inc.","Veniti, Inc."]
["Ventana Medical Systems, Inc.","Ventana Medical Systems, Inc."]
["Ventiléa","Ventiléa"]
["Ventiléa","Ventiléa"]
["VEODIS","VEODIS"]
["VERBAL","VERBAL"]
["Vertex Pharmaceuticals Incorporated","Vertex Pharmaceuticals Incorporated"]
["VEXIM SA","VEXIM SA"]
["Vibrant Med-El","Vibrant Med-El"]
["VIFOR FRANCE SA","VIFOR FRANCE SA"]
["VIFOR FRESENIUS MEDICAL CARE RENAL PHARMA","VIFOR FRESENIUS MEDICAL CARE RENAL PHARMA"]
["ViiV HEALTHCARE SAS","ViiV HEALTHCARE SAS"]
["VIROPHARMA","VIROPHARMA"]
["VIROPHARMA SPRL","VIROPHARMA SPRL"]
["VISION OUTRE MER","VISION OUTRE MER"]
["Vital Images France Sarl","Vital Images France Sarl"]
["VITALAIRE","VITALAIRE"]
["VITALEA MEDICAL","VITALEA MEDICAL"]
["VITALITEC INTERNATIONAL","VITALITEC INTERNATIONAL"]
["VIVACTIS MEDICAL EDUCATION","VIVACTIS MEDICAL EDUCATION"]
["Vivactis-M2Research","Vivactis-M2Research"]
["VIVISOL France","VIVISOL France"]
["VKMED","VKMED"]
["VO Medica","VO Medica"]
["VOISIN CONSULTING","VOISIN CONSULTING"]
["VOLCANO EUROPE BVBA/SPRL","VOLCANO EUROPE BVBA/SPRL"]
["VOLUNTIS","VOLUNTIS"]
["VYGON","VYGON"]
["W L GORE & ASSOCIES","W L GORE & ASSOCIES"]
["W&H FRANCE","W&H FRANCE"]
["WAM","WAM"]
["Warner Chilcott France SAS","Warner Chilcott France SAS"]
["WEINMANN EMERGENCY FRANCE","WEINMANN EMERGENCY FRANCE"]
["WEINMANN SAS","WEINMANN SAS"]
["Weleda S.A.","Weleda S.A."]
["WELLSPECT HEALTHCARE","WELLSPECT HEALTHCARE"]
["WELLSPECT HEALTHCARE/DENTSPLY IH AB","WELLSPECT HEALTHCARE/DENTSPLY IH AB"]
["WERFEN","WERFEN"]
["WIDEX","WIDEX"]
["WOO YOUNG MEDICAL FRANCE","WOO YOUNG MEDICAL FRANCE"]
["WorldOne Group B.V.","WorldOne Group B.V."]
["WR CONSEIL","WR CONSEIL"]
["WRIGHT MEDICAL FRANCE","WRIGHT MEDICAL FRANCE"]
["XENIOS","XENIOS"]
["XNOV","XNOV"]
["XNOV Distribution","XNOV Distribution"]
["YPSOMED SAS","YPSOMED SAS"]
["YSSUP RESEARCH","YSSUP RESEARCH"]
["Zambon France","Zambon France"]
["Zeste Research","Zeste Research"]
["Zimmer BVBA","Zimmer BVBA"]
["Zimmer Dental SAS","Zimmer Dental SAS"]
["Zimmer France SAS","Zimmer France SAS"]
["Zimmer GmbH","Zimmer GmbH"]
["Zimmer Spine SAS","Zimmer Spine SAS"]
["ZOLL Médical France","ZOLL Médical France"]
["ZOLL Médical France","ZOLL Médical France"]
["ZS Associates","ZS Associates"]
["ZS Associates International, Inc.","ZS Associates International, Inc."]
["ZYDUS FRANCE","ZYDUS FRANCE"]

{"sheet":"Conception","index":5,"n_rows":18,"n_cols":4,"rows_kept":18,"cut":false,"hidden":false,"merged":[[23,3,23,14],[17,1,17,14],[13,3,13,5],[16,3,16,14],[18,3,18,14],[6,3,10,8],[19,3,19,14],[20,3,20,14],[21,3,21,14],[22,3,22,14]]}
[]
[null,"Concepteur :"]
[]
[null,null,null,"François PESTY"]
[null,null,null,"Pharmacien, Ancien Interne des Hôpitaux de Paris, Institut Supérieur de Gestion,"]
[null,null,null,"Consultant indépendant, "]
[null,null,null,"Expert-Conseil en organisation et informatisation du circuit du médicament / Optimisation des approvisionnements et des stocks pharmaceutiques / Pilotage \n« médico-économique » des médicaments et dispositifs médicaux / Campagne \n« pilotes » de visites médicalisées des délégués de l’assurance maladie sur le médicament / Pertinence des traitements médicamenteux"]
[]
[]
[]
[]
[null,null,null,"2, square Gay Lussac"]
[null,null,null,"78330 Fontenay le Fleury"]
[null,null,null,"Francois.PESTY@Wanadoo.fr"]
[null,null,null,"01 30 45 03 59 / 06 88 89 53 51"]
[]
[]
[null,"François PESTY est membre de l'association FORMINDEP, "]

{"sheet":"Rémunérations","index":6,"n_rows":542,"n_cols":3,"rows_kept":542,"cut":false,"hidden":false,"merged":[]}
[]
["Sociétés étrangères du groupe Novartis"]
[null,"Médecin "]
["VASSAL GILLES"]
[null,"2017-10-12",1599]
["BRISTOL-MYERS SQUIBB COMPANY"]
[null,"Médecin "]
["VASSAL GILLES"]
[null,"2017-11-03",1600]
["Lilly France SAS"]
[null,"Médecin "]
["VASSAL GILLES"]
[null,"2017-12-05",1656]
[]
[]
["JANSSEN-CILAG"]
[null,"Médecin "]
["MASSARD CHRISTOPHE"]
[null,"2013-01-21",1000]
["Orion Corporation Orion Pharma"]
[null,"Médecin "]
["MASSARD CHRISTOPHE"]
[null,"2013-04-18",1000]
["JANSSEN-CILAG"]
[null,"Médecin "]
["MASSARD CHRISTOPHE"]
[null,"2013-09-02",600]
["JANSSEN-CILAG"]
[null,"Médecin "]
["MASSARD CHRISTOPHE"]
[null,"2013-09-09",1000]
["JANSSEN-CILAG"]
[null,"Médecin "]
["MASSARD CHRISTOPHE"]
[null,"2013-09-19",700]
["Orion Corporation Orion Pharma"]
[null,"Médecin "]
["MASSARD CHRISTOPHE"]
[null,"2013-11-25",1200]
["JANSSEN-CILAG"]
[null,"Médecin "]
["MASSARD CHRISTOPHE"]
[null,"2013-12-13",1200]
["JANSSEN-CILAG"]
[null,"Médecin "]
["MASSARD CHRISTOPHE"]
[null,"2014-05-13",800]
["JANSSEN-CILAG"]
[null,"Médecin "]
["MASSARD CHRISTOPHE"]
[null,"2014-05-14",850]
["JANSSEN-CILAG"]
[null,"Médecin "]
["MASSARD CHRISTOPHE"]
[null,"2014-05-20",1200]
["JANSSEN-CILAG"]
[null,"Médecin "]
["MASSARD CHRISTOPHE"]
[null,"2014-05-20",900]
["SANOFI AVENTIS FRANCE"]
[null,"Médecin "]
["MASSARD CHRISTOPHE"]
[null,"2014-05-27",548]
["Bayer HealthCare SAS"]
[null,"Médecin "]
["MASSARD Christophe"]
[null,"2014-07-24",811]
["JANSSEN-CILAG"]
[null,"Médecin "]
["MASSARD CHRISTOPHE"]
[null,"2015-08-10",500]
["JANSSEN-CILAG"]
[null,"Médecin "]
["MASSARD CHRISTOPHE"]
[null,"2015-08-10",400]
["Bayer HealthCare SAS"]
[null,"Médecin "]
["MASSARD Christophe"]
[null,"2015-09-18",661]
["JANSSEN-CILAG"]
[null,"Médecin "]
["MASSARD CHRISTOPHE"]
[null,"2015-10-19",1200]
["JANSSEN-CILAG"]
[null,"Médecin "]
["MASSARD CHRISTOPHE"]
[null,"2015-10-30",500]
["SANOFI AVENTIS FRANCE"]
[null,"Médecin "]
["MASSARD CHRISTOPHE"]
[null,"2015-12-23",388]
["SANOFI AVENTIS FRANCE"]
[null,"Médecin "]
["MASSARD CHRISTOPHE"]
[null,"2016-03-21",387]
[]
["JANSSEN-CILAG"]
[null,"Médecin "]
["MASSARD CHRISTOPHE"]
[null,"2016-09-14",600]
["JANSSEN-CILAG"]
[null,"Médecin "]
["MASSARD CHRISTOPHE"]
[null,"2016-10-04",600]
["JANSSEN-CILAG"]
[null,"Médecin "]
["MASSARD CHRISTOPHE"]
[null,"2016-11-08",700]
["SANOFI AVENTIS FRANCE"]
[null,"Médecin "]
["MASSARD CHRISTOPHE"]
[null,"2016-11-28",1033]
["SANOFI AVENTIS FRANCE"]
[null,"Médecin "]
["MASSARD CHRISTOPHE"]
[null,"2017-01-25",538]
["AMGEN SAS"]
[null,"Médecin "]
["MASSARD CHRISTOPHE"]
[null,"2017-04-21",674]
["ASTRAZENECA"]
[null,"Médecin "]
["MASSARD CHRISTOPHE"]
[null,"2017-05-29",706]
["ASTRAZENECA"]
[null,"Médecin "]
["MASSARD CHRISTOPHE"]
[null,"2017-05-29",778]
["JANSSEN-CILAG"]
[null,"Médecin "]
["MASSARD CHRISTOPHE"]
[null,"2017-05-31",1083]
["JANSSEN-CILAG"]
[null,"Médecin "]
["MASSARD CHRISTOPHE"]
[null,"2017-06-06",561]
["JANSSEN-CILAG"]
[null,"Médecin "]
["MASSARD CHRISTOPHE"]
[null,"2017-06-06",350]
["JANSSEN-CILAG"]
[null,"Médecin "]
["MASSARD CHRISTOPHE"]
[null,"2017-06-08",350]
["ASTRAZENECA"]
[null,"Médecin "]
["MASSARD CHRISTOPHE"]
[null,"2017-06-28",848]
["Lilly France SAS"]
[null,"Médecin "]
["MASSARD CHRISTOPHE"]
[null,"2017-12-15",1521]
[]
["AMGEN SAS"]
[null,"Médecin "]
["MARABELLE AURELIEN"]
[null,"2014-11-28",1790]
["AMGEN SAS"]
[null,"Médecin "]
["MARABELLE AURELIEN"]
[null,"2015-07-23",1000]
["AMGEN SAS"]
[null,"Médecin "]
["MARABELLE AURELIEN"]
[null,"2015-09-25",2000]
["AMGEN SAS"]
[null,"Médecin "]
["MARABELLE AURELIEN"]
[null,"2015-10-23",800]
["ROCHE MAROC"]
[null,"Médecin "]
["MARABELLE AURELIEN"]
[null,"2016-01-08",1395]
["ROCHE ETATS-UNIS"]
[null,"Médecin "]
["MARABELLE AURELIEN"]
[null,"2016-01-21",1600]
["ROCHE SUISSE"]
[null,"Médecin "]
["MARABELLE AURELIEN"]
[null,"2016-01-28",1800]
["AMGEN SAS"]
[null,"Médecin "]
["MARABELLE AURELIEN"]
[null,"2016-02-22",1900]
["LABORATOIRE GLAXOSMITHKLINE"]
[null,"Médecin "]
["MARABELLE AURELIEN"]
[null,"2016-03-08",700]
["ROCHE ALLEMAGNE"]
[null,"Médecin "]
["MARABELLE AURELIEN"]
[null,"2016-03-23",1260]
["LABORATOIRE GLAXOSMITHKLINE"]
[null,"Médecin "]
["MARABELLE AURELIEN"]
[null,"2016-07-19",1056]
["ONXEO"]
[null,"Médecin "]
["MARABELLE Aurélien"]
[null,"2016-09-05",3375]
["ROCHE SAS"]
[null,"Médecin "]
["MARABELLE AURELIEN"]
[null,"2016-09-06",1320]
["PIERRE FABRE MEDICAMENT"]
[null,"Médecin "]
["MARABELLE AURELIEN"]
[null,"2016-10-08",5880]
["ROCHE DANEMARK"]
[null,"Médecin "]
["MARABELLE AURELIEN"]
[null,"2016-10-09",2125]
["ROCHE DANEMARK"]
[null,"Médecin "]
["MARABELLE AURELIEN"]
[null,"2016-10-09",1500]
["AMGEN SAS"]
[null,"Médecin "]
["MARABELLE AURELIEN"]
[null,"2016-10-13",1200]
["EISAI SAS"]
[null,"Médecin "]
["MARABELLE AURELIEN"]
[null,"2016-10-16",1400]
["MERCK SERONO"]
[null,"Médecin "]
["MARABELLE AURELIEN"]
[null,"2017-01-25",1000]
["LABORATOIRE GLAXOSMITHKLINE"]
[null,"Médecin "]
["MARABELLE AURELIEN"]
[null,"2017-02-14",960]
[]
["ROCHE SAS"]
[null,"Médecin "]
["MARABELLE AURELIEN"]
[null,"2017-02-21",1200]
["ASTRAZENECA"]
[null,"Médecin "]
["MARABELLE AURELIEN"]
[null,"2017-03-07",2400]
["AMGEN SAS"]
[null,"Médecin "]
["MARABELLE AURELIEN"]
[null,"2017-03-20",2200]
["ONXEO"]
[null,"Médecin "]
["MARABELLE Aurélien"]
[null,"2017-04-14",1285]
["ASTRAZENECA"]
[null,"Médecin "]
["MARABELLE AURELIEN"]
[null,"2017-06-06",1800]
["ASTRAZENECA"]
[null,"Médecin "]
["MARABELLE AURELIEN"]
[null,"2017-07-11",1800]
["ASTRAZENECA"]
[null,"Médecin "]
["MARABELLE AURELIEN"]
[null,"2017-07-13",1440]
["ASTRAZENECA"]
[null,"Médecin "]
["MARABELLE AURELIEN"]
[null,"2017-08-01",1680]
["MSD France"]
[null,"Médecin "]
["MARABELLE AURELIEN"]
[null,"2017-10-25",3000]
["MSD France"]
[null,"Médecin "]
["MARABELLE AURELIEN"]
[null,"2017-10-25",3000]
["MSD France"]
[null,"Médecin "]
["MARABELLE AURELIEN"]
[null,"2017-11-08",26]
["ASTRAZENECA"]
[null,"Médecin "]
["MARABELLE AURELIEN"]
[null,"2017-12-05",1800]
["BRISTOL-MYERS SQUIBB"]
[null,"Médecin "]
["Marabelle Aurelien"]
[null,"2017-12-08",900]
["ASTRAZENECA"]
[null,"Médecin "]
["MARABELLE AURELIEN"]
[null,"2017-12-19",960]
[]
["LABORATOIRE GLAXOSMITHKLINE"]
[null,"Médecin "]
["ANGEVIN ERIC"]
[null,"2016-10-26",1390]
["CELGENE SAS"]
[null,"Médecin "]
["ANGEVIN ERIC"]
[null,"2017-07-21",810]
[]
["KEOCYT"]
[null,"Médecin "]
["SCOAZEC JEAN-YVES"]
[null,"2016-12-28",821]
["NOVARTIS PHARMA SAS"]
[null,"Médecin "]
["SCOAZEC JEAN YVES"]
[null,"2017-02-15",296]
["NOVARTIS PHARMA SAS"]
[null,"Médecin "]
["SCOAZEC JEAN YVES"]
[null,"2017-06-06",444]
["NOVARTIS PHARMA SAS"]
[null,"Médecin "]
["SCOAZEC JEAN YVES"]
[null,"2017-12-14",592]
[]
["ASTRAZENECA"]
[null,"Pharmacien "]
["ROULEAU ETIENNE"]
[null,"2017-07-27",563]
["ASTRAZENECA"]
[null,"Pharmacien "]
["ROULEAU ETIENNE"]
[null,"2017-10-27",350]
[]
["Genzyme"]
[null,"Pharmacien "]
["GOEURY DOMINIQUE"]
[null,"05/03/2013 ",800]
[]
["ROCHE SAS"]
[null,"Médecin "]
["FUMOLEAU PIERRE"]
[null,"2016-08-02",265]
[]
[]
["CELGENE"]
[null,"Médecin "]
["IFRAH NORBERT"]
[null,"2015-07-07",1000]
["SANOFI AVENTIS FRANCE"]
[null,"Médecin "]
["IFRAH NORBERT"]
[null,"2015-11-26",1828]
["CELGENE"]
[null,"Médecin "]
["IFRAH NORBERT"]
[null,"2016-01-25",1190]
["NOVARTIS PHARMA SAS"]
[null,"Médecin "]
["IFRAH NORBERT"]
[null,"2016-03-04",800]
["PFIZER SAS"]
[null,"Médecin "]
["IFRAH NORBERT"]
[null,"2016-03-08",880]
[]
["JANSSEN-CILAG"]
[null,"Médecin "]
["JOLY PASCAL"]
[null,"2013-06-17",1000]
["JANSSEN-CILAG"]
[null,"Médecin "]
["JOLY PASCAL"]
[null,"2013-09-25",1500]
["LABORATOIRE GLAXOSMITHKLINE"]
[null,"Médecin "]
["JOLY PASCAL"]
[null,"2015-02-10",1200]
["LABORATOIRE GLAXOSMITHKLINE"]
[null,"Médecin "]
["JOLY PASCAL"]
[null,"2015-08-04",1000]
["JANSSEN-CILAG"]
[null,"Médecin "]
["JOLY PASCAL"]
[null,"2015-12-14",1375]
["ROCHE ROYAUME-UNI"]
[null,"Médecin "]
["JOLY PASCAL"]
[null,"2016-01-01",2400]
["ROCHE ETATS-UNIS"]
[null,"Médecin "]
["JOLY PASCAL"]
[null,"2016-03-05",600]
["ROCHE ROYAUME-UNI"]
[null,"Médecin "]
["JOLY PASCAL"]
[null,"2016-04-01",4600]
["LABORATOIRE GLAXOSMITHKLINE"]
[null,"Médecin "]
["JOLY PASCAL"]
[null,"2016-04-05",1423]
["ROCHE ETATS-UNIS"]
[null,"Médecin "]
["JOLY PASCAL"]
[null,"2016-06-06",2900]
["ROCHE ROYAUME-UNI"]
[null,"Médecin "]
["JOLY PASCAL"]
[null,"2016-07-01",4800]
["JANSSEN-CILAG"]
[null,"Médecin "]
["JOLY PASCAL"]
[null,"2016-07-07",800]
["JANSSEN-CILAG"]
[null,"Médecin "]
["JOLY PASCAL"]
[null,"2016-07-07",1600]
["Lilly France SAS"]
[null,"Médecin "]
["JOLY PASCAL"]
[null,"2016-07-28",3588]
["NOVARTIS PHARMA SAS"]
[null,"Médecin "]
["JOLY PASCAL"]
[null,"2017-03-17",600]
["JANSSEN-CILAG"]
[null,"Médecin "]
["JOLY PASCAL"]
[null,"2017-03-30",1300]
["AbbVie"]
[null,"Médecin "]
["JOLY PASCAL"]
[null,"2017-05-09",1500]
["Lilly France SAS"]
[null,"Médecin "]
["JOLY PASCAL"]
[null,"2017-06-27",1150]
["BRISTOL-MYERS SQUIBB"]
[null,"Médecin "]
["Joly Pascal"]
[null,"2017-11-08",673]
["SANDOZ"]
[null,"Médecin "]
["JOLY Pascale"]
[null,"2017-11-08",2500]
[]
[]
["MERCK SERONO"]
[null,"Médecin "]
["LE TOURNEAU CHRISTOPHE"]
[null,"2015-04-09",840]
["MERCK SERONO"]
[null,"Médecin "]
["LE TOURNEAU CHRISTOPHE"]
[null,"2015-04-09",840]
["MERCK SERONO"]
[null,"Médecin "]
["LE TOURNEAU CHRISTOPHE"]
[null,"2015-06-30",800]
["MERCK SERONO"]
[null,"Médecin "]
["LE TOURNEAU CHRISTOPHE"]
[null,"2015-06-30",800]
["AMGEN SAS"]
[null,"Médecin "]
["LE TOURNEAU CHRISTOPHE"]
[null,"2016-11-09",1500]
["MERCK SERONO"]
[null,"Médecin "]
["LE TOURNEAU CHRISTOPHE"]
[null,"2016-11-28",550]
["MERCK SERONO"]
[null,"Médecin "]
["LE TOURNEAU CHRISTOPHE"]
[null,"2016-11-28",550]
["LES LABORATOIRES SERVIER"]
[null,"Médecin "]
["LE TOURNEAU CHRISTOPHE"]
[null,"2016-12-15",1500]
["MERCK SERONO"]
[null,"Médecin "]
["LE TOURNEAU CHRISTOPHE"]
[null,"2017-01-19",500]
["MSD France"]
[null,"Médecin "]
["LE TOURNEAU CHRISTOPHE"]
[null,"2017-01-23",875]
["MSD France"]
[null,"Médecin "]
["LE TOURNEAU CHRISTOPHE"]
[null,"2017-01-25",1500]
["MSD France"]
[null,"Médecin "]
["LE TOURNEAU CHRISTOPHE"]
[null,"2017-02-06",2000]
["MSD France"]
[null,"Médecin "]
["LE TOURNEAU CHRISTOPHE"]
[null,"2017-02-15",2500]
["MSD France"]
[null,"Médecin "]
["LE TOURNEAU CHRISTOPHE"]
[null,"2017-04-19",375]
["ASTRAZENECA"]
[null,"Médecin "]
["LE TOURNEAU CHRISTOPHE"]
[null,"2017-05-02",1500]
["ASTRAZENECA"]
[null,"Médecin "]
["LE TOURNEAU CHRISTOPHE"]
[null,"2017-05-02",1400]
["BRISTOL-MYERS SQUIBB"]
[null,"Médecin "]
["LE TOURNEAU CHRISTOPHE"]
[null,"2017-05-12",800]
["ASTRAZENECA"]
[null,"Médecin "]
["LE TOURNEAU CHRISTOPHE"]
[null,"2017-05-23",300]
["NANOBIOTIX S.A."]
[null,"Médecin "]
["LE TOURNEAU Christophe"]
[null,"2017-07-24",3000]
["BRISTOL-MYERS SQUIBB"]
[null,"Médecin "]
["Le Tourneau Christophe"]
[null,"2017-09-06",2000]
[]
[]
["MSD France"]
[null,"Médecin "]
["LE TOURNEAU CHRISTOPHE"]
[null,"2017-09-19",2000]
["BRISTOL-MYERS SQUIBB"]
[null,"Médecin "]
["Le Tourneau Christophe"]
[null,"2017-10-18",1200]
["NANOBIOTIX S.A."]
[null,"Médecin "]
["LE TOURNEAU Christophe"]
[null,"2017-11-06",3000]
["ASTRAZENECA"]
[null,"Médecin "]
["LE TOURNEAU CHRISTOPHE"]
[null,"2017-12-05",1400]
["BRISTOL-MYERS SQUIBB"]
[null,"Médecin "]
["Le Tourneau Christophe"]
[null,"2017-12-08",900]

{"sheet":"Déplacements","index":7,"n_rows":2,"n_cols":6,"rows_kept":2,"cut":false,"hidden":false,"merged":[]}
[]
["Début","Fin ","Signature","Congrès","Lieux","Firme"]

{"sheet":"Tableaux de synthèse","index":8,"n_rows":31,"n_cols":224,"rows_kept":31,"cut":false,"hidden":false,"merged":[[2,163,2,223],[2,6,2,13],[2,14,2,24],[2,25,2,93],[2,94,2,162],[2,2,2,5]]}
[]
[]
[null,null,"Synthèse",null,null,null,"Avantages perçus",null,null,null,null,null,null,null,"Conventions signées",null,null,null,null,null,null,null,null,null,null,"Montants des avantages versés par les entreprises - Montants des avantages versés par les entreprises - Montants des avantages versés par les entreprises - Montants des avantages versés ",null,null,null,null,null,null,null,null,null,null,null,null,null,null,null,null,null,null,null,null,null,null,null,null,null,null,null,null,null,null,null,null,null,null,null,null,null,null,null,null,null,null,null,null,null,null,null,null,null,null,null,null,null,null,null,null,null,null,null,null,null,null,null,null,null,null,null,null,"Nombres d'avantages versés par les entreprises - Nombres d'avantages versés par les entreprises - Nombres d'avantages versés par les entreprises - Nombres d'avantages versés par les entreprises - Nombres d'avantages versés par les entreprises - ",null,null,null,null,null,null,null,null,null,null,null,null,null,null,null,null,null,null,null,null,null,null,null,null,null,null,null,null,null,null,null,null,null,null,null,null,null,null,null,null,null,null,null,null,null,null,null,null,null,null,null,null,null,null,null,null,null,null,null,null,null,null,null,null,null,null,null,null,"Nombres de conventions signées avec les entreprises - Nombres de conventions signées avec les entreprises - Nombres de conventions signées avec les entreprises - Nombres de conventions signées avec les entreprises - Nombres de conventions signées avec les entreprises - "]
[null,"Bénéficiaire","Total avantages perçus (€)","Nombre d'avantages perçus","Nombre de conventions signées","Rémunérations\n+ montants de conventions","Transport","Hébergement","Repas","Hospitalité","Inscription","Conseil","Congrès","Autre","Hospitalité","Orateur","Réunion professionnelle","Expert","Conseil","Recherche Clinique","Etude de marché","Formateur","Rédacteur","Réunion de « Board »","Autre","Roche","MSD France","AstraZeneca","Amgen","Janssen-Cilag","Alexion Pharma France","Lilly","Bristol -Myers Squibb","Novartis","AbbVie","MERCK SERONO","Sanofi Aventis France","SANOFI-AVENTIS RECHERCHE & DEVELOPPEMENT","GSK","Pierre Fabre Médicament","ASTELLAS PHARMA","Orion Corporation Orion Pharma","BIOGARAN","GILEAD SCIENCES","INSTITUT MERIEUX","EISAI SAS","galderma international","CHUGAI","CIS BIO INTERNATIONAL","GE Medical Systems SCS","Icomed","NANOBIOTIX S.A.","LEO Pharma","GlobalData","Health Advances","CELGENE","COSMETIQUE ACTIVE FRANCE","Bioderma","Bayer HealthCare SAS","Pfizer","MEDEXACT","LIVE ! BY GL EVENTS","Medicys Limited","INNATE PHARMA","Genmab A/S","NAOS","Roche Diagnostics GmbH","PSI CRO AG","IPSEN PHARMA","LES SERVIER","KEPHREN","INVENTIVA","SANDOZ","GE HEALTHCARE SAS","Transgene SA","Incyte Corporation","CELGENE SAS","EUSA PHARMA SAS","MALLINCKRODT FRANCE SARL","Illumina France","THERMO ELECTRON SAS","Grünenthal","Biosensors France SAS","ARIAD Pharmaceuticals (France)","AGILENT TECHNOLOGIES FRANCE","Codexial Dermatologie","BRACCO IMAGING FRANCE","ADDMEDICA","TEVA SANTE SAS","MUNDIPHARMA","FRESENIUS KABI FRANCE","Takeda France","Pierre Fabre Dermo-Cosmétique","Genzyme","Roche","Amgen","AstraZeneca","Janssen-Cilag","MSD France","Bristol -Myers Squibb","MERCK SERONO","AbbVie","Novartis","GSK","Lilly","Sanofi Aventis France","GILEAD SCIENCES","Icomed","galderma international","Pierre Fabre Médicament","Alexion Pharma France","ASTELLAS PHARMA","CHUGAI","EISAI SAS","MEDEXACT","LEO Pharma","CELGENE","Pfizer","COSMETIQUE ACTIVE FRANCE","Orion Corporation Orion Pharma","Bayer HealthCare SAS","GE Medical Systems SCS","SANDOZ","EUSA PHARMA SAS","LES SERVIER","Bioderma","Grünenthal","Transgene SA","Incyte Corporation","INSTITUT MERIEUX","INNATE PHARMA","LIVE ! BY GL EVENTS","GE HEALTHCARE SAS","BIOGARAN","Roche Diagnostics GmbH","NANOBIOTIX S.A.","TEVA SANTE SAS","MUNDIPHARMA","PSI CRO AG","Health Advances","Medicys Limited","INVENTIVA","Genmab A/S","SANOFI-AVENTIS RECHERCHE & DEVELOPPEMENT","CELGENE SAS","IPSEN PHARMA","AGILENT TECHNOLOGIES FRANCE","KEPHREN","Illumina France","ARIAD Pharmaceuticals (France)","CIS BIO INTERNATIONAL","MALLINCKRODT FRANCE SARL","Biosensors France SAS","Pierre Fabre Dermo-Cosmétique","NAOS","Codexial Dermatologie","GlobalData","Genzyme","BRACCO IMAGING FRANCE","FRESENIUS KABI FRANCE","ADDMEDICA","Takeda France","THERMO ELECTRON SAS","Roche","AstraZeneca","Janssen-Cilag","Bristol -Myers Squibb","MSD France","Amgen","Novartis","Sanofi Aventis France","AbbVie","Lilly","GSK","Pfizer","MERCK SERONO","galderma international","EISAI SAS","INC RESEARCH, LLC","Bayer HealthCare SAS","PRA","Covance Clinical And Periapproval Services SARL","ICON CLINICAL RESEARCH SARL","GILEAD SCIENCES","LES SERVIER","IPSEN PHARMA","PPD FRANCE SAS","Pierre Fabre Médicament","Alexion Pharma France","LEO Pharma","ASTELLAS PHARMA","SANOFI-AVENTIS RECHERCHE & DEVELOPPEMENT","CELGENE","Adept Field Solutions","Grünenthal","Transgene SA","DDB Health Paris","Genzyme","Advanced Accelerator Applications","NANOBIOTIX S.A.","Orion Corporation Orion Pharma","PSI CRO AG","Health Advances","PSI CRO FRANCE","INVENTIVA","Institut Roche","ONXEO","Inventivhealthclinical","CELGENE SAS","KEOCYT","Kantar Health","CYCLOPHARMA","LIVE ! BY GL EVENTS","EUSA PHARMA SAS","MUNDIPHARMA","GE Medical Systems SCS","MALLINCKRODT FRANCE SARL","BOSTON SCIENTIFIC SAS","PAREXEL International","BOEHRINGER INGELHEIM FRANCE","SANDOZ","Simon-Kucher & Partners","BIOGARAN","ERYTECH Pharma"]
[null,"Pr Gilles Vassal, IGR",{"$f":"SUMPRODUCT(('Avantages perçus'!$A$2:$A$30000=B5)*('Avantages perçus'!$F$2:$F$30000))","v":11136},{"$f":"COUNTIFS('Avantages perçus'!$A$2:$A$30000,B5,'Avantages perçus'!$F$2:$F$30000,\">0\")","v":32},{"$f":"COUNTIFS('Conventions signées'!$A$2:$A$15000,B5,'Conventions signées'!$A$2:$A$15000,\"*\")","v":12},{"$f":"'Conventions signées'!G8+'Conventions signées'!G11+'Conventions signées'!G12+'Conventions signées'!G13+Rémunérations!C5+Rémunérations!C9+Rémunérations!C13","v":23497},6701,2218,504,241,1472,0,0,0,1,3,4,0,4,0,0,0,0,0,0,4732,0,25,0,0,0,5234,1145,0,0,0,0,0,0,0,0,0,0,0,0,0,0,0,0,0,0,0,0,0,0,0,0,0,0,0,0,0,0,0,0,0,0,0,0,0,0,0,0,0,0,0,0,0,0,0,0,0,0,0,0,0,0,0,0,0,0,0,0,0,18,0,1,0,0,10,0,0,0,0,3,0,0,0,0,0,0,0,0,0,0,0,0,0,0,0,0,0,0,0,0,0,0,0,0,0,0,0,0,0,0,0,0,0,0,0,0,0,0,0,0,0,0,0,0,0,0,0,0,0,0,0,0,0,0,0,0,0,0,4,1,0,3,0,0,0,0,0,4,0,0,0,0,0,0,0,0,0,0,0,0,0,0,0,0,0,0,0,0,0,0,0,0,0,0,0,0,0,0,0,0,0,0,0,0,0,0,0,0,0,0,0,0,0,0,0,0,0,0,0]
[null,"Dr Christophe Massard, IGR",{"$f":"SUMPRODUCT(('Avantages perçus'!$A$2:$A$30000=B6)*('Avantages perçus'!$F$2:$F$30000))","v":61642},{"$f":"COUNTIFS('Avantages perçus'!$A$2:$A$30000,B6,'Avantages perçus'!$F$2:$F$30000,\">0\")","v":151},{"$f":"COUNTIFS('Conventions signées'!$A$2:$A$15000,B6,'Conventions signées'!$A$2:$A$15000,\"*\")","v":102},{"$f":"SUM('Conventions signées'!G14:G115)+SUM(Rémunérations!C18:C152)","v":168272},38628,5782,3554,3445,5086,0,29,5118,13,19,30,10,14,9,0,3,0,0,4,0,3925,11761,137,10120,0,16361,57,29,0,15,8091,0,20,0,5034,5010,0,0,0,0,0,71,0,0,0,0,36,0,309,0,0,0,135,0,0,0,180,0,0,0,0,113,0,0,0,88,10,0,26,50,0,0,0,0,0,30,0,0,0,0,0,0,18,16,0,0,0,0,0,5,18,55,3,1,1,0,2,1,10,16,0,0,0,0,0,14,3,0,0,2,0,0,0,5,4,0,1,0,0,0,2,1,1,0,0,0,0,0,0,0,1,1,1,1,1,1,0,0,0,0,0,0,0,0,0,0,0,0,0,0,0,0,0,0,0,0,0,3,8,32,0,3,4,2,16,0,4,0,1,0,0,0,6,4,4,1,0,0,0,2,0,0,0,0,3,1,0,0,2,1,0,0,0,0,1,1,1,1,1,0,0,0,0,0,0,0,0,0,0,0,0,0,0,0,0,0,0,0]
[null,"Dr Aurélien Marabelle, IGR",{"$f":"SUMPRODUCT(('Avantages perçus'!$A$2:$A$30000=B7)*('Avantages perçus'!$F$2:$F$30000))","v":62251},{"$f":"COUNTIFS('Avantages perçus'!$A$2:$A$30000,B7,'Avantages perçus'!$F$2:$F$30000,\">0\")","v":130},{"$f":"COUNTIFS('Conventions signées'!$A$2:$A$15000,B7,'Conventions signées'!$A$2:$A$15000,\"*\")","v":82},{"$f":"SUM('Conventions signées'!G116:G197)+SUM(Rémunérations!C157:C290)","v":84159},38413,4154,4404,1564,3259,0,0,10457,8,19,4,10,24,9,0,2,0,0,6,12574,9328,6229,20474,0,0,0,9845,0,0,353,27,0,59,0,0,0,0,118,2810,154,0,0,0,0,0,0,0,0,0,0,0,0,84,0,0,0,0,0,147,0,0,0,0,0,0,0,0,0,49,0,0,0,0,0,0,0,0,0,0,0,0,0,0,0,0,0,0,0,14,39,16,0,20,29,1,0,0,2,0,1,2,0,0,0,0,0,0,1,0,0,0,0,0,0,1,0,0,0,0,0,0,1,0,2,0,0,0,0,0,0,0,0,0,0,0,0,1,0,0,0,0,0,0,0,0,0,0,0,0,0,0,0,0,0,0,0,0,6,10,0,17,8,16,0,1,0,0,4,2,1,0,1,0,2,0,2,3,1,0,0,1,3,0,0,0,1,0,0,0,1,0,0,0,0,0,0,0,0,0,1,1,0,0,0,0,0,0,0,0,0,0,0,0,0,0,0,0,0]
[null,"Dr Eric Angevin, IGR",{"$f":"SUMPRODUCT(('Avantages perçus'!$A$2:$A$30000=B8)*('Avantages perçus'!$F$2:$F$30000))","v":39259},{"$f":"COUNTIFS('Avantages perçus'!$A$2:$A$30000,B8,'Avantages perçus'!$F$2:$F$30000,\">0\")","v":58},{"$f":"COUNTIFS('Conventions signées'!$A$2:$A$15000,B8,'Conventions signées'!$A$2:$A$15000,\"*\")","v":25},{"$f":"SUM('Conventions signées'!G198:G220)+SUM(Rémunérations!C295:C299)","v":2225},15981,5483,1325,0,3410,0,0,13060,12,0,4,4,1,2,0,0,0,0,2,7669,4455,25,0,0,0,0,1513,0,8165,0,0,10335,7016,0,0,0,0,0,0,0,0,0,0,0,0,0,0,0,0,0,0,0,0,0,0,0,0,0,0,0,0,0,0,0,0,0,0,0,0,21,60,0,0,0,0,0,0,0,0,0,0,0,0,0,0,0,0,0,11,0,1,0,10,5,0,11,0,17,0,0,0,0,0,0,0,0,0,0,0,0,0,0,0,0,0,0,0,0,0,0,0,0,1,0,0,0,0,0,0,0,0,0,0,0,0,0,0,1,1,0,0,0,0,0,0,0,0,0,0,0,0,0,0,0,0,0,0,3,1,0,0,4,0,0,0,9,0,5,0,0,0,0,0,0,0,0,0,0,0,0,0,0,0,0,0,1,0,0,0,0,0,0,0,0,0,0,0,0,0,0,0,1,1,0,0,0,0,0,0,0,0,0,0,0,0,0,0,0]
[null,"Pr Jean-Yves Scoazec, IGR",{"$f":"SUMPRODUCT(('Avantages perçus'!$A$2:$A$30000=B9)*('Avantages perçus'!$F$2:$F$30000))","v":1612},{"$f":"COUNTIFS('Avantages perçus'!$A$2:$A$30000,B9,'Avantages perçus'!$F$2:$F$30000,\">0\")","v":15},{"$f":"COUNTIFS('Conventions signées'!$A$2:$A$15000,B9,'Conventions signées'!$A$2:$A$15000,\"*\")","v":16},{"$f":"SUM('Conventions signées'!G223:G238)+SUM(Rémunérations!C304:C316)","v":3885},211,147,250,113,0,0,829,62,2,5,3,1,4,0,0,0,0,0,1,472,0,0,0,0,0,0,0,953,0,0,0,0,0,0,0,0,0,0,0,0,0,0,0,0,32,0,0,0,0,0,0,0,0,12,30,0,0,0,0,0,0,0,113,0,0,0,0,0,0,0,0,0,0,0,0,0,0,0,0,0,0,0,0,0,0,0,0,0,4,0,0,0,0,0,0,0,7,0,0,0,0,1,0,0,0,0,0,0,1,0,0,1,0,0,0,0,0,0,0,0,0,0,0,0,0,0,0,0,0,0,0,0,0,0,0,0,0,0,0,1,0,0,0,0,0,0,0,0,0,0,0,0,0,0,0,0,0,4,0,0,0,0,0,7,0,0,0,0,1,0,0,0,0,0,0,0,0,0,0,2,0,0,0,0,0,0,0,0,0,0,1,0,0,0,0,0,0,0,0,0,0,0,0,1,0,0,0,0,0,0,0,0,0,0,0,0,0,0]
[null,"Dr Etienne Rouleau, IGR",{"$f":"SUMPRODUCT(('Avantages perçus'!$A$2:$A$30000=B10)*('Avantages perçus'!$F$2:$F$30000))","v":12622},{"$f":"COUNTIFS('Avantages perçus'!$A$2:$A$30000,B10,'Avantages perçus'!$F$2:$F$30000,\">0\")","v":48},{"$f":"COUNTIFS('Conventions signées'!$A$2:$A$15000,B10,'Conventions signées'!$A$2:$A$15000,\"*\")","v":36},{"$f":"SUM('Conventions signées'!G239:G274)+SUM(Rémunérations!C321:C325)","v":6399},2255,1300,5349,1343,190,0,1086,1099,4,5,10,2,4,0,1,10,0,0,0,64,0,11854,0,0,0,0,680,0,0,0,0,0,0,0,0,0,0,0,0,0,0,0,0,0,0,0,0,0,0,0,0,0,0,0,0,0,0,0,0,0,0,0,0,0,0,0,0,0,0,0,0,0,0,0,0,0,0,0,24,0,0,0,0,0,0,0,0,0,1,0,44,0,0,2,0,0,0,0,0,0,0,0,0,0,0,0,0,0,0,0,0,0,0,0,0,0,0,0,0,0,0,0,0,0,0,0,0,0,0,0,0,0,0,0,0,0,0,0,0,0,1,0,0,0,0,0,0,0,0,0,0,0,0,0,0,0,0,5,27,0,1,0,1,0,0,0,0,1,0,0,0,0,0,0,0,0,0,0,0,0,0,0,0,0,0,0,0,0,0,0,0,0,0,0,0,0,0,0,0,0,0,0,0,0,1,0,0,0,0,0,0,0,0,0,0,0,0,0]
[null,"Dr Dominique Goeury, FHF",{"$f":"SUMPRODUCT(('Avantages perçus'!$A$2:$A$30000=B11)*('Avantages perçus'!$F$2:$F$30000))","v":81},{"$f":"COUNTIFS('Avantages perçus'!$A$2:$A$30000,B11,'Avantages perçus'!$F$2:$F$30000,\">0\")","v":3},{"$f":"COUNTIFS('Conventions signées'!$A$2:$A$15000,B11,'Conventions signées'!$A$2:$A$15000,\"*\")","v":2},{"$f":"SUM('Conventions signées'!G275:G276)+SUM(Rémunérations!C330)","v":800},0,0,71,0,0,0,0,10,1,0,0,0,1,0,0,0,0,0,0,0,0,0,0,0,0,0,0,0,64,0,0,0,0,17,0,0,0,0,0,0,0,0,0,0,0,0,0,0,0,0,0,0,0,0,0,0,0,0,0,0,0,0,0,0,0,0,0,0,0,0,0,0,0,0,0,0,0,0,0,0,0,0,0,0,0,0,0,0,0,0,0,0,0,0,0,2,0,0,0,0,0,0,0,1,0,0,0,0,0,0,0,0,0,0,0,0,0,0,0,0,0,0,0,0,0,0,0,0,0,0,0,0,0,0,0,0,0,0,0,0,0,0,0,0,0,0,0,0,0,0,0,0,0,0,0,0,0,0,0,0,0,0,0,0,0,1,0,0,0,0,0,0,0,0,0,0,0,0,0,0,0,0,0,0,0,0,0,0,0,0,0,1,0,0,0,0,0,0,0,0,0,0,0,0,0,0,0,0,0,0,0,0,0,0,0,0,0,0]
[null,"Dr Françoise Durandière, FEHAP",{"$f":"SUMPRODUCT(('Avantages perçus'!$A$2:$A$30000=B12)*('Avantages perçus'!$F$2:$F$30000))","v":68},{"$f":"COUNTIFS('Avantages perçus'!$A$2:$A$30000,B12,'Avantages perçus'!$F$2:$F$30000,\">0\")","v":2},{"$f":"COUNTIFS('Conventions signées'!$A$2:$A$15000,B12,'Conventions signées'!$A$2:$A$15000,\"*\")","v":2},{"$f":"SUM('Conventions signées'!G277:G278)+0","v":0},0,0,68,0,0,0,0,0,2,0,0,0,0,0,0,0,0,0,0,0,0,0,0,0,0,0,0,0,0,0,68,0,0,0,0,0,0,0,0,0,0,0,0,0,0,0,0,0,0,0,0,0,0,0,0,0,0,0,0,0,0,0,0,0,0,0,0,0,0,0,0,0,0,0,0,0,0,0,0,0,0,0,0,0,0,0,0,0,0,0,0,0,0,0,0,0,0,0,0,2,0,0,0,0,0,0,0,0,0,0,0,0,0,0,0,0,0,0,0,0,0,0,0,0,0,0,0,0,0,0,0,0,0,0,0,0,0,0,0,0,0,0,0,0,0,0,0,0,0,0,0,0,0,0,0,0,0,0,0,0,0,0,0,0,2,0,0,0,0,0,0,0,0,0,0,0,0,0,0,0,0,0,0,0,0,0,0,0,0,0,0,0,0,0,0,0,0,0,0,0,0,0,0,0,0,0,0,0,0,0,0,0,0,0,0,0,0,0]
[null,"Pr. Pierre Fumoleau, Institut Curie",{"$f":"SUMPRODUCT(('Avantages perçus'!$A$2:$A$30000=B13)*('Avantages perçus'!$F$2:$F$30000))","v":82011},{"$f":"COUNTIFS('Avantages perçus'!$A$2:$A$30000,B13,'Avantages perçus'!$F$2:$F$30000,\">0\")","v":189},{"$f":"COUNTIFS('Conventions signées'!$A$2:$A$15000,B13,'Conventions signées'!$A$2:$A$15000,\"*\")","v":52},{"$f":"SUM('Conventions signées'!G279:G330)+SUM(Rémunérations!C335)","v":43743},58204,10866,3733,66,9142,0,0,0,17,1,25,3,4,1,0,0,0,1,0,51593,297,0,15172,49,0,2165,0,2449,20,0,2219,0,1982,5294,0,0,0,0,0,554,0,0,0,0,0,0,0,0,0,0,0,0,0,73,0,0,0,0,0,0,0,0,0,0,96,0,0,0,0,0,0,0,0,48,0,0,0,0,0,0,0,0,0,0,0,0,0,0,79,49,0,1,5,0,0,1,8,8,9,4,0,0,0,15,0,0,0,6,0,0,0,2,0,0,0,0,0,0,0,0,0,0,0,0,0,0,0,0,0,0,0,0,0,0,0,0,0,0,0,0,0,1,1,0,0,0,0,0,0,0,0,0,0,0,0,0,0,25,0,0,0,3,9,1,4,0,2,1,1,0,0,3,0,0,0,0,1,0,0,0,0,1,0,0,0,0,0,0,0,0,0,0,0,0,0,0,0,0,0,0,0,0,0,0,0,1,0,0,0,0,0,0,0,0,0,0,0,0]
[null,"Pr Norbert Ifrah, INCa",{"$f":"SUMPRODUCT(('Avantages perçus'!$A$2:$A$30000=B14)*('Avantages perçus'!$F$2:$F$30000))","v":38538},{"$f":"COUNTIFS('Avantages perçus'!$A$2:$A$30000,B14,'Avantages perçus'!$F$2:$F$30000,\">0\")","v":93},{"$f":"COUNTIFS('Conventions signées'!$A$2:$A$15000,B14,'Conventions signées'!$A$2:$A$15000,\"*\")","v":23},{"$f":"SUM('Conventions signées'!G331:G353)+SUM(Rémunérations!C341:C357)","v":5758},26770,6032,2440,0,2198,0,37,1061,4,2,10,0,5,0,0,1,0,0,1,7362,0,0,1545,0,26626,210,476,362,0,0,0,0,0,0,0,0,0,71,0,0,0,997,0,0,175,0,0,0,0,193,0,0,0,0,93,185,0,155,0,0,0,0,0,0,0,0,0,0,0,0,0,60,0,0,0,0,0,28,0,0,0,0,0,0,0,0,0,0,17,14,0,0,0,1,0,0,5,0,2,0,2,5,0,0,18,0,12,0,5,0,4,0,0,0,0,0,0,3,0,0,0,0,0,0,2,2,0,0,0,0,0,0,0,0,0,0,0,0,0,0,0,0,0,1,0,0,0,0,0,0,0,0,0,0,0,0,0,5,0,0,2,0,1,2,1,0,0,0,2,0,0,0,0,0,0,0,0,0,0,0,0,0,4,0,0,0,3,0,0,0,0,0,0,0,0,0,0,0,0,0,0,0,0,0,0,0,1,1,1,0,0,0,0,0,0,0,0,0]
[null,"Pr Dominique Le Guludec, HAS",{"$f":"SUMPRODUCT(('Avantages perçus'!$A$2:$A$30000=B15)*('Avantages perçus'!$F$2:$F$30000))","v":1628},{"$f":"COUNTIFS('Avantages perçus'!$A$2:$A$30000,B15,'Avantages perçus'!$F$2:$F$30000,\">0\")","v":12},{"$f":"COUNTIFS('Conventions signées'!$A$2:$A$15000,B15,'Conventions signées'!$A$2:$A$15000,\"*\")","v":8},{"$f":"SUM('Conventions signées'!G354:G361)+0","v":0},0,820,378,0,0,0,430,0,2,0,3,0,0,1,0,1,0,0,1,0,0,0,0,0,0,0,0,0,0,0,0,0,0,0,0,0,0,0,0,0,0,0,820,562,0,0,0,0,0,0,0,0,0,51,0,0,0,0,0,0,0,0,0,38,0,0,0,76,0,0,0,0,51,0,0,0,30,0,0,0,0,0,0,0,0,0,0,0,0,0,0,0,0,0,0,0,0,0,0,0,0,0,0,0,0,0,0,0,0,0,0,1,0,0,0,4,0,0,2,0,0,0,0,0,0,0,2,0,0,0,0,0,0,0,0,0,0,0,0,0,0,0,0,0,1,1,1,0,0,0,0,0,0,0,0,0,0,0,0,0,0,0,0,0,0,0,0,0,1,0,0,0,0,0,0,0,0,0,2,0,0,0,0,0,0,0,0,0,0,0,0,0,2,0,0,0,0,0,0,0,0,0,0,0,0,0,0,0,0,1,1,1,0,0,0,0,0,0]
[null,"Pr Jean-Paul Vernant, AP-HP",{"$f":"SUMPRODUCT(('Avantages perçus'!$A$2:$A$30000=B16)*('Avantages perçus'!$F$2:$F$30000))","v":45},{"$f":"COUNTIFS('Avantages perçus'!$A$2:$A$30000,B16,'Avantages perçus'!$F$2:$F$30000,\">0\")","v":2},{"$f":"COUNTIFS('Conventions signées'!$A$2:$A$15000,B16,'Conventions signées'!$A$2:$A$15000,\"*\")","v":2},{"$f":"SUM('Conventions signées'!G362:G363)","v":0},0,0,45,0,0,0,0,0,1,0,1,0,0,0,0,0,0,0,0,0,0,0,0,0,0,0,10,0,0,0,0,0,0,0,0,0,0,35,0,0,0,0,0,0,0,0,0,0,0,0,0,0,0,0,0,0,0,0,0,0,0,0,0,0,0,0,0,0,0,0,0,0,0,0,0,0,0,0,0,0,0,0,0,0,0,0,0,0,0,0,0,0,0,1,0,0,0,0,0,0,1,0,0,0,0,0,0,0,0,0,0,0,0,0,0,0,0,0,0,0,0,0,0,0,0,0,0,0,0,0,0,0,0,0,0,0,0,0,0,0,0,0,0,0,0,0,0,0,0,0,0,0,0,0,0,0,0,0,0,0,0,1,0,0,0,0,0,0,0,0,0,0,0,0,0,0,0,0,0,0,0,0,0,0,0,0,0,0,0,0,1,0,0,0,0,0,0,0,0,0,0,0,0,0,0,0,0,0,0,0,0,0,0,0,0,0,0,0]
[null,"Pr Pascal Joly, CHU Rouen",{"$f":"SUMPRODUCT(('Avantages perçus'!$A$2:$A$30000=B17)*('Avantages perçus'!$F$2:$F$30000))","v":59822},{"$f":"COUNTIFS('Avantages perçus'!$A$2:$A$30000,B17,'Avantages perçus'!$F$2:$F$30000,\">0\")","v":233},{"$f":"COUNTIFS('Conventions signées'!$A$2:$A$15000,B17,'Conventions signées'!$A$2:$A$15000,\"*\")","v":105},{"$f":"SUM('Conventions signées'!G364:G468)+SUM(Rémunérations!C362:C438)","v":56436},28990,11894,6156,1699,4555,0,92,6436,26,10,21,10,13,11,1,6,0,0,7,171,957,0,0,22768,0,2012,1920,16058,9625,0,1331,0,1171,31,0,0,0,0,0,0,2227,0,0,0,83,0,310,320,0,0,277,273,0,46,0,0,0,0,0,142,0,0,0,0,0,0,68,0,0,0,0,0,0,0,0,0,0,0,0,20,0,0,0,0,0,0,12,0,5,0,0,42,3,17,0,55,38,17,8,3,0,3,19,1,0,0,0,0,0,6,0,1,6,0,0,0,2,0,0,3,0,0,0,0,0,0,0,0,0,0,0,0,0,0,0,0,0,0,0,0,0,0,0,0,0,0,0,1,1,1,1,0,0,0,0,0,0,3,0,22,6,3,0,18,1,17,7,5,2,0,10,0,0,0,0,1,0,0,0,0,2,0,0,4,0,0,0,0,0,0,0,0,0,0,0,0,0,0,0,0,0,0,0,0,0,0,0,0,0,0,0,0,1,1,1,1,0,0]
[null,"Dr Brigitte Roy-Geffroy, SFD",{"$f":"SUMPRODUCT(('Avantages perçus'!$A$2:$A$30000=B18)*('Avantages perçus'!$F$2:$F$30000))","v":42},{"$f":"COUNTIFS('Avantages perçus'!$A$2:$A$30000,B18,'Avantages perçus'!$F$2:$F$30000,\">0\")","v":2},{"$f":"COUNTIFS('Conventions signées'!$A$2:$A$15000,B18,'Conventions signées'!$A$2:$A$15000,\"*\")","v":1},{"$f":"SUM('Conventions signées'!G469)+0","v":0},0,0,42,0,0,0,0,0,1,0,0,0,0,0,0,0,0,0,0,0,0,0,0,0,0,0,0,0,0,0,0,0,0,31,0,0,0,0,0,0,0,0,0,0,0,0,0,0,0,0,0,0,0,0,0,0,0,0,0,0,0,0,0,0,0,0,0,0,0,0,0,0,0,0,0,0,0,0,0,0,0,0,0,0,0,0,0,11,0,0,0,0,0,0,0,0,0,0,0,0,0,0,0,1,0,0,0,0,0,0,0,0,0,0,0,0,0,0,0,0,0,0,0,0,0,0,0,0,0,0,0,0,0,0,0,0,0,0,0,0,0,0,0,0,0,0,0,0,0,0,0,1,0,0,0,0,0,0,0,0,0,0,0,0,0,0,0,0,0,0,0,0,0,0,0,0,0,0,0,0,0,0,0,0,0,0,0,0,0,0,0,1,0,0,0,0,0,0,0,0,0,0,0,0,0,0,0,0,0,0,0,0,0,0,0,0,0,0]
[null,"Pr Alain Astier, AP-HP",{"$f":"SUMPRODUCT(('Avantages perçus'!$A$2:$A$30000=B19)*('Avantages perçus'!$F$2:$F$30000))","v":10114},{"$f":"COUNTIFS('Avantages perçus'!$A$2:$A$30000,B19,'Avantages perçus'!$F$2:$F$30000,\">0\")","v":65},{"$f":"COUNTIFS('Conventions signées'!$A$2:$A$15000,B19,'Conventions signées'!$A$2:$A$15000,\"*\")","v":19},{"$f":"SUM('Conventions signées'!G470:G488)+0","v":30},5533,1544,1618,23,1376,0,20,0,3,1,7,1,2,0,3,0,0,2,0,60,81,0,127,15,0,0,23,51,0,2518,1300,0,27,0,37,0,3615,21,0,2081,0,0,0,0,0,0,0,0,0,104,0,0,0,0,0,0,0,0,0,0,0,0,0,0,0,0,0,0,0,0,0,0,0,0,0,0,0,0,0,0,20,20,0,0,14,0,0,0,3,6,0,1,3,1,26,0,3,1,0,4,1,0,0,0,0,1,0,6,0,0,4,0,0,0,0,0,0,0,0,0,0,0,0,0,0,0,0,2,0,0,0,0,0,0,0,0,0,0,0,0,0,0,0,0,0,0,0,0,0,0,0,0,1,1,1,0,0,3,0,0,0,0,3,0,2,0,0,1,2,0,0,4,0,0,0,0,0,0,0,0,0,0,0,0,0,0,0,3,0,0,0,0,0,0,0,0,0,0,0,0,0,0,0,0,0,0,0,0,0,0,0,0,0,0,0,0,1,0]
[null,"Pr Christophe Le Tourneau, Institut Curie",{"$f":"SUMPRODUCT(('Avantages perçus'!$A$2:$A$30000=B20)*('Avantages perçus'!$F$2:$F$30000))","v":61887},{"$f":"COUNTIFS('Avantages perçus'!$A$2:$A$30000,B20,'Avantages perçus'!$F$2:$F$30000,\">0\")","v":198},{"$f":"COUNTIFS('Conventions signées'!$A$2:$A$15000,B20,'Conventions signées'!$A$2:$A$15000,\"*\")","v":60},{"$f":"SUM('Conventions signées'!G489:G548)+SUM(Rémunérations!C444:C542)","v":72839},33738,11291,4472,2402,3550,0,0,6434,9,11,5,5,20,9,0,1,0,0,0,4442,28317,10628,110,0,0,540,5172,0,28,11695,0,0,0,0,0,0,0,0,0,0,0,0,0,0,216,450,0,0,0,0,0,0,0,21,78,0,0,0,0,0,116,0,0,60,0,0,0,0,0,0,0,0,0,0,0,0,0,0,0,0,0,0,0,0,0,14,0,0,11,2,31,0,54,22,56,1,0,0,1,0,0,10,0,0,0,0,0,0,3,0,0,1,0,0,0,0,0,0,1,0,0,0,0,0,0,0,0,0,2,2,0,0,0,0,0,0,0,0,0,0,0,0,0,0,0,0,0,0,0,0,0,0,0,0,0,1,0,4,9,0,9,16,1,0,0,0,0,0,0,9,0,0,1,0,2,1,1,0,3,0,1,0,0,0,0,0,0,0,0,0,0,0,0,2,0,0,0,0,0,0,0,0,0,0,0,0,0,0,0,0,0,0,0,0,0,0,0,1]
[null,"Pr Jean-Marc Tréluyer, AP-HP",{"$f":"SUMPRODUCT(('Avantages perçus'!$A$2:$A$30000=B21)*('Avantages perçus'!$F$2:$F$30000))","v":5444},{"$f":"COUNTIFS('Avantages perçus'!$A$2:$A$30000,B21,'Avantages perçus'!$F$2:$F$30000,\">0\")","v":23},{"$f":"COUNTIFS('Conventions signées'!$A$2:$A$15000,B21,'Conventions signées'!$A$2:$A$15000,\"*\")","v":5},{"$f":"SUM('Conventions signées'!G549:G553)+0","v":0},2678,1233,546,0,987,0,0,0,0,0,1,0,0,0,0,0,0,4,0,0,0,0,0,2056,0,0,39,0,0,0,0,0,0,0,0,0,0,3309,0,0,0,0,0,0,0,0,0,0,0,0,0,0,0,0,0,0,0,0,0,0,0,0,0,0,0,0,0,0,0,0,0,0,0,0,40,0,0,0,0,0,0,0,0,0,0,0,0,0,0,0,0,5,0,2,0,0,0,0,0,0,15,0,0,0,0,0,0,0,0,0,0,0,0,0,0,0,0,0,0,0,0,0,0,0,0,0,0,0,0,0,0,0,0,0,0,0,0,0,0,0,0,0,0,0,0,0,0,0,0,0,0,0,0,0,0,0,1,0,0,1,0,0,0,0,0,0,0,0,0,0,0,0,0,0,0,0,0,4,0,0,0,0,0,0,0,0,0,0,0,0,0,0,0,0,0,0,0,0,0,0,0,0,0,0,0,0,0,0,0,0,0,0,0,0,0,0,0,0]
[null,"TOTAUX",448202,1256,552,{"$f":"SUM(F5:F21)","v":468043},258102,62764,34955,10896,35225,0,2523,43737,106,76,128,46,96,42,5,24,0,7,22,89139,47360,40522,37565,35008,26626,26522,20880,19902,17902,14581,13036,10335,10275,5373,5071,5010,3615,3554,2810,2789,2227,1068,820,562,506,450,346,320,309,297,277,273,219,203,201,185,180,155,147,142,116,113,113,98,96,88,78,76,75,71,60,60,51,48,40,30,30,28,24,20,20,20,18,16,14,14,12,11,163,115,111,104,98,91,84,70,63,46,33,30,21,19,19,18,18,15,15,13,9,8,8,6,6,5,5,4,3,3,3,3,2,2,2,2,2,2,2,2,2,2,1,1,1,1,1,1,1,1,1,1,1,1,1,1,1,1,1,1,1,1,1,1,1,1,1,1,1,65,56,55,38,38,35,30,27,27,17,17,12,10,10,8,7,6,6,5,5,5,5,4,4,4,4,4,3,3,3,3,2,2,2,2,2,2,1,1,1,1,1,1,1,1,1,1,1,1,1,1,1,1,1,1,1,1,1,1,1,1]
[]
[]
[null,"Période d'étude","   1er semestre 2013 - 2ème semestre 2017, soient 5 années"]
[null,"Début de l'analyse","   06/07/2018 23:29:27"]
[null,"Fin de l'analyse","   06/07/2018 23:32:02"]
[]
[]
[]
[null,null,null,"Six experts IGR :",null,{"$f":"SUM(C5:C10)+SUM(F5:F10)","v":476959}]